Workbook

Sheet Title and instructions
C2: Feasibility Study Appendix:
C3: Schedule of Accommodation (SoA) tool (Primary) version 8.3
C4: December 2023
B6: DOCUMENT CONTROL
B8: Tool Version | C8: Amendments | D8: Status | E8: Date | F8: Author
B9: 7.4 | C9: Area Data summary worksheets, Contractors ADS codes, ADS templates and FF&E library removed. Updated versions of these sheets now in SS1 School-specific SoA and ADS template v7.4. | D9: n/a | E9: 2019-05-02 | F9: BWI
B10: 8.1 | C10: Version 7.4 revised to use new Uniclass names and codes and to incorporate changes to Annex 1A and 1B for the 2021 Output Specification. Rationalisation of some furnished space types, including food room and workshop 1 of 2. | D10: n/a | E10: 2021-04-19 | F10: BWI
B11: 8.2 (P01) | C11: Amended to be accessible. Revised ADS codes to match SS1 of the 2021 Output Specification, as well as other corrections including all spaces listed on Individual spaces worksheet, 2FE default to hall and small hall. Additional plant room options added. | D11: S2 | E11: 2022-03-31 | F11: BWI
B12: 8.3 (C01) | C12: Plant spaces amended and number of blocks added. Drop down lists allow for library options, sensory room, faith rooms and ablutions rooms if needed. Minimum allowance for horizontal circulation reduced to 14%. Net capacity amended to match 2023 method. Other minor amendments, including cell colours. | D12: A | E12: 2023-12-18 | F12: BWI
B14: School-Specific Document
B15: [Insert Project Code and Scheme Name here in title sheet]
B16: Revision | C16: Amendments | D16: Status | E16: Date | F16: Author
B17: P01 | C17: Employer's Representative to add amendments made to document (SoA tool Version: 8.3) here and rename file to make project specific. | D17: S2 | E17: YYYY-MM-DD | F17: ABC
B21: Contents
B22: Worksheet | C22: Description
B23: Title and Instructions | C23: Sheet sets out information about this resource information about the file (name, revision, status, document owner, document originator and revision history) and list of contents including descriptions. As well as instructions on how to use the document.
B24: Primary SoA | C24: Tool create School-Specific Schedule of Accommodation (SoA) based on age range and number of pupil places - Tool Version 8.3
B25: Existing Spaces | C25: Sheet for identifying and recording all existing spaces in existing school buildings
B26: Individual Spaces | C26: Macro-created list of each individual space in the Primary SoA
B27: Project SoA | C27: School-Specific Project Schedule of Accommodation (SoA) based on Individual spaces within the Works
B28: Prog Assums | C28: Sheet used for document calculations including drop-down lists
B29: Data Library | C29: Sheet used for document calculations, with data matching SS1
B31: Summary
B32: This document is a tool to create a Schedule of Accommodation (SoA) for any primary school, and a Project SoA for a related project
B33: Review Date | C33: Review dates for this document will be at 6-month intervals.
B34: Who is this publication for? | C34: This document is for technical professionals involved in the design and construction of school premises, to inform a School-specific Project SoA as part of the Employer’s Requirements of the DfE Construction Framework. It may also be used as the basis of similar documentation for other procurement routes.
B35: Uniclass Codes | C35: This document captures Uniclass codes for the management of exchange of information. To access all codes and associated titles reference should be made to Refer to Uniclass (uniclass.thenbs.com) for a description of Uniclass codes.
B37: Notes
B38: 001 | C38: The Primary SoA worksheet in this tool will create a Schedule of Accommodation (SoA) for any mainstream primary school that recommends the number type and size of spaces based on typical curriculum requirements, within the area ranges specified in BB103. Various adjustments can be made, using drop-down lists in any white cell, to suit the individual requirements of the school, as long as the total area of each category and the net capacity (in cell V5) are within the minimum and maximum range shown. The original recommendations remain unchanged in columns AI and AK.
B39: 002 | C39: As set out in the instructions, the further worksheets offer options to list and check the existing spaces and to create a list of every individual space in the school. This can then be used to identify a Project SoA of all spaces in any project for new build, remodelling or refurbishment. This Project SoA can then be migrated to the School-specific SoA and ADS template in the Output Specification to provide the Employers Requirements for a projects, including Area Data Sheets.
B40: 003 | C40: Use rows 17 to 21 to insert the name of the project and start a version log. More rows can be inserted below if needed.
B41: 004 | C41: Where the school is to retain existing buildings, the appropriate designation should be chosen in cell AG8 and either: - use the minimum recommended sizes for new build projects, with the net and gross area at the minimum, and note the difference between this and the actual size of spaces, which may be smaller or larger (e.g. in column DV); or - match the sizes of the existing spaces in the SoA to their actual size, and note that the net and gross areas will be between the minimum and maximum recommended.
B42: 005 | C42: This Primary SoA tool will recommend possible areas for supplementary area where additionally resourced places for special educational needs (SEN) are identified, assuming that the SEN pupils will be taught in a specially resourced provision (SRP) or provide additional pupil places in a unit within the school. These recommendations are indicative, based on BB104.
B43: 006 | C43: For all-age schools use two separate SoA tools, (the Secondary SoA and the Primary SoA) for the respective component parts of the school.
B44: 007 | C44: The Technical Advisor should input the Scheme specific name into the Document Table (e.g., SRP1001-SchoolName) in cell B18. Subsequent Revisions to this template by the Employer’s Representative and Contractor should be recorded within the revisions table and follow the incremental revisioning as defined within National Annex of BS EN ISO 19650-2.
B46: Instructions
C47: These instructions are colour coded to match the worksheet tabs in both this SoA tool and the SoA and ADS template, and cover the following steps:
C48: This SoA tool covers items 1 to 4 from the red Primary SoA to the green Project Brief. The SoA template in Annexe SS1 of School-Specific Brief covers the items 4 to 6.
B49: 1. | C49: Whether or not the options below are used, the first task is to Create the school specific SoA.
B50: 2. | C50: Where several spaces or buildings are to be retained, the Existing Spaces and Primary SoA worksheets can be used to Compare Existing Spaces
B51: 3. | C51: Once the SoA has been finalised, the macro in the Individual Spaces worksheet can be used to Create the schedule of individual spaces
B52: 4. | C52: If this version of the SoA is used as a contract document, the next 4 worksheets can be used to Create the Project SoA and Area Data summary worksheets, for architectural and M&E requirements as well as fittings, furniture and equipment (FF&E).
B53: 5. | C53: The worksheets and the Contractors ADS codes in the School-specific SoA and ADS template offer the opportunity for the Contractor to complete SoA (at ITT and CP stages)
B54: 6. | C54: If individual Area Data Sheets (ADSs) are required, the ADS template in the School-specific SoA and ADS can be used. This tool then has macros, with buttons on the top right of this sheet, to create ADSs for each space on the Project SoA.
C55: The final 2 worksheets provide Programme Assumptions (including all drop down lists) and a data library of all generic requirements for all relevant space types. Like this title and instruction sheet, they are locked and for reference only.
B57: 1. Create the school specific SoA
C58: The SoA template will automatically list a typical ‘best practice’ set of teaching spaces, and their support spaces, based on the inserted number of places, age range, curriculum model and any supplementary SEN places. This can be adjusted to best suit the school's needs with various drop-down lists in column AG.
B59: 1.1 | C59: Create an initial SoA based on the age and number of pupil places. In the ‘Primary SoA’ tab:
B60: 1.1.1 | C60: Ensure the age range is correct. If the age range is not 3-11, fill in the ‘age range’ box by selecting from the drop-down menu (row 2, column K). The 3-11 age range assumes a nursery for 3 to 4 year olds (based on a staff: pupil ratio of 1:13). Choose an age range of 4-11 if there is no nursery. See 1.1.3 if the nursery is for younger years.
B61: 1.1.2 | C61: Identify pupil places. Fill in the number of pupil places per age range (rows 4 to 8, column K) to be accommodated (not the number on roll).
C62: Column O, rows 4 to 8 are updated automatically; row 10, columns K and O are updated automatically.
B63: 1.1.3 | C63: Select the type of any nursery provision for under-3s or additionally resourced provision for SEN from the drop-down menu in row 15, column D, before filling in the number of additionally resourced SEN places (rows 15, column K): either integrated Specially Resourced Provision (for pupils within the mainstream admissions) or a designated Unit for separate places over and above the mainstream admissions. Do the same for any additional nursery provision.
C64: An indicative 'Supplementary Area' for any additional nursery or additionally resourced SEN places will be automatically allocated in column Y, under the related headings. If an SRP is chosen, the places are deemed to be included in the 'Total Mainstream Places', so the total supplementary area will be smaller than if a unit is chosen, when the pupil places will be additional and those pupils will be more likely to spend most of their time in a home-base classroom in the unit. The recommended areas are based on the minimum recommended in Building Bulletin 104 and should be tested in relation to the specific provision planned by the school.
B65: 1.1.4 | C65: Type of site and buildings: Select the area and type of site (row 4, column AD and AG) from the drop-down menus provided. Check the number of storeys (row 6, column AG), and select a different number from the drop down list if appropriate.
C66: The area of the site and number of split sites can have a minor effect on the net capacity in some cases. Buildings on confined sites may need to be multi-storey and this may require more circulation area. This will be allowed for if more than 2-storeys is chosen under the number of storeys.
B68: 1.2 | C68: Choose the right options to suit some school-specific requirements. In the ‘Primary SoA’ tab:
B69: 1.2.1 | C69: Identify retained buildings. From the corresponding drop-down menu (row 8, column AG), select if any buildings are to be retained or refurbished.
C70: If the selection includes retained or refurbished buildings, 'white' cells (i.e. with no colour fill) will appear where information can be entered in relation to existing spaces to be incorporated in the new school. The options for space types in the drop-down lists in column D (see 1.3) will also include additional spaces that may be found in existing school buildings. See also the second of the 'Notes' above.
C71: If retained spaces are to be incorporated in this SoA for the whole school, pick from the drop down list above and, for each type of space:
C72: In column O, select from the dropdown menus provided and, in column AA (Area of Retained Spaces), enter the corresponding area.
C73: When 'retained' or 'refurb'ed' is chosen in column O, the area in columns S and Y will automatically be shown in column AA. When 'some retained' is chosen (for instance where some stores are in existing buildings and other would need to be new), the appropriate area should be inserted into column AA manually.
C74: When existing space types are chosen from the drop down lists in column D, column 0 will automatically identify the space as 'retained', although it may still be amended to 'refurb'ed'.
C75: If the number of retained spaces is small, this simple approach may be sufficient to identify the existing spaces. If the number of retained or refurbished spaces is more complex, see '2. Compare Existing Spaces' below.
B76: 1.2.2 | C76: Select the type of organisation for infant and junior, from the drop-down menus provided in rows 12 and 14, column AG, which most closely matches that of the school.
C77: This amends the type of rooms, within a similar total area. As in Building Bulletin 103, there are three options for classrooms or classbases within the total basic teaching area: • as the default for juniors, standard classrooms (55m2 for 30 pupils), and specialist spaces or a large group room; or • as the default for infants, extensive classrooms (62m2 for 30 pupils) accommodating all activities, with a small food bay if there is no other specialist space; or • classrooms or, for infants, semi-open classbases (50m2 for 30 pupils) which are restrictive so need to open onto shared teaching area to allow a full range of activities. The exact differences can be seen in hidden columns DG to DJ.
B78: 1.2.3 | C78: Select options for dining from the drop-down menus provided in row 34, column AG.
C79: The dining options allow for a range of dining scenarios, based on all pupils dining, with around a third eating traditional hot meals in about 20 minutes and two-thirds eating cold or 'grab and go' meals in 10 to 15 minutes. If a separate dining area is chosen, this may typically serve hot meals and some cold, while others go elsewhere (such as the hall), but this is only achievable if the school is larger than about 630 pupils or if the net area is above the minimum recommended. Dining in the main hall is the default for smaller schools as it can allow more space in the main hall, although the small hall can be used as a dining hall.
B81: 1.3 | C81: Adjust the types of spaces, if necessary, to suit further school-specific requirements.
C82: The schedule of teaching and learning spaces recommended by the tool is based on best practice and educational advice and typical teaching practice, and this will generally suit the requirements of most schools. In some cases, there may be more unusual options required by the school, such as a large group room for junior year groups to be divided into smaller groups for some subjects. In such cases, and where the school wish to continue with the option, the appropriate spaces can be chosen from the drop-down list in column D. Spaces should generally be the standard size pre-set in the SoA, unless existing spaces are to be retained.
B84: 1.4 | C84: Checks and balances. In the ‘Primary SoA’ tab:
C85: The 'white' cells in columns S and U can be used to adjust the provision as necessary, to suit specific aspects of the school's pedagogy where the recommendation in columns AI and AK do not provide the spaces required by the school.
C86: Skill and judgement is needed to make the necessary adjustments so that the resulting SoA satisfies the school’s curriculum requirements, but stays within the recommended ranges in Building Bulletin 103 and does not become too specific to one style of management or organisation. Many space types are standard, as required in the Output Specification or Building Bulletin 103, and should not be adjusted (such as interview room off entrance and MI room), while some are more flexible and can be adjusted to suit the schools needs.
C87: It is particularly important that:
B88: 1.4.1 | C88: the type of basic teaching spaces should be the suitable: infant classrooms should be supplemented by specialist spaces unless they area extensive, and semi-open classbases must open off shared teaching space;
B89: 1.4.2 | C89: the net capacity (row 5, column V) should match the number of mainstream places planned;
B90: 1.4.3 | C90: the total area of each category of space (different coloured) should be within the minimum and maximum range;
B91: 1.4.4 | C91: the spaces in the SoA should be coordinated with the space uses described in the School-specific Brief (SSB).
B93: Where several spaces or buildings are to be retained:
B94: 2. Compare Existing Spaces
C95: The Existing Spaces sheet, linked to columns to the right of column EY, allows the spaces in the existing school buildings to be compared with the SoA tool recommendation for a new build school, to see what spaces are needed or where refurbishment or new build can be considered.
C96: To use this element of the tool effectively, you will need a detailed schedule of the current accommodation. This may be from cleaners' schedules or recent asbestos surveys, but would ideally be from a net capacity assessment and/or an Asset Management Plan, along with existing plans. A walk around the school will help assist if things have changed or the schedule is somewhat out of date.
B97: 2.1 | C97: List the existing spaces. In the Existing Spaces sheet:
B98: 2.1.1 | C98: In column B and C, list each block or building, using EFA or other codes, and a letter to identify whether they are: S: Selected as a block to be upgraded or replaced due to its condition (e.g. in SRP, a 'Target' or 'Additional' block) U: Untouched, so to be kept but not due to be upgraded X: To be demolished, where the condition is such that this is the only option.
B99: 2.1.2 | C99: In columns G to N, in rows 25 down, insert the room number, block (using the names in the list above, from a drop-down list if preferred) and name of each space, and its net and non-net area. The number in column F will be allocated automatically.
C100: The net, or usable, area of the building is described in Building Bulletin 103 and will include classrooms, halls, offices and stores. Non-net area includes circulation, toilets and plant area. In some spaces, there may be 'essential access' to other spaces, so the total area of the space will include net and non-net area. This may be measured or estimated as: 85% (for instance in corridors wider than 2.5m where there is room for lockers etc. at one side); 50% (for instance in a shared resource or reception area with essential circulation through them); 15% ( for instance in halls or classrooms with single circulation route through them).
B101: 2.1.3 | C101: In columns P to U, in rows 25 down, insert a number or symbol (e.g. '1') to indicate which category of space the spaces falls into. This can only be one type of net area, but may include non-net area as well (as above).
B102: 2.1.4 | C102: Click on the macro button 'Insert Block refs' at the top of column E, and the block reference in column AB will be inserted automatically, based on the block chosen in column G.
B103: 2.1.5 | C103: Check the total areas and numbers of spaces in rows 4 to 12. This can give a useful indication as to whether the existing overall area of each category of space is within the minimum and maximum range recommended in the Building Bulletin 103 for the size and age range of school.
B104: 2.1.6 | C104: Click on the macro button 'Sort Table' at the top of columns Q to T, and the spaces listed will be sorted automatically, based on the choices in columns P to AB, so that spaces in Selected (or successful) blocks are listed first, then Untouched (or unsuccessful), then demolished, each in order of the six categories of space. This allows them to be more easily compared to the master Primary SoA (see 2.2).
B105: 2.1.7 | C105: Finally, click on the macro button 'Transfer Table' at the top of columns U to AB, and the spaces listed will be automatically listed in columns to the right of column EY on the master Primary SoA sheet, ready to be compared.
B107: 2.2 | C107: Compare existing spaces to SoA. In the Primary SoA sheet:
B108: 2.2.1 | C108: In columns to the right of column EY, the existing spaces will be listed. Rows 2 to 6 indicate the space name, coloured to match the chosen category of space. Rows 6 to 13 indicate the room number and block, coloured to match whether the block is selected, or successful (S), untouched, or unsuccessful (U), or to be demolished (X). Row 15 sets whether the space is to be kept (untouched) , refurbished or remodelled. Initially, these should default to 'kept'.
B109: 2.2.2 | C109: In the relevant 'white' cells in the columns to the right of column EY, insert the net area of the space, as shown in row 11, where the space matches a space type listed in the net area of the SoA in column D. And/or insert the non-net area, as shown in row 12, where the space matches a space type listed in the non-net areas of the SoA in column D. The area will automatically be taken away from the figure in row 11 or 12.
B110: 2.2.3 | C110: The key at the top of columns EK to ET shows the colours that each cell may become, when compared to the SoA area. Green is within the area range that is recommended, while amber shows the area is 'restrictive' which can be acceptable for existing spaces but will restrict the types of activities that can be accommodated. for the group size. Red indicates that the space is too small and may be better identified as a smaller type of space, such as group room. These options are shown in column AD in the Prog Assums sheet.
B111: 2.2.4 | C111: The pink areas of columns ER to EU show the total number of the spaces listed as 'kept' in row 2. The yellow areas of columns DS to DV then show the differences between the columns totals in columns DY to EU and the number and size of space recommended in the SoA.
B112: 2.2.5 | C112: At this stage, if all the spaces, including those due for demolition, are identified to be kept, this gives a useful first analysis of the existing spaces. If the current school is the same capacity as that recommended in the SoA, there should be a very similar set of spaces. If some existing spaces are different to those on the SoA, it may be that some adjustment of the SoA is necessary (as 1.3 above).
C113: When all data has been entered some issues can be considered, comparing the recommended SoA with the school under consideration, and the spaces of any Selected (or successful) blocks. These include:
C114: a) Are the spaces in the successful blocks unique or are they duplicated elsewhere in the school?
C115: b) Are any spaces under or over provided throughout the school?
C116: c) Are spaces of the correct size? Too large, so they could be divided to make additional room? Or, too small that may require amalgamation?
C117: d) Are individual blocks or the school sized differently from that expected?
B119: 2.3 | C119: Identify work required to each space. In the Primary SoA sheet:
C120: If the project involves a range of spaces that may be new, remodelled or refurbished, columns DY to EU can be usefully used to identify the work required in each space. This can then be transferred to the Individual Spaces sheet. it can also identify the spaces that are to be provided new in a project when these do not include all the spaces recommended - for instance if a sports hall is recommended but would need to be in a later phase.
B121: 2.3.1 | C121: If using this feature, delete any spaces that are to be demolished from the columns to the right of EY. Then use the drop-down options in row 2 to identify the work for each space as 'keep', 'refurb' or 'remodel' (where internal walls are to be altered). Ensure all spaces have their area included against a space in the SoA. Those spaces identified as 'keep' will remain totalled in the pink columns ER to EU. Those identified as 'refurb' will be totalled in the pink columns EK to EN. Those identified as 'remodel' will not automatically be totalled in the blue columns EE to EH, as they are likely to be different sizes when remodelled. However, the total remodelled area is collated in row 127, so it can be used as a check in column EH.
B122: 2.3.2 | C122: Identify the number and size of spaces to be provided in new build in columns DY to EB, matching the area in the SoA but remembering that this may not include all space recommended in the SoA (as discussed above). Similarly, identify the number and size of spaces to be provided in remodelled area in columns EE to EH, matching the area in the SoA The total area to be remodelled should then be similar to that in cell EH127 if the remodelled spaces have been identified in column to the right of EY.
B123: 2.3.3 | C123: The spaces listed in columns DY to EN should include all spaces on the SoA that are to be included in the project. Those in columns ER to EU will be those existing and untouched. The difference in the number of spaces should then generally be zero in column DU. The area may vary when it is existing.
B125: Once the SoA has been finalised:
B126: 3. Create the schedule of individual spaces
B127: 3.1 | C127: Prepare schedule of spaces. In the Individual Spaces sheet:
B128: 3.1.1 | C128: Once the SoA has been agreed, press the 'Generate' button located in cell A1. This will automatically produce a schedule of individual spaces, allocating unique code/ reference numbers to each space, based on the SoA in the Primary SoA sheet.
B129: 3.1.2 | C129: Column I allows the users to allocate room names and information associated with the proposed space as a record. These are retained with the proposed space when further iterations of the Primary SoA are created. If a space is removed then the associated information will be lost with it.
B130: 3.1.3 | C130: The following number allocation will be applied to the spaces listed:
C131: Classrooms and shared teaching | D131: 100
C132: Specialist practical/ other | D132: 200
C133: Large Spaces | D133: 300
C134: Learning Resources Areas | D134: 400
C135: Staff and Administration Areas | D135: 500
C136: Storage (teaching) | D136: 600
C137: Storage (non-teaching) | D137: 700
C138: Non-net areas | D138: 800
C139: Unallocated | D139: 900
B140: 3.1.4 | C140: Column O should show whether the space has been designated as New, Remodel, Refurbish or Keep (as existing). if so, the schedule can be filtered to list the spaces in this order, and those in the first 3 of these designations will usually be the spaces within the project. These can be transferred to the Project SoA. The remainder will be as existing. However if there is no designation these spaces will still be shown as long as they are included in the Primary SoA. There may also be spaces listed at the bottom of the schedule that are 'unallocated' because they are not included in the Primary SoA but are listed in the existing spaces columns. These should not include any major spaces, but may include small offices or stores additional to the needs of the SoA.
C141: Note that any space that is not listed on the SoA will be deemed 'unallocated' and will be listed at the end. To ensure that any existing space is listed on the Individual Spaces, check that it is listed on the SoA with a number of spaces more than zero and a recommended area, before pressing the 'Generate' button. Also note column K to M and column T of the Individual Spaces sheet can be ignored. It automatically provides these columns for Contractors to insert areas and comments, but the Contractor should use the Project SoA to insert the proposed areas and other information.
B143: If the School-specific SoA and ADS is to be used as a contract document (Annex SS1 of the SSB):
B144: 4. Create the Project SoA and migrate to the School-specific SoA and SoA
C145: The Project SoA provides the Employers Requirement schedule of accommodation required within the project. It is then replicated in the arch, M&E and FF&E area data summaries on the School-specific SoA and ADS (Annex SS1 of the SSB). This worksheets should therefore be completed on this SoA tool before migrating to the School-specific SoA and ADS template.
C146: When complete, the Project SoA should list every space required to be refurbished, remodelled or providing in new build, with no extra rows. It should include all circulation and plant areas, not automatically listed in the Individual Spaces. Where more rows are required, more can be copied and pasted as necessary.
C147: Ensure that the Project SoA to be migrated does not include any rows not required (with blanks in column D or marked #REF!), but does include the breakdown of plant and circulation area (including the correct number of stairs and lifts), the area of partition walls and the total net and gross area of new build. Amend or delete these rows as necessary to match the requirements of the project, and add more totals if there is refurbishment or remodelling, in the Project SoA before migrating to the School-specific SoA and ADS template.
B148: 4.1 | C148: Continue to create and amend the area data summary worksheets in the School-specific SoA and ADS template

Sheet Primary SoA
D1: SCHEDULE OF ACCOMMODATION TOOL FOR ANY MAINSTREAM PRIMARY SCHOOL | AK1: Version 8.3 November 2023 | AP1: Technical notes (not for printing) | CP1: NET CAPACITY ASSESSMENT CALCULATIONS | CW1: PAN | EY1: 1 | EZ1: 2 | FA1: 3 | FB1: 4 | FC1: 5 | FD1: 6 | FE1: 7 | FF1: 8 | FG1: 9 | FH1: 10 | FI1: 11 | FJ1: 12 | FK1: 13 | FL1: 14 | FM1: 15 | FN1: 16 | FO1: 17 | FP1: 18 | FQ1: 19 | FR1: 20 | FS1: 21 | FT1: 22 | FU1: 23 | FV1: 24 | FW1: 25 | FX1: 26 | FY1: 27 | FZ1: 28 | GA1: 29 | GB1: 30 | GC1: 31 | GD1: 32 | GE1: 33 | GF1: 34 | GG1: 35 | GH1: 36 | GI1: 37 | GJ1: 38 | GK1: 39 | GL1: 40 | GM1: 41 | GN1: 42 | GO1: 43 | GP1: 44 | GQ1: 45 | GR1: 46 | GS1: 47 | GT1: 48 | GU1: 49 | GV1: 50 | GW1: 51 | GX1: 52 | GY1: 53 | GZ1: 54 | HA1: 55 | HB1: 56 | HC1: 57 | HD1: 58 | HE1: 59 | HF1: 60 | HG1: 61 | HH1: 62 | HI1: 63 | HJ1: 64 | HK1: 65 | HL1: 66 | HM1: 67 | HN1: 68 | HO1: 69 | HP1: 70 | HQ1: 71 | HR1: 72 | HS1: 73 | HT1: 74 | HU1: 75 | HV1: 76 | HW1: 77 | HX1: 78 | HY1: 79 | HZ1: 80 | IA1: 81 | IB1: 82 | IC1: 83 | ID1: 84 | IE1: 85 | IF1: 86 | IG1: 87 | IH1: 88 | II1: 89 | IJ1: 90 | IK1: 91 | IL1: 92 | IM1: 93 | IN1: 94 | IO1: 95 | IP1: 96 | IQ1: 97 | IR1: 98 | IS1: 99 | IT1: 100 | IU1: 101 | IV1: 102 | IW1: 103 | IX1: 104 | IY1: 105 | IZ1: 106 | JA1: 107 | JB1: 108 | JC1: 109 | JD1: 110 | JE1: 111 | JF1: 112 | JG1: 113 | JH1: 114 | JI1: 115 | JJ1: 116 | JK1: 117 | JL1: 118 | JM1: 119 | JN1: 120 | JO1: 121 | JP1: 122 | JQ1: 123 | JR1: 124 | JS1: 125 | JT1: 126 | JU1: 127 | JV1: 128 | JW1: 129 | JX1: 130 | JY1: 131 | JZ1: 132 | KA1: 133 | KB1: 134 | KC1: 135 | KD1: 136 | KE1: 137 | KF1: 138 | KG1: 139 | KH1: 140 | KI1: 141 | KJ1: 142 | KK1: 143 | KL1: 144 | KM1: 145 | KN1: 146 | KO1: 147 | KP1: 148 | KQ1: 149 | KR1: 150 | KS1: 151 | KT1: 152 | KU1: 153 | KV1: 154 | KW1: 155 | KX1: 156 | KY1: 157 | KZ1: 158 | LA1: 159 | LB1: 160 | LC1: 161 | LD1: 162 | LE1: 163 | LF1: 164 | LG1: 165 | LH1: 166 | LI1: 167 | LJ1: 168 | LK1: 169 | LL1: 170 | LM1: 171 | LN1: 172 | LO1: 173 | LP1: 174 | LQ1: 175 | LR1: 176 | LS1: 177 | LT1: 178 | LU1: 179 | LV1: 180 | LW1: 181 | LX1: 182 | LY1: 183 | LZ1: 184 | MA1: 185 | MB1: 186 | MC1: 187 | MD1: 188 | ME1: 189 | MF1: 190 | MG1: 191 | MH1: 192 | MI1: 193 | MJ1: 194 | MK1: 195 | ML1: 196 | MM1: 197 | MN1: 198 | MO1: 199 | MP1: 200 | MQ1: 201 | MR1: 202 | MS1: 203 | MT1: 204 | MU1: 205 | MV1: 206 | MW1: 207 | MX1: 208 | MY1: 209 | MZ1: 210 | NA1: 211 | NB1: 212 | NC1: 213 | ND1: 214 | NE1: 215 | NF1: 216 | NG1: 217 | NH1: 218 | NI1: 219 | NJ1: 220 | NK1: 221 | NL1: 222 | NM1: 223 | NN1: 224 | NO1: 225 | NP1: 226 | NQ1: 227 | NR1: 228 | NS1: 229 | NT1: 230 | NU1: 231 | NV1: 232 | NW1: 233 | NX1: 234 | NY1: 235 | NZ1: 236 | OA1: 237 | OB1: 238 | OC1: 239 | OD1: 240 | OE1: 241 | OF1: 242 | OG1: 243 | OH1: 244 | OI1: 245 | OJ1: 246 | OK1: 247 | OL1: 248 | OM1: 249 | ON1: 250 | OO1: 251 | OP1: 252 | OQ1: 253 | OR1: 254 | OS1: 255 | OT1: 256 | OU1: 257 | OV1: 258 | OW1: 259 | OX1: 260 | OY1: 261 | OZ1: 262 | PA1: 263 | PB1: 264 | PC1: 265 | PD1: 266 | PE1: 267 | PF1: 268 | PG1: 269 | PH1: 270 | PI1: 271 | PJ1: 272 | PK1: 273 | PL1: 274 | PM1: 275 | PN1: 276 | PO1: 277 | PP1: 278 | PQ1: 279 | PR1: 280 | PS1: 281 | PT1: 282 | PU1: 283 | PV1: 284 | PW1: 285 | PX1: 286 | PY1: 287 | PZ1: 288 | QA1: 289 | QB1: 290 | QC1: 291 | QD1: 292 | QE1: 293 | QF1: 294 | QG1: 295 | QH1: 296 | QI1: 297 | QJ1: 298 | QK1: 299 | QL1: 300 | QM1: 301 | QN1: 302 | QO1: 303 | QP1: 304 | QQ1: 305 | QR1: 306 | QS1: 307 | QT1: 308 | QU1: 309 | QV1: 310 | QW1: 311 | QX1: 312 | QY1: 313 | QZ1: 314 | RA1: 315 | RB1: 316 | RC1: 317 | RD1: 318 | RE1: 319 | RF1: 320 | RG1: 321 | RH1: 322 | RI1: 323 | RJ1: 324 | RK1: 325 | RL1: 326 | RM1: 327 | RN1: 328 | RO1: 329 | RP1: 330 | RQ1: 331 | RR1: 332 | RS1: 333 | RT1: 334 | RU1: 335 | RV1: 336 | RW1: 337 | RX1: 338 | RY1: 339 | RZ1: 340 | SA1: 341 | SB1: 342 | SC1: 343 | SD1: 344 | SE1: 345 | SF1: 346 | SG1: 347 | SH1: 348 | SI1: 349 | SJ1: 350 | SK1: 351 | SL1: 352 | SM1: 353 | SN1: 354 | SO1: 355 | SP1: 356 | SQ1: 357 | SR1: 358 | SS1: 359 | ST1: 360 | SU1: 361 | SV1: 362 | SW1: 363 | SX1: 364 | SY1: 365 | SZ1: 366 | TA1: 367 | TB1: 368 | TC1: 369 | TD1: 370 | TE1: 371 | TF1: 372 | TG1: 373 | TH1: 374 | TI1: 375 | TJ1: 376 | TK1: 377 | TL1: 378 | TM1: 379 | TN1: 380 | TO1: 381 | TP1: 382 | TQ1: 383 | TR1: 384 | TS1: 385 | TT1: 386 | TU1: 387 | TV1: 388 | TW1: 389 | TX1: 390 | TY1: 391 | TZ1: 392 | UA1: 393 | UB1: 394 | UC1: 395 | UD1: 396 | UE1: 397 | UF1: 398 | UG1: 399 | UH1: 400 | UI1: 401 | UJ1: 402 | UK1: 403 | UL1: 404 | UM1: 405 | UN1: 406 | UO1: 407 | UP1: 408 | UQ1: 409 | UR1: 410 | US1: 411 | UT1: 412 | UU1: 413 | UV1: 414 | UW1: 415 | UX1: 416 | UY1: 417 | UZ1: 418 | VA1: 419 | VB1: 420 | VC1: 421 | VD1: 422 | VE1: 423 | VF1: 424 | VG1: 425 | VH1: 426 | VI1: 427 | VJ1: 428 | VK1: 429 | VL1: 430 | VM1: 431 | VN1: 432 | VO1: 433 | VP1: 434 | VQ1: 435 | VR1: 436 | VS1: 437 | VT1: 438 | VU1: 439 | VV1: 440 | VW1: 441 | VX1: 442 | VY1: 443 | VZ1: 444 | WA1: 445 | WB1: 446 | WC1: 447 | WD1: 448 | WE1: 449 | WF1: 450 | WG1: 451 | WH1: 452 | WI1: 453 | WJ1: 454 | WK1: 455 | WL1: 456 | WM1: 457 | WN1: 458 | WO1: 459 | WP1: 460 | WQ1: 461 | WR1: 462 | WS1: 463 | WT1: 464 | WU1: 465 | WV1: 466 | WW1: 467 | WX1: 468 | WY1: 469 | WZ1: 470 | XA1: 471 | XB1: 472 | XC1: 473 | XD1: 474 | XE1: 475 | XF1: 476 | XG1: 477 | XH1: 478 | XI1: 479 | XJ1: 480 | XK1: 481 | XL1: 482 | XM1: 483 | XN1: 484 | XO1: 485 | XP1: 486 | XQ1: 487 | XR1: 488 | XS1: 489 | XT1: 490 | XU1: 491 | XV1: 492 | XW1: 493 | XX1: 494 | XY1: 495 | XZ1: 496 | YA1: 497 | YB1: 498 | YC1: 499 | YD1: 500
J2: age range | K2: 3-11 | R2: school name | S2: ='Title and instructions'!B15 -> [Insert Project Code and Scheme Name here in title sheet] | AF2: date | AI2: as a check, if new: | AP2: group size | AU2: =VLOOKUP(D14,'Prog Assums'!B83:D95,2) -> 0 | BE2: Proposed School SoA | BM2: Optional SoA by suite: identifying which spaces are in each suite | CS2: basic workplaces in Classbases | CU2: =IF($CP22="C",CU22,0)+IF($CP23="C",CU23,0)+IF($CP24="C",CU24,0)+IF($CP25="C",CU25,0)+IF($CP26="C",CU26,0) -> 420 | CW2: =IF(K4>0,K4,IF(K5>0,K5,K6)) -> 60 | CY2: =IF($CP22="C",CY22,0)+IF($CP23="C",CY23,0)+IF($CP24="C",CY24,0)+IF($CP25="C",CY25,0)+IF($CP26="C",CY26,0) -> 420 | DA2: =MAXA(1,ROUNDDOWN(Q10/210,0)) -> 2 | DC2: FE 5-10 | DG2: 1 | DH2: 1 | DI2: 1 | DJ2: 1 | DK2: =IF(K6>0,1,0) -> 1 | DS2: =IF(SUM(DU17:DU31)=0,"OK: proposed basic teaching spaces sufficient",IF(COUNTIF(DU17:DU31,">0")>0,"NOTE: overprovision in proposed basic teaching spaces","NOTE: proposed basic teaching spaces insufficient")) -> NOTE: proposed basic teaching spaces insufficient | EK2: KEY to formatting of existing spaces cells: | EY2: Keep | EZ2: Keep | FA2: Keep | FB2: Keep | FC2: Keep | FD2: Keep | FE2: Keep | FF2: Keep | FG2: Keep | FH2: Keep | FI2: Keep | FJ2: Keep | FK2: Keep | FL2: Keep | FM2: Keep | FN2: Keep | FO2: Keep | FP2: Keep | FQ2: Keep | FR2: Keep | FS2: Keep | FT2: Keep | FU2: Keep | FV2: Keep | FW2: Keep | FX2: Keep | FY2: Keep | FZ2: Keep | GA2: Keep | GB2: Keep | GC2: Keep | GD2: Keep | GE2: Keep | GF2: Keep | GG2: Keep | GH2: Keep | GI2: Keep | GJ2: Keep | GK2: Keep | GL2: Keep | GM2: Keep | GN2: Keep | GO2: Keep | GP2: Keep | GQ2: Keep | GR2: Keep | GS2: Keep | GT2: Keep | GU2: Keep | GV2: Keep | GW2: Keep | GX2: Keep | GY2: Keep | GZ2: Keep | HA2: Keep | HB2: Keep | HC2: Keep | HD2: Keep | HE2: Keep | HF2: Keep | HG2: Keep | HH2: Keep | HI2: Keep | HJ2: Keep | HK2: Keep | HL2: Keep | HM2: Keep | HN2: Keep | HO2: Keep | HP2: Keep | HQ2: Keep | HR2: Keep | HS2: Keep | HT2: Keep | HU2: Keep | HV2: Keep | HW2: Keep | HX2: Keep | HY2: Keep | HZ2: Keep | IA2: Keep | IB2: Keep | IC2: Keep | ID2: Keep | IE2: Keep | IF2: Keep | IG2: Keep | IH2: Keep | II2: Keep | IJ2: Keep | IK2: Keep | IL2: Keep | IM2: Keep | IN2: Keep | IO2: Keep | IP2: Keep | IQ2: Keep | IR2: Keep | IS2: Keep | IT2: Keep | IU2: Keep | IV2: Keep | IW2: Keep | IX2: Keep | IY2: Keep | IZ2: Keep | JA2: Keep | JB2: Keep | JC2: Keep | JD2: Keep | JE2: Keep | JF2: Keep | JG2: Keep | JH2: Keep | JI2: Keep | JJ2: Keep | JK2: Keep | JL2: Keep | JM2: Keep | JN2: Keep | JO2: Keep | JP2: Keep | JQ2: Keep | JR2: Keep | JS2: Keep | JT2: Keep | JU2: Keep | JV2: Keep | JW2: Keep | JX2: Keep | JY2: Keep | JZ2: Keep | KA2: Keep | KB2: Keep | KC2: Keep | KD2: Keep | KE2: Keep | KF2: Keep | KG2: Keep | KH2: Keep | KI2: Keep | KJ2: Keep | KK2: Keep | KL2: Keep | KM2: Keep | KN2: Keep | KO2: Keep | KP2: Keep | KQ2: Keep | KR2: Keep | KS2: Keep | KT2: Keep | KU2: Keep | KV2: Keep | KW2: Keep | KX2: Keep | KY2: Keep | KZ2: Keep | LA2: Keep | LB2: Keep | LC2: Keep | LD2: Keep | LE2: Keep | LF2: Keep | LG2: Keep | LH2: Keep | LI2: Keep | LJ2: Keep | LK2: Keep | LL2: Keep | LM2: Keep | LN2: Keep | LO2: Keep | LP2: Keep | LQ2: Keep | LR2: Keep | LS2: Keep | LT2: Keep | LU2: Keep | LV2: Keep | LW2: Keep | LX2: Keep | LY2: Keep | LZ2: Keep | MA2: Keep | MB2: Keep | MC2: Keep | MD2: Keep | ME2: Keep | MF2: Keep | MG2: Keep | MH2: Keep | MI2: Keep | MJ2: Keep | MK2: Keep | ML2: Keep | MM2: Keep | MN2: Keep | MO2: Keep | MP2: Keep | MQ2: Keep | MR2: Keep | MS2: Keep | MT2: Keep | MU2: Keep | MV2: Keep | MW2: Keep | MX2: Keep | MY2: Keep | MZ2: Keep | NA2: Keep | NB2: Keep | NC2: Keep | ND2: Keep | NE2: Keep | NF2: Keep | NG2: Keep | NH2: Keep | NI2: Keep | NJ2: Keep | NK2: Keep | NL2: Keep | NM2: Keep | NN2: Keep | NO2: Keep | NP2: Keep | NQ2: Keep | NR2: Keep | NS2: Keep | NT2: Keep | NU2: Keep | NV2: Keep | NW2: Keep | NX2: Keep | NY2: Keep | NZ2: Keep | OA2: Keep | OB2: Keep | OC2: Keep | OD2: Keep | OE2: Keep | OF2: Keep | OG2: Keep | OH2: Keep | OI2: Keep | OJ2: Keep | OK2: Keep | OL2: Keep | OM2: Keep | ON2: Keep | OO2: Keep | OP2: Keep | OQ2: Keep | OR2: Keep | OS2: Keep | OT2: Keep | OU2: Keep | OV2: Keep | OW2: Keep | OX2: Keep | OY2: Keep | OZ2: Keep | PA2: Keep | PB2: Keep | PC2: Keep | PD2: Keep | PE2: Keep | PF2: Keep | PG2: Keep | PH2: Keep | PI2: Keep | PJ2: Keep | PK2: Keep | PL2: Keep | PM2: Keep | PN2: Keep | PO2: Keep | PP2: Keep | PQ2: Keep | PR2: Keep | PS2: Keep | PT2: Keep | PU2: Keep | PV2: Keep | PW2: Keep | PX2: Keep | PY2: Keep | PZ2: Keep | QA2: Keep | QB2: Keep | QC2: Keep | QD2: Keep | QE2: Keep | QF2: Keep | QG2: Keep | QH2: Keep | QI2: Keep | QJ2: Keep | QK2: Keep | QL2: Keep | QM2: Keep | QN2: Keep | QO2: Keep | QP2: Keep | QQ2: Keep | QR2: Keep | QS2: Keep | QT2: Keep | QU2: Keep | QV2: Keep | QW2: Keep | QX2: Keep | QY2: Keep | QZ2: Keep | RA2: Keep | RB2: Keep | RC2: Keep | RD2: Keep | RE2: Keep | RF2: Keep | RG2: Keep | RH2: Keep | RI2: Keep | RJ2: Keep | RK2: Keep | RL2: Keep | RM2: Keep | RN2: Keep | RO2: Keep | RP2: Keep | RQ2: Keep | RR2: Keep | RS2: Keep | RT2: Keep | RU2: Keep | RV2: Keep | RW2: Keep | RX2: Keep | RY2: Keep | RZ2: Keep | SA2: Keep | SB2: Keep | SC2: Keep | SD2: Keep | SE2: Keep | SF2: Keep | SG2: Keep | SH2: Keep | SI2: Keep | SJ2: Keep | SK2: Keep | SL2: Keep | SM2: Keep | SN2: Keep | SO2: Keep | SP2: Keep | SQ2: Keep | SR2: Keep | SS2: Keep | ST2: Keep | SU2: Keep | SV2: Keep | SW2: Keep | SX2: Keep | SY2: Keep | SZ2: Keep | TA2: Keep | TB2: Keep | TC2: Keep | TD2: Keep | TE2: Keep | TF2: Keep | TG2: Keep | TH2: Keep | TI2: Keep | TJ2: Keep | TK2: Keep | TL2: Keep | TM2: Keep | TN2: Keep | TO2: Keep | TP2: Keep | TQ2: Keep | TR2: Keep | TS2: Keep | TT2: Keep | TU2: Keep | TV2: Keep | TW2: Keep | TX2: Keep | TY2: Keep | TZ2: Keep | UA2: Keep | UB2: Keep | UC2: Keep | UD2: Keep | UE2: Keep | UF2: Keep | UG2: Keep | UH2: Keep | UI2: Keep | UJ2: Keep | UK2: Keep | UL2: Keep | UM2: Keep | UN2: Keep | UO2: Keep | UP2: Keep | UQ2: Keep | UR2: Keep | US2: Keep | UT2: Keep | UU2: Keep | UV2: Keep | UW2: Keep | UX2: Keep | UY2: Keep | UZ2: Keep | VA2: Keep | VB2: Keep | VC2: Keep | VD2: Keep | VE2: Keep | VF2: Keep | VG2: Keep | VH2: Keep | VI2: Keep | VJ2: Keep | VK2: Keep | VL2: Keep | VM2: Keep | VN2: Keep | VO2: Keep | VP2: Keep | VQ2: Keep | VR2: Keep | VS2: Keep | VT2: Keep | VU2: Keep | VV2: Keep | VW2: Keep | VX2: Keep | VY2: Keep | VZ2: Keep | WA2: Keep | WB2: Keep | WC2: Keep | WD2: Keep | WE2: Keep | WF2: Keep | WG2: Keep | WH2: Keep | WI2: Keep | WJ2: Keep | WK2: Keep | WL2: Keep | WM2: Keep | WN2: Keep | WO2: Keep | WP2: Keep | WQ2: Keep | WR2: Keep | WS2: Keep | WT2: Keep | WU2: Keep | WV2: Keep | WW2: Keep | WX2: Keep | WY2: Keep | WZ2: Keep | XA2: Keep | XB2: Keep | XC2: Keep | XD2: Keep | XE2: Keep | XF2: Keep | XG2: Keep | XH2: Keep | XI2: Keep | XJ2: Keep | XK2: Keep | XL2: Keep | XM2: Keep | XN2: Keep | XO2: Keep | XP2: Keep | XQ2: Keep | XR2: Keep | XS2: Keep | XT2: Keep | XU2: Keep | XV2: Keep | XW2: Keep | XX2: Keep | XY2: Keep | XZ2: Keep | YA2: Keep | YB2: Keep | YC2: Keep | YD2: Keep
Q3: classes | S3: =IF(K2="3-11",IF(K8=0,"check age range and nursery places",""),"") ->  | AN3: site | AO3: =VLOOKUP(AA4,'Prog Assums'!B6:D14,3,FALSE) -> OK | AU3: years | CS3: basic workplaces in Teaching | CU3: =IF($CP23="T",CU23,0)+IF($CP24="T",CU24,0)+IF($CP25="T",CU25,0)+IF($CP26="T",CU26,0)+IF($CP29="T",CU29,0)+IF($CP30="T",CU30,0)+IF($CP31="T",CU31,0)+IF($CP35="T",CU35,0)+IF($CP36="T",CU36,0)+IF($CP37="T",CU37,0)+IF($CP38="T",CU38,0)+IF($CP42="T",CU42,0) -> 100 | CW3: PAN capacity | CY3: =IF($CP23="T",CY23,0)+IF($CP24="T",CY24,0)+IF($CP25="T",CY25,0)+IF($CP26="T",CY26,0)+IF($CP29="T",CY29,0)+IF($CP30="T",CY30,0)+IF($CP31="T",CY31,0)+IF($CP35="T",CY35,0)+IF($CP36="T",CY36,0)+IF($CP37="T",CY37,0)+IF($CP38="T",CY38,0)+IF($CP42="T",CY42,0) -> 100 | DS3: =IF(SUM(DU35:DU38)=0,"OK: proposed large spaces sufficient",IF(COUNTIF(DU35:DU38,">0")>0,"NOTE: overprovision in proposed large spaces","NOTE: proposed large spaces insufficient")) -> NOTE: proposed large spaces insufficient | EM3: Below Minimum Possible Area
A4: =C$6*C$4*AU4 -> 60 | C4: 2 | J4: FE reception places | K4: =A4 -> 60 | O4: =IF(K4=A4,"","check") ->  | Q4: =ROUNDUP(K4/C6,0) -> 2 | S4: 2023 net capacity | Z4: site: | AA4: sufficient | AF4: no. of blocks: | AG4: 1 | AJ4: net capacity | AN4: sites | AO4: =VLOOKUP(AA4,'Prog Assums'!B6:D14,2,FALSE) -> 1 | AP4: =IF(K4>0,ROUNDUP(K4/Q4,0),0) -> 30 | AU4: =VLOOKUP(K$2,'Prog Assums'!E$5:I$11,3,FALSE) -> 1 | BG4: Design SoA | BO4: =BO15 -> Early Years | BQ4: =BQ15 -> Infants | BS4: =BS15 -> Juniors | BU4: =BU15 -> Hall/ dining/ admin | BW4: =BW15 -> - | BY4: =BY15 -> Balance | CS4: proportion | CU4: =CU2/(CU2+CU3) -> 0.8076923077 | CW4: =SUM(AU4:AU6)*CW2 -> 420 | CY4: =CY2/(CY2+CY3) -> 0.8076923077 | DA4: =MAXA(1,ROUNDDOWN(K10/150,0)) -> 2 | DC4: FE total | DD4: =IF(K4>0,1,0) -> 1 | DG4: =IF(K5>0,1,0) -> 1 | DH4: =IF(K5>0,1,0) -> 1 | DI4: =IF(K5>0,1,0) -> 1 | DJ4: =IF(K5>0,1,0) -> 1 | DL4: =IF(K14>0,1,0) -> 0 | DS4: =IF(SUM(DU42:DU50)=0,"OK: proposed learning resource spaces sufficient",IF(COUNTIF(DU42:DU50,">0")>0,"NOTE: overprovision in proposed learning resource spaces","NOTE: proposed learning resource spaces insufficient")) -> NOTE: proposed learning resource spaces insufficient | EM4: Between Restric-tive and Minimum
A5: =C$6*C$4*AU5 -> 120 | C5: classes of | J5: infant places | K5: =A5 -> 120 | O5: =IF(K5=A5,"","check") ->  | Q5: =ROUNDUP(K5/C6,0) -> 4 | U5: for SoA below = | V5: =IF(Q10<V8,IF(Q10>S8,Q10,S8),V8) -> 420 | Y5: =IF(V5<Q10,"WARNING: under capacity","") ->  | AI5: for recommended | AN5: storeys | AO5: =VLOOKUP(AG6,'Prog Assums'!B19:D24,2,FALSE) -> 2 | AP5: =IF(K5>0,ROUNDUP(K5/Q5,0),0) -> 30 | AQ5: =IF(AP5=0,AP6,IF(AP6=0,AP5,AVERAGE(AP5,AP6))) -> 30 | AU5: =VLOOKUP(K$2,'Prog Assums'!E$5:I$11,4,FALSE) -> 2 | BG5: based on SoA by individual | DS5: =IF(SUM(DU53:DU67)=0,"OK: proposed staff and admin spaces sufficient",IF(COUNTIF(DU53:DU67,">0")>0,"NOTE: overprovision in proposed staff and admin spaces","NOTE: proposed staff and admin spaces insufficient")) -> NOTE: proposed staff and admin spaces insufficient | EM5: Restrictive
A6: =C$6*C$4*AU6 -> 240 | C6: 30 | J6: junior places | K6: =A6 -> 240 | O6: =IF(K6=A6,"","check") ->  | Q6: =ROUNDUP(K6/C6,0) -> 8 | U6: within a potential range of: | AF6: number of storeys: | AG6: =IF(K10>0,IF(Q10<320,"single storey","2-storey"),"single storey") -> 2-storey | AI6: SoA below: | AK6: =IF(K10<AK8,IF(K10>AI8,K10,AI8),AK8) -> 420 | AP6: =IF(K6>0,ROUNDUP(K6/Q6,0),0) -> 30 | AU6: =VLOOKUP(K$2,'Prog Assums'!E$5:I$11,5,FALSE) -> 4 | BG6: space showing area of | CQ6: utilisation factor | CR6: =IF(CU4<=85%,0.85,1) -> 0.85 | CT6: 2023 NCA of SoA | CW6: =IF(CY4<=85%,0.85,1) -> 0.85 | CX6: 2023 NCA of recom'd SoA | DS6: =IF(SUM(DU71:DU86)=0,"OK: proposed storage spaces sufficient",IF(COUNTIF(DU71:DU86,">0")>0,"NOTE: overprovision in proposed storage spaces","NOTE: proposed storage spaces insufficient")) -> NOTE: proposed storage spaces insufficient | EM6: OK
EY7: GT
A8: =C8*C$4*AU8 -> 26 | C8: 13 | J8: age 3 - 4 nursery places | K8: =IF(A8>0,MAXA(26,A8),0) -> 26 | L8: FTE | Q8: =SUM(Q4:Q6) -> 14 | S8: =CV10 -> 397 | U8: to | V8: =CT10 -> 442 | AF8: existing buildings to be: | AG8: some retained | AI8: =CZ14 -> 378 | AJ8: to | AK8: =CX14 -> 420 | AN8: buildings | AO8: =VLOOKUP(AG8,'Prog Assums'!B27:C31,2,FALSE) -> extg | AP8: =IF(K8>0,ROUNDUP(K8/AQ8,0),0) -> 26 | AQ8: =IF(K8>0,ROUND(K8/26,0),0) -> 1 | AU8: =VLOOKUP(K$2,'Prog Assums'!E$5:I$11,2,FALSE) -> 1 | BG8: each space as designed | CQ8: number of sites | CR8: =AO4 -> 1 | CT8: net capacity | CX8: net capacity | EM8: Extensive | EY8: E.g. AA
CT9: max | CV9: min | CX9: max | CZ9: min | EM9: Above Maximum Possible Area | EY9: Eg 101
J10: Total Mainstream Places | K10: =K8+K4+K5+K6 -> 446 | Q10: =K4+K5+K6 -> 420 | S10: 4 to 11 places | AA10: =IF(AC89="OK",AF88,AC89) -> 0.5 | AB10: =IF(AC89="OK","float if rec'd net","over rec'd net") -> float if rec'd net | AF10: =IF(AC129="OK","not",AC129) -> not | AG10: over rec'd gross | AN10: =VLOOKUP(AG34,'Prog Assums'!B98:C102,2,FALSE) -> hall | AQ10: area range | AS10: Total rec'm'd area (m2) | AT10: Total supp area (m2) | CQ10: area of sites | CR10: =AO3 -> OK | CT10: =IF(CR6=1,ROUND(CT14*1.05,0),(CU2+CU3)*CR6) -> 442 | CV10: =ROUNDDOWN(IF(ROUNDDOWN(CT10/(30*Q8/4),0)*(30*Q8/4)<(CT10*0.9),ROUNDDOWN(CT10/(30*Q8/4),0)*(30*Q8/4),(CT10*0.9)),0) -> 397 | CX10: =IF(CR6=1,ROUND(CX14*1.05,0),(CY2+CY3)*CR6) -> 442 | CZ10: =ROUNDDOWN(IF(ROUNDDOWN(CX10/(30*Q8/4),0)*(30*Q8/4)<(CX10*0.9),ROUNDDOWN(CX10/(30*Q8/4),0)*(30*Q8/4),(CX10*0.9)),0) -> 397 | DA10: max. | EX10: Block ref - | EY10: S
D11: Additionally resourced FTE places for: | AC11: organisation options for: | DA11: group | EX11: Net Area - | EY11: =56-SUM(INDIRECT(ADDRESS(ROW()+3, COLUMN())):INDIRECT(ADDRESS(ROW()+67, COLUMN()))) -> 56
D12: - | Q12: =K12+O12 -> 0 | S12: =IF(Q12>0,"FTE total","") ->  | AC12: infant | AG12: all practical in classrooms | AN12: =IF(AO12="unit",0,IF(AO12="SRP",0,100)) -> 100 | AO12: =VLOOKUP(D14,'Prog Assums'!B83:D95,3,FALSE) -> 0 | AQ12: min for min group | AR12: max for max group | AU12: space size code | CM12: avail-ability priority category | CN12: consequential unavailability | CQ12: workplaces included | CU12: =SUM(CU20:CU86) -> 545 | CV12: =SUM(CV20:CV86) -> 169 | CW12: =IF(CR10="tight",50,0)+(CR8*75) -> 75 | CY12: =SUM(CY20:CY86) -> 545 | CZ12: =SUM(CZ20:CZ86) -> 168 | DA12: size | DC12: rec'd | DD12: 4 to 10 | DM12: total | EX12: Non Net Area - | EY12: =-SUM(INDIRECT(ADDRESS(ROW()+68, COLUMN())):INDIRECT(ADDRESS(ROW()+80, COLUMN()))) -> 0
DC13: area | DD13: places | DG13: 4 to 10 | DH13: 4 to 10 | DI13: 4 to 10 | DJ13: 4 to 10 | DL13: SEN | DM13: rec'd
D14: - | L14: SEN | Q14: =IF(SUM(K4:K6)>840,"NOTE manual amendments needed for large schools","") ->  | AC14: junior | AG14: specialist practical spaces | AI14: recommended | CQ14: total x utilisation | CT14: =CU22+CU23+CU24+CU25+CU26 -> 420 | CU14: =IF(CT14>ROUNDDOWN((CU12-CW12)*0.75,0),CT14,ROUNDDOWN((CU12-CW12)*0.75,0)) -> 420 | CV14: =ROUNDDOWN(IF(ROUNDDOWN(CT14/(30*Q8/4),0)*(30*Q8/4)<(CT14*0.9),ROUNDDOWN(CT14/(30*Q8/4),0)*(30*Q8/4),(CT14*0.9)),0) -> 378 | CX14: =CY22+CY23+CY24+CY25+CY26 -> 420 | CY14: =IF(CX14>ROUNDDOWN((CY12-DA14)*0.7,0),CX14,ROUNDDOWN((CY12-DA14)*0.7,0)) -> 420 | CZ14: =ROUNDDOWN(IF(ROUNDDOWN(CX14/(30*Q8/4),0)*(30*Q8/4)<(CX14*0.9),ROUNDDOWN(CX14/(30*Q8/4),0)*(30*Q8/4),(CX14*0.9)),0) -> 378 | DG14: places | DH14: places | DI14: places | DJ14: places | DL14: places | DM14: area | DU14: Difference | EA14: New Build Works | EG14: Remodelling Works | EM14: Refurbishment Works | ET14: Keep (as existing)
A15: Parent ADS Code | C15: Final ADS Code | D15: Space type | O15: existing or new (new if blank) | Q15: max. group size | S15: average area of space (m2) | U15: TOTAL no. of spaces | V15: TOTAL AREA (m2) | W15: NON-NET AREA (m2) | Y15: SUPP AREA (m2) | AA15: AREA OF RE-TAINED SPACES | AI15: area of space (m2) | AK15: no. of spaces (& total supp area) | AN15: storage or prep req'd | AP15: max group size | BC15: notes | BE15: average area of space (m2) | BG15: TOTAL no. of spaces | BH15: TOTAL AREA (incl supp) | BJ15: Area differ-ence | BK15: no. of spaces differ-ence | BM15: Total | BO15: Early Years | BQ15: Infants | BS15: Juniors | BU15: Hall/ dining/ admin | BW15: =D14 -> - | BY15: Balance | CQ15: formula per work place | CR15: formula to be sub-tracted | CS15: work places per room | CT15: basic work places per room | CU15: total basic work places | CV15: total re-source work places | CW15: basic work place allow-ance | CX15: basic work places per room | CY15: total basic work places | CZ15: total re-source work places | DC15: recommended numbers based on 'rule of thumb' | DG15: ='Prog Assums'!B45 -> all practical in classrooms | DH15: ='Prog Assums'!B46 -> specialist practical spaces | DI15: ='Prog Assums'!B47 -> semi-open classbases + shared | DJ15: ='Prog Assums'!B53 -> classrooms + shared teaching | DN15: ='Prog Assums'!AE$4 -> min possible area | DO15: ='Prog Assums'!AF$4 -> Min rec'd Area if restrictive (or 10%) | DP15: ='Prog Assums'!AG$4 -> Min rec'd Area if standard | DQ15: ='Prog Assums'!AH$4 -> Min rec'd Area if extensive | DR15: ='Prog Assums'!AI$4 -> max possible area | DS15: average area of space (m2) | DU15: TOTAL no. of spaces | DV15: TOTAL AREA (m2) | DY15: average area of space (m2) | EA15: TOTAL no. of spaces | EB15: TOTAL AREA (m2) | EE15: average area of space (m2) | EG15: TOTAL no. of spaces | EH15: TOTAL AREA (m2) | EK15: average area of space (m2) | EM15: TOTAL no. of spaces | EN15: TOTAL AREA (m2) | ER15: average area of space (m2) | ET15: TOTAL no. of spaces | EU15: TOTAL AREA (m2) | EY15: classroom
D17: Basic Teaching Area | BG17: =SUM(BG20:BG26) -> 15 | DD17: =SUM(DD21:DD26) -> 15 | DL17: =DL22+DL23 -> 0
D19: Classrooms or classbases/ shared teaching | U19: =U20+U21+U22+U23+U24+U25+U26 -> 15 | DU19: =SUM(EA19,EG19,EM19,ET19)-U19 -> -15 | EA19: =SUM(EA20:EA26) -> 0 | EB19: =SUM(EB20:EB26) -> 0 | EG19: =SUM(EG20:EG26) -> 0 | EH19: =SUM(EH21:EH26) -> 0 | EM19: =SUM(EM20:EM26) -> 0 | EN19: =SUM(EN21:EN26) -> 0 | ET19: =SUM(ET20:ET26) -> 0 | EU19: =SUM(EU21:EU26) -> 0
A20: =IF($D20="-","",VLOOKUP($D20,'Prog Assums'!$N$5:$X$225,10, FALSE)) ->  | C20: =IF($D20="-","",VLOOKUP($D20,'Prog Assums'!$N$5:$X$225,8, FALSE)) ->  | D20: =IF(K12>0,"Nursery playrooms (2 to 3 year olds)","-") -> - | M20: =IF(D20="","",_xlfn.XLOOKUP(D20,'Prog Assums'!$N$7:$N$229,'Prog Assums'!$AQ$7:$AQ$229,"")) -> - | N20: =CONCATENATE(M20,S20) -> -0 | O20: =IF(VLOOKUP(D20,'Prog Assums'!N$5:V$231,9,FALSE)>0,"retained","") ->  | Q20: =IF(S20>0,ROUNDUP((S20-VLOOKUP(AU20,'Prog Assums'!$E$39:$I$54,2,FALSE))/VLOOKUP(AU20,'Prog Assums'!$E$39:$I$54,3,FALSE),0),0) -> 0 | S20: =VLOOKUP(D20,'Prog Assums'!N$5:R$207,5,FALSE) -> 0 | U20: =AK20 -> 0 | V20: =(S20*U20)-Y20 -> 0 | Y20: =S20*U20 -> 0 | AA20: =IF(O20="retained",V20+Y20,IF(O20="refurb'ed",V20+Y20,0)) -> 0 | AC20: =IF(U20>0,IF(S20<25,"",6+(ROUNDUP(K12/AK20,0)*2.1)),"") ->  | AD20: =IF(D20="Nursery playrooms (2 to 3 year olds)","m2 or 2.5m2 per place recom'd","") ->  | AI20: =IF(K12>0,ROUNDDOWN(-1+ROUNDUP((DC20+1)/7,0)*7,0),0) -> 0 | AK20: =IF(K12>0,ROUNDUP(K12/40,0),0) -> 0 | AP20: =ROUNDDOWN((DC20-VLOOKUP(AU20,'Prog Assums'!$E$39:$I$54,2,FALSE))/VLOOKUP(AU20,'Prog Assums'!$E$39:$I$54,3,FALSE),0) ->  | AQ20: =ROUNDUP(VLOOKUP(AU20,'Prog Assums'!$E$39:$I$54,2,FALSE)+(AP20*VLOOKUP(AU20,'Prog Assums'!$E$39:$I$54,3,FALSE)),0) ->  | AR20: =ROUNDUP(7+(AP20*2.3),0) ->  | AS20: =MAXA((AI20*AK20)-AT20,0) -> 0 | AT20: =AI20*AK20 -> 0 | AU20: =VLOOKUP(D20,'Prog Assums'!$N$6:$O$37,2,FALSE) -> 0 | BE20: =IF(ISERROR(AVERAGEIF('Individual Spaces'!F:F,$N20,'Individual Spaces'!K:K))=TRUE," ",AVERAGEIF('Individual Spaces'!F:F,$N20,'Individual Spaces'!K:K)) ->  | BG20: =COUNTIF('Individual Spaces'!F:F,'Primary SoA'!$N20) -> 0 | BH20: =IF(ISERROR((BE20*BG20)=TRUE),"",BE20*BG20) ->  | BJ20: =IF(ISERROR(BH20-$Y20-$V20=TRUE),"",BH20-$Y20-$V20) ->  | BK20: =BG20-U20 -> 0 | BM20: =SUM(BO20:CK20) -> 0 | BO20: =U20 -> 0 | CM20: =IF($S20>0,VLOOKUP($D20,'Prog Assums'!$N$5:$AM$225,12, FALSE),"") ->  | CN20: =IF($S20>0,VLOOKUP($D20,'Prog Assums'!$N$5:$AM$225,13, FALSE),"") ->  | CP20: =IF(U20>0,VLOOKUP(D20,'Prog Assums'!$N$7:$T$175,7,FALSE),"") ->  | CQ20: =VLOOKUP(D20,'Prog Assums'!$N$6:$Q$232,3,0) -> 0 | CR20: =VLOOKUP(D20,'Prog Assums'!$N$6:$Q$232,4,0) -> 0 | CS20: =IF(CP20="E",0,IF(U20=0,0,MAXA(1,ROUNDUP((S20/CQ20)-CR20,0)))) -> 0 | CT20: =IF(CS20>14,IF(CS20<31,CS20,ROUNDDOWN(CS20/30,0)*30),0) -> 0 | CU20: =IF(S20>0,(V20/S20)*CT20,0) -> 0 | CV20: =IF(CS20>0,(V20/S20)*CS20,0)-CU20 -> 0 | CW20: =IF(CP20="E",0,IF(AK20=0,0,MAXA(1,ROUNDUP((AI20/CQ20)-CR20,0)))) -> 0 | CX20: =IF(CW20>14,IF(CW20<31,CW20,ROUNDDOWN(CW20/30,0)*30),0) -> 0 | CY20: =IF(AK20>0,(AS20/AI20)*CX20,0) -> 0 | CZ20: =IF(CW20>0,(AS20/AI20)*CW20,0)-CY20 -> 0 | DC20: =IF(AK20>0,6+(ROUNDUP(K12/AK20,0)*2.1),0) -> 0 | DD20: =AK20 -> 0 | DM20: =DC17*(DD17+DK20+DL20) -> 0 | DN20: =VLOOKUP($M20,'Prog Assums'!$N$5:$AI$290,18,FALSE) -> 0 | DO20: =VLOOKUP($M20,'Prog Assums'!$N$5:$AI$290,19,FALSE) -> 0 | DP20: =IF(VLOOKUP($M20,'Prog Assums'!$N$5:$AI$290,20,FALSE)="AS SOA",$AI20,VLOOKUP($M20,'Prog Assums'!$N$5:$AI$290,20,FALSE)) -> 0 | DQ20: =VLOOKUP($M20,'Prog Assums'!$N$5:$AI$290,21,FALSE) -> 0 | DR20: =VLOOKUP($M20,'Prog Assums'!$N$5:$AI$290,22,FALSE) -> 0 | DS20: =IF(ISERROR((SUM($EB20,$EH20,$EN20,$EU20)/SUM($EA20,$EG20,$EM20,$ET20)-$S20))=TRUE,0,IF($U20=0,0,(SUM($EB20,$EH20,$EN20,$EU20)/SUM($EA20,$EG20,$EM20,$ET20)-$S20))) -> 0 | DU20: =SUM($EA20,$EG20,$EM20,$ET20)-$U20 -> 0 | DV20: =SUM($EU20,$EN20,$EH20,$EB20)-$V20-$Y20 -> 0 | DY20: 0 | EB20: =EA20*DY20 -> 0 | EE20: 0 | EG20: 0 | EH20: =EG20*EE20 -> 0 | EK20: =IF(EN20>0,SUM(EN20/EM20),0) -> 0 | EM20: =COUNTIFS($EY$2:$YI$2,'Prog Assums'!$B$125,$EY20:$YI20,">0") -> 0 | EN20: =SUMIF($EY$2:$YI$2,'Prog Assums'!$B$125,$EY20:$YI20) -> 0 | ER20: =IF(EU20>0,SUM(EU20/ET20),0) -> 0 | ET20: =COUNTIFS($EY$2:$YI$2,'Prog Assums'!$B$126,$EY20:$YI20,">0") -> 0 | EU20: =SUMIF($EY$2:$YI$2,'Prog Assums'!$B$126,$EY20:$YI20) -> 0
A21: =IF($D21="-","",VLOOKUP($D21,'Prog Assums'!$N$5:$X$225,10, FALSE)) -> PRI03 | C21: =IF($D21="-","",VLOOKUP($D21,'Prog Assums'!$N$5:$X$225,8, FALSE)) -> PRI03 | D21: Nursery playrooms | M21: =IF(D21="","",_xlfn.XLOOKUP(D21,'Prog Assums'!$N$7:$N$229,'Prog Assums'!$AQ$7:$AQ$229,"")) -> Nursery playroom | N21: Nursery playroom55 | O21: =IF(VLOOKUP(D21,'Prog Assums'!N$5:V$231,9,FALSE)>0,"retained","") ->  | Q21: =IF(S21>0,ROUNDUP((S21-VLOOKUP(AU21,'Prog Assums'!$E$39:$I$54,2,FALSE))/VLOOKUP(AU21,'Prog Assums'!$E$39:$I$54,3,FALSE),0),0) -> 27 | S21: =VLOOKUP(D21,'Prog Assums'!N$5:R$207,5,FALSE) -> 55 | U21: 1 | V21: 55 | AA21: =IF(O21="retained",V21+Y21,IF(O21="refurb'ed",V21+Y21,0)) -> 0 | AC21: =IF(U21>0,IF(S21<25,"",5+(ROUNDUP(K8/AK21,0)*1.9)),"") -> 54.4 | AD21: =IF(U21>0,IF(S21<25,"too small to be a playroom","m2 or 2.3m2 per place min recom'd"),"") -> m2 or 2.3m2 per place min recom'd | AI21: =IF(K8>0,ROUNDDOWN(-1+ROUNDUP((DC21+1)/7,0)*7,0),0) -> 55 | AK21: =ROUNDUP(K8/40,0) -> 1 | AP21: =ROUNDDOWN((DC21-VLOOKUP(AU21,'Prog Assums'!$E$39:$I$54,2,FALSE))/VLOOKUP(AU21,'Prog Assums'!$E$39:$I$54,3,FALSE),0) -> 26 | AQ21: =ROUNDUP(VLOOKUP(AU21,'Prog Assums'!$E$39:$I$54,2,FALSE)+(AP21*VLOOKUP(AU21,'Prog Assums'!$E$39:$I$54,3,FALSE)),0) -> 55 | AR21: =ROUNDUP(VLOOKUP(AU21,'Prog Assums'!$E$39:$I$54,4,FALSE)+(AP21*VLOOKUP(AU21,'Prog Assums'!$E$39:$I$54,5,FALSE)),0) -> 61 | AS21: 55 | AU21: =VLOOKUP(D21,'Prog Assums'!$N$6:$O$37,2,FALSE) -> D | BE21: =IF(ISERROR(AVERAGEIF('Individual Spaces'!F:F,$N21,'Individual Spaces'!K:K))=TRUE," ",AVERAGEIF('Individual Spaces'!F:F,$N21,'Individual Spaces'!K:K)) ->  | BG21: =COUNTIF('Individual Spaces'!F:F,'Primary SoA'!$N21) -> 1 | BK21: 0 | BM21: 1 | BO21: =U21 -> 1 | CM21: =IF($S21>0,VLOOKUP($D21,'Prog Assums'!$N$5:$AM$225,12, FALSE),"") -> 55m2 for 26 | CN21: =IF($S21>0,VLOOKUP($D21,'Prog Assums'!$N$5:$AM$225,13, FALSE),"") -> C | CP21: =IF(U21>0,VLOOKUP(D21,'Prog Assums'!$N$7:$T$175,7,FALSE),"") -> E | CQ21: =IF(S21>90,2.5,1.5) -> 1.5 | CR21: =IF(S21>90,-20,4) -> 4 | CS21: =IF(CP21="E",0,IF(U21=0,0,MAXA(1,ROUNDUP((S21/CQ21)-CR21,0)))) -> 0 | CT21: =IF(CS21>14,IF(CS21<31,CS21,ROUNDDOWN(CS21/30,0)*30),0) -> 0 | CU21: =IF(S21>0,(V21/S21)*CT21,0) -> 0 | CV21: =IF(CS21>0,(V21/S21)*CS21,0)-CU21 -> 0 | CW21: =IF(CP21="E",0,IF(AK21=0,0,MAXA(1,ROUNDUP((AI21/CQ21)-CR21,0)))) -> 0 | CX21: 0 | CY21: 0 | CZ21: 0 | DA21: 20 | DC21: =IF(AK21>0,5+(ROUNDUP(K8/AK21,0)*1.9),0) -> 54.4 | DD21: =ROUNDUP(K8/40,0) -> 1 | DM21: =DC20*(DD20+DK21+DL21) -> 0 | DN21: =VLOOKUP($C21,'Prog Assums'!$U$5:$AI$290,11,FALSE) -> 25 | DO21: =VLOOKUP($C21,'Prog Assums'!$U$5:$AI$290,12,FALSE) -> 48.2 | DP21: =IF(VLOOKUP($C21,'Prog Assums'!$U$5:$AI$290,13,FALSE)="AS SOA",$AI21,VLOOKUP($C21,'Prog Assums'!$U$5:$AI$290,13,FALSE)) -> 55 | DQ21: =VLOOKUP($C21,'Prog Assums'!$U$5:$AI$290,14,FALSE) -> 60.6 | DR21: =VLOOKUP($C21,'Prog Assums'!$U$5:$AI$290,15,FALSE) -> 125 | DS21: 0 | DU21: -1 | DV21: =SUM($EU21,$EN21,$EH21,$EB21)-$V21-$Y21 -> -55 | DY21: 0 | EB21: 0 | EE21: 0 | EG21: 0 | EH21: 0 | EK21: 0 | EM21: =COUNTIFS($EY$2:$YI$2,'Prog Assums'!$B$125,$EY21:$YI21,">0") -> 0 | EN21: =SUMIF($EY$2:$YI$2,'Prog Assums'!$B$125,$EY21:$YI21) -> 0 | ER21: 0 | ET21: =COUNTIFS($EY$2:$YI$2,'Prog Assums'!$B$126,$EY21:$YI21,">0") -> 0 | EU21: =SUMIF($EY$2:$YI$2,'Prog Assums'!$B$126,$EY21:$YI21) -> 0
A22: =IF($D22="-","",VLOOKUP($D22,'Prog Assums'!$N$5:$X$225,10, FALSE)) -> PRI13 | C22: =IF($D22="-","",VLOOKUP($D22,'Prog Assums'!$N$5:$X$225,8, FALSE)) -> PRI13 | D22: Reception classrooms | M22: =IF(D22="","",_xlfn.XLOOKUP(D22,'Prog Assums'!$N$7:$N$229,'Prog Assums'!$AQ$7:$AQ$229,"")) -> Reception classroom | N22: Reception classroom62 | O22: =IF(VLOOKUP(D22,'Prog Assums'!N$5:V$231,9,FALSE)>0,"retained","") ->  | Q22: =IF(S22>0,ROUNDUP((S22-VLOOKUP(AU22,'Prog Assums'!$E$39:$I$54,2,FALSE))/VLOOKUP(AU22,'Prog Assums'!$E$39:$I$54,3,FALSE),0),0) -> 30 | S22: =VLOOKUP(D22,'Prog Assums'!N$5:R$207,5,FALSE) -> 62 | U22: 2 | V22: 124 | AA22: 0 | AC22: =IF(S22>0,IF(S22<25,"",DC22),"") -> 62 | AD22: =IF(S22>0,IF(S22<25,"too small to be a classroom","m2 minimum recommended"),"") -> m2 minimum recommended | AI22: =IF(K4>0,ROUNDDOWN(-1+ROUNDUP((DC22+1)/7,0)*7,0),0) -> 62 | AK22: =Q4 -> 2 | AP22: =ROUNDDOWN((DC22-VLOOKUP(AU22,'Prog Assums'!$E$39:$I$54,2,FALSE))/VLOOKUP(AU22,'Prog Assums'!$E$39:$I$54,3,FALSE),0) -> 30 | AQ22: =ROUNDUP(VLOOKUP(AU22,'Prog Assums'!$E$39:$I$54,2,FALSE)+(AP22*VLOOKUP(AU22,'Prog Assums'!$E$39:$I$54,3,FALSE)),0) -> 62 | AR22: =ROUNDUP(VLOOKUP(AU22,'Prog Assums'!$E$39:$I$54,4,FALSE)+(AP22*VLOOKUP(AU22,'Prog Assums'!$E$39:$I$54,5,FALSE)),0) -> 69 | AS22: 124 | AU22: =VLOOKUP(D22,'Prog Assums'!$N$6:$O$37,2,FALSE) -> D | BE22: =IF(ISERROR(AVERAGEIF('Individual Spaces'!F:F,$N22,'Individual Spaces'!K:K))=TRUE," ",AVERAGEIF('Individual Spaces'!F:F,$N22,'Individual Spaces'!K:K)) ->  | BG22: =COUNTIF('Individual Spaces'!F:F,'Primary SoA'!$N22) -> 2 | BK22: 0 | BM22: =SUM(BO22:CK22) -> 2 | BO22: =U22 -> 2 | CM22: =IF($S22>0,VLOOKUP($D22,'Prog Assums'!$N$5:$AM$225,12, FALSE),"") -> 62m2 for 30 | CN22: =IF($S22>0,VLOOKUP($D22,'Prog Assums'!$N$5:$AM$225,13, FALSE),"") -> C | CP22: =IF(U22>0,VLOOKUP(D22,'Prog Assums'!$N$7:$T$175,7,FALSE),"") -> C | CQ22: =IF(S22>90,2.5,1.5) -> 1.5 | CR22: =IF(S22>90,-20,4) -> 4 | CS22: 38 | CT22: =IF(CS22>14,IF(CS22<31,CS22,ROUNDDOWN(CS22/30,0)*30),0) -> 30 | CU22: 60 | CV22: 16 | CW22: 38 | CX22: 30 | CY22: 60 | CZ22: 16 | DA22: 30 | DC22: =HLOOKUP(AG$12,$DG$15:$DJ$31,8,FALSE) -> 62 | DD22: =Q4 -> 2 | DG22: =IF($K4>0,(5+(ROUNDUP($K4/$AK22,0)*1.9)),0) -> 62 | DH22: =IF($K4>0,(5+(ROUNDUP($K4/$AK22,0)*1.9)),0) -> 62 | DI22: =IF($K4>0,(5+(ROUNDUP($K4/$AK22,0)*1.9)),0) -> 62 | DJ22: =IF($K4>0,(5+(ROUNDUP($K4/$AK22,0)*1.9)),0) -> 62 | DM22: =DC21*(DD21+DK22+DL22) -> 54.4 | DN22: =VLOOKUP($C22,'Prog Assums'!$U$5:$AI$290,11,FALSE) -> 25 | DO22: =VLOOKUP($C22,'Prog Assums'!$U$5:$AI$290,12,FALSE) -> 55 | DP22: =IF(VLOOKUP($C22,'Prog Assums'!$U$5:$AI$290,13,FALSE)="AS SOA",$AI22,VLOOKUP($C22,'Prog Assums'!$U$5:$AI$290,13,FALSE)) -> 62 | DQ22: =VLOOKUP($C22,'Prog Assums'!$U$5:$AI$290,14,FALSE) -> 69 | DR22: =VLOOKUP($C22,'Prog Assums'!$U$5:$AI$290,15,FALSE) -> 125 | DS22: 0 | DU22: -2 | DV22: -124 | DY22: 0 | EB22: 0 | EE22: 0 | EH22: 0 | EK22: 0 | EM22: =COUNTIFS($EY$2:$YI$2,'Prog Assums'!$B$125,$EY22:$YI22,">0") -> 0 | EN22: =SUMIF($EY$2:$YI$2,'Prog Assums'!$B$125,$EY22:$YI22) -> 0 | ER22: 0 | ET22: =COUNTIFS($EY$2:$YI$2,'Prog Assums'!$B$126,$EY22:$YI22,">0") -> 0 | EU22: =SUMIF($EY$2:$YI$2,'Prog Assums'!$B$126,$EY22:$YI22) -> 0
A23: =IF($D23="-","",VLOOKUP($D23,'Prog Assums'!$N$5:$X$225,10, FALSE)) -> PRI23 | C23: =IF($D23="-","",VLOOKUP($D23,'Prog Assums'!$N$5:$X$225,8, FALSE)) -> PRI25 | D23: =IF(AG12="semi-open classbases + shared","Semi-open classbases, infant",IF(AG12="all practical in classrooms","Infant classrooms (extensive)","Infant classrooms")) -> Infant classrooms (extensive) | M23: =IF(D23="","",_xlfn.XLOOKUP(D23,'Prog Assums'!$N$7:$N$229,'Prog Assums'!$AQ$7:$AQ$229,"")) -> Infant classroom (extensive) | N23: Infant classroom (extensive)62 | O23: =IF(VLOOKUP(D23,'Prog Assums'!N$5:V$231,9,FALSE)>0,"retained","") ->  | Q23: =IF(S23>0,ROUNDUP((S23-VLOOKUP(AU23,'Prog Assums'!$E$39:$I$54,2,FALSE))/VLOOKUP(AU23,'Prog Assums'!$E$39:$I$54,3,FALSE),0),0) -> 30 | S23: =VLOOKUP(D23,'Prog Assums'!N$5:R$207,5,FALSE) -> 62 | U23: 4 | V23: 248 | AA23: 0 | AC23: =IF(S23>0,IF(S23<25,"",DC23),"") -> 62 | AD23: =IF(S23>0,IF(D23="classbase with sink (infant)","m2 min open onto shared teaching","m2 minimum recommended"),"") -> m2 minimum recommended | AI23: =IF(K5>0,ROUNDDOWN(-IF(AG12="semi-open classbases + shared",-1,1)+ROUNDUP((DC23)/7,0)*7,0),0) -> 62 | AK23: =Q5 -> 4 | AP23: =ROUNDDOWN((DC23-VLOOKUP(AU23,'Prog Assums'!$E$39:$I$54,2,FALSE))/VLOOKUP(AU23,'Prog Assums'!$E$39:$I$54,3,FALSE),0) -> 30 | AQ23: =ROUNDUP(VLOOKUP(AU23,'Prog Assums'!$E$39:$I$54,2,FALSE)+(AP23*VLOOKUP(AU23,'Prog Assums'!$E$39:$I$54,3,FALSE)),0) -> 62 | AR23: =ROUNDUP(VLOOKUP(AU23,'Prog Assums'!$E$39:$I$54,4,FALSE)+(AP23*VLOOKUP(AU23,'Prog Assums'!$E$39:$I$54,5,FALSE)),0) -> 69 | AS23: 248 | AU23: =VLOOKUP(D23,'Prog Assums'!$N$6:$O$37,2,FALSE) -> D | BE23: =IF(ISERROR(AVERAGEIF('Individual Spaces'!F:F,$N23,'Individual Spaces'!K:K))=TRUE," ",AVERAGEIF('Individual Spaces'!F:F,$N23,'Individual Spaces'!K:K)) ->  | BG23: =COUNTIF('Individual Spaces'!F:F,'Primary SoA'!$N23) -> 4 | BK23: 0 | BM23: 4 | BQ23: =U23 -> 4 | CM23: =IF($S23>0,VLOOKUP($D23,'Prog Assums'!$N$5:$AM$225,12, FALSE),"") -> 62m2 for 30 | CN23: =IF($S23>0,VLOOKUP($D23,'Prog Assums'!$N$5:$AM$225,13, FALSE),"") -> B | CP23: =IF(U23>0,VLOOKUP(D23,'Prog Assums'!$N$7:$T$175,7,FALSE),"") -> C | CQ23: =VLOOKUP(D23,'Prog Assums'!$N$6:$Q$232,3,0) -> 1.5 | CR23: =VLOOKUP(D23,'Prog Assums'!$N$6:$Q$232,4,0) -> 4 | CS23: 38 | CT23: =IF(CS23>14,IF(CS23<31,CS23,ROUNDDOWN(CS23/30,0)*30),0) -> 30 | CU23: =IF(S23>0,(V23/S23)*CT23,0) -> 120 | CV23: =IF(CS23>0,(V23/S23)*CS23,0)-CU23 -> 32 | CW23: 38 | CX23: 30 | CY23: 120 | CZ23: 32 | DA23: 30 | DC23: =HLOOKUP(AG$12,$DG$15:$DJ$31,9,FALSE) -> 62 | DD23: =Q5 -> 4 | DG23: =IF(K5>0,(5+(ROUNDUP(K5/AK23,0)*1.9)),0) -> 62 | DH23: =IF(K5>0,(4+(ROUNDUP(K5/AK23,0)*1.7)),0) -> 55 | DI23: =IF(K5>0,(4+(ROUNDUP(K5/AK23,0)*1.5)),0) -> 49 | DJ23: - | DM23: =DH22*(DD23+DK23+DL23) -> 248 | DN23: =VLOOKUP($C23,'Prog Assums'!$U$5:$AI$290,11,FALSE) -> 25 | DO23: =VLOOKUP($C23,'Prog Assums'!$U$5:$AI$290,12,FALSE) -> 49.5 | DP23: =IF(VLOOKUP($C23,'Prog Assums'!$U$5:$AI$290,13,FALSE)="AS SOA",$AI23,VLOOKUP($C23,'Prog Assums'!$U$5:$AI$290,13,FALSE)) -> 55 | DQ23: =VLOOKUP($C23,'Prog Assums'!$U$5:$AI$290,14,FALSE) -> 62 | DR23: =VLOOKUP($C23,'Prog Assums'!$U$5:$AI$290,15,FALSE) -> 95 | DS23: 0 | DU23: -4 | DV23: -248 | DY23: 0 | EB23: 0 | EE23: 0 | EH23: 0 | EK23: 0 | EM23: =COUNTIFS($EY$2:$YI$2,'Prog Assums'!$B$125,$EY23:$YI23,">0") -> 0 | EN23: =SUMIF($EY$2:$YI$2,'Prog Assums'!$B$125,$EY23:$YI23) -> 0 | ER23: 0 | ET23: =COUNTIFS($EY$2:$YI$2,'Prog Assums'!$B$126,$EY23:$YI23,">0") -> 0 | EU23: =SUMIF($EY$2:$YI$2,'Prog Assums'!$B$126,$EY23:$YI23) -> 0
A24: =IF($D24="-","",VLOOKUP($D24,'Prog Assums'!$N$5:$X$225,10, FALSE)) ->  | C24: =IF($D24="-","",VLOOKUP($D24,'Prog Assums'!$N$5:$X$225,8, FALSE)) ->  | D24: =IF(AG12="semi-open classbases + shared","Shared teaching areas, primary (infant)","-") -> - | M24: =IF(D24="","",_xlfn.XLOOKUP(D24,'Prog Assums'!$N$7:$N$229,'Prog Assums'!$AQ$7:$AQ$229,"")) -> - | N24: -0 | O24: =IF(VLOOKUP(D24,'Prog Assums'!N$5:V$231,9,FALSE)>0,"retained","") ->  | Q24: =IF(S24>0,ROUNDUP((S24-VLOOKUP(AU24,'Prog Assums'!$E$39:$I$54,2,FALSE))/VLOOKUP(AU24,'Prog Assums'!$E$39:$I$54,3,FALSE),0),0) -> 0 | S24: =VLOOKUP(D24,'Prog Assums'!N$5:R$207,5,FALSE) -> 0 | U24: 0 | V24: 0 | AA24: 0 | AD24: =IF(D24="shared teaching area without sink","open area adjacent to classbases","") ->  | AI24: =IF(AK24>0,DC24,0) -> 0 | AK24: =DD24 -> 0 | AP24: =ROUNDDOWN((DC24-VLOOKUP(AU24,'Prog Assums'!$E$39:$I$54,2,FALSE))/VLOOKUP(AU24,'Prog Assums'!$E$39:$I$54,3,FALSE),0) ->  | AQ24: =ROUNDUP(VLOOKUP(AU24,'Prog Assums'!$E$39:$I$54,2,FALSE)+(AP24*VLOOKUP(AU24,'Prog Assums'!$E$39:$I$54,3,FALSE)),0) ->  | AR24: =ROUNDUP(VLOOKUP(AU24,'Prog Assums'!$E$39:$I$54,4,FALSE)+(AP24*VLOOKUP(AU24,'Prog Assums'!$E$39:$I$54,5,FALSE)),0) ->  | AS24: 0 | AU24: =VLOOKUP(D24,'Prog Assums'!$N$6:$O$37,2,FALSE) -> 0 | BE24: =IF(ISERROR(AVERAGEIF('Individual Spaces'!F:F,$N24,'Individual Spaces'!K:K))=TRUE," ",AVERAGEIF('Individual Spaces'!F:F,$N24,'Individual Spaces'!K:K)) ->  | BG24: =COUNTIF('Individual Spaces'!F:F,'Primary SoA'!$N24) -> 0 | BK24: 0 | BM24: 0 | BQ24: =U24 -> 0 | CM24: =IF($S24>0,VLOOKUP($D24,'Prog Assums'!$N$5:$AM$225,12, FALSE),"") ->  | CN24: =IF($S24>0,VLOOKUP($D24,'Prog Assums'!$N$5:$AM$225,13, FALSE),"") ->  | CP24: =IF(U24>0,VLOOKUP(D24,'Prog Assums'!$N$7:$T$175,7,FALSE),"") ->  | CQ24: =VLOOKUP(D24,'Prog Assums'!$N$6:$Q$232,3,0) -> 0 | CR24: =VLOOKUP(D24,'Prog Assums'!$N$6:$Q$232,4,0) -> 0 | CS24: 0 | CT24: =IF(CS24>14,IF(CS24<31,CS24,ROUNDDOWN(CS24/30,0)*30),0) -> 0 | CU24: =IF(S24>0,(V24/S24)*CT24,0) -> 0 | CV24: =IF(CS24>0,(V24/S24)*CS24,0)-CU24 -> 0 | CW24: 0 | CX24: 0 | CY24: 0 | CZ24: 0 | DA24: 31 | DC24: =IF(DD24>0,HLOOKUP(AG$12,$DG$15:$DJ$31,10,FALSE),0) -> 0 | DD24: =IF(AG12="semi-open classbases + shared",ROUNDDOWN(DD23/2,0),0) -> 0 | DI24: =IF(DD24>0,((5+(ROUNDUP(K5/DD23,0)*1.9))-DI23)*(DD23/DD24),0) -> 0 | DJ24: - | DM24: =DH23*(DD24+DK24+DL24) -> 0 | DN24: =VLOOKUP($C24,'Prog Assums'!$U$5:$AI$290,11,FALSE) ->  | DO24: =VLOOKUP($C24,'Prog Assums'!$U$5:$AI$290,12,FALSE) ->  | DP24: =IF(VLOOKUP($C24,'Prog Assums'!$U$5:$AI$290,13,FALSE)="AS SOA",$AI24,VLOOKUP($C24,'Prog Assums'!$U$5:$AI$290,13,FALSE)) ->  | DQ24: =VLOOKUP($C24,'Prog Assums'!$U$5:$AI$290,14,FALSE) ->  | DR24: =VLOOKUP($C24,'Prog Assums'!$U$5:$AI$290,15,FALSE) ->  | DS24: 0 | DU24: 0 | DV24: 0 | DY24: 0 | EB24: 0 | EE24: 0 | EG24: 0 | EH24: 0 | EK24: 0 | EM24: =COUNTIFS($EY$2:$YI$2,'Prog Assums'!$B$125,$EY24:$YI24,">0") -> 0 | EN24: =SUMIF($EY$2:$YI$2,'Prog Assums'!$B$125,$EY24:$YI24) -> 0 | ER24: 0 | ET24: =COUNTIFS($EY$2:$YI$2,'Prog Assums'!$B$126,$EY24:$YI24,">0") -> 0 | EU24: =SUMIF($EY$2:$YI$2,'Prog Assums'!$B$126,$EY24:$YI24) -> 0
A25: =IF($D25="-","",VLOOKUP($D25,'Prog Assums'!$N$5:$X$225,10, FALSE)) -> PRI33 | C25: =IF($D25="-","",VLOOKUP($D25,'Prog Assums'!$N$5:$X$225,8, FALSE)) -> PRI33 | D25: =IF(AG14="classbases + shared teaching","classbase without sink (junior)",IF(AG14="all practical in classrooms","Junior classrooms (extensive)","Junior classrooms")) -> Junior classrooms | M25: =IF(D25="","",_xlfn.XLOOKUP(D25,'Prog Assums'!$N$7:$N$229,'Prog Assums'!$AQ$7:$AQ$229,"")) -> Junior classroom | N25: Junior classroom55 | Q25: =IF(S25>0,ROUNDUP((S25-VLOOKUP(AU25,'Prog Assums'!$E$39:$I$54,2,FALSE))/VLOOKUP(AU25,'Prog Assums'!$E$39:$I$54,3,FALSE),0),0) -> 30 | S25: =VLOOKUP(D25,'Prog Assums'!N$5:R$207,5,FALSE) -> 55 | U25: 8 | V25: 440 | AA25: 0 | AC25: =IF(S25>0,IF(S25<25,"",DC25),"") -> 55 | AD25: =IF(S25>0,IF(D25="classbase without sink (junior)","m2 open onto shared teaching","m2 minimum recommended"),"") -> m2 minimum recommended | AI25: =IF(K6>0,ROUNDDOWN(-1+ROUNDUP((DC25)/7,0)*7,0),0) -> 55 | AK25: =Q6 -> 8 | AP25: =ROUNDDOWN((DC25-VLOOKUP(AU25,'Prog Assums'!$E$39:$I$54,2,FALSE))/VLOOKUP(AU25,'Prog Assums'!$E$39:$I$54,3,FALSE),0) -> 30 | AQ25: =ROUNDUP(VLOOKUP(AU25,'Prog Assums'!$E$39:$I$54,2,FALSE)+(AP25*VLOOKUP(AU25,'Prog Assums'!$E$39:$I$54,3,FALSE)),0) -> 55 | AR25: =ROUNDUP(VLOOKUP(AU25,'Prog Assums'!$E$39:$I$54,4,FALSE)+(AP25*VLOOKUP(AU25,'Prog Assums'!$E$39:$I$54,5,FALSE)),0) -> 62 | AS25: 440 | AU25: =VLOOKUP(D25,'Prog Assums'!$N$6:$O$37,2,FALSE) -> C | BE25: =IF(ISERROR(AVERAGEIF('Individual Spaces'!F:F,$N25,'Individual Spaces'!K:K))=TRUE," ",AVERAGEIF('Individual Spaces'!F:F,$N25,'Individual Spaces'!K:K)) ->  | BG25: =COUNTIF('Individual Spaces'!F:F,'Primary SoA'!$N25) -> 8 | BK25: 0 | BM25: 8 | BS25: =U25 -> 8 | CM25: =IF($S25>0,VLOOKUP($D25,'Prog Assums'!$N$5:$AM$225,12, FALSE),"") -> 55m2 for 30 | CN25: =IF($S25>0,VLOOKUP($D25,'Prog Assums'!$N$5:$AM$225,13, FALSE),"") -> B | CP25: =IF(U25>0,VLOOKUP(D25,'Prog Assums'!$N$7:$T$175,7,FALSE),"") -> C | CQ25: =VLOOKUP(D25,'Prog Assums'!$N$6:$Q$232,3,0) -> 1.5 | CR25: =VLOOKUP(D25,'Prog Assums'!$N$6:$Q$232,4,0) -> 4 | CS25: 33 | CT25: =IF(CS25>14,IF(CS25<31,CS25,ROUNDDOWN(CS25/30,0)*30),0) -> 30 | CU25: =IF(S25>0,(V25/S25)*CT25,0) -> 240 | CV25: =IF(CS25>0,(V25/S25)*CS25,0)-CU25 -> 24 | CW25: 33 | CX25: 30 | CY25: 240 | CZ25: 24 | DC25: =HLOOKUP(AG$14,$DG$15:$DJ$31,11,FALSE) -> 55 | DD25: =Q6 -> 8 | DG25: =IF(K6>0,(5+(ROUNDUP(K6/AK25,0)*1.9)),0) -> 62 | DH25: =IF(K6>0,(4+(ROUNDUP(K6/AK25,0)*1.7)),0) -> 55 | DI25: - | DJ25: =IF(K6>0,(4+(ROUNDUP(K6/AK25,0)*1.7)),0) -> 55 | DM25: =DH24*(DD25+DK25+DL25) -> 0 | DN25: =VLOOKUP($C25,'Prog Assums'!$U$5:$AI$290,11,FALSE) -> 25 | DO25: =VLOOKUP($C25,'Prog Assums'!$U$5:$AI$290,12,FALSE) -> 49.5 | DP25: =IF(VLOOKUP($C25,'Prog Assums'!$U$5:$AI$290,13,FALSE)="AS SOA",$AI25,VLOOKUP($C25,'Prog Assums'!$U$5:$AI$290,13,FALSE)) -> 55 | DQ25: =VLOOKUP($C25,'Prog Assums'!$U$5:$AI$290,14,FALSE) -> 62 | DR25: =VLOOKUP($C25,'Prog Assums'!$U$5:$AI$290,15,FALSE) -> 95 | DS25: 0 | DU25: -8 | DV25: -440 | DY25: 0 | EB25: 0 | EE25: 0 | EG25: 0 | EH25: 0 | EK25: 0 | EM25: =COUNTIFS($EY$2:$YI$2,'Prog Assums'!$B$125,$EY25:$YI25,">0") -> 0 | EN25: =SUMIF($EY$2:$YI$2,'Prog Assums'!$B$125,$EY25:$YI25) -> 0 | ER25: 0 | ET25: =COUNTIFS($EY$2:$YI$2,'Prog Assums'!$B$126,$EY25:$YI25,">0") -> 0 | EU25: =SUMIF($EY$2:$YI$2,'Prog Assums'!$B$126,$EY25:$YI25) -> 0
A26: =IF($D26="-","",VLOOKUP($D26,'Prog Assums'!$N$5:$X$225,10, FALSE)) ->  | C26: =IF($D26="-","",VLOOKUP($D26,'Prog Assums'!$N$5:$X$225,8, FALSE)) ->  | D26: =IF(AG14="classrooms + shared teaching","Shared teaching areas, primary (junior)","-") -> - | M26: =IF(D26="","",_xlfn.XLOOKUP(D26,'Prog Assums'!$N$7:$N$229,'Prog Assums'!$AQ$7:$AQ$229,"")) -> - | N26: -0 | O26: =IF(VLOOKUP(D26,'Prog Assums'!N$5:V$231,9,FALSE)>0,"retained","") ->  | Q26: =IF(S26>0,ROUNDUP((S26-VLOOKUP(AU26,'Prog Assums'!$E$39:$I$54,2,FALSE))/VLOOKUP(AU26,'Prog Assums'!$E$39:$I$54,3,FALSE),0),0) -> 0 | S26: =IF(AG$14="classrooms + shared teaching",AI26,VLOOKUP(D26,'Prog Assums'!N$5:R$207,5,FALSE)) -> 0 | U26: 0 | V26: 0 | AA26: 0 | AI26: =IF(AK26>0,DC26,0) -> 0 | AK26: =DD26 -> 0 | AP26: =ROUNDDOWN((DC26-VLOOKUP(AU26,'Prog Assums'!$E$39:$I$54,2,FALSE))/VLOOKUP(AU26,'Prog Assums'!$E$39:$I$54,3,FALSE),0) ->  | AQ26: =ROUNDUP(VLOOKUP(AU26,'Prog Assums'!$E$39:$I$54,2,FALSE)+(AP26*VLOOKUP(AU26,'Prog Assums'!$E$39:$I$54,3,FALSE)),0) ->  | AR26: =ROUNDUP(VLOOKUP(AU26,'Prog Assums'!$E$39:$I$54,4,FALSE)+(AP26*VLOOKUP(AU26,'Prog Assums'!$E$39:$I$54,5,FALSE)),0) ->  | AS26: 0 | AU26: =VLOOKUP(D26,'Prog Assums'!$N$6:$O$37,2,FALSE) -> 0 | BE26: =IF(ISERROR(AVERAGEIF('Individual Spaces'!F:F,$N26,'Individual Spaces'!K:K))=TRUE," ",AVERAGEIF('Individual Spaces'!F:F,$N26,'Individual Spaces'!K:K)) ->  | BG26: =COUNTIF('Individual Spaces'!F:F,'Primary SoA'!$N26) -> 0 | BK26: 0 | BM26: 0 | BS26: =U26 -> 0 | CM26: =IF($S26>0,VLOOKUP($D26,'Prog Assums'!$N$5:$AM$225,12, FALSE),"") ->  | CN26: =IF($S26>0,VLOOKUP($D26,'Prog Assums'!$N$5:$AM$225,13, FALSE),"") ->  | CP26: =IF(U26>0,VLOOKUP(D26,'Prog Assums'!$N$7:$T$175,7,FALSE),"") ->  | CQ26: =VLOOKUP(D26,'Prog Assums'!$N$6:$Q$232,3,0) -> 0 | CR26: =VLOOKUP(D26,'Prog Assums'!$N$6:$Q$232,4,0) -> 0 | CS26: 0 | CT26: =IF(CS26>14,IF(CS26<31,CS26,ROUNDDOWN(CS26/30,0)*30),0) -> 0 | CU26: =IF(S26>0,(V26/S26)*CT26,0) -> 0 | CV26: =IF(CS26>0,(V26/S26)*CS26,0)-CU26 -> 0 | CW26: 0 | CX26: 0 | CY26: 0 | CZ26: 0 | DC26: =IF(DD26>0,HLOOKUP(AG$14,$DG$15:$DJ$31,12,FALSE),0) -> 0 | DD26: =IF(AG14="classrooms + shared teaching",ROUNDDOWN(DD25/2,0),0) -> 0 | DI26: - | DJ26: =IF(DD26>0,((5+(ROUNDUP(K6/DD25,0)*1.9))-DJ25)*(DD25/DD26),0) -> 0 | DN26: =VLOOKUP($C26,'Prog Assums'!$U$5:$AI$290,11,FALSE) ->  | DO26: =VLOOKUP($C26,'Prog Assums'!$U$5:$AI$290,12,FALSE) ->  | DP26: =IF(VLOOKUP($C26,'Prog Assums'!$U$5:$AI$290,13,FALSE)="AS SOA",$AI26,VLOOKUP($C26,'Prog Assums'!$U$5:$AI$290,13,FALSE)) ->  | DQ26: =VLOOKUP($C26,'Prog Assums'!$U$5:$AI$290,14,FALSE) ->  | DR26: =VLOOKUP($C26,'Prog Assums'!$U$5:$AI$290,15,FALSE) ->  | DS26: 0 | DU26: 0 | DV26: 0 | DY26: 0 | EB26: 0 | EE26: 0 | EG26: 0 | EH26: 0 | EK26: 0 | EM26: =COUNTIFS($EY$2:$YI$2,'Prog Assums'!$B$125,$EY26:$YI26,">0") -> 0 | EN26: =SUMIF($EY$2:$YI$2,'Prog Assums'!$B$125,$EY26:$YI26) -> 0 | ER26: 0 | ET26: =COUNTIFS($EY$2:$YI$2,'Prog Assums'!$B$126,$EY26:$YI26,">0") -> 0 | EU26: =SUMIF($EY$2:$YI$2,'Prog Assums'!$B$126,$EY26:$YI26) -> 0
Q27: =IF(S27>0,ROUNDUP((S27-VLOOKUP(AU27,'Prog Assums'!$E$39:$I$54,2,FALSE))/VLOOKUP(AU27,'Prog Assums'!$E$39:$I$54,3,FALSE),0),0) -> 0 | CM27: =IF($S27>0,VLOOKUP($D27,'Prog Assums'!$N$5:$AM$225,12, FALSE),"") ->  | CN27: =IF($S27>0,VLOOKUP($D27,'Prog Assums'!$N$5:$AM$225,13, FALSE),"") -> 
D28: Specialist practical/ other | Q28: =IF(S28>0,ROUNDUP((S28-VLOOKUP(AU28,'Prog Assums'!$E$39:$I$54,2,FALSE))/VLOOKUP(AU28,'Prog Assums'!$E$39:$I$54,3,FALSE),0),0) -> 0 | U28: =U29+U30+U31 -> 1 | BG28: =BG29+BG30+BG31 -> 1 | CM28: =IF($S28>0,VLOOKUP($D28,'Prog Assums'!$N$5:$AM$225,12, FALSE),"") ->  | CN28: =IF($S28>0,VLOOKUP($D28,'Prog Assums'!$N$5:$AM$225,13, FALSE),"") ->  | DB28: =4+ROUNDUP(Q8/2,0) -> 11 | DC28: =IF(DD28>0,4,0) -> 0 | DD28: =IF((DD29+DD30)>0,0,1) -> 0 | DL28: =IF(K12>0,ROUND(1+(K12/50),0),0) -> 0 | DU28: =SUM(EA28,EG28,EM28,ET28)-U28 -> -1 | EA28: =SUM(EA29:EA31) -> 0 | EB28: =SUM(EB29:EB31) -> 0 | EG28: =SUM(EG29:EG31) -> 0 | EH28: =SUM(EH29:EH31) -> 0 | EM28: =SUM(EM29:EM31) -> 0 | EN28: =SUM(EN29:EN31) -> 0 | ET28: =SUM(ET29:ET31) -> 0 | EU28: =SUM(EU29:EU31) -> 0
A29: =IF($D29="-","",VLOOKUP($D29,'Prog Assums'!$N$5:$X$225,10, FALSE)) -> PRA10 | C29: =IF($D29="-","",VLOOKUP($D29,'Prog Assums'!$N$5:$X$225,8, FALSE)) -> PRA12 | D29: =IF(DD28=0,"Primary practical (food/ science/ DT)","Kitchenettes, food bay") -> Primary practical (food/ science/ DT) | M29: =IF(D29="","",_xlfn.XLOOKUP(D29,'Prog Assums'!$N$7:$N$229,'Prog Assums'!$AQ$7:$AQ$229,"")) -> Primary practical (food/ science/ DT) | N29: =CONCATENATE(M29,S29) -> Primary practical (food/ science/ DT)69 | O29: =IF(VLOOKUP(D29,'Prog Assums'!N$5:V$231,9,FALSE)>0,"retained","") ->  | Q29: =IF(S29>0,ROUND((S29-VLOOKUP(AU29,'Prog Assums'!$E$39:$I$54,2,FALSE))/VLOOKUP(AU29,'Prog Assums'!$E$39:$I$54,3,FALSE),0),0) -> 34 | S29: =AI29 -> 69 | U29: =AK29 -> 1 | V29: =(S29*U29)-Y29 -> 69 | AA29: =IF(O29="retained",V29+Y29,IF(O29="refurb'ed",V29+Y29,0)) -> 0 | AI29: =IF(DD28=0,DB29,DB28) -> 69 | AK29: =IF(DD28=0,IF((DC29+DC30)>10,1,0),1) -> 1 | AP29: =ROUNDDOWN((IF(DD28=0,DB29,DB28)-VLOOKUP(AU29,'Prog Assums'!$E$39:$I$54,2,FALSE))/VLOOKUP(AU29,'Prog Assums'!$E$39:$I$54,3,FALSE),0) -> 33 | AQ29: =ROUNDUP(VLOOKUP(AU29,'Prog Assums'!$E$39:$I$54,2,FALSE)+(AP29*VLOOKUP(AU29,'Prog Assums'!$E$39:$I$54,3,FALSE)),0) -> 68 | AR29: =ROUNDUP(VLOOKUP(AU29,'Prog Assums'!$E$39:$I$54,4,FALSE)+(AP29*VLOOKUP(AU29,'Prog Assums'!$E$39:$I$54,5,FALSE)),0) -> 76 | AS29: =MAXA((AI29*AK29)-AT29,0) -> 69 | AU29: =VLOOKUP(D29,'Prog Assums'!$N$6:$O$41,2,FALSE) -> D | BE29: =IF(ISERROR(AVERAGEIF('Individual Spaces'!F:F,$N29,'Individual Spaces'!K:K))=TRUE," ",AVERAGEIF('Individual Spaces'!F:F,$N29,'Individual Spaces'!K:K)) ->  | BG29: =COUNTIF('Individual Spaces'!F:F,'Primary SoA'!$N29) -> 1 | BH29: =IF(ISERROR((BE29*BG29)=TRUE),"",BE29*BG29) ->  | BJ29: =IF(ISERROR(BH29-$Y29-$V29=TRUE),"",BH29-$Y29-$V29) ->  | BK29: =BG29-U29 -> 0 | BM29: 1 | BS29: =U29 -> 1 | CM29: =IF($S29>0,VLOOKUP($D29,'Prog Assums'!$N$5:$AM$225,12, FALSE),"") -> 62m2 for 30 | CN29: =IF($S29>0,VLOOKUP($D29,'Prog Assums'!$N$5:$AM$225,13, FALSE),"") -> C | CP29: =IF(U29>0,VLOOKUP(D29,'Prog Assums'!$N$7:$T$175,7,FALSE),"") -> T | CQ29: =VLOOKUP(D29,'Prog Assums'!$N$6:$Q$232,3,0) -> 2.5 | CR29: =VLOOKUP(D29,'Prog Assums'!$N$6:$Q$232,4,0) -> 4 | CS29: =IF(CP29="E",0,IF(U29=0,0,MAXA(1,ROUNDUP((S29/CQ29)-CR29,0)))) -> 24 | CT29: =IF(CS29>14,IF(CS29<31,CS29,ROUNDDOWN(CS29/30,0)*30),0) -> 24 | CU29: =IF(S29>0,(V29/S29)*CT29,0) -> 24 | CV29: =IF(CS29>0,(V29/S29)*CS29,0)-CU29 -> 0 | CW29: =IF(CP29="E",0,IF(AK29=0,0,MAXA(1,ROUNDUP((AI29/CQ29)-CR29,0)))) -> 24 | CX29: =IF(CW29>14,IF(CW29<31,CW29,ROUNDDOWN(CW29/30,0)*30),0) -> 24 | CY29: =IF(AK29>0,(AS29/AI29)*CX29,0) -> 24 | CZ29: =IF(CW29>0,(AS29/AI29)*CW29,0)-CY29 -> 0 | DA29: 15 | DB29: =MIN(69,IF(K5>0,IF(K5/Q5=30,IF((DC29+DC30)>45,69,34),ROUNDDOWN(-1+ROUNDUP((DC29+1)/7,0)*7,0)),ROUNDDOWN(-1+ROUNDUP((DC30+1)/7,0)*7,0))) -> 69 | DC29: =HLOOKUP(AG$12,$DG$15:$DJ$31,16,FALSE) -> 0 | DD29: =IF(AG12="specialist practical spaces",IF(K4+K5>0,1,0),0) -> 0 | DG29: =ROUNDUP(Q8-1,0) -> 13 | DH29: 0 | DI29: 4 | DJ29: 4 | DN29: =VLOOKUP($C29,'Prog Assums'!$U$5:$AI$290,11,FALSE) -> 15 | DO29: =VLOOKUP($C29,'Prog Assums'!$U$5:$AI$290,12,FALSE) -> - | DP29: =IF(VLOOKUP($C29,'Prog Assums'!$U$5:$AI$290,13,FALSE)="AS SOA",$AI29,VLOOKUP($C29,'Prog Assums'!$U$5:$AI$290,13,FALSE)) -> 69 | DQ29: =VLOOKUP($C29,'Prog Assums'!$U$5:$AI$290,14,FALSE) -> - | DR29: =VLOOKUP($C29,'Prog Assums'!$U$5:$AI$290,15,FALSE) -> 125 | DS29: =IF(ISERROR((SUM($EB29,$EH29,$EN29,$EU29)/SUM($EA29,$EG29,$EM29,$ET29)-$S29))=TRUE,0,IF($U29=0,0,(SUM($EB29,$EH29,$EN29,$EU29)/SUM($EA29,$EG29,$EM29,$ET29)-$S29))) -> 0 | DU29: =SUM($EA29,$EG29,$EM29,$ET29)-$U29 -> -1 | DV29: =SUM($EU29,$EN29,$EH29,$EB29)-$V29-$Y29 -> -69 | DY29: 0 | EA29: 0 | EB29: =EA29*DY29 -> 0 | EE29: 0 | EG29: 0 | EH29: =EG29*EE29 -> 0 | EK29: =IF(EN29>0,SUM(EN29/EM29),0) -> 0 | EM29: =COUNTIFS($EY$2:$YI$2,'Prog Assums'!$B$125,$EY29:$YI29,">0") -> 0 | EN29: =SUMIF($EY$2:$YI$2,'Prog Assums'!$B$125,$EY29:$YI29) -> 0 | ER29: =IF(EU29>0,SUM(EU29/ET29),0) -> 0 | ET29: =COUNTIFS($EY$2:$YI$2,'Prog Assums'!$B$126,$EY29:$YI29,">0") -> 0 | EU29: =SUMIF($EY$2:$YI$2,'Prog Assums'!$B$126,$EY29:$YI29) -> 0
A30: =IF($D30="-","",VLOOKUP($D30,'Prog Assums'!$N$5:$X$225,10, FALSE)) -> PRA10 | C30: =IF($D30="-","",VLOOKUP($D30,'Prog Assums'!$N$5:$X$225,8, FALSE)) -> PRA16 | D30: Primary practical (art/ DT) | M30: =IF(D30="","",_xlfn.XLOOKUP(D30,'Prog Assums'!$N$7:$N$229,'Prog Assums'!$AQ$7:$AQ$229,"")) -> Primary practical (art/ DT) | N30: =CONCATENATE(M30,S30) -> Primary practical (art/ DT)0 | O30: =IF(VLOOKUP(D30,'Prog Assums'!N$5:V$231,9,FALSE)>0,"retained","") ->  | Q30: =IF(S30>0,ROUND((S30-VLOOKUP(AU30,'Prog Assums'!$E$39:$I$54,2,FALSE))/VLOOKUP(AU30,'Prog Assums'!$E$39:$I$54,3,FALSE),0),0) -> 0 | S30: =AI30 -> 0 | U30: =AK30 -> 0 | V30: =(S30*U30)-Y30 -> 0 | AA30: =IF(O30="retained",V30+Y30,IF(O30="refurb'ed",V30+Y30,0)) -> 0 | AI30: =IF(AK30>0,DB30,0) -> 0 | AK30: =IF((DC29+DC30)>80,1,0) -> 0 | AP30: =ROUNDDOWN((DB30-VLOOKUP(AU30,'Prog Assums'!$E$39:$I$54,2,FALSE))/VLOOKUP(AU30,'Prog Assums'!$E$39:$I$54,3,FALSE),0) -> -2 | AQ30: =ROUNDUP(VLOOKUP(AU30,'Prog Assums'!$E$39:$I$54,2,FALSE)+(AP30*VLOOKUP(AU30,'Prog Assums'!$E$39:$I$54,3,FALSE)),0) -> 2 | AR30: =ROUNDUP(VLOOKUP(AU30,'Prog Assums'!$E$39:$I$54,4,FALSE)+(AP30*VLOOKUP(AU30,'Prog Assums'!$E$39:$I$54,5,FALSE)),0) -> 2 | AS30: =MAXA((AI30*AK30)-AT30,0) -> 0 | AU30: =VLOOKUP(D30,'Prog Assums'!$N$6:$O$41,2,FALSE) -> D | BE30: =IF(ISERROR(AVERAGEIF('Individual Spaces'!F:F,$N30,'Individual Spaces'!K:K))=TRUE," ",AVERAGEIF('Individual Spaces'!F:F,$N30,'Individual Spaces'!K:K)) ->  | BG30: =COUNTIF('Individual Spaces'!F:F,'Primary SoA'!$N30) -> 0 | BH30: =IF(ISERROR((BE30*BG30)=TRUE),"",BE30*BG30) ->  | BJ30: =IF(ISERROR(BH30-$Y30-$V30=TRUE),"",BH30-$Y30-$V30) ->  | BK30: =BG30-U30 -> 0 | BM30: 0 | BS30: =U30 -> 0 | CM30: =IF($S30>0,VLOOKUP($D30,'Prog Assums'!$N$5:$AM$225,12, FALSE),"") ->  | CN30: =IF($S30>0,VLOOKUP($D30,'Prog Assums'!$N$5:$AM$225,13, FALSE),"") ->  | CP30: =IF(U30>0,VLOOKUP(D30,'Prog Assums'!$N$7:$T$175,7,FALSE),"") ->  | CQ30: =VLOOKUP(D30,'Prog Assums'!$N$6:$Q$232,3,0) -> 2.5 | CR30: =VLOOKUP(D30,'Prog Assums'!$N$6:$Q$232,4,0) -> 4 | CS30: 0 | CT30: 0 | CU30: 0 | CV30: 0 | CW30: 0 | CX30: 0 | CY30: 0 | CZ30: 0 | DA30: 15 | DB30: =IF(AK30>0,IF(K6/Q6=30,IF((DC30+DC32-DB29)>80,62,34),ROUNDDOWN(-1+ROUNDUP((DC32+1)/7,0)*7,0)),0) -> 0 | DC30: =HLOOKUP(AG$14,$DG$15:$DJ$31,17,FALSE) -> 56 | DD30: =IF(AG14="specialist practical spaces",IF(K6>0,1,0),0) -> 1 | DG30: 0 | DH30: =IF(K5>0,(5+(ROUNDUP(K5/DD23,0)*1.9)-DH23)*DD23,0) -> 28 | DI30: 0 | DJ30: 0 | DM30: =DH29*(DD28+DK30+DL30) -> 0 | DN30: =VLOOKUP($C30,'Prog Assums'!$U$5:$AI$290,11,FALSE) -> 4 | DO30: =VLOOKUP($C30,'Prog Assums'!$U$5:$AI$290,12,FALSE) -> - | DP30: =IF(VLOOKUP($C30,'Prog Assums'!$U$5:$AI$290,13,FALSE)="AS SOA",$AI30,VLOOKUP($C30,'Prog Assums'!$U$5:$AI$290,13,FALSE)) -> 34 | DQ30: =VLOOKUP($C30,'Prog Assums'!$U$5:$AI$290,14,FALSE) -> - | DR30: =VLOOKUP($C30,'Prog Assums'!$U$5:$AI$290,15,FALSE) -> 125 | DS30: =IF(ISERROR((SUM($EB30,$EH30,$EN30,$EU30)/SUM($EA30,$EG30,$EM30,$ET30)-$S30))=TRUE,0,IF($U30=0,0,(SUM($EB30,$EH30,$EN30,$EU30)/SUM($EA30,$EG30,$EM30,$ET30)-$S30))) -> 0 | DU30: =SUM($EA30,$EG30,$EM30,$ET30)-$U30 -> 0 | DV30: =SUM($EU30,$EN30,$EH30,$EB30)-$V30-$Y30 -> 0 | DY30: 0 | EA30: 0 | EB30: =EA30*DY30 -> 0 | EE30: 0 | EG30: 0 | EH30: =EG30*EE30 -> 0 | EK30: =IF(EN30>0,SUM(EN30/EM30),0) -> 0 | EM30: =COUNTIFS($EY$2:$YI$2,'Prog Assums'!$B$125,$EY30:$YI30,">0") -> 0 | EN30: =SUMIF($EY$2:$YI$2,'Prog Assums'!$B$125,$EY30:$YI30) -> 0 | ER30: =IF(EU30>0,SUM(EU30/ET30),0) -> 0 | ET30: =COUNTIFS($EY$2:$YI$2,'Prog Assums'!$B$126,$EY30:$YI30,">0") -> 0 | EU30: =SUMIF($EY$2:$YI$2,'Prog Assums'!$B$126,$EY30:$YI30) -> 0
A31: =IF($D31="-","",VLOOKUP($D31,'Prog Assums'!$N$5:$X$225,10, FALSE)) ->  | C31: =IF($D31="-","",VLOOKUP($D31,'Prog Assums'!$N$5:$X$225,8, FALSE)) ->  | D31: =IF(K14>0,IF(AO12="unit","Primary SEN classrooms (ambulant)","-"),"-") -> - | M31: =IF(D31="","",_xlfn.XLOOKUP(D31,'Prog Assums'!$N$7:$N$229,'Prog Assums'!$AQ$7:$AQ$229,"")) -> - | N31: =CONCATENATE(M31,S31) -> -0 | O31: =IF(VLOOKUP(D31,'Prog Assums'!N$5:V$231,9,FALSE)>0,"retained","") ->  | Q31: =IF(S31>0,ROUND((S31-VLOOKUP(AU31,'Prog Assums'!$E$39:$I$54,2,FALSE))/VLOOKUP(AU31,'Prog Assums'!$E$39:$I$54,3,FALSE),0),0) -> 0 | S31: =AI31 -> 0 | U31: =AK31 -> 0 | V31: =(S31*U31)-Y31 -> 0 | Y31: =IF(K$14>0,S31*U31,0) -> 0 | AA31: =IF(O31="retained",V31+Y31,IF(O31="refurb'ed",V31+Y31,0)) -> 0 | AI31: =IF(K14>0,IF(AO12="unit",(ROUNDUP(DC31/7,0)*7)-1,0),0) -> 0 | AK31: =IF(AO12="unit",ROUNDUP(K14/10,0),0) -> 0 | AP31: =ROUNDDOWN((DC31-VLOOKUP(AU31,'Prog Assums'!$E$39:$I$54,2,FALSE))/VLOOKUP(AU31,'Prog Assums'!$E$39:$I$54,3,FALSE),0) ->  | AQ31: =ROUNDUP(VLOOKUP(AU31,'Prog Assums'!$E$39:$I$54,2,FALSE)+(AP31*VLOOKUP(AU31,'Prog Assums'!$E$39:$I$54,3,FALSE)),0) ->  | AR31: =ROUNDUP(VLOOKUP(AU31,'Prog Assums'!$E$39:$I$54,4,FALSE)+(AP31*VLOOKUP(AU31,'Prog Assums'!$E$39:$I$54,5,FALSE)),0) ->  | AS31: =MAXA((AI31*AK31)-AT31,0) -> 0 | AT31: =AI31*AK31 -> 0 | AU31: =VLOOKUP(D31,'Prog Assums'!$N$6:$O$41,2,FALSE) -> 0 | BE31: =IF(ISERROR(AVERAGEIF('Individual Spaces'!F:F,$N31,'Individual Spaces'!K:K))=TRUE," ",AVERAGEIF('Individual Spaces'!F:F,$N31,'Individual Spaces'!K:K)) ->  | BG31: =COUNTIF('Individual Spaces'!F:F,'Primary SoA'!$N31) -> 0 | BH31: =IF(ISERROR((BE31*BG31)=TRUE),"",BE31*BG31) ->  | BJ31: =IF(ISERROR(BH31-$Y31-$V31=TRUE),"",BH31-$Y31-$V31) ->  | BK31: =BG31-U31 -> 0 | BM31: 0 | BW31: =U31 -> 0 | CM31: =IF($S31>0,VLOOKUP($D31,'Prog Assums'!$N$5:$AM$225,12, FALSE),"") ->  | CN31: =IF($S31>0,VLOOKUP($D31,'Prog Assums'!$N$5:$AM$225,13, FALSE),"") ->  | CP31: =IF(U31>0,VLOOKUP(D31,'Prog Assums'!$N$7:$T$175,7,FALSE),"") ->  | CQ31: =VLOOKUP(D31,'Prog Assums'!$N$6:$Q$232,3,0) -> 0 | CR31: =VLOOKUP(D31,'Prog Assums'!$N$6:$Q$232,4,0) -> 0 | CS31: 0 | CT31: 0 | CU31: 0 | CV31: 0 | CW31: 0 | CX31: 0 | CY31: 0 | CZ31: 0 | DC31: =IF(AO12="unit",ROUNDUP(K14*5.5,0)/AK31,0) -> 0 | DD31: SEN | DG31: 0 | DH31: =IF(K6>0,(5+(ROUNDUP(K6/DD25,0)*1.9)-DH25)*DD25,0) -> 56 | DI31: 0 | DJ31: 0 | DM31: =DH30*(DC30+DK31+DL31) -> 1568 | DN31: =VLOOKUP($C31,'Prog Assums'!$U$5:$AI$290,11,FALSE) ->  | DO31: =VLOOKUP($C31,'Prog Assums'!$U$5:$AI$290,12,FALSE) ->  | DP31: =IF(VLOOKUP($C31,'Prog Assums'!$U$5:$AI$290,13,FALSE)="AS SOA",$AI31,VLOOKUP($C31,'Prog Assums'!$U$5:$AI$290,13,FALSE)) ->  | DQ31: =VLOOKUP($C31,'Prog Assums'!$U$5:$AI$290,14,FALSE) ->  | DR31: =VLOOKUP($C31,'Prog Assums'!$U$5:$AI$290,15,FALSE) ->  | DS31: =IF(ISERROR((SUM($EB31,$EH31,$EN31,$EU31)/SUM($EA31,$EG31,$EM31,$ET31)-$S31))=TRUE,0,IF($U31=0,0,(SUM($EB31,$EH31,$EN31,$EU31)/SUM($EA31,$EG31,$EM31,$ET31)-$S31))) -> 0 | DU31: =SUM($EA31,$EG31,$EM31,$ET31)-$U31 -> 0 | DV31: =SUM($EU31,$EN31,$EH31,$EB31)-$V31-$Y31 -> 0 | DY31: 0 | EA31: 0 | EB31: =EA31*DY31 -> 0 | EE31: 0 | EG31: 0 | EH31: =EG31*EE31 -> 0 | EK31: =IF(EN31>0,SUM(EN31/EM31),0) -> 0 | EM31: =COUNTIFS($EY$2:$YI$2,'Prog Assums'!$B$125,$EY31:$YI31,">0") -> 0 | EN31: =SUMIF($EY$2:$YI$2,'Prog Assums'!$B$125,$EY31:$YI31) -> 0 | ER31: =IF(EU31>0,SUM(EU31/ET31),0) -> 0 | ET31: =COUNTIFS($EY$2:$YI$2,'Prog Assums'!$B$126,$EY31:$YI31,">0") -> 0 | EU31: =SUMIF($EY$2:$YI$2,'Prog Assums'!$B$126,$EY31:$YI31) -> 0
D32: TOTAL AREA | L32: BB103 range | O32: =ROUND(0+(Q10*2)+(K8*2.3),0) -> 900 | P32: to | Q32: =ROUND(30+(Q10*2.2)+(K8*2.55),0) -> 1020 | V32: =SUM(V20:V31) -> 936 | Y32: =SUM(Y20:Y31) -> 0 | AA32: =SUM(AA20:AA31) -> 0 | AC32: =IF(V32<O32,"ERROR: total area for category is too low",IF(V32>Q32,"WARNING: total area for category is high","OK: area within BB103 range")) -> OK: area within BB103 range | AI32: =SUM(AS20:AS31) -> 936 | AK32: =SUM(AT20:AT31) -> 0 | AS32: =SUM(AS20:AS31) -> 936 | AT32: =SUM(AT20:AT31) -> 0 | BH32: =SUM(BH20:BH31) -> 0 | BJ32: =BH32-$Y32-$V32 -> -936 | BO32: =SUM(BO20:BO31) -> 3 | BQ32: =SUM(BQ20:BQ31) -> 4 | BS32: =SUM(BS20:BS31) -> 9 | BU32: =SUM(BU20:BU31) -> 0 | BW32: =SUM(BW20:BW31) -> 0 | BY32: =SUM(BY20:BY31) -> 0 | CA32: =SUM(CA20:CA31) -> 0 | CC32: =SUM(CC20:CC31) -> 0 | CE32: =SUM(CE20:CE31) -> 0 | CG32: =SUM(CG20:CG31) -> 0 | CI32: =SUM(CI20:CI31) -> 0 | CK32: =SUM(CK20:CK31) -> 0 | DC32: =10+ROUNDUP(8*2.9,0) -> 34 | DM32: =SUM(DM22:DM31) -> 1870.4 | DV32: =SUM(DV20:DV31) -> -936 | EB32: =SUM(EB28,EB19) -> 0 | EH32: =SUM(EH28,EH19) -> 0 | EN32: =SUM(EN28,EN19) -> 0 | EU32: =SUM(EU28,EU19) -> 0
BJ33: =BH33-Y33-V33 -> 0
D34: Large spaces: halls, studios and dining | AC34: dining options | AG34: 40 mins all in main hall | AN34: =VLOOKUP(AG34,'Prog Assums'!B98:E102,3,FALSE) -> 2.67 | AO34: sittings | BF34: =(BC34*BE34) -> 0 | CM34: =IF($S34>0,VLOOKUP($D34,'Prog Assums'!$N$5:$AM$225,12, FALSE),"") ->  | CN34: =IF($S34>0,VLOOKUP($D34,'Prog Assums'!$N$5:$AM$225,13, FALSE),"") -> 
A35: =IF($D35="-","",VLOOKUP($D35,'Prog Assums'!$N$5:$X$225,10, FALSE)) -> HAL13 | C35: =IF($D35="-","",VLOOKUP($D35,'Prog Assums'!$N$5:$X$225,8, FALSE)) -> HAL13 | D35: Assembly halls, primary | K35: =IF(Q35>0,"assembly max","") -> assembly max | M35: =IF(D35="","",_xlfn.XLOOKUP(D35,'Prog Assums'!$N$7:$N$229,'Prog Assums'!$AQ$7:$AQ$229,"")) -> Assembly hall, primary | N35: =CONCATENATE(M35,S35) -> Assembly hall, primary150 | Q35: =IF(S35>0,(S35-15)/0.5,0) -> 270 | S35: =AI35 -> 150 | U35: =AK35 -> 1 | V35: =(S35*U35)-Y35 -> 150 | AA35: =IF(O35="retained",V35+Y35,IF(O35="refurb'ed",V35+Y35,0)) -> 0 | AC35: =ROUNDUP(Q10*(0.9/AN34),0)+2 -> 144 | AD35: m2 min recom'd for all pupils dining | AI35: =VLOOKUP(Q10,'Prog Assums'!G64:H78,2) -> 150 | AK35: 1 | AN35: =ROUNDUP(Q10*(0.9/AN34),0)+2 -> 144 | AQ35: 120 | AR35: 320 | AS35: =MAXA(0,(AI35*AK35)-AT35) -> 150 | BE35: =IF(ISERROR(AVERAGEIF('Individual Spaces'!F:F,$N35,'Individual Spaces'!K:K))=TRUE," ",AVERAGEIF('Individual Spaces'!F:F,$N35,'Individual Spaces'!K:K)) ->  | BG35: =COUNTIF('Individual Spaces'!F:F,'Primary SoA'!$N35) -> 1 | BH35: =IF(ISERROR((BE35*BG35)=TRUE),"",BE35*BG35) ->  | BJ35: =IF(ISERROR(BH35-$Y35-$V35=TRUE),"",BH35-$Y35-$V35) ->  | BK35: =BG35-$U35 -> 0 | BM35: 1 | BU35: =U35 -> 1 | CM35: =IF($S35>0,VLOOKUP($D35,'Prog Assums'!$N$5:$AM$225,12, FALSE),"") -> 150 or 180m2 | CN35: =IF($S35>0,VLOOKUP($D35,'Prog Assums'!$N$5:$AM$225,13, FALSE),"") -> 0 | CP35: =IF(U35>0,VLOOKUP(D35,'Prog Assums'!$N$7:$T$175,7,FALSE),"") -> T | CQ35: 12.5 | CR35: -20 | CS35: =IF(CP35="E",0,IF(U35=0,0,MAXA(1,ROUNDUP((S35/CQ35)-CR35,0)))) -> 32 | CT35: =IF(CS35>14,IF(CS35<31,CS35,ROUNDDOWN(CS35/30,0)*30),0) -> 30 | CU35: =IF(S35>0,(V35/S35)*CT35,0) -> 30 | CV35: =IF(CS35>0,(V35/S35)*CS35,0)-CU35 -> 2 | CW35: =IF(CP35="E",0,IF(AK35=0,0,MAXA(1,ROUNDUP((AI35/CQ35)-CR35,0)))) -> 32 | CX35: =IF(CW35>14,IF(CW35<31,CW35,ROUNDDOWN(CW35/30,0)*30),0) -> 30 | CY35: =IF(AK35>0,(AS35/AI35)*CX35,0) -> 30 | CZ35: =IF(CW35>0,(AS35/AI35)*CW35,0)-CY35 -> 2 | DD35: =ROUNDDOWN((Q10-100-IF(Q10>700,120,0))/IF(Q10>300,210,200),0) -> 1 | DN35: =VLOOKUP($C35,'Prog Assums'!$U$5:$AI$290,11,FALSE) -> 120 | DO35: =VLOOKUP($C35,'Prog Assums'!$U$5:$AI$290,12,FALSE) -> - | DP35: =IF(VLOOKUP($C35,'Prog Assums'!$U$5:$AI$290,13,FALSE)="AS SOA",$AI35,VLOOKUP($C35,'Prog Assums'!$U$5:$AI$290,13,FALSE)) -> 150 | DQ35: =VLOOKUP($C35,'Prog Assums'!$U$5:$AI$290,14,FALSE) -> - | DR35: =VLOOKUP($C35,'Prog Assums'!$U$5:$AI$290,15,FALSE) -> 450 | DS35: =IF(ISERROR((SUM($EB35,$EH35,$EN35,$EU35)/SUM($EA35,$EG35,$EM35,$ET35)-$S35))=TRUE,0,IF($U35=0,0,(SUM($EB35,$EH35,$EN35,$EU35)/SUM($EA35,$EG35,$EM35,$ET35)-$S35))) -> 0 | DU35: =SUM($EA35,$EG35,$EM35,$ET35)-$U35 -> -1 | DV35: =SUM($EU35,$EN35,$EH35,$EB35)-$V35-$Y35 -> -150 | DY35: 0 | EA35: 0 | EB35: =EA35*DY35 -> 0 | EE35: 0 | EG35: 0 | EH35: =EG35*EE35 -> 0 | EK35: =IF(EN35>0,SUM(EN35/EM35),0) -> 0 | EM35: =COUNTIFS($EY$2:$YI$2,'Prog Assums'!$B$125,$EY35:$YI35,">0") -> 0 | EN35: =SUMIF($EY$2:$YI$2,'Prog Assums'!$B$125,$EY35:$YI35) -> 0 | ER35: =IF(EU35>0,SUM(EU35/ET35),0) -> 0 | ET35: =COUNTIFS($EY$2:$YI$2,'Prog Assums'!$B$126,$EY35:$YI35,">0") -> 0 | EU35: =SUMIF($EY$2:$YI$2,'Prog Assums'!$B$126,$EY35:$YI35) -> 0
A36: =IF($D36="-","",VLOOKUP($D36,'Prog Assums'!$N$5:$X$225,10, FALSE)) -> PER11 | C36: =IF($D36="-","",VLOOKUP($D36,'Prog Assums'!$N$5:$X$225,8, FALSE)) -> PER11 | D36: Music and drama classrooms, studio | M36: =IF(D36="","",_xlfn.XLOOKUP(D36,'Prog Assums'!$N$7:$N$229,'Prog Assums'!$AQ$7:$AQ$229,"")) -> Music and drama classroom, studio | N36: =CONCATENATE(M36,S36) -> Music and drama classroom, studio55 | O36: =IF(VLOOKUP(D36,'Prog Assums'!N$5:V$231,9,FALSE)>0,"retained","") ->  | Q36: =IF(S36>0,MINA(30,ROUND((S36-4)/1.7,0))) -> 30 | S36: 55 | U36: =AK36 -> 0 | V36: =(S36*U36)-Y36 -> 0 | AA36: =IF(O36="retained",V36+Y36,IF(O36="refurb'ed",V36+Y36,0)) -> 0 | AI36: 55 | AK36: =IF(Q10<225,0,IF(Q10>350,IF(Q10<600,0,1),1)) -> 0 | AQ36: 45 | AR36: 75 | AS36: =MAXA(0,(AI36*AK36)-AT36) -> 0 | BE36: =IF(ISERROR(AVERAGEIF('Individual Spaces'!F:F,$N36,'Individual Spaces'!K:K))=TRUE," ",AVERAGEIF('Individual Spaces'!F:F,$N36,'Individual Spaces'!K:K)) ->  | BG36: =COUNTIF('Individual Spaces'!F:F,'Primary SoA'!$N36) -> 0 | BH36: =IF(ISERROR((BE36*BG36)=TRUE),"",BE36*BG36) ->  | BJ36: =IF(ISERROR(BH36-$Y36-$V36=TRUE),"",BH36-$Y36-$V36) ->  | BK36: =BG36-$U36 -> 0 | BM36: 0 | BU36: =U36 -> 0 | CM36: =IF($S36>0,VLOOKUP($D36,'Prog Assums'!$N$5:$AM$225,12, FALSE),"") -> 55m2 | CN36: =IF($S36>0,VLOOKUP($D36,'Prog Assums'!$N$5:$AM$225,13, FALSE),"") -> 0 | CP36: =IF(U36>0,VLOOKUP(D36,'Prog Assums'!$N$7:$T$175,7,FALSE),"") ->  | CQ36: 12.5 | CR36: -20 | CS36: 0 | CT36: 0 | CU36: 0 | CV36: 0 | CW36: 0 | CX36: 0 | CY36: 0 | CZ36: 0 | DA36: 60 | DK36: =IF(K6>0,"add",0) -> add | DM36: =DC36 -> 0 | DN36: =VLOOKUP($C36,'Prog Assums'!$U$5:$AI$290,11,FALSE) -> 25 | DO36: =VLOOKUP($C36,'Prog Assums'!$U$5:$AI$290,12,FALSE) -> 49.5 | DP36: =IF(VLOOKUP($C36,'Prog Assums'!$U$5:$AI$290,13,FALSE)="AS SOA",$AI36,VLOOKUP($C36,'Prog Assums'!$U$5:$AI$290,13,FALSE)) -> 55 | DQ36: =VLOOKUP($C36,'Prog Assums'!$U$5:$AI$290,14,FALSE) -> 62 | DR36: =VLOOKUP($C36,'Prog Assums'!$U$5:$AI$290,15,FALSE) -> 75 | DS36: =IF(ISERROR((SUM($EB36,$EH36,$EN36,$EU36)/SUM($EA36,$EG36,$EM36,$ET36)-$S36))=TRUE,0,IF($U36=0,0,(SUM($EB36,$EH36,$EN36,$EU36)/SUM($EA36,$EG36,$EM36,$ET36)-$S36))) -> 0 | DU36: =SUM($EA36,$EG36,$EM36,$ET36)-$U36 -> 0 | DV36: =SUM($EU36,$EN36,$EH36,$EB36)-$V36-$Y36 -> 0 | DY36: 0 | EA36: 0 | EB36: =EA36*DY36 -> 0 | EE36: 0 | EG36: 0 | EH36: =EG36*EE36 -> 0 | EK36: =IF(EN36>0,SUM(EN36/EM36),0) -> 0 | EM36: =COUNTIFS($EY$2:$YI$2,'Prog Assums'!$B$125,$EY36:$YI36,">0") -> 0 | EN36: =SUMIF($EY$2:$YI$2,'Prog Assums'!$B$125,$EY36:$YI36) -> 0 | ER36: =IF(EU36>0,SUM(EU36/ET36),0) -> 0 | ET36: =COUNTIFS($EY$2:$YI$2,'Prog Assums'!$B$126,$EY36:$YI36,">0") -> 0 | EU36: =SUMIF($EY$2:$YI$2,'Prog Assums'!$B$126,$EY36:$YI36) -> 0
A37: =IF($D37="-","",VLOOKUP($D37,'Prog Assums'!$N$5:$X$225,10, FALSE)) -> ACT05 | C37: =IF($D37="-","",VLOOKUP($D37,'Prog Assums'!$N$5:$X$225,8, FALSE)) -> HAL12 | D37: =IF(AN10="hall","Activity studios (small hall)","Dining halls") -> Activity studios (small hall) | M37: =IF(D37="","",_xlfn.XLOOKUP(D37,'Prog Assums'!$N$7:$N$229,'Prog Assums'!$AQ$7:$AQ$229,"")) -> Activity studio (small hall) | N37: =CONCATENATE(M37,S37) -> Activity studio (small hall)85 | O37: =IF(VLOOKUP(D37,'Prog Assums'!N$5:V$231,9,FALSE)>0,"retained","") ->  | Q37: =IF(S37>0,IF(D37="dining area(s)",ROUND((S37-3)/0.9,0),MINA(30,ROUND((S37-4)/1.7,0))),"") -> 30 | S37: =AI37 -> 85 | U37: =AK37 -> 1 | V37: =(S37*U37)-Y37 -> 85 | Y37: =IF(D37="swimming pool (existing)",S37,0) -> 0 | AA37: =IF(O37="retained",V37+Y37,IF(O37="refurb'ed",V37+Y37,0)) -> 0 | AC37: =IF(AN10="hall","",IF(V37>AU37,0.34+ROUND((V37-AU37)/(0.9/ROUNDUP(AN34,0)),0)/Q10,(V37/AU37)*0.33)) ->  | AD37: =IF(AN10="hall",IF((AC35-AI35)*U37>0,"may be used for cold food",""),IF(V37>AU37,"of pupils incl 33% eating hot food","of pupils only able to eat hot food")) ->  | AI37: =IF(AN10="hall",85,ROUND(MINA(AA69,O89-AI32-AI51-AI68-AI87-AS35-AS36,Q39-AS35-AS36),0)) -> 85 | AK37: =IF(AN10="hall",IF(Q10>350,1,0),1) -> 1 | AQ37: =IF(D37="small hall",75,10) -> 10 | AR37: =IF(D37="small hall",120,180) -> 180 | AS37: =MAXA(0,(AI37*AK37)-AT37) -> 85 | AU37: =AC35*0.4 -> 57.6 | AV37: needed for 1/3 of pupils to eat hot meals | BE37: =IF(ISERROR(AVERAGEIF('Individual Spaces'!F:F,$N37,'Individual Spaces'!K:K))=TRUE," ",AVERAGEIF('Individual Spaces'!F:F,$N37,'Individual Spaces'!K:K)) ->  | BG37: =COUNTIF('Individual Spaces'!F:F,'Primary SoA'!$N37) -> 1 | BH37: =IF(ISERROR((BE37*BG37)=TRUE),"",BE37*BG37) ->  | BJ37: =IF(ISERROR(BH37-$Y37-$V37=TRUE),"",BH37-$Y37-$V37) ->  | BK37: =BG37-$U37 -> 0 | BM37: 1 | BU37: =U37 -> 1 | CM37: =IF($S37>0,VLOOKUP($D37,'Prog Assums'!$N$5:$AM$225,12, FALSE),"") -> 80m2 | CN37: =IF($S37>0,VLOOKUP($D37,'Prog Assums'!$N$5:$AM$225,13, FALSE),"") -> 0 | CP37: =IF(U37>0,VLOOKUP(D37,'Prog Assums'!$N$7:$T$175,7,FALSE),"") -> T | CQ37: =VLOOKUP(D37,'Prog Assums'!$N$6:$Q$232,3,0) -> 12.5 | CR37: =VLOOKUP(D37,'Prog Assums'!$N$6:$Q$232,4,0) -> -20 | CS37: 27 | CT37: 27 | CU37: 27 | CV37: 0 | CW37: 27 | CX37: 27 | CY37: 27 | CZ37: 0 | DA37: 30 | DM37: =DC37*(DD37+DK37+DL37) -> 0 | DN37: =VLOOKUP($C37,'Prog Assums'!$U$5:$AI$290,11,FALSE) -> 75 | DO37: =VLOOKUP($C37,'Prog Assums'!$U$5:$AI$290,12,FALSE) -> - | DP37: =IF(VLOOKUP($C37,'Prog Assums'!$U$5:$AI$290,13,FALSE)="AS SOA",$AI37,VLOOKUP($C37,'Prog Assums'!$U$5:$AI$290,13,FALSE)) -> 80 | DQ37: =VLOOKUP($C37,'Prog Assums'!$U$5:$AI$290,14,FALSE) -> - | DR37: =VLOOKUP($C37,'Prog Assums'!$U$5:$AI$290,15,FALSE) -> 120 | DS37: =IF(ISERROR((SUM($EB37,$EH37,$EN37,$EU37)/SUM($EA37,$EG37,$EM37,$ET37)-$S37))=TRUE,0,IF($U37=0,0,(SUM($EB37,$EH37,$EN37,$EU37)/SUM($EA37,$EG37,$EM37,$ET37)-$S37))) -> 0 | DU37: =SUM($EA37,$EG37,$EM37,$ET37)-$U37 -> -1 | DV37: =SUM($EU37,$EN37,$EH37,$EB37)-$V37-$Y37 -> -85 | DY37: 0 | EA37: 0 | EB37: =EA37*DY37 -> 0 | EE37: 0 | EG37: 0 | EH37: =EG37*EE37 -> 0 | EK37: =IF(EN37>0,SUM(EN37/EM37),0) -> 0 | EM37: =COUNTIFS($EY$2:$YI$2,'Prog Assums'!$B$125,$EY37:$YI37,">0") -> 0 | EN37: =SUMIF($EY$2:$YI$2,'Prog Assums'!$B$125,$EY37:$YI37) -> 0 | ER37: =IF(EU37>0,SUM(EU37/ET37),0) -> 0 | ET37: =COUNTIFS($EY$2:$YI$2,'Prog Assums'!$B$126,$EY37:$YI37,">0") -> 0 | EU37: =SUMIF($EY$2:$YI$2,'Prog Assums'!$B$126,$EY37:$YI37) -> 0
A38: =IF($D38="-","",VLOOKUP($D38,'Prog Assums'!$N$5:$X$225,10, FALSE)) ->  | C38: =IF($D38="-","",VLOOKUP($D38,'Prog Assums'!$N$5:$X$225,8, FALSE)) ->  | D38: - | M38: =IF(D38="","",_xlfn.XLOOKUP(D38,'Prog Assums'!$N$7:$N$229,'Prog Assums'!$AQ$7:$AQ$229,"")) -> - | N38: =CONCATENATE(M38,S38) -> -0 | O38: =IF(VLOOKUP(D38,'Prog Assums'!N$5:V$231,9,FALSE)>0,"retained","") ->  | Q38: =IF(S38>0,IF(D38="dining area",ROUND((S38-3)/0.95,0),MINA(30,ROUND((S38-4)/1.7,0))),"") ->  | S38: =VLOOKUP(D38,'Prog Assums'!N$5:U$207,5,FALSE) -> 0 | U38: =AK38 -> 0 | V38: =(S38*U38)-Y38 -> 0 | Y38: =IF(D38="swimming pool (existing)",S38,0) -> 0 | AA38: =IF(O38="retained",V38+Y38,IF(O38="refurb'ed",V38+Y38,0)) -> 0 | AS38: =MAXA(0,(AI38*AK38)-AT38) -> 0 | AU38: =AC35*0.6 -> 86.4 | AV38: needed for 2/3 of pupils to eat cold meals | BE38: =IF(ISERROR(AVERAGEIF('Individual Spaces'!F:F,$N38,'Individual Spaces'!K:K))=TRUE," ",AVERAGEIF('Individual Spaces'!F:F,$N38,'Individual Spaces'!K:K)) ->  | BG38: =COUNTIF('Individual Spaces'!F:F,'Primary SoA'!$N38) -> 0 | BH38: =IF(ISERROR((BE38*BG38)=TRUE),"",BE38*BG38) ->  | BJ38: =IF(ISERROR(BH38-$Y38-$V38=TRUE),"",BH38-$Y38-$V38) ->  | BK38: =BG38-$U38 -> 0 | BM38: 0 | BU38: =U38 -> 0 | CM38: =IF($S38>0,VLOOKUP($D38,'Prog Assums'!$N$5:$AM$225,12, FALSE),"") ->  | CN38: =IF($S38>0,VLOOKUP($D38,'Prog Assums'!$N$5:$AM$225,13, FALSE),"") ->  | CP38: =IF(U38>0,VLOOKUP(D38,'Prog Assums'!$N$7:$T$175,7,FALSE),"") ->  | CQ38: =VLOOKUP(D38,'Prog Assums'!$N$6:$Q$232,3,0) -> 0 | CR38: =VLOOKUP(D38,'Prog Assums'!$N$6:$Q$232,4,0) -> 0 | CS38: 0 | CT38: 0 | CU38: 0 | CV38: 0 | CW38: 0 | CX38: 0 | CY38: 0 | CZ38: 0 | DM38: =DC38*(DD38+DK38+DL38) -> 0 | DN38: =VLOOKUP($C38,'Prog Assums'!$U$5:$AI$290,11,FALSE) ->  | DO38: =VLOOKUP($C38,'Prog Assums'!$U$5:$AI$290,12,FALSE) ->  | DP38: =IF(VLOOKUP($C38,'Prog Assums'!$U$5:$AI$290,13,FALSE)="AS SOA",$AI38,VLOOKUP($C38,'Prog Assums'!$U$5:$AI$290,13,FALSE)) ->  | DQ38: =VLOOKUP($C38,'Prog Assums'!$U$5:$AI$290,14,FALSE) ->  | DR38: =VLOOKUP($C38,'Prog Assums'!$U$5:$AI$290,15,FALSE) ->  | DS38: =IF(ISERROR((SUM($EB38,$EH38,$EN38,$EU38)/SUM($EA38,$EG38,$EM38,$ET38)-$S38))=TRUE,0,IF($U38=0,0,(SUM($EB38,$EH38,$EN38,$EU38)/SUM($EA38,$EG38,$EM38,$ET38)-$S38))) -> 0 | DU38: =SUM($EA38,$EG38,$EM38,$ET38)-$U38 -> 0 | DV38: =SUM($EU38,$EN38,$EH38,$EB38)-$V38-$Y38 -> 0 | DY38: 0 | EA38: 0 | EB38: =EA38*DY38 -> 0 | EE38: 0 | EG38: 0 | EH38: =EG38*EE38 -> 0 | EK38: =IF(EN38>0,SUM(EN38/EM38),0) -> 0 | EM38: =COUNTIFS($EY$2:$YI$2,'Prog Assums'!$B$125,$EY38:$YI38,">0") -> 0 | EN38: =SUMIF($EY$2:$YI$2,'Prog Assums'!$B$125,$EY38:$YI38) -> 0 | ER38: =IF(EU38>0,SUM(EU38/ET38),0) -> 0 | ET38: =COUNTIFS($EY$2:$YI$2,'Prog Assums'!$B$126,$EY38:$YI38,">0") -> 0 | EU38: =SUMIF($EY$2:$YI$2,'Prog Assums'!$B$126,$EY38:$YI38) -> 0
D39: TOTAL AREA | L39: BB103 range | M39: BB103 range | N39: BB103 range | O39: =ROUND(100+(Q10*0.3),0) -> 226 | P39: to | Q39: =ROUND(125+(Q10*0.35),0) -> 272 | V39: =SUM(V35:V38) -> 235 | Y39: =SUM(Y35:Y38) -> 0 | AA39: =SUM(AA35:AA38) -> 0 | AC39: =IF(V39<O39,"ERROR: total area for category is too low",IF(V39>Q39,"WARNING: total area for category is high","OK: area within BB103 range")) -> OK: area within BB103 range | AI39: =SUM(AS35:AS38) -> 235 | AK39: =SUM(AT35:AT38) -> 0 | AS39: =SUM(AS35:AS38) -> 235 | AT39: =SUM(AT35:AT38) -> 0 | BH39: =SUM(BH35:BH38) -> 0 | BJ39: =BH39-$Y39-$V39 -> -235 | BO39: =SUM(BO35:BO38) -> 0 | BQ39: =SUM(BQ35:BQ38) -> 0 | BS39: =SUM(BS35:BS38) -> 0 | BU39: =SUM(BU35:BU38) -> 2 | BW39: =SUM(BW35:BW38) -> 0 | BY39: =SUM(BY35:BY38) -> 0 | CA39: =SUM(CA35:CA38) -> 0 | CC39: =SUM(CC35:CC38) -> 0 | CE39: =SUM(CE35:CE38) -> 0 | CG39: =SUM(CG35:CG38) -> 0 | CI39: =SUM(CI35:CI38) -> 0 | CK39: =SUM(CK35:CK38) -> 0 | CM39: =IF($S39>0,VLOOKUP($D39,'Prog Assums'!$N$5:$AM$225,12, FALSE),"") ->  | CN39: =IF($S39>0,VLOOKUP($D39,'Prog Assums'!$N$5:$AM$225,13, FALSE),"") ->  | DV39: =SUM(DV35:DV38) -> -235 | EB39: =SUM(EB35:EB38) -> 0 | EH39: =SUM(EH35:EH38) -> 0 | EN39: =SUM(EN35:EN38) -> 0 | EU39: =SUM(EU35:EU38) -> 0
CM40: =IF($S40>0,VLOOKUP($D40,'Prog Assums'!$N$5:$AM$225,12, FALSE),"") ->  | CN40: =IF($S40>0,VLOOKUP($D40,'Prog Assums'!$N$5:$AM$225,13, FALSE),"") ->  | DM40: =SUM(DM37:DM38) -> 0
C41: Learning Resource Areas | AC41: library options | AG41: primary library | CM41: =IF($S41>0,VLOOKUP($C41,'Prog Assums'!$N$5:$AM$225,12, FALSE),"") ->  | CN41: =IF($S41>0,VLOOKUP($C41,'Prog Assums'!$N$5:$AM$225,13, FALSE),"") ->  | DM41: =SUM(DM38:DM39) -> 0
A42: =IF($D42="-","",VLOOKUP($D42,'Prog Assums'!$N$5:$X$225,10, FALSE)) -> LIB01 | C42: =IF($D42="-","",VLOOKUP($D42,'Prog Assums'!$N$5:$X$225,8, FALSE)) -> LIB01 | D42: =IF(AG41="infant & junior libraries","School libraries (infant)",IF(K6>0,"School libraries (primary)","School libraries (infant)")) -> School libraries (primary) | M42: =IF(D42="","",_xlfn.XLOOKUP(D42,'Prog Assums'!$N$7:$N$229,'Prog Assums'!$AQ$7:$AQ$229,"")) -> School library (primary) | N42: =CONCATENATE(M42,S42) -> School library (primary)34 | Q42: =ROUND((S42-VLOOKUP(AU42,'Prog Assums'!$E$39:$I$54,2,FALSE))/VLOOKUP(AU42,'Prog Assums'!$E$39:$I$54,3,FALSE),0) -> 20 | S42: =AI42 -> 34 | U42: =AK42 -> 1 | V42: =(S42*U42)-Y42 -> 34 | AA42: =IF(O42="retained",V42+Y42,IF(O42="refurb'ed",V42+Y42,0)) -> 0 | AC42: =ROUND(IF(Q10>105,9,8)+(Q10*0.05),0) -> 30 | AD42: m2 minimum recommended | AI42: =ROUNDDOWN(-1+ROUNDUP((AC42+1)/7,0)*7,0) -> 34 | AK42: 1 | AS42: =MAXA(0,(AI42*AK42)-AT42) -> 34 | AU42: B | BE42: =IF(ISERROR(AVERAGEIF('Individual Spaces'!F:F,$N42,'Individual Spaces'!K:K))=TRUE," ",AVERAGEIF('Individual Spaces'!F:F,$N42,'Individual Spaces'!K:K)) ->  | BG42: =COUNTIF('Individual Spaces'!F:F,'Primary SoA'!$N42) -> 1 | BH42: =IF(ISERROR((BE42*BG42)=TRUE),"",BE42*BG42) ->  | BJ42: =IF(ISERROR(BH42-$Y42-$V42=TRUE),"",BH42-$Y42-$V42) ->  | BK42: =BG42-$U42 -> 0 | BM42: 1 | BY42: =U42 -> 1 | CM42: =IF($S42>0,VLOOKUP($D42,'Prog Assums'!$N$5:$AM$225,12, FALSE),"") -> varies | CN42: =IF($S42>0,VLOOKUP($D42,'Prog Assums'!$N$5:$AM$225,13, FALSE),"") -> 0 | CP42: =IF(U42>0,VLOOKUP(D42,'Prog Assums'!$N$7:$T$175,7,FALSE),"") -> T | CQ42: 1.5 | CR42: 4 | CS42: =IF(CP42="E",0,IF(U42=0,0,MAXA(1,ROUNDUP((S42/CQ42)-CR42,0)))) -> 19 | CT42: =IF(CS42>14,IF(CS42<31,CS42,ROUNDDOWN(CS42/30,0)*30),0) -> 19 | CU42: =IF(S42>0,(V42/S42)*CT42,0) -> 19 | CV42: =IF(CS42>0,(V42/S42)*CS42,0)-CU42 -> 0 | CW42: =IF(CP42="E",0,IF(AK42=0,0,MAXA(1,ROUNDUP((AI42/CQ42)-CR42,0)))) -> 19 | CX42: =IF(CW42>14,IF(CW42<31,CW42,ROUNDDOWN(CW42/30,0)*30),0) -> 19 | CY42: =IF(AK42>0,(AS42/AI42)*CX42,0) -> 19 | CZ42: =IF(CW42>0,(AS42/AI42)*CW42,0)-CY42 -> 0 | DA42: N/10 | DN42: =VLOOKUP($C42,'Prog Assums'!$U$5:$AI$290,11,FALSE) -> 6 | DO42: =VLOOKUP($C42,'Prog Assums'!$U$5:$AI$290,12,FALSE) -> - | DP42: =IF(VLOOKUP($C42,'Prog Assums'!$U$5:$AI$290,13,FALSE)="AS SOA",$AI42,VLOOKUP($C42,'Prog Assums'!$U$5:$AI$290,13,FALSE)) -> 34 | DQ42: =VLOOKUP($C42,'Prog Assums'!$U$5:$AI$290,14,FALSE) -> - | DR42: =VLOOKUP($C42,'Prog Assums'!$U$5:$AI$290,15,FALSE) -> 50 | DS42: =IF(ISERROR((SUM($EB42,$EH42,$EN42,$EU42)/SUM($EA42,$EG42,$EM42,$ET42)-$S42))=TRUE,0,IF($U42=0,0,(SUM($EB42,$EH42,$EN42,$EU42)/SUM($EA42,$EG42,$EM42,$ET42)-$S42))) -> 0 | DU42: =SUM($EA42,$EG42,$EM42,$ET42)-$U42 -> -1 | DV42: =SUM($EU42,$EN42,$EH42,$EB42)-$V42-$Y42 -> -34 | DY42: 34 | EB42: =EA42*DY42 -> 0 | EE42: 0 | EG42: 0 | EH42: =EG42*EE42 -> 0 | EK42: =IF(EN42>0,SUM(EN42/EM42),0) -> 0 | EM42: =COUNTIFS($EY$2:$YI$2,'Prog Assums'!$B$125,$EY42:$YI42,">0") -> 0 | EN42: =SUMIF($EY$2:$YI$2,'Prog Assums'!$B$125,$EY42:$YI42) -> 0 | ER42: =IF(EU42>0,SUM(EU42/ET42),0) -> 0 | ET42: =COUNTIFS($EY$2:$YI$2,'Prog Assums'!$B$126,$EY42:$YI42,">0") -> 0 | EU42: =SUMIF($EY$2:$YI$2,'Prog Assums'!$B$126,$EY42:$YI42) -> 0
A43: =IF($D43="-","",VLOOKUP($D43,'Prog Assums'!$N$5:$X$225,10, FALSE)) ->  | C43: =IF($D43="-","",VLOOKUP($D43,'Prog Assums'!$N$5:$X$225,8, FALSE)) ->  | D43: - | M43: =IF(D43="","",_xlfn.XLOOKUP(D43,'Prog Assums'!$N$7:$N$229,'Prog Assums'!$AQ$7:$AQ$229,"")) -> - | N43: =CONCATENATE(M43,S43) -> -0 | O43: =IF(VLOOKUP(D43,'Prog Assums'!N$5:V$231,9,FALSE)>0,"retained","") ->  | Q43: =IF(S43>0,ROUND((S43-VLOOKUP(AU43,'Prog Assums'!$E$39:$I$54,2,FALSE))/VLOOKUP(AU43,'Prog Assums'!$E$39:$I$54,3,FALSE),0),"-") -> - | S43: =VLOOKUP(D43,'Prog Assums'!N$5:U$207,5,FALSE) -> 0 | U43: =AK43 -> 0 | V43: =(S43*U43)-Y43 -> 0 | Y43: =IF(K$14>0,S43,0) -> 0 | AA43: =IF(O43="retained",V43+Y43,IF(O43="refurb'ed",V43+Y43,0)) -> 0 | AI43: =IF(K13>0,16,0) -> 0 | AK43: =IF(K13>0,1,0) -> 0 | AS43: =MAXA(0,(AI43*AK43)-AT43) -> 0 | AT43: =IF(K$14>0,AI43,0) -> 0 | AU43: =VLOOKUP(D43,'Prog Assums'!$N$79:$O$96,2,FALSE) -> 0 | BE43: =IF(ISERROR(AVERAGEIF('Individual Spaces'!F:F,$N43,'Individual Spaces'!K:K))=TRUE," ",AVERAGEIF('Individual Spaces'!F:F,$N43,'Individual Spaces'!K:K)) ->  | BG43: =COUNTIF('Individual Spaces'!F:F,'Primary SoA'!$N43) -> 0 | BH43: =IF(ISERROR((BE43*BG43)=TRUE),"",BE43*BG43) ->  | BJ43: =IF(ISERROR(BH43-$Y43-$V43=TRUE),"",BH43-$Y43-$V43) ->  | BK43: =BG43-$U43 -> 0 | BM43: =SUM(BO43:CK43) -> 0 | BW43: =U43 -> 0 | BY43: =U43-BW43 -> 0 | CM43: =IF($S43>0,VLOOKUP($D43,'Prog Assums'!$N$5:$AM$225,12, FALSE),"") ->  | CN43: =IF($S43>0,VLOOKUP($D43,'Prog Assums'!$N$5:$AM$225,13, FALSE),"") ->  | CP43: =IF(U43>0,VLOOKUP(D43,'Prog Assums'!$N$7:$T$175,7,FALSE),"") ->  | CQ43: =VLOOKUP(D43,'Prog Assums'!$N$6:$Q$232,3,0) -> 0 | CR43: =VLOOKUP(D43,'Prog Assums'!$N$6:$Q$232,4,0) -> 0 | CS43: 0 | CT43: 0 | CU43: 0 | CV43: 0 | CW43: 0 | CX43: =IF(CW43>14,IF(CW43<31,CW43,ROUNDDOWN(CW43/30,0)*30),0) -> 0 | CY43: =IF(AK43>0,(AS43/AI43)*CX43,0) -> 0 | CZ43: =IF(CW43>0,(AS43/AI43)*CW43,0)-CY43 -> 0 | DM43: =DC43*(DD43+DK43+DL43) -> 0 | DN43: =VLOOKUP($C43,'Prog Assums'!$U$5:$AI$290,11,FALSE) ->  | DO43: =VLOOKUP($C43,'Prog Assums'!$U$5:$AI$290,12,FALSE) ->  | DP43: =IF(VLOOKUP($C43,'Prog Assums'!$U$5:$AI$290,13,FALSE)="AS SOA",$AI43,VLOOKUP($C43,'Prog Assums'!$U$5:$AI$290,13,FALSE)) ->  | DQ43: =VLOOKUP($C43,'Prog Assums'!$U$5:$AI$290,14,FALSE) ->  | DR43: =VLOOKUP($C43,'Prog Assums'!$U$5:$AI$290,15,FALSE) ->  | DS43: =IF(ISERROR((SUM($EB43,$EH43,$EN43,$EU43)/SUM($EA43,$EG43,$EM43,$ET43)-$S43))=TRUE,0,IF($U43=0,0,(SUM($EB43,$EH43,$EN43,$EU43)/SUM($EA43,$EG43,$EM43,$ET43)-$S43))) -> 0 | DU43: =SUM($EA43,$EG43,$EM43,$ET43)-$U43 -> 0 | DV43: =SUM($EU43,$EN43,$EH43,$EB43)-$V43-$Y43 -> 0 | DY43: 0 | EA43: 0 | EB43: =EA43*DY43 -> 0 | EE43: 0 | EG43: 0 | EH43: =EG43*EE43 -> 0 | EK43: =IF(EN43>0,SUM(EN43/EM43),0) -> 0 | EM43: =COUNTIFS($EY$2:$YI$2,'Prog Assums'!$B$125,$EY43:$YI43,">0") -> 0 | EN43: =SUMIF($EY$2:$YI$2,'Prog Assums'!$B$125,$EY43:$YI43) -> 0 | ER43: =IF(EU43>0,SUM(EU43/ET43),0) -> 0 | ET43: =COUNTIFS($EY$2:$YI$2,'Prog Assums'!$B$126,$EY43:$YI43,">0") -> 0 | EU43: =SUMIF($EY$2:$YI$2,'Prog Assums'!$B$126,$EY43:$YI43) -> 0
A44: =IF($D44="-","",VLOOKUP($D44,'Prog Assums'!$N$5:$X$225,10, FALSE)) ->  | C44: =IF($D44="-","",VLOOKUP($D44,'Prog Assums'!$N$5:$X$225,8, FALSE)) ->  | D44: - | M44: =IF(D44="","",_xlfn.XLOOKUP(D44,'Prog Assums'!$N$7:$N$229,'Prog Assums'!$AQ$7:$AQ$229,"")) -> - | N44: =CONCATENATE(M44,S44) -> -0 | O44: =IF(VLOOKUP(D44,'Prog Assums'!N$5:V$231,9,FALSE)>0,"retained","") ->  | Q44: =IF(S44>0,ROUND((S44-VLOOKUP(AU44,'Prog Assums'!$E$39:$I$54,2,FALSE))/VLOOKUP(AU44,'Prog Assums'!$E$39:$I$54,3,FALSE),0),"-") -> - | S44: =VLOOKUP(D44,'Prog Assums'!N$5:U$207,5,FALSE) -> 0 | U44: =AK44 -> 0 | V44: =(S44*U44)-Y44 -> 0 | Y44: =IF(K$14>0,S44,0) -> 0 | AA44: =IF(O44="retained",V44+Y44,IF(O44="refurb'ed",V44+Y44,0)) -> 0 | AI44: =IF(K14>0,16,0) -> 0 | AK44: =IF(K14>0,1,0) -> 0 | AS44: =MAXA(0,(AI44*AK44)-AT44) -> 0 | AT44: =IF(K$14>0,AI44,0) -> 0 | AU44: =VLOOKUP(D44,'Prog Assums'!$N$79:$O$96,2,FALSE) -> 0 | BE44: =IF(ISERROR(AVERAGEIF('Individual Spaces'!F:F,$N44,'Individual Spaces'!K:K))=TRUE," ",AVERAGEIF('Individual Spaces'!F:F,$N44,'Individual Spaces'!K:K)) ->  | BG44: =COUNTIF('Individual Spaces'!F:F,'Primary SoA'!$N44) -> 0 | BH44: =IF(ISERROR((BE44*BG44)=TRUE),"",BE44*BG44) ->  | BJ44: =IF(ISERROR(BH44-$Y44-$V44=TRUE),"",BH44-$Y44-$V44) ->  | BK44: =BG44-$U44 -> 0 | BM44: =SUM(BO44:CK44) -> 0 | BW44: =U44 -> 0 | BY44: =U44-BW44 -> 0 | CM44: =IF($S44>0,VLOOKUP($D44,'Prog Assums'!$N$5:$AM$225,12, FALSE),"") ->  | CN44: =IF($S44>0,VLOOKUP($D44,'Prog Assums'!$N$5:$AM$225,13, FALSE),"") ->  | CP44: =IF(U44>0,VLOOKUP(D44,'Prog Assums'!$N$7:$T$175,7,FALSE),"") ->  | CQ44: =VLOOKUP(D44,'Prog Assums'!$N$6:$Q$232,3,0) -> 0 | CR44: =VLOOKUP(D44,'Prog Assums'!$N$6:$Q$232,4,0) -> 0 | CS44: 0 | CT44: 0 | CU44: 0 | CV44: 0 | CW44: 0 | CX44: =IF(CW44>14,IF(CW44<31,CW44,ROUNDDOWN(CW44/30,0)*30),0) -> 0 | CY44: =IF(AK44>0,(AS44/AI44)*CX44,0) -> 0 | CZ44: =IF(CW44>0,(AS44/AI44)*CW44,0)-CY44 -> 0 | DM44: =DC44*(DD44+DK44+DL44) -> 0 | DN44: =VLOOKUP($C44,'Prog Assums'!$U$5:$AI$290,11,FALSE) ->  | DO44: =VLOOKUP($C44,'Prog Assums'!$U$5:$AI$290,12,FALSE) ->  | DP44: =IF(VLOOKUP($C44,'Prog Assums'!$U$5:$AI$290,13,FALSE)="AS SOA",$AI44,VLOOKUP($C44,'Prog Assums'!$U$5:$AI$290,13,FALSE)) ->  | DQ44: =VLOOKUP($C44,'Prog Assums'!$U$5:$AI$290,14,FALSE) ->  | DR44: =VLOOKUP($C44,'Prog Assums'!$U$5:$AI$290,15,FALSE) ->  | DS44: =IF(ISERROR((SUM($EB44,$EH44,$EN44,$EU44)/SUM($EA44,$EG44,$EM44,$ET44)-$S44))=TRUE,0,IF($U44=0,0,(SUM($EB44,$EH44,$EN44,$EU44)/SUM($EA44,$EG44,$EM44,$ET44)-$S44))) -> 0 | DU44: =SUM($EA44,$EG44,$EM44,$ET44)-$U44 -> 0 | DV44: =SUM($EU44,$EN44,$EH44,$EB44)-$V44-$Y44 -> 0 | DY44: 0 | EA44: 0 | EB44: =EA44*DY44 -> 0 | EE44: 0 | EG44: 0 | EH44: =EG44*EE44 -> 0 | EK44: =IF(EN44>0,SUM(EN44/EM44),0) -> 0 | EM44: =COUNTIFS($EY$2:$YI$2,'Prog Assums'!$B$125,$EY44:$YI44,">0") -> 0 | EN44: =SUMIF($EY$2:$YI$2,'Prog Assums'!$B$125,$EY44:$YI44) -> 0 | ER44: =IF(EU44>0,SUM(EU44/ET44),0) -> 0 | ET44: =COUNTIFS($EY$2:$YI$2,'Prog Assums'!$B$126,$EY44:$YI44,">0") -> 0 | EU44: =SUMIF($EY$2:$YI$2,'Prog Assums'!$B$126,$EY44:$YI44) -> 0
A45: =IF($D45="-","",VLOOKUP($D45,'Prog Assums'!$N$5:$X$225,10, FALSE)) -> SEN02 | C45: =IF($D45="-","",VLOOKUP($D45,'Prog Assums'!$N$5:$X$225,8, FALSE)) -> SEN02 | D45: Medical treatment (MI) rooms | M45: =IF(D45="","",_xlfn.XLOOKUP(D45,'Prog Assums'!$N$7:$N$229,'Prog Assums'!$AQ$7:$AQ$229,"")) -> Medical treatment (MI) room | N45: Medical treatment (MI) room12 | O45: =IF(VLOOKUP(D45,'Prog Assums'!N$5:V$231,9,FALSE)>0,"retained","") ->  | Q45: =ROUND((S45-VLOOKUP(AU45,'Prog Assums'!$E$39:$I$54,2,FALSE))/VLOOKUP(AU45,'Prog Assums'!$E$39:$I$54,3,FALSE),0) -> 5 | S45: =AI45 -> 12 | U45: 1 | V45: 12 | Y45: =MAXA(0,(U45-1)*S45) -> 0 | AA45: 0 | AC45: =IF(U45>0,IF(Q10>105,12,9),"NOTE") -> 12 | AD45: =IF(V45>0,"m2 min recommended","MI room must be provided") -> m2 min recommended | AI45: 12 | AK45: =1+IF(K$14>0,1,0) -> 1 | AS45: 12 | AT45: =(AK45-1)*AI45 -> 0 | AU45: C | BE45: =IF(ISERROR(AVERAGEIF('Individual Spaces'!F:F,$N45,'Individual Spaces'!K:K))=TRUE," ",AVERAGEIF('Individual Spaces'!F:F,$N45,'Individual Spaces'!K:K)) ->  | BG45: =COUNTIF('Individual Spaces'!F:F,'Primary SoA'!$N45) -> 1 | BK45: 0 | BM45: 1 | BW45: =IF(K$14>0,1,0) -> 0 | BY45: =U45-BW45 -> 1 | CM45: =IF($S45>0,VLOOKUP($D45,'Prog Assums'!$N$5:$AM$225,12, FALSE),"") -> 12m2 for up to 4 | CN45: =IF($S45>0,VLOOKUP($D45,'Prog Assums'!$N$5:$AM$225,13, FALSE),"") -> B | CP45: =IF(U45>0,VLOOKUP(D45,'Prog Assums'!$N$7:$T$175,7,FALSE),"") -> 0 | CQ45: 1.5 | CR45: 4 | CS45: 4 | CT45: 0 | CU45: 0 | CV45: 4 | CW45: 4 | CX45: 0 | CY45: 0 | CZ45: 4 | DG45: 1 | DH45: 1 | DI45: 1 | DJ45: 1 | DM45: =DC45*(DD45+DK45+DL45) -> 0 | DN45: =VLOOKUP($C45,'Prog Assums'!$U$5:$AI$290,11,FALSE) -> 6 | DO45: =VLOOKUP($C45,'Prog Assums'!$U$5:$AI$290,12,FALSE) -> - | DP45: =IF(VLOOKUP($C45,'Prog Assums'!$U$5:$AI$290,13,FALSE)="AS SOA",$AI45,VLOOKUP($C45,'Prog Assums'!$U$5:$AI$290,13,FALSE)) -> 12 | DQ45: =VLOOKUP($C45,'Prog Assums'!$U$5:$AI$290,14,FALSE) -> - | DR45: =VLOOKUP($C45,'Prog Assums'!$U$5:$AI$290,15,FALSE) -> 41 | DS45: 0 | DU45: -1 | DV45: -12 | DY45: 0 | EA45: 0 | EB45: 0 | EE45: 0 | EG45: 0 | EH45: 0 | EK45: 0 | EM45: =COUNTIFS($EY$2:$YI$2,'Prog Assums'!$B$125,$EY45:$YI45,">0") -> 0 | EN45: =SUMIF($EY$2:$YI$2,'Prog Assums'!$B$125,$EY45:$YI45) -> 0 | ER45: 0 | ET45: =COUNTIFS($EY$2:$YI$2,'Prog Assums'!$B$126,$EY45:$YI45,">0") -> 0 | EU45: =SUMIF($EY$2:$YI$2,'Prog Assums'!$B$126,$EY45:$YI45) -> 0
A46: =IF($D46="-","",VLOOKUP($D46,'Prog Assums'!$N$5:$X$225,10, FALSE)) -> SEN20 | C46: =IF($D46="-","",VLOOKUP($D46,'Prog Assums'!$N$5:$X$225,8, FALSE)) -> SEN20 | D46: SEN resource spaces | M46: =IF(D46="","",_xlfn.XLOOKUP(D46,'Prog Assums'!$N$7:$N$229,'Prog Assums'!$AQ$7:$AQ$229,"")) -> SEN resource space | N46: SEN resource space12 | O46: =IF(VLOOKUP(D46,'Prog Assums'!N$5:V$231,9,FALSE)>0,"retained","") ->  | Q46: =ROUND((S46-VLOOKUP(AU46,'Prog Assums'!$E$39:$I$54,2,FALSE))/VLOOKUP(AU46,'Prog Assums'!$E$39:$I$54,3,FALSE),0) -> 5 | S46: =AI46 -> 12 | U46: 1 | V46: 12 | Y46: =MAXA(0,IF(K$14>0,(U46-1)*S46,0)) -> 0 | AA46: 0 | AC46: group room suitable for SEN/ multi-agency | AI46: =IF(Q10>105,12,9) -> 12 | AK46: =1+IF(K$14>0,ROUND(K14/12,0),0) -> 1 | AS46: 12 | AT46: =IF(K$14>0,(AK46-1)*AI46,0) -> 0 | AU46: C | BE46: =IF(ISERROR(AVERAGEIF('Individual Spaces'!F:F,$N46,'Individual Spaces'!K:K))=TRUE," ",AVERAGEIF('Individual Spaces'!F:F,$N46,'Individual Spaces'!K:K)) ->  | BG46: =COUNTIF('Individual Spaces'!F:F,'Primary SoA'!$N46) -> 1 | BK46: 0 | BM46: 1 | BW46: =IF(K$14>0,1,0) -> 0 | BY46: =U46-BW46 -> 1 | CM46: =IF($S46>0,VLOOKUP($D46,'Prog Assums'!$N$5:$AM$225,12, FALSE),"") -> 12m2 for up to 4 | CN46: =IF($S46>0,VLOOKUP($D46,'Prog Assums'!$N$5:$AM$225,13, FALSE),"") -> B | CP46: =IF(U46>0,VLOOKUP(D46,'Prog Assums'!$N$7:$T$175,7,FALSE),"") -> 0 | CQ46: 1.5 | CR46: 4 | CS46: 4 | CT46: 0 | CU46: 0 | CV46: 4 | CW46: 4 | CX46: 0 | CY46: 0 | CZ46: 4 | DA46: 8 | DG46: 1 | DH46: 1 | DI46: 1 | DJ46: 1 | DK46: add | DM46: =DC42 -> 0 | DN46: =VLOOKUP($C46,'Prog Assums'!$U$5:$AI$290,11,FALSE) -> 12 | DO46: =VLOOKUP($C46,'Prog Assums'!$U$5:$AI$290,12,FALSE) -> - | DP46: =IF(VLOOKUP($C46,'Prog Assums'!$U$5:$AI$290,13,FALSE)="AS SOA",$AI46,VLOOKUP($C46,'Prog Assums'!$U$5:$AI$290,13,FALSE)) -> 11 | DQ46: =VLOOKUP($C46,'Prog Assums'!$U$5:$AI$290,14,FALSE) -> - | DR46: =VLOOKUP($C46,'Prog Assums'!$U$5:$AI$290,15,FALSE) -> 41 | DS46: 0 | DU46: -1 | DV46: -12 | DY46: 12 | EB46: 0 | EE46: 0 | EG46: 0 | EH46: 0 | EK46: 0 | EM46: =COUNTIFS($EY$2:$YI$2,'Prog Assums'!$B$125,$EY46:$YI46,">0") -> 0 | EN46: =SUMIF($EY$2:$YI$2,'Prog Assums'!$B$125,$EY46:$YI46) -> 0 | ER46: 0 | ET46: =COUNTIFS($EY$2:$YI$2,'Prog Assums'!$B$126,$EY46:$YI46,">0") -> 0 | EU46: =SUMIF($EY$2:$YI$2,'Prog Assums'!$B$126,$EY46:$YI46) -> 0
A47: =IF($D47="-","",VLOOKUP($D47,'Prog Assums'!$N$5:$X$225,10, FALSE)) -> RES00 | C47: =IF($D47="-","",VLOOKUP($D47,'Prog Assums'!$N$5:$X$225,8, FALSE)) -> RES00 | D47: Small group rooms | M47: =IF(D47="","",_xlfn.XLOOKUP(D47,'Prog Assums'!$N$7:$N$229,'Prog Assums'!$AQ$7:$AQ$229,"")) -> Small group room | N47: Small group room9 | O47: =IF(VLOOKUP(D47,'Prog Assums'!N$5:V$231,9,FALSE)>0,"retained","") ->  | Q47: =IF(S47>0,ROUND((S47-VLOOKUP(AU47,'Prog Assums'!$E$39:$I$54,2,FALSE))/VLOOKUP(AU47,'Prog Assums'!$E$39:$I$54,3,FALSE),0),"-") -> 4 | S47: =VLOOKUP(D47,'Prog Assums'!N$5:U$207,5,FALSE) -> 9 | U47: 3 | V47: 27 | Y47: =MAXA(0,IF(K$14>0,(U47-1)*S47,0)) -> 0 | AA47: 0 | AI47: 9 | AK47: =ROUNDDOWN(Q10/105,0)-1 -> 3 | AS47: 27 | AU47: =VLOOKUP(D47,'Prog Assums'!$N$79:$O$96,2,FALSE) -> B | BE47: =IF(ISERROR(AVERAGEIF('Individual Spaces'!F:F,$N47,'Individual Spaces'!K:K))=TRUE," ",AVERAGEIF('Individual Spaces'!F:F,$N47,'Individual Spaces'!K:K)) ->  | BG47: =COUNTIF('Individual Spaces'!F:F,'Primary SoA'!$N47) -> 3 | BK47: 0 | BM47: 3 | BY47: =U47-BW47 -> 3 | CM47: =IF($S47>0,VLOOKUP($D47,'Prog Assums'!$N$5:$AM$225,12, FALSE),"") -> 9m2 for up to 4 | CN47: =IF($S47>0,VLOOKUP($D47,'Prog Assums'!$N$5:$AM$225,13, FALSE),"") -> A | CP47: =IF(U47>0,VLOOKUP(D47,'Prog Assums'!$N$7:$T$175,7,FALSE),"") -> 0 | CQ47: =VLOOKUP(D47,'Prog Assums'!$N$6:$Q$232,3,0) -> 1.5 | CR47: =VLOOKUP(D47,'Prog Assums'!$N$6:$Q$232,4,0) -> 4 | CS47: 2 | CT47: 0 | CU47: 0 | CV47: 6 | CW47: 2 | CX47: 0 | CY47: 0 | CZ47: 6 | DA47: =ROUND(((DC48-4.5)/1.6),0) -> -3 | DN47: =VLOOKUP($C47,'Prog Assums'!$U$5:$AI$290,11,FALSE) -> 6 | DO47: =VLOOKUP($C47,'Prog Assums'!$U$5:$AI$290,12,FALSE) -> - | DP47: =IF(VLOOKUP($C47,'Prog Assums'!$U$5:$AI$290,13,FALSE)="AS SOA",$AI47,VLOOKUP($C47,'Prog Assums'!$U$5:$AI$290,13,FALSE)) -> 9 | DQ47: =VLOOKUP($C47,'Prog Assums'!$U$5:$AI$290,14,FALSE) -> - | DR47: =VLOOKUP($C47,'Prog Assums'!$U$5:$AI$290,15,FALSE) -> 25 | DS47: 0 | DU47: -3 | DV47: -27 | DY47: 9 | EB47: 0 | EE47: 0 | EG47: 0 | EH47: 0 | EK47: 0 | EM47: =COUNTIFS($EY$2:$YI$2,'Prog Assums'!$B$125,$EY47:$YI47,">0") -> 0 | EN47: =SUMIF($EY$2:$YI$2,'Prog Assums'!$B$125,$EY47:$YI47) -> 0 | ER47: 0 | ET47: =COUNTIFS($EY$2:$YI$2,'Prog Assums'!$B$126,$EY47:$YI47,">0") -> 0 | EU47: =SUMIF($EY$2:$YI$2,'Prog Assums'!$B$126,$EY47:$YI47) -> 0
A48: =IF($D48="-","",VLOOKUP($D48,'Prog Assums'!$N$5:$X$225,10, FALSE)) -> RES00 | C48: =IF($D48="-","",VLOOKUP($D48,'Prog Assums'!$N$5:$X$225,8, FALSE)) -> RES01 | D48: =IF(K8+K12>0,"Small group rooms (nursery)","-") -> Small group rooms (nursery) | M48: =IF(D48="","",_xlfn.XLOOKUP(D48,'Prog Assums'!$N$7:$N$229,'Prog Assums'!$AQ$7:$AQ$229,"")) -> Small group room (nursery) | N48: Small group room (nursery)9 | O48: =IF(VLOOKUP(D48,'Prog Assums'!N$5:V$231,9,FALSE)>0,"retained","") ->  | Q48: =IF(S48>0,ROUND((S48-VLOOKUP(AU48,'Prog Assums'!$E$39:$I$54,2,FALSE))/VLOOKUP(AU48,'Prog Assums'!$E$39:$I$54,3,FALSE),0),"-") -> 4 | S48: =VLOOKUP(D48,'Prog Assums'!N$5:U$207,5,FALSE) -> 9 | U48: 1 | V48: 9 | Y48: =IF(D48="Small group rooms (nursery)",S48*ROUND(K12/33,0),0) -> 0 | AA48: 0 | AI48: =IF(K8+K12>25,9,0) -> 9 | AK48: =IF(K8+K12>25,ROUND(K8/30,0)+ROUND(K12/33,0),0) -> 1 | AS48: 9 | AT48: =IF(D48="small group room (nursery)",AI48*ROUND(K12/33,0),0) -> 0 | AU48: =VLOOKUP(D48,'Prog Assums'!$N$79:$O$96,2,FALSE) -> B | BE48: =IF(ISERROR(AVERAGEIF('Individual Spaces'!F:F,$N48,'Individual Spaces'!K:K))=TRUE," ",AVERAGEIF('Individual Spaces'!F:F,$N48,'Individual Spaces'!K:K)) ->  | BG48: =COUNTIF('Individual Spaces'!F:F,'Primary SoA'!$N48) -> 1 | BK48: 0 | BM48: 1 | BO48: =U48 -> 1 | CM48: =IF($S48>0,VLOOKUP($D48,'Prog Assums'!$N$5:$AM$225,12, FALSE),"") -> 9m2 for up to 4 | CN48: =IF($S48>0,VLOOKUP($D48,'Prog Assums'!$N$5:$AM$225,13, FALSE),"") -> A | CP48: =IF(U48>0,VLOOKUP(D48,'Prog Assums'!$N$7:$T$175,7,FALSE),"") -> E | CQ48: =VLOOKUP(D48,'Prog Assums'!$N$6:$Q$232,3,0) -> 1.5 | CR48: =VLOOKUP(D48,'Prog Assums'!$N$6:$Q$232,4,0) -> 4 | CS48: 0 | CT48: 0 | CU48: 0 | CV48: 0 | CW48: 0 | CX48: 0 | CY48: 0 | CZ48: 0 | DA48: 8 | DM48: =DC48*(DD48+DK48+DL48) -> 0 | DN48: =VLOOKUP($C48,'Prog Assums'!$U$5:$AI$290,11,FALSE) -> 6 | DO48: =VLOOKUP($C48,'Prog Assums'!$U$5:$AI$290,12,FALSE) -> - | DP48: =IF(VLOOKUP($C48,'Prog Assums'!$U$5:$AI$290,13,FALSE)="AS SOA",$AI48,VLOOKUP($C48,'Prog Assums'!$U$5:$AI$290,13,FALSE)) -> 9 | DQ48: =VLOOKUP($C48,'Prog Assums'!$U$5:$AI$290,14,FALSE) -> - | DR48: =VLOOKUP($C48,'Prog Assums'!$U$5:$AI$290,15,FALSE) -> 25 | DS48: 0 | DU48: -1 | DV48: -9 | DY48: 0 | EA48: 0 | EB48: 0 | EE48: 0 | EG48: 0 | EH48: 0 | EK48: 0 | EM48: =COUNTIFS($EY$2:$YI$2,'Prog Assums'!$B$125,$EY48:$YI48,">0") -> 0 | EN48: =SUMIF($EY$2:$YI$2,'Prog Assums'!$B$125,$EY48:$YI48) -> 0 | ER48: 0 | ET48: =COUNTIFS($EY$2:$YI$2,'Prog Assums'!$B$126,$EY48:$YI48,">0") -> 0 | EU48: =SUMIF($EY$2:$YI$2,'Prog Assums'!$B$126,$EY48:$YI48) -> 0
A49: =IF($D49="-","",VLOOKUP($D49,'Prog Assums'!$N$5:$X$225,10, FALSE)) ->  | C49: =IF($D49="-","",VLOOKUP($D49,'Prog Assums'!$N$5:$X$225,8, FALSE)) ->  | D49: =IF(K12>0,"Small group rooms (large SEN etc.)", "-") -> - | M49: =IF(D49="","",_xlfn.XLOOKUP(D49,'Prog Assums'!$N$7:$N$229,'Prog Assums'!$AQ$7:$AQ$229,"")) -> - | N49: -0 | O49: =IF(VLOOKUP(D49,'Prog Assums'!N$5:V$231,9,FALSE)>0,"retained","") ->  | Q49: =IF(S49>0,ROUND((S49-VLOOKUP(AU49,'Prog Assums'!$E$39:$I$54,2,FALSE))/VLOOKUP(AU49,'Prog Assums'!$E$39:$I$54,3,FALSE),0),"-") -> - | S49: =VLOOKUP(D49,'Prog Assums'!N$5:U$207,5,FALSE) -> 0 | U49: 0 | V49: 0 | Y49: =IF(K$14>0,S49,0) -> 0 | AA49: 0 | AI49: =IF(K12>0,16,0) -> 0 | AK49: =IF(K12>0,1,0) -> 0 | AS49: 0 | AT49: =IF(K$14>0,AI49,0) -> 0 | AU49: =VLOOKUP(D49,'Prog Assums'!$N$79:$O$96,2,FALSE) -> 0 | BE49: =IF(ISERROR(AVERAGEIF('Individual Spaces'!F:F,$N49,'Individual Spaces'!K:K))=TRUE," ",AVERAGEIF('Individual Spaces'!F:F,$N49,'Individual Spaces'!K:K)) ->  | BG49: =COUNTIF('Individual Spaces'!F:F,'Primary SoA'!$N49) -> 0 | BK49: 0 | BM49: 0 | BW49: =U49 -> 0 | BY49: =U49-BW49 -> 0 | CM49: =IF($S49>0,VLOOKUP($D49,'Prog Assums'!$N$5:$AM$225,12, FALSE),"") ->  | CN49: =IF($S49>0,VLOOKUP($D49,'Prog Assums'!$N$5:$AM$225,13, FALSE),"") ->  | CP49: =IF(U49>0,VLOOKUP(D49,'Prog Assums'!$N$7:$T$175,7,FALSE),"") ->  | CQ49: =VLOOKUP(D49,'Prog Assums'!$N$6:$Q$232,3,0) -> 0 | CR49: =VLOOKUP(D49,'Prog Assums'!$N$6:$Q$232,4,0) -> 0 | CS49: 0 | CT49: 0 | CU49: 0 | CV49: 0 | CW49: 0 | CX49: 0 | CY49: 0 | CZ49: 0 | DM49: =DC49*(DD49+DK49+DL49) -> 0 | DN49: =VLOOKUP($C49,'Prog Assums'!$U$5:$AI$290,11,FALSE) ->  | DO49: =VLOOKUP($C49,'Prog Assums'!$U$5:$AI$290,12,FALSE) ->  | DP49: =IF(VLOOKUP($C49,'Prog Assums'!$U$5:$AI$290,13,FALSE)="AS SOA",$AI49,VLOOKUP($C49,'Prog Assums'!$U$5:$AI$290,13,FALSE)) ->  | DQ49: =VLOOKUP($C49,'Prog Assums'!$U$5:$AI$290,14,FALSE) ->  | DR49: =VLOOKUP($C49,'Prog Assums'!$U$5:$AI$290,15,FALSE) ->  | DS49: 0 | DU49: 0 | DV49: 0 | DY49: 0 | EA49: 0 | EB49: 0 | EE49: 0 | EG49: 0 | EH49: 0 | EK49: 0 | EM49: =COUNTIFS($EY$2:$YI$2,'Prog Assums'!$B$125,$EY49:$YI49,">0") -> 0 | EN49: =SUMIF($EY$2:$YI$2,'Prog Assums'!$B$125,$EY49:$YI49) -> 0 | ER49: 0 | ET49: =COUNTIFS($EY$2:$YI$2,'Prog Assums'!$B$126,$EY49:$YI49,">0") -> 0 | EU49: =SUMIF($EY$2:$YI$2,'Prog Assums'!$B$126,$EY49:$YI49) -> 0
A50: =IF($D50="-","",VLOOKUP($D50,'Prog Assums'!$N$5:$X$225,10, FALSE)) ->  | C50: =IF($D50="-","",VLOOKUP($D50,'Prog Assums'!$N$5:$X$225,8, FALSE)) ->  | D50: =IF(K14>0,"Small group rooms (large SEN etc.)", "-") -> - | M50: =IF(D50="","",_xlfn.XLOOKUP(D50,'Prog Assums'!$N$7:$N$229,'Prog Assums'!$AQ$7:$AQ$229,"")) -> - | N50: -0 | O50: =IF(VLOOKUP(D50,'Prog Assums'!N$5:V$231,9,FALSE)>0,"retained","") ->  | Q50: =IF(S50>0,ROUND((S50-VLOOKUP(AU50,'Prog Assums'!$E$39:$I$54,2,FALSE))/VLOOKUP(AU50,'Prog Assums'!$E$39:$I$54,3,FALSE),0),"-") -> - | S50: =VLOOKUP(D50,'Prog Assums'!N$5:U$207,5,FALSE) -> 0 | U50: 0 | V50: 0 | Y50: =IF(K$14>0,S50,0) -> 0 | AA50: 0 | AI50: =IF(K14>0,16,0) -> 0 | AK50: =IF(K14>0,1,0) -> 0 | AS50: 0 | AT50: =IF(K$14>0,AI50,0) -> 0 | AU50: =VLOOKUP(D50,'Prog Assums'!$N$79:$O$96,2,FALSE) -> 0 | BE50: =IF(ISERROR(AVERAGEIF('Individual Spaces'!F:F,$N50,'Individual Spaces'!K:K))=TRUE," ",AVERAGEIF('Individual Spaces'!F:F,$N50,'Individual Spaces'!K:K)) ->  | BG50: =COUNTIF('Individual Spaces'!F:F,'Primary SoA'!$N50) -> 0 | BK50: 0 | BM50: 0 | BW50: =U50 -> 0 | BY50: =U50-BW50 -> 0 | CM50: =IF($S50>0,VLOOKUP($D50,'Prog Assums'!$N$5:$AM$225,12, FALSE),"") ->  | CN50: =IF($S50>0,VLOOKUP($D50,'Prog Assums'!$N$5:$AM$225,13, FALSE),"") ->  | CP50: =IF(U50>0,VLOOKUP(D50,'Prog Assums'!$N$7:$T$175,7,FALSE),"") ->  | CQ50: =VLOOKUP(D50,'Prog Assums'!$N$6:$Q$232,3,0) -> 0 | CR50: =VLOOKUP(D50,'Prog Assums'!$N$6:$Q$232,4,0) -> 0 | CS50: 0 | CT50: 0 | CU50: 0 | CV50: 0 | CW50: 0 | CX50: 0 | CY50: 0 | CZ50: 0 | DA50: 9 | DH50: =IF($K5>1000,2,DE7) -> 0 | DI50: =IF($K5>1000,2,DH4) -> 1 | DJ50: =IF($K5>1000,2,DI4) -> 1 | DM50: =DC50*(DD50+DK50+DL50) -> 0 | DN50: =VLOOKUP($C50,'Prog Assums'!$U$5:$AI$290,11,FALSE) ->  | DO50: =VLOOKUP($C50,'Prog Assums'!$U$5:$AI$290,12,FALSE) ->  | DP50: =IF(VLOOKUP($C50,'Prog Assums'!$U$5:$AI$290,13,FALSE)="AS SOA",$AI50,VLOOKUP($C50,'Prog Assums'!$U$5:$AI$290,13,FALSE)) ->  | DQ50: =VLOOKUP($C50,'Prog Assums'!$U$5:$AI$290,14,FALSE) ->  | DR50: =VLOOKUP($C50,'Prog Assums'!$U$5:$AI$290,15,FALSE) ->  | DS50: 0 | DU50: 0 | DV50: 0 | DY50: 0 | EA50: 0 | EB50: 0 | EE50: 0 | EG50: 0 | EH50: 0 | EK50: 0 | EM50: =COUNTIFS($EY$2:$YI$2,'Prog Assums'!$B$125,$EY50:$YI50,">0") -> 0 | EN50: =SUMIF($EY$2:$YI$2,'Prog Assums'!$B$125,$EY50:$YI50) -> 0 | ER50: 0 | ET50: =COUNTIFS($EY$2:$YI$2,'Prog Assums'!$B$126,$EY50:$YI50,">0") -> 0 | EU50: =SUMIF($EY$2:$YI$2,'Prog Assums'!$B$126,$EY50:$YI50) -> 0
D51: TOTAL AREA | L51: BB103 range | M51: BB103 range | N51: BB103 range | O51: =ROUND(10+(K$10*0.1),0) -> 55 | P51: to | Q51: =ROUND(30+(K$10*0.2),0) -> 119 | V51: =SUM(V42:V50) -> 94 | Y51: =SUM(Y42:Y50) -> 0 | AA51: =SUM(AA42:AA50) -> 0 | AC51: =IF(V51<O51,"ERROR: total area for category is too low",IF(V51>Q51,"WARNING: total area for category is high","OK: area within BB103 range")) -> OK: area within BB103 range | AI51: =SUM(AS42:AS50) -> 94 | AK51: =SUM(AT42:AT50) -> 0 | AS51: =SUM(AS42:AS50) -> 94 | AT51: =SUM(AT42:AT50) -> 0 | BH51: =SUM(BH42:BH50) -> 0 | BJ51: =BH51-$Y51-$V51 -> -94 | BO51: =SUM(BO42:BO50) -> 1 | BQ51: =SUM(BQ42:BQ50) -> 0 | BS51: =SUM(BS42:BS50) -> 0 | BU51: =SUM(BU42:BU50) -> 0 | BW51: =SUM(BW42:BW50) -> 0 | BY51: =SUM(BY42:BY50) -> 6 | CA51: =SUM(CA42:CA50) -> 0 | CC51: =SUM(CC42:CC50) -> 0 | CE51: =SUM(CE42:CE50) -> 0 | CG51: =SUM(CG42:CG50) -> 0 | CI51: =SUM(CI42:CI50) -> 0 | CK51: =SUM(CK42:CK50) -> 0 | CM51: =IF($U51>0,VLOOKUP($D51,'Prog Assums'!$N$5:$AM$225,12, FALSE),"") ->  | CN51: =IF($U51>0,VLOOKUP($D51,'Prog Assums'!$N$5:$AM$225,13, FALSE),"") ->  | DH51: =IF($K6>1000,2,DE8) -> 0 | DI51: =IF($K6>1000,2,DH15) -> specialist practical spaces | DJ51: =IF($K6>1000,2,DI15) -> semi-open classbases + shared | DM51: =DC51*(DD51+DK51+DL51) -> 0 | DV51: =SUM(DV42:DV50) -> -94 | EB51: =SUM(EB42:EB50) -> 0 | EH51: =SUM(EH42:EH50) -> 0 | EN51: =SUM(EN42:EN50) -> 0 | EU51: =SUM(EU42:EU50) -> 0
D52: Staff and Administration Areas | BO52: =ROUND(6+(BO32*2.1),0) -> 12 | BQ52: =ROUND(6+(BQ32*2.1),0) -> 14 | BS52: =ROUND(6+(BS32*2.1),0) -> 25 | DM52: =SUM(DM45:DM50) -> 0
A53: =IF($D53="-","",VLOOKUP($D53,'Prog Assums'!$N$5:$X$225,10, FALSE)) -> OFF50 | C53: =IF($D53="-","",VLOOKUP($D53,'Prog Assums'!$N$5:$X$225,8, FALSE)) -> OFF51 | D53: Staff rooms (prep and social) | M53: =IF(D53="","",_xlfn.XLOOKUP(D53,'Prog Assums'!$N$7:$N$229,'Prog Assums'!$AQ$7:$AQ$229,"")) -> Staff room (prep and social) | N53: =CONCATENATE(M53,S53) -> Staff room (prep and social)41 | O53: =IF(VLOOKUP(D53,'Prog Assums'!N$5:V$231,9,FALSE)>0,"retained","") ->  | Q53: =ROUND((S53-VLOOKUP(AU53,'Prog Assums'!$E$39:$I$54,2,FALSE))/VLOOKUP(AU53,'Prog Assums'!$E$39:$I$54,3,FALSE),0) -> 22 | S53: =AI53 -> 41 | U53: =AK53 -> 1 | V53: =(S53*U53)-Y53 -> 41 | AA53: =IF(O53="retained",V53+Y53,IF(O53="refurb'ed",V53+Y53,0)) -> 0 | AC53: =ROUND(9+(K10*0.09),0) -> 49 | AD53: m2 min total staff area recom'd | AI53: =ROUNDDOWN(-1+ROUNDUP((9+(Q10/10)+1-AS54)/7,0)*7,0) -> 41 | AK53: 1 | AS53: =MAXA(0,(AI53*AK53)-AT53) -> 41 | AU53: =VLOOKUP(D53,'Prog Assums'!$N$98:$O$138,2,FALSE) -> C | BE53: =IF(ISERROR(AVERAGEIF('Individual Spaces'!F:F,$N53,'Individual Spaces'!K:K))=TRUE," ",AVERAGEIF('Individual Spaces'!F:F,$N53,'Individual Spaces'!K:K)) ->  | BG53: =COUNTIF('Individual Spaces'!F:F,'Primary SoA'!$N53) -> 1 | BH53: =IF(ISERROR((BE53*BG53)=TRUE),"",BE53*BG53) ->  | BJ53: =IF(ISERROR(BH53-$Y53-$V53=TRUE),"",BH53-$Y53-$V53) ->  | BK53: =BG53-$U53 -> 0 | BM53: 1 | BU53: =U53 -> 1 | CM53: =IF($S53>0,VLOOKUP($D53,'Prog Assums'!$N$5:$AM$225,12, FALSE),"") -> varies | CN53: =IF($S53>0,VLOOKUP($D53,'Prog Assums'!$N$5:$AM$225,13, FALSE),"") -> 0 | CP53: =IF(U53>0,VLOOKUP(D53,'Prog Assums'!$N$7:$T$175,7,FALSE),"") -> 0 | CQ53: 1.5 | CR53: 3 | CS53: =IF(CP53="E",0,IF(U53=0,0,MAXA(1,ROUNDUP((S53/CQ53)-CR53,0)))) -> 25 | CT53: =IF(CS53>14,IF(CS53<31,CS53,ROUNDDOWN(CS53/30,0)*30),0) -> 25 | CU53: =IF(S53>0,(V53/S53)*CT53,0) -> 25 | CV53: =IF(CS53>0,(V53/S53)*CS53,0)-CU53 -> 0 | CW53: =IF(CP53="E",0,IF(AK53=0,0,MAXA(1,ROUNDUP((AI53/CQ53)-CR53,0)))) -> 25 | CX53: =IF(CW53>14,IF(CW53<31,CW53,ROUNDDOWN(CW53/30,0)*30),0) -> 25 | CY53: =IF(AK53>0,(AS53/AI53)*CX53,0) -> 25 | CZ53: =IF(CW53>0,(AS53/AI53)*CW53,0)-CY53 -> 0 | DA53: - | DN53: =VLOOKUP($C53,'Prog Assums'!$U$5:$AI$290,11,FALSE) -> 12 | DO53: =VLOOKUP($C53,'Prog Assums'!$U$5:$AI$290,12,FALSE) -> - | DP53: =IF(VLOOKUP($C53,'Prog Assums'!$U$5:$AI$290,13,FALSE)="AS SOA",$AI53,VLOOKUP($C53,'Prog Assums'!$U$5:$AI$290,13,FALSE)) -> 41 | DQ53: =VLOOKUP($C53,'Prog Assums'!$U$5:$AI$290,14,FALSE) -> - | DR53: =VLOOKUP($C53,'Prog Assums'!$U$5:$AI$290,15,FALSE) -> 150 | DS53: =IF(ISERROR((SUM($EB53,$EH53,$EN53,$EU53)/SUM($EA53,$EG53,$EM53,$ET53)-$S53))=TRUE,0,IF($U53=0,0,(SUM($EB53,$EH53,$EN53,$EU53)/SUM($EA53,$EG53,$EM53,$ET53)-$S53))) -> 0 | DU53: =SUM($EA53,$EG53,$EM53,$ET53)-$U53 -> -1 | DV53: =SUM($EU53,$EN53,$EH53,$EB53)-$V53-$Y53 -> -41 | DY53: 0 | EB53: =EA53*DY53 -> 0 | EE53: 0 | EG53: 0 | EH53: =EG53*EE53 -> 0 | EK53: =IF(EN53>0,SUM(EN53/EM53),0) -> 0 | EM53: =COUNTIFS($EY$2:$YI$2,'Prog Assums'!$B$125,$EY53:$YI53,">0") -> 0 | EN53: =SUMIF($EY$2:$YI$2,'Prog Assums'!$B$125,$EY53:$YI53) -> 0 | ER53: =IF(EU53>0,SUM(EU53/ET53),0) -> 0 | ET53: =COUNTIFS($EY$2:$YI$2,'Prog Assums'!$B$126,$EY53:$YI53,">0") -> 0 | EU53: =SUMIF($EY$2:$YI$2,'Prog Assums'!$B$126,$EY53:$YI53) -> 0
A54: =IF($D54="-","",VLOOKUP($D54,'Prog Assums'!$N$5:$X$225,10, FALSE)) -> OFF30 | C54: =IF($D54="-","",VLOOKUP($D54,'Prog Assums'!$N$5:$X$225,8, FALSE)) -> OFF33 | D54: Staff workrooms (teaching staff) | M54: =IF(D54="","",_xlfn.XLOOKUP(D54,'Prog Assums'!$N$7:$N$229,'Prog Assums'!$AQ$7:$AQ$229,"")) -> Staff workroom (teaching staff) | N54: Staff workroom (teaching staff)13 | O54: =IF(VLOOKUP(D54,'Prog Assums'!N$5:V$231,9,FALSE)>0,"retained","") ->  | Q54: =ROUND((S54-VLOOKUP(AU54,'Prog Assums'!$E$39:$I$54,2,FALSE))/VLOOKUP(AU54,'Prog Assums'!$E$39:$I$54,3,FALSE),0) -> 4 | S54: 13 | U54: 1 | V54: 13 | AA54: 0 | AI54: =ROUNDDOWN(-1+ROUNDUP((-1+(Q10/50)+1)/7,0)*7,0) -> 13 | AK54: =IF(K10>400,1,0) -> 1 | AS54: 13 | AU54: =VLOOKUP(D54,'Prog Assums'!$N$98:$O$138,2,FALSE) -> D | BE54: =IF(ISERROR(AVERAGEIF('Individual Spaces'!F:F,$N54,'Individual Spaces'!K:K))=TRUE," ",AVERAGEIF('Individual Spaces'!F:F,$N54,'Individual Spaces'!K:K)) ->  | BG54: =COUNTIF('Individual Spaces'!F:F,'Primary SoA'!$N54) -> 1 | BK54: 0 | BM54: 1 | BU54: =U54 -> 1 | CM54: =IF($S54>0,VLOOKUP($D54,'Prog Assums'!$N$5:$AM$225,12, FALSE),"") -> varies | CN54: =IF($S54>0,VLOOKUP($D54,'Prog Assums'!$N$5:$AM$225,13, FALSE),"") -> 0 | CP54: =IF(U54>0,VLOOKUP(D54,'Prog Assums'!$N$7:$T$175,7,FALSE),"") -> 0 | CQ54: 1.5 | CR54: 3 | CS54: 6 | CT54: 0 | CU54: 0 | CV54: 6 | CW54: 6 | CX54: 0 | CY54: 0 | CZ54: 6 | DA54: - | DN54: =VLOOKUP($C54,'Prog Assums'!$U$5:$AI$290,11,FALSE) -> 9 | DO54: =VLOOKUP($C54,'Prog Assums'!$U$5:$AI$290,12,FALSE) -> - | DP54: =IF(VLOOKUP($C54,'Prog Assums'!$U$5:$AI$290,13,FALSE)="AS SOA",$AI54,VLOOKUP($C54,'Prog Assums'!$U$5:$AI$290,13,FALSE)) -> 13 | DQ54: =VLOOKUP($C54,'Prog Assums'!$U$5:$AI$290,14,FALSE) -> - | DR54: =VLOOKUP($C54,'Prog Assums'!$U$5:$AI$290,15,FALSE) -> 50 | DS54: 0 | DU54: -1 | DV54: -13 | DY54: 0 | EA54: 0 | EB54: 0 | EE54: 0 | EG54: 0 | EH54: 0 | EK54: 0 | EM54: =COUNTIFS($EY$2:$YI$2,'Prog Assums'!$B$125,$EY54:$YI54,">0") -> 0 | EN54: =SUMIF($EY$2:$YI$2,'Prog Assums'!$B$125,$EY54:$YI54) -> 0 | ER54: 0 | ET54: =COUNTIFS($EY$2:$YI$2,'Prog Assums'!$B$126,$EY54:$YI54,">0") -> 0 | EU54: =SUMIF($EY$2:$YI$2,'Prog Assums'!$B$126,$EY54:$YI54) -> 0
A55: =IF($D55="-","",VLOOKUP($D55,'Prog Assums'!$N$5:$X$225,10, FALSE)) -> ADM10 | C55: =IF($D55="-","",VLOOKUP($D55,'Prog Assums'!$N$5:$X$225,8, FALSE)) -> ADM11 | D55: Enclosed offices, admin (head) | M55: =IF(D55="","",_xlfn.XLOOKUP(D55,'Prog Assums'!$N$7:$N$229,'Prog Assums'!$AQ$7:$AQ$229,"")) -> Enclosed office, admin (head) | N55: Enclosed office, admin (head)16 | O55: =IF(VLOOKUP(D55,'Prog Assums'!N$5:V$231,9,FALSE)>0,"retained","") ->  | Q55: =ROUND((S55-VLOOKUP(AU55,'Prog Assums'!$E$39:$I$54,2,FALSE))/VLOOKUP(AU55,'Prog Assums'!$E$39:$I$54,3,FALSE),0) -> 6 | S55: 16 | U55: 1 | V55: 16 | AA55: 0 | AI55: =IF(K10<150,12,16) -> 16 | AK55: 1 | AS55: 16 | AU55: =VLOOKUP(D55,'Prog Assums'!$N$98:$O$138,2,FALSE) -> D | BE55: =IF(ISERROR(AVERAGEIF('Individual Spaces'!F:F,$N55,'Individual Spaces'!K:K))=TRUE," ",AVERAGEIF('Individual Spaces'!F:F,$N55,'Individual Spaces'!K:K)) ->  | BG55: =COUNTIF('Individual Spaces'!F:F,'Primary SoA'!$N55) -> 1 | BK55: 0 | BM55: 1 | BU55: =U55 -> 1 | CM55: =IF($S55>0,VLOOKUP($D55,'Prog Assums'!$N$5:$AM$225,12, FALSE),"") -> 16m2 | CN55: =IF($S55>0,VLOOKUP($D55,'Prog Assums'!$N$5:$AM$225,13, FALSE),"") -> 0 | CP55: =IF(U55>0,VLOOKUP(D55,'Prog Assums'!$N$7:$T$175,7,FALSE),"") -> 0 | CQ55: 1.5 | CR55: 3 | CS55: 8 | CT55: 0 | CU55: 0 | CV55: 8 | CW55: 8 | CX55: 0 | CY55: 0 | CZ55: 8 | DA55: - | DN55: =VLOOKUP($C55,'Prog Assums'!$U$5:$AI$290,11,FALSE) -> 9 | DO55: =VLOOKUP($C55,'Prog Assums'!$U$5:$AI$290,12,FALSE) -> - | DP55: =IF(VLOOKUP($C55,'Prog Assums'!$U$5:$AI$290,13,FALSE)="AS SOA",$AI55,VLOOKUP($C55,'Prog Assums'!$U$5:$AI$290,13,FALSE)) -> 16 | DQ55: =VLOOKUP($C55,'Prog Assums'!$U$5:$AI$290,14,FALSE) -> - | DR55: =VLOOKUP($C55,'Prog Assums'!$U$5:$AI$290,15,FALSE) -> 41 | DS55: 0 | DU55: -1 | DV55: -16 | DY55: 0 | EA55: 0 | EB55: 0 | EE55: 0 | EG55: 0 | EH55: 0 | EK55: 0 | EM55: =COUNTIFS($EY$2:$YI$2,'Prog Assums'!$B$125,$EY55:$YI55,">0") -> 0 | EN55: =SUMIF($EY$2:$YI$2,'Prog Assums'!$B$125,$EY55:$YI55) -> 0 | ER55: 0 | ET55: =COUNTIFS($EY$2:$YI$2,'Prog Assums'!$B$126,$EY55:$YI55,">0") -> 0 | EU55: =SUMIF($EY$2:$YI$2,'Prog Assums'!$B$126,$EY55:$YI55) -> 0
A56: =IF($D56="-","",VLOOKUP($D56,'Prog Assums'!$N$5:$X$225,10, FALSE)) -> OFF00 | C56: =IF($D56="-","",VLOOKUP($D56,'Prog Assums'!$N$5:$X$225,8, FALSE)) -> OFF10 | D56: Offices (with meeting area) | M56: =IF(D56="","",_xlfn.XLOOKUP(D56,'Prog Assums'!$N$7:$N$229,'Prog Assums'!$AQ$7:$AQ$229,"")) -> Office (with meeting area) | N56: Office (with meeting area)9 | O56: =IF(VLOOKUP(D56,'Prog Assums'!N$5:V$231,9,FALSE)>0,"retained","") ->  | Q56: =ROUND((S56-VLOOKUP(AU56,'Prog Assums'!$E$39:$I$54,2,FALSE))/VLOOKUP(AU56,'Prog Assums'!$E$39:$I$54,3,FALSE),0) -> 3 | S56: 9 | U56: 1 | V56: 9 | AA56: 0 | AI56: 9 | AK56: =ROUND(K10/500,0) -> 1 | AS56: 9 | AU56: =VLOOKUP(D56,'Prog Assums'!$N$98:$O$138,2,FALSE) -> C | BE56: =IF(ISERROR(AVERAGEIF('Individual Spaces'!F:F,$N56,'Individual Spaces'!K:K))=TRUE," ",AVERAGEIF('Individual Spaces'!F:F,$N56,'Individual Spaces'!K:K)) ->  | BG56: =COUNTIF('Individual Spaces'!F:F,'Primary SoA'!$N56) -> 1 | BK56: 0 | BM56: 1 | BU56: =U56 -> 1 | CM56: =IF($S56>0,VLOOKUP($D56,'Prog Assums'!$N$5:$AM$225,12, FALSE),"") -> varies | CN56: =IF($S56>0,VLOOKUP($D56,'Prog Assums'!$N$5:$AM$225,13, FALSE),"") -> 0 | CP56: =IF(U56>0,VLOOKUP(D56,'Prog Assums'!$N$7:$T$175,7,FALSE),"") -> 0 | CQ56: 1.5 | CR56: 3 | CS56: 3 | CT56: 0 | CU56: 0 | CV56: 3 | CW56: 3 | CX56: 0 | CY56: 0 | CZ56: 3 | DA56: - | DN56: =VLOOKUP($C56,'Prog Assums'!$U$5:$AI$290,11,FALSE) -> 6 | DO56: =VLOOKUP($C56,'Prog Assums'!$U$5:$AI$290,12,FALSE) -> - | DP56: =IF(VLOOKUP($C56,'Prog Assums'!$U$5:$AI$290,13,FALSE)="AS SOA",$AI56,VLOOKUP($C56,'Prog Assums'!$U$5:$AI$290,13,FALSE)) -> 9 | DQ56: =VLOOKUP($C56,'Prog Assums'!$U$5:$AI$290,14,FALSE) -> - | DR56: =VLOOKUP($C56,'Prog Assums'!$U$5:$AI$290,15,FALSE) -> 25 | DS56: 0 | DU56: -1 | DV56: -9 | DY56: 0 | EA56: 0 | EB56: 0 | EE56: 0 | EG56: 0 | EH56: 0 | EK56: 0 | EM56: =COUNTIFS($EY$2:$YI$2,'Prog Assums'!$B$125,$EY56:$YI56,">0") -> 0 | EN56: =SUMIF($EY$2:$YI$2,'Prog Assums'!$B$125,$EY56:$YI56) -> 0 | ER56: 0 | ET56: =COUNTIFS($EY$2:$YI$2,'Prog Assums'!$B$126,$EY56:$YI56,">0") -> 0 | EU56: =SUMIF($EY$2:$YI$2,'Prog Assums'!$B$126,$EY56:$YI56) -> 0
A57: =IF($D57="-","",VLOOKUP($D57,'Prog Assums'!$N$5:$X$225,10, FALSE)) -> OFF30 | C57: =IF($D57="-","",VLOOKUP($D57,'Prog Assums'!$N$5:$X$225,8, FALSE)) -> OFF34 | D57: Staff workrooms (nursery) | M57: =IF(D57="","",_xlfn.XLOOKUP(D57,'Prog Assums'!$N$7:$N$229,'Prog Assums'!$AQ$7:$AQ$229,"")) -> Staff workroom (specially resourced) | N57: Staff workroom (specially resourced)8 | O57: =IF(VLOOKUP(D57,'Prog Assums'!N$5:V$231,9,FALSE)>0,"retained","") ->  | Q57: =IF(S57>0,MAXA(0,ROUND((S57-VLOOKUP(AU57,'Prog Assums'!$E$39:$I$54,2,FALSE))/VLOOKUP(AU57,'Prog Assums'!$E$39:$I$54,3,FALSE),0)),"-") -> 2 | S57: 8 | U57: 1 | V57: 8 | Y57: =IF(K12>0,ROUNDUP(K12/5,0),0) -> 0 | AA57: 0 | AC57: =IF(K8+K12>13,ROUNDUP((K8+K12)/5,0),0) -> 6 | AD57: =IF(K8+K12>0,"m2 min recom'd for nursery","") -> m2 min recom'd for nursery | AI57: =MAXA(8,AC57) -> 8 | AK57: =IF(K8+K12>13,1,0) -> 1 | AS57: 8 | AT57: =IF(K12>0,ROUNDUP(K12/5,0),0) -> 0 | AU57: =VLOOKUP(D57,'Prog Assums'!$N$98:$O$138,2,FALSE) -> D | BE57: =IF(ISERROR(AVERAGEIF('Individual Spaces'!F:F,$N57,'Individual Spaces'!K:K))=TRUE," ",AVERAGEIF('Individual Spaces'!F:F,$N57,'Individual Spaces'!K:K)) ->  | BG57: =COUNTIF('Individual Spaces'!F:F,'Primary SoA'!$N57) -> 1 | BK57: 0 | BM57: 1 | BU57: =U57 -> 1 | CM57: =IF($S57>0,VLOOKUP($D57,'Prog Assums'!$N$5:$AM$225,12, FALSE),"") -> varies | CN57: =IF($S57>0,VLOOKUP($D57,'Prog Assums'!$N$5:$AM$225,13, FALSE),"") -> 0 | CP57: =IF(U57>0,VLOOKUP(D57,'Prog Assums'!$N$7:$T$175,7,FALSE),"") -> E | CQ57: =VLOOKUP(D57,'Prog Assums'!$N$6:$Q$232,3,0) -> 1.5 | CR57: =VLOOKUP(D57,'Prog Assums'!$N$6:$Q$232,4,0) -> 4 | CS57: 0 | CT57: 0 | CU57: 0 | CV57: 0 | CW57: 0 | CX57: 0 | CY57: 0 | CZ57: 0 | DA57: - | DN57: =VLOOKUP($C57,'Prog Assums'!$U$5:$AI$290,11,FALSE) -> 9 | DO57: =VLOOKUP($C57,'Prog Assums'!$U$5:$AI$290,12,FALSE) -> - | DP57: =IF(VLOOKUP($C57,'Prog Assums'!$U$5:$AI$290,13,FALSE)="AS SOA",$AI57,VLOOKUP($C57,'Prog Assums'!$U$5:$AI$290,13,FALSE)) -> 8 | DQ57: =VLOOKUP($C57,'Prog Assums'!$U$5:$AI$290,14,FALSE) -> - | DR57: =VLOOKUP($C57,'Prog Assums'!$U$5:$AI$290,15,FALSE) -> 50 | DS57: 0 | DU57: -1 | DV57: -8 | DY57: 0 | EA57: 0 | EB57: 0 | EE57: 0 | EG57: 0 | EH57: 0 | EK57: 0 | EM57: =COUNTIFS($EY$2:$YI$2,'Prog Assums'!$B$125,$EY57:$YI57,">0") -> 0 | EN57: =SUMIF($EY$2:$YI$2,'Prog Assums'!$B$125,$EY57:$YI57) -> 0 | ER57: 0 | ET57: =COUNTIFS($EY$2:$YI$2,'Prog Assums'!$B$126,$EY57:$YI57,">0") -> 0 | EU57: =SUMIF($EY$2:$YI$2,'Prog Assums'!$B$126,$EY57:$YI57) -> 0
A58: =IF($D58="-","",VLOOKUP($D58,'Prog Assums'!$N$5:$X$225,10, FALSE)) ->  | C58: =IF($D58="-","",VLOOKUP($D58,'Prog Assums'!$N$5:$X$225,8, FALSE)) ->  | D58: =IF(K14>0,"Staff workrooms (specially resourced)","-") -> - | M58: =IF(D58="","",_xlfn.XLOOKUP(D58,'Prog Assums'!$N$7:$N$229,'Prog Assums'!$AQ$7:$AQ$229,"")) -> - | N58: -0 | O58: =IF(VLOOKUP(D58,'Prog Assums'!N$5:V$231,9,FALSE)>0,"retained","") ->  | Q58: =IF(S58>0,MAXA(0,ROUND((S58-VLOOKUP(AU58,'Prog Assums'!$E$39:$I$54,2,FALSE))/VLOOKUP(AU58,'Prog Assums'!$E$39:$I$54,3,FALSE),0)),"-") -> - | S58: 0 | U58: 0 | V58: 0 | Y58: =IF(K$14>0,S58*U58,0) -> 0 | AA58: 0 | AI58: =IF(K14>0,ROUND(K14*0.75,0),0) -> 0 | AK58: =IF(K14>0,1,0) -> 0 | AS58: 0 | AT58: =IF(K$14>0,AI58*U58,0) -> 0 | AU58: =VLOOKUP(D58,'Prog Assums'!$N$98:$O$138,2,FALSE) -> - | BE58: =IF(ISERROR(AVERAGEIF('Individual Spaces'!F:F,$N58,'Individual Spaces'!K:K))=TRUE," ",AVERAGEIF('Individual Spaces'!F:F,$N58,'Individual Spaces'!K:K)) ->  | BG58: =COUNTIF('Individual Spaces'!F:F,'Primary SoA'!$N58) -> 0 | BK58: 0 | BM58: 0 | BW58: =IF(K$14>0,1,0) -> 0 | CM58: =IF($S58>0,VLOOKUP($D58,'Prog Assums'!$N$5:$AM$225,12, FALSE),"") ->  | CN58: =IF($S58>0,VLOOKUP($D58,'Prog Assums'!$N$5:$AM$225,13, FALSE),"") ->  | CP58: =IF(U58>0,VLOOKUP(D58,'Prog Assums'!$N$7:$T$175,7,FALSE),"") ->  | CQ58: =VLOOKUP(D58,'Prog Assums'!$N$6:$Q$232,3,0) -> 0 | CR58: =VLOOKUP(D58,'Prog Assums'!$N$6:$Q$232,4,0) -> 0 | CS58: 0 | CT58: 0 | CU58: 0 | CV58: 0 | CW58: 0 | CX58: 0 | CY58: 0 | CZ58: 0 | DN58: =VLOOKUP($C58,'Prog Assums'!$U$5:$AI$290,11,FALSE) ->  | DO58: =VLOOKUP($C58,'Prog Assums'!$U$5:$AI$290,12,FALSE) ->  | DP58: =IF(VLOOKUP($C58,'Prog Assums'!$U$5:$AI$290,13,FALSE)="AS SOA",$AI58,VLOOKUP($C58,'Prog Assums'!$U$5:$AI$290,13,FALSE)) ->  | DQ58: =VLOOKUP($C58,'Prog Assums'!$U$5:$AI$290,14,FALSE) ->  | DR58: =VLOOKUP($C58,'Prog Assums'!$U$5:$AI$290,15,FALSE) ->  | DS58: 0 | DU58: 0 | DV58: 0 | DY58: 0 | EA58: 0 | EB58: 0 | EE58: 0 | EG58: 0 | EH58: 0 | EK58: 0 | EM58: =COUNTIFS($EY$2:$YI$2,'Prog Assums'!$B$125,$EY58:$YI58,">0") -> 0 | EN58: =SUMIF($EY$2:$YI$2,'Prog Assums'!$B$125,$EY58:$YI58) -> 0 | ER58: 0 | ET58: =COUNTIFS($EY$2:$YI$2,'Prog Assums'!$B$126,$EY58:$YI58,">0") -> 0 | EU58: =SUMIF($EY$2:$YI$2,'Prog Assums'!$B$126,$EY58:$YI58) -> 0
S59: 0 | BE59: =IF(ISERROR(AVERAGEIF(#REF!,$N59,#REF!))=TRUE," ",AVERAGEIF(#REF!,$N59,#REF!)) ->  | CM59: =IF($S59>0,VLOOKUP($D59,'Prog Assums'!$N$5:$AM$225,12, FALSE),"") ->  | CN59: =IF($S59>0,VLOOKUP($D59,'Prog Assums'!$N$5:$AM$225,13, FALSE),"") -> 
A60: =IF($D60="-","",VLOOKUP($D60,'Prog Assums'!$N$5:$X$225,10, FALSE)) -> ADM05 | C60: =IF($D60="-","",VLOOKUP($D60,'Prog Assums'!$N$5:$X$225,8, FALSE)) -> ADM05 | D60: Enclosed offices, with recep desk (only) | M60: =IF(D60="","",_xlfn.XLOOKUP(D60,'Prog Assums'!$N$7:$N$229,'Prog Assums'!$AQ$7:$AQ$229,"")) -> Enclosed office, with recep desk (only) | N60: =CONCATENATE(M60,S60) -> Enclosed office, with recep desk (only)20 | O60: =IF(VLOOKUP(D60,'Prog Assums'!N$5:V$231,9,FALSE)>0,"retained","") ->  | Q60: =ROUND((S60-VLOOKUP(AU60,'Prog Assums'!$E$39:$I$54,2,FALSE))/VLOOKUP(AU60,'Prog Assums'!$E$39:$I$54,3,FALSE),0) -> 4 | S60: 20 | U60: =AK60 -> 1 | V60: =(S60*U60)-Y60 -> 20 | AA60: =IF(O60="retained",V60+Y60,IF(O60="refurb'ed",V60+Y60,0)) -> 0 | AI60: =ROUNDDOWN(-1+ROUNDUP((5+ROUND(K10/40,0)+1)/7,0)*7,0) -> 20 | AK60: 1 | AS60: =MAXA(0,(AI60*AK60)-AT60) -> 20 | AU60: =VLOOKUP(D60,'Prog Assums'!$N$98:$O$138,2,FALSE) -> K | BE60: =IF(ISERROR(AVERAGEIF('Individual Spaces'!F:F,$N60,'Individual Spaces'!K:K))=TRUE," ",AVERAGEIF('Individual Spaces'!F:F,$N60,'Individual Spaces'!K:K)) ->  | BG60: =COUNTIF('Individual Spaces'!F:F,'Primary SoA'!$N60) -> 1 | BK60: =BG60-$U60 -> 0 | BM60: 1 | BU60: =U60 -> 1 | CM60: =IF($S60>0,VLOOKUP($D60,'Prog Assums'!$N$5:$AM$225,12, FALSE),"") -> varies | CN60: =IF($S60>0,VLOOKUP($D60,'Prog Assums'!$N$5:$AM$225,13, FALSE),"") -> 0 | CP60: =IF(U60>0,VLOOKUP(D60,'Prog Assums'!$N$7:$T$175,7,FALSE),"") -> 0 | CQ60: 1.5 | CR60: 3 | CS60: =IF(CP60="E",0,IF(U60=0,0,MAXA(1,ROUNDUP((S60/CQ60)-CR60,0)))) -> 11 | CT60: =IF(CS60>14,IF(CS60<31,CS60,ROUNDDOWN(CS60/30,0)*30),0) -> 0 | CU60: =IF(S60>0,(V60/S60)*CT60,0) -> 0 | CV60: =IF(CS60>0,(V60/S60)*CS60,0)-CU60 -> 11 | CW60: =IF(CP60="E",0,IF(AK60=0,0,MAXA(1,ROUNDUP((AI60/CQ60)-CR60,0)))) -> 11 | CX60: =IF(CW60>14,IF(CW60<31,CW60,ROUNDDOWN(CW60/30,0)*30),0) -> 0 | CY60: =IF(AK60>0,(AS60/AI60)*CX60,0) -> 0 | CZ60: =IF(CW60>0,(AS60/AI60)*CW60,0)-CY60 -> 11 | DA60: - | DN60: =VLOOKUP($C60,'Prog Assums'!$U$5:$AI$290,11,FALSE) -> 8 | DO60: =VLOOKUP($C60,'Prog Assums'!$U$5:$AI$290,12,FALSE) -> - | DP60: =IF(VLOOKUP($C60,'Prog Assums'!$U$5:$AI$290,13,FALSE)="AS SOA",$AI60,VLOOKUP($C60,'Prog Assums'!$U$5:$AI$290,13,FALSE)) -> 20 | DQ60: =VLOOKUP($C60,'Prog Assums'!$U$5:$AI$290,14,FALSE) -> - | DR60: =VLOOKUP($C60,'Prog Assums'!$U$5:$AI$290,15,FALSE) -> 50 | DS60: =IF(ISERROR((SUM($EB60,$EH60,$EN60,$EU60)/SUM($EA60,$EG60,$EM60,$ET60)-$S60))=TRUE,0,IF($U60=0,0,(SUM($EB60,$EH60,$EN60,$EU60)/SUM($EA60,$EG60,$EM60,$ET60)-$S60))) -> 0 | DU60: =SUM($EA60,$EG60,$EM60,$ET60)-$U60 -> -1 | DV60: =SUM($EU60,$EN60,$EH60,$EB60)-$V60-$Y60 -> -20 | DY60: 0 | EA60: 0 | EB60: =EA60*DY60 -> 0 | EE60: 0 | EG60: 0 | EH60: =EG60*EE60 -> 0 | EK60: =IF(EN60>0,SUM(EN60/EM60),0) -> 0 | EM60: =COUNTIFS($EY$2:$YI$2,'Prog Assums'!$B$125,$EY60:$YI60,">0") -> 0 | EN60: =SUMIF($EY$2:$YI$2,'Prog Assums'!$B$125,$EY60:$YI60) -> 0 | ER60: =IF(EU60>0,SUM(EU60/ET60),0) -> 0 | ET60: =COUNTIFS($EY$2:$YI$2,'Prog Assums'!$B$126,$EY60:$YI60,">0") -> 0 | EU60: =SUMIF($EY$2:$YI$2,'Prog Assums'!$B$126,$EY60:$YI60) -> 0
A61: =IF($D61="-","",VLOOKUP($D61,'Prog Assums'!$N$5:$X$225,10, FALSE)) -> ADM08 | C61: =IF($D61="-","",VLOOKUP($D61,'Prog Assums'!$N$5:$X$225,8, FALSE)) -> ADM08 | D61: Reprographics rooms | M61: =IF(D61="","",_xlfn.XLOOKUP(D61,'Prog Assums'!$N$7:$N$229,'Prog Assums'!$AQ$7:$AQ$229,"")) -> Reprographics room | N61: Reprographics room11 | O61: =IF(VLOOKUP(D61,'Prog Assums'!N$5:V$231,9,FALSE)>0,"retained","") ->  | Q61: - | S61: 11 | U61: 1 | V61: 11 | AA61: 0 | AI61: =0+ROUND(Q10/40,0) -> 11 | AK61: =IF(K10>200,1,0) -> 1 | AS61: 11 | AU61: =VLOOKUP(D61,'Prog Assums'!$N$98:$O$138,2,FALSE) -> G | BE61: =IF(ISERROR(AVERAGEIF('Individual Spaces'!F:F,$N61,'Individual Spaces'!K:K))=TRUE," ",AVERAGEIF('Individual Spaces'!F:F,$N61,'Individual Spaces'!K:K)) ->  | BG61: =COUNTIF('Individual Spaces'!F:F,'Primary SoA'!$N61) -> 1 | BK61: 0 | BM61: 1 | BU61: 1 | CM61: =IF($S61>0,VLOOKUP($D61,'Prog Assums'!$N$5:$AM$225,12, FALSE),"") -> varies | CN61: =IF($S61>0,VLOOKUP($D61,'Prog Assums'!$N$5:$AM$225,13, FALSE),"") -> 0 | CP61: =IF(U61>0,VLOOKUP(D61,'Prog Assums'!$N$7:$T$175,7,FALSE),"") -> 0 | CQ61: 1.5 | CR61: 3 | CS61: 5 | CT61: 0 | CU61: 0 | CV61: 5 | CW61: 5 | CX61: 0 | CY61: 0 | CZ61: 5 | DA61: - | DN61: =VLOOKUP($C61,'Prog Assums'!$U$5:$AI$290,11,FALSE) -> 6 | DO61: =VLOOKUP($C61,'Prog Assums'!$U$5:$AI$290,12,FALSE) -> - | DP61: =IF(VLOOKUP($C61,'Prog Assums'!$U$5:$AI$290,13,FALSE)="AS SOA",$AI61,VLOOKUP($C61,'Prog Assums'!$U$5:$AI$290,13,FALSE)) -> 11 | DQ61: =VLOOKUP($C61,'Prog Assums'!$U$5:$AI$290,14,FALSE) -> - | DR61: =VLOOKUP($C61,'Prog Assums'!$U$5:$AI$290,15,FALSE) -> 100 | DS61: 0 | DU61: -1 | DV61: -11 | DY61: 0 | EA61: 0 | EB61: 0 | EE61: 0 | EG61: 0 | EH61: 0 | EK61: 0 | EM61: =COUNTIFS($EY$2:$YI$2,'Prog Assums'!$B$125,$EY61:$YI61,">0") -> 0 | EN61: =SUMIF($EY$2:$YI$2,'Prog Assums'!$B$125,$EY61:$YI61) -> 0 | ER61: 0 | ET61: =COUNTIFS($EY$2:$YI$2,'Prog Assums'!$B$126,$EY61:$YI61,">0") -> 0 | EU61: =SUMIF($EY$2:$YI$2,'Prog Assums'!$B$126,$EY61:$YI61) -> 0
A62: =IF($D62="-","",VLOOKUP($D62,'Prog Assums'!$N$5:$X$225,10, FALSE)) -> ADM31 | C62: =IF($D62="-","",VLOOKUP($D62,'Prog Assums'!$N$5:$X$225,8, FALSE)) -> ADM31 | D62: Reception areas, entrance (50% circulation) | M62: =IF(D62="","",_xlfn.XLOOKUP(D62,'Prog Assums'!$N$7:$N$229,'Prog Assums'!$AQ$7:$AQ$229,"")) -> Reception area, entrance (50% circulation) | N62: Reception area, entrance (50% circulation)10 | O62: =IF(VLOOKUP(D62,'Prog Assums'!N$5:V$231,9,FALSE)>0,"retained","") ->  | Q62: - | S62: =AI62+AJ62 -> 10 | U62: 1 | V62: =(S62*U62)-Y62-W62 -> 5 | W62: =S62*U62*0.5 -> 5 | AA62: 0 | AC62: =AI62 -> 5 | AD62: m2 non-net circulation included | AI62: =ROUND(Q10/150,0)+2 -> 5 | AJ62: =AI62 -> 5 | AK62: 1 | AS62: 5 | AU62: =VLOOKUP(D62,'Prog Assums'!$N$98:$O$138,2,FALSE) -> - | BE62: =IF(ISERROR(AVERAGEIF('Individual Spaces'!F:F,$N62,'Individual Spaces'!K:K))=TRUE," ",AVERAGEIF('Individual Spaces'!F:F,$N62,'Individual Spaces'!K:K)) ->  | BG62: =COUNTIF('Individual Spaces'!F:F,'Primary SoA'!$N62) -> 1 | BK62: 0 | BM62: 1 | BU62: 1 | CM62: =IF($S62>0,VLOOKUP($D62,'Prog Assums'!$N$5:$AM$225,12, FALSE),"") -> [6m2] | CN62: =IF($S62>0,VLOOKUP($D62,'Prog Assums'!$N$5:$AM$225,13, FALSE),"") -> 0 | CP62: =IF(U62>0,VLOOKUP(D62,'Prog Assums'!$N$7:$T$175,7,FALSE),"") -> 0 | CQ62: 1.5 | CR62: 3 | CS62: 4 | CT62: 0 | CU62: 0 | CV62: 2 | CW62: 1 | CX62: 0 | CY62: 0 | CZ62: 1 | DA62: - | DN62: =VLOOKUP($C62,'Prog Assums'!$U$5:$AI$290,11,FALSE) -> 4 | DO62: =VLOOKUP($C62,'Prog Assums'!$U$5:$AI$290,12,FALSE) -> - | DP62: =IF(VLOOKUP($C62,'Prog Assums'!$U$5:$AI$290,13,FALSE)="AS SOA",$AI62,VLOOKUP($C62,'Prog Assums'!$U$5:$AI$290,13,FALSE)) -> 5 | DQ62: =VLOOKUP($C62,'Prog Assums'!$U$5:$AI$290,14,FALSE) -> - | DR62: =VLOOKUP($C62,'Prog Assums'!$U$5:$AI$290,15,FALSE) -> 25 | DS62: 0 | DU62: -1 | DV62: -5 | DY62: 0 | EA62: 0 | EB62: 0 | EE62: 0 | EG62: 0 | EH62: 0 | EK62: 0 | EM62: =COUNTIFS($EY$2:$YI$2,'Prog Assums'!$B$125,$EY62:$YI62,">0") -> 0 | EN62: =SUMIF($EY$2:$YI$2,'Prog Assums'!$B$125,$EY62:$YI62) -> 0 | ER62: 0 | ET62: =COUNTIFS($EY$2:$YI$2,'Prog Assums'!$B$126,$EY62:$YI62,">0") -> 0 | EU62: =SUMIF($EY$2:$YI$2,'Prog Assums'!$B$126,$EY62:$YI62) -> 0
A63: =IF($D63="-","",VLOOKUP($D63,'Prog Assums'!$N$5:$X$225,10, FALSE)) -> ADM02 | C63: =IF($D63="-","",VLOOKUP($D63,'Prog Assums'!$N$5:$X$225,8, FALSE)) -> ADM02 | D63: Confidential meetings rooms (interview) | M63: =IF(D63="","",_xlfn.XLOOKUP(D63,'Prog Assums'!$N$7:$N$229,'Prog Assums'!$AQ$7:$AQ$229,"")) -> Confidential meetings room (interview) | N63: Confidential meetings room (interview)6 | O63: =IF(VLOOKUP(D63,'Prog Assums'!N$5:V$231,9,FALSE)>0,"retained","") ->  | Q63: =ROUND((S63-VLOOKUP(AU63,'Prog Assums'!$E$39:$I$54,2,FALSE))/VLOOKUP(AU63,'Prog Assums'!$E$39:$I$54,3,FALSE),0) -> 4 | S63: 6 | U63: 1 | V63: 6 | AA63: 0 | AC63: adjacent to entrance/reception | AI63: 6 | AK63: 1 | AS63: 6 | AU63: =VLOOKUP(D63,'Prog Assums'!$N$98:$O$138,2,FALSE) -> A | BE63: =IF(ISERROR(AVERAGEIF('Individual Spaces'!F:F,$N63,'Individual Spaces'!K:K))=TRUE," ",AVERAGEIF('Individual Spaces'!F:F,$N63,'Individual Spaces'!K:K)) ->  | BG63: =COUNTIF('Individual Spaces'!F:F,'Primary SoA'!$N63) -> 1 | BK63: 0 | BM63: 1 | BU63: 1 | CM63: =IF($S63>0,VLOOKUP($D63,'Prog Assums'!$N$5:$AM$225,12, FALSE),"") -> 6m2 for 3 | CN63: =IF($S63>0,VLOOKUP($D63,'Prog Assums'!$N$5:$AM$225,13, FALSE),"") -> 0 | CP63: =IF(U63>0,VLOOKUP(D63,'Prog Assums'!$N$7:$T$175,7,FALSE),"") -> 0 | CQ63: 1.5 | CR63: 3 | CS63: 1 | CT63: 0 | CU63: 0 | CV63: 1 | CW63: 1 | CX63: 0 | CY63: 0 | CZ63: 1 | DN63: =VLOOKUP($C63,'Prog Assums'!$U$5:$AI$290,11,FALSE) -> 4 | DO63: =VLOOKUP($C63,'Prog Assums'!$U$5:$AI$290,12,FALSE) -> - | DP63: =IF(VLOOKUP($C63,'Prog Assums'!$U$5:$AI$290,13,FALSE)="AS SOA",$AI63,VLOOKUP($C63,'Prog Assums'!$U$5:$AI$290,13,FALSE)) -> 6 | DQ63: =VLOOKUP($C63,'Prog Assums'!$U$5:$AI$290,14,FALSE) -> - | DR63: =VLOOKUP($C63,'Prog Assums'!$U$5:$AI$290,15,FALSE) -> 25 | DS63: 0 | DU63: -1 | DV63: -6 | DY63: 0 | EA63: 0 | EB63: 0 | EE63: 0 | EG63: 0 | EH63: 0 | EK63: 0 | EM63: =COUNTIFS($EY$2:$YI$2,'Prog Assums'!$B$125,$EY63:$YI63,">0") -> 0 | EN63: =SUMIF($EY$2:$YI$2,'Prog Assums'!$B$125,$EY63:$YI63) -> 0 | ER63: 0 | ET63: =COUNTIFS($EY$2:$YI$2,'Prog Assums'!$B$126,$EY63:$YI63,">0") -> 0 | EU63: =SUMIF($EY$2:$YI$2,'Prog Assums'!$B$126,$EY63:$YI63) -> 0
A64: =IF($D64="-","",VLOOKUP($D64,'Prog Assums'!$N$5:$X$225,10, FALSE)) -> ADM03 | C64: =IF($D64="-","",VLOOKUP($D64,'Prog Assums'!$N$5:$X$225,8, FALSE)) -> ADM03 | D64: First aid posts (sick bay) | M64: =IF(D64="","",_xlfn.XLOOKUP(D64,'Prog Assums'!$N$7:$N$229,'Prog Assums'!$AQ$7:$AQ$229,"")) -> First aid post (sick bay) | N64: First aid post (sick bay)4 | O64: =IF(VLOOKUP(D64,'Prog Assums'!N$5:V$231,9,FALSE)>0,"retained","") ->  | Q64: =ROUND((S64-VLOOKUP(AU64,'Prog Assums'!$E$39:$I$54,2,FALSE))/VLOOKUP(AU64,'Prog Assums'!$E$39:$I$54,3,FALSE),0) -> 2 | S64: 4 | U64: 1 | V64: 4 | AA64: 0 | AC64: semi-open area adjacent to reception | AI64: =IF(K10>600,6,4) -> 4 | AK64: 1 | AS64: 4 | AU64: A | BE64: =IF(ISERROR(AVERAGEIF('Individual Spaces'!F:F,$N64,'Individual Spaces'!K:K))=TRUE," ",AVERAGEIF('Individual Spaces'!F:F,$N64,'Individual Spaces'!K:K)) ->  | BG64: =COUNTIF('Individual Spaces'!F:F,'Primary SoA'!$N64) -> 1 | BK64: 0 | BM64: 1 | BU64: 1 | CM64: =IF($S64>0,VLOOKUP($D64,'Prog Assums'!$N$5:$AM$225,12, FALSE),"") -> 6m2 | CN64: =IF($S64>0,VLOOKUP($D64,'Prog Assums'!$N$5:$AM$225,13, FALSE),"") -> 0 | CP64: =IF(U64>0,VLOOKUP(D64,'Prog Assums'!$N$7:$T$175,7,FALSE),"") -> 0 | CQ64: 1.5 | CR64: 3 | CS64: 1 | CT64: 0 | CU64: 0 | CV64: 1 | CW64: 1 | CX64: 0 | CY64: 0 | CZ64: 1 | DN64: =VLOOKUP($C64,'Prog Assums'!$U$5:$AI$290,11,FALSE) -> 4 | DO64: =VLOOKUP($C64,'Prog Assums'!$U$5:$AI$290,12,FALSE) -> - | DP64: =IF(VLOOKUP($C64,'Prog Assums'!$U$5:$AI$290,13,FALSE)="AS SOA",$AI64,VLOOKUP($C64,'Prog Assums'!$U$5:$AI$290,13,FALSE)) -> 6 | DQ64: =VLOOKUP($C64,'Prog Assums'!$U$5:$AI$290,14,FALSE) -> - | DR64: =VLOOKUP($C64,'Prog Assums'!$U$5:$AI$290,15,FALSE) -> 25 | DS64: 0 | DU64: -1 | DV64: -4 | DY64: 0 | EA64: 0 | EB64: 0 | EE64: 0 | EG64: 0 | EH64: 0 | EK64: 0 | EM64: =COUNTIFS($EY$2:$YI$2,'Prog Assums'!$B$125,$EY64:$YI64,">0") -> 0 | EN64: =SUMIF($EY$2:$YI$2,'Prog Assums'!$B$125,$EY64:$YI64) -> 0 | ER64: 0 | ET64: =COUNTIFS($EY$2:$YI$2,'Prog Assums'!$B$126,$EY64:$YI64,">0") -> 0 | EU64: =SUMIF($EY$2:$YI$2,'Prog Assums'!$B$126,$EY64:$YI64) -> 0
A65: =IF($D65="-","",VLOOKUP($D65,'Prog Assums'!$N$5:$X$225,10, FALSE)) -> ADM22 | C65: =IF($D65="-","",VLOOKUP($D65,'Prog Assums'!$N$5:$X$225,8, FALSE)) -> ADM22 | D65: =IF(K8+K12>0,"Kitchenettes, bay (nursery)","-") -> Kitchenettes, bay (nursery) | M65: =IF(D65="","",_xlfn.XLOOKUP(D65,'Prog Assums'!$N$7:$N$229,'Prog Assums'!$AQ$7:$AQ$229,"")) -> Kitchenette, bay (nursery) | N65: Kitchenette, bay (nursery)4 | O65: =IF(VLOOKUP(D65,'Prog Assums'!N$5:V$231,9,FALSE)>0,"retained","") ->  | Q65: =IF(S65>0,MAXA(0,ROUND((S65-VLOOKUP(AU65,'Prog Assums'!$E$39:$I$54,2,FALSE))/VLOOKUP(AU65,'Prog Assums'!$E$39:$I$54,3,FALSE),0)),"-") -> 1 | S65: =VLOOKUP(D65,'Prog Assums'!N$98:R$138,5,FALSE) -> 4 | U65: 1 | V65: 4 | AA65: 0 | AC65: for preparing snacks and drinks for pupils | AI65: 4 | AK65: =IF(K8+K12>0,1,0) -> 1 | AS65: 4 | AU65: =VLOOKUP(D65,'Prog Assums'!$N$98:$O$138,2,FALSE) -> B | BE65: =IF(ISERROR(AVERAGEIF('Individual Spaces'!F:F,$N65,'Individual Spaces'!K:K))=TRUE," ",AVERAGEIF('Individual Spaces'!F:F,$N65,'Individual Spaces'!K:K)) ->  | BG65: =COUNTIF('Individual Spaces'!F:F,'Primary SoA'!$N65) -> 1 | BK65: 0 | BM65: 1 | BU65: 1 | CM65: =IF($S65>0,VLOOKUP($D65,'Prog Assums'!$N$5:$AM$225,12, FALSE),"") -> 4m2 | CN65: =IF($S65>0,VLOOKUP($D65,'Prog Assums'!$N$5:$AM$225,13, FALSE),"") -> 0 | CP65: =IF(U65>0,VLOOKUP(D65,'Prog Assums'!$N$7:$T$175,7,FALSE),"") -> E | CQ65: =VLOOKUP(D65,'Prog Assums'!$N$6:$Q$232,3,0) -> 2.5 | CR65: =VLOOKUP(D65,'Prog Assums'!$N$6:$Q$232,4,0) -> 4 | CS65: 0 | CT65: 0 | CU65: 0 | CV65: 0 | CW65: 0 | CX65: 0 | CY65: 0 | CZ65: 0 | DA65: - | DN65: =VLOOKUP($C65,'Prog Assums'!$U$5:$AI$290,11,FALSE) -> 4 | DO65: =VLOOKUP($C65,'Prog Assums'!$U$5:$AI$290,12,FALSE) -> - | DP65: =IF(VLOOKUP($C65,'Prog Assums'!$U$5:$AI$290,13,FALSE)="AS SOA",$AI65,VLOOKUP($C65,'Prog Assums'!$U$5:$AI$290,13,FALSE)) -> 4 | DQ65: =VLOOKUP($C65,'Prog Assums'!$U$5:$AI$290,14,FALSE) -> - | DR65: =VLOOKUP($C65,'Prog Assums'!$U$5:$AI$290,15,FALSE) -> 12 | DS65: 0 | DU65: -1 | DV65: -4 | DY65: 0 | EA65: 0 | EB65: 0 | EE65: 0 | EG65: 0 | EH65: 0 | EK65: 0 | EM65: =COUNTIFS($EY$2:$YI$2,'Prog Assums'!$B$125,$EY65:$YI65,">0") -> 0 | EN65: =SUMIF($EY$2:$YI$2,'Prog Assums'!$B$125,$EY65:$YI65) -> 0 | ER65: 0 | ET65: =COUNTIFS($EY$2:$YI$2,'Prog Assums'!$B$126,$EY65:$YI65,">0") -> 0 | EU65: =SUMIF($EY$2:$YI$2,'Prog Assums'!$B$126,$EY65:$YI65) -> 0
A66: =IF($D66="-","",VLOOKUP($D66,'Prog Assums'!$N$5:$X$225,10, FALSE)) ->  | C66: =IF($D66="-","",VLOOKUP($D66,'Prog Assums'!$N$5:$X$225,8, FALSE)) ->  | D66: - | M66: =IF(D66="","",_xlfn.XLOOKUP(D66,'Prog Assums'!$N$7:$N$229,'Prog Assums'!$AQ$7:$AQ$229,"")) -> - | N66: =CONCATENATE(M66,S66) -> -0 | O66: =IF(VLOOKUP(D66,'Prog Assums'!N$5:V$231,9,FALSE)>0,"retained","") ->  | Q66: =IF(S66>0,MAXA(0,ROUND((S66-VLOOKUP(AU66,'Prog Assums'!$E$39:$I$54,2,FALSE))/VLOOKUP(AU66,'Prog Assums'!$E$39:$I$54,3,FALSE),0)),"-") -> - | S66: =VLOOKUP(D66,'Prog Assums'!N$98:R$138,5,FALSE) -> 0 | V66: =(S66*U66)-Y66 -> 0 | AA66: =IF(O66="retained",V66+Y66,IF(O66="refurb'ed",V66+Y66,0)) -> 0 | AS66: =MAXA(0,(AI66*AK66)-AT66) -> 0 | AU66: =VLOOKUP(D66,'Prog Assums'!$N$98:$O$138,2,FALSE) -> - | BE66: =IF(ISERROR(AVERAGEIF('Individual Spaces'!F:F,$N66,'Individual Spaces'!K:K))=TRUE," ",AVERAGEIF('Individual Spaces'!F:F,$N66,'Individual Spaces'!K:K)) ->  | BG66: =COUNTIF('Individual Spaces'!F:F,'Primary SoA'!$N66) -> 0 | BH66: =IF(ISERROR((BE66*BG66)=TRUE),"",BE66*BG66) ->  | BJ66: =IF(ISERROR(BH66-$Y66-$V66=TRUE),"",BH66-$Y66-$V66) ->  | BK66: =BG66-$U66 -> 0 | BM66: =SUM(BO66:CK66) -> 0 | BU66: =U66 -> 0 | CM66: =IF($S66>0,VLOOKUP($D66,'Prog Assums'!$N$5:$AM$225,12, FALSE),"") ->  | CN66: =IF($S66>0,VLOOKUP($D66,'Prog Assums'!$N$5:$AM$225,13, FALSE),"") ->  | CP66: =IF(U66>0,VLOOKUP(D66,'Prog Assums'!$N$7:$T$175,7,FALSE),"") ->  | CQ66: =VLOOKUP(D66,'Prog Assums'!$N$6:$Q$232,3,0) -> 0 | CR66: =VLOOKUP(D66,'Prog Assums'!$N$6:$Q$232,4,0) -> 0 | CS66: 0 | CT66: 0 | CU66: 0 | CV66: 0 | CW66: 0 | CX66: 0 | CY66: 0 | CZ66: 0 | DN66: =VLOOKUP($C66,'Prog Assums'!$U$5:$AI$290,11,FALSE) ->  | DO66: =VLOOKUP($C66,'Prog Assums'!$U$5:$AI$290,12,FALSE) ->  | DP66: =IF(VLOOKUP($C66,'Prog Assums'!$U$5:$AI$290,13,FALSE)="AS SOA",$AI66,VLOOKUP($C66,'Prog Assums'!$U$5:$AI$290,13,FALSE)) ->  | DQ66: =VLOOKUP($C66,'Prog Assums'!$U$5:$AI$290,14,FALSE) ->  | DR66: =VLOOKUP($C66,'Prog Assums'!$U$5:$AI$290,15,FALSE) ->  | DS66: 0 | DU66: 0 | DV66: 0 | DY66: 0 | EA66: 0 | EB66: =EA66*DY66 -> 0 | EE66: 0 | EG66: 0 | EH66: =EG66*EE66 -> 0 | EK66: =IF(EN66>0,SUM(EN66/EM66),0) -> 0 | EM66: =COUNTIFS($EY$2:$YI$2,'Prog Assums'!$B$125,$EY66:$YI66,">0") -> 0 | EN66: =SUMIF($EY$2:$YI$2,'Prog Assums'!$B$125,$EY66:$YI66) -> 0 | ER66: =IF(EU66>0,SUM(EU66/ET66),0) -> 0 | ET66: =COUNTIFS($EY$2:$YI$2,'Prog Assums'!$B$126,$EY66:$YI66,">0") -> 0 | EU66: =SUMIF($EY$2:$YI$2,'Prog Assums'!$B$126,$EY66:$YI66) -> 0
A67: =IF($D67="-","",VLOOKUP($D67,'Prog Assums'!$N$5:$X$225,10, FALSE)) ->  | C67: =IF($D67="-","",VLOOKUP($D67,'Prog Assums'!$N$5:$X$225,8, FALSE)) ->  | D67: - | M67: =IF(D67="","",_xlfn.XLOOKUP(D67,'Prog Assums'!$N$7:$N$229,'Prog Assums'!$AQ$7:$AQ$229,"")) -> - | N67: -0 | O67: =IF(VLOOKUP(D67,'Prog Assums'!N$5:V$231,9,FALSE)>0,"retained","") ->  | Q67: =IF(S67>0,MAXA(0,ROUND((S67-VLOOKUP(AU67,'Prog Assums'!$E$39:$I$54,2,FALSE))/VLOOKUP(AU67,'Prog Assums'!$E$39:$I$54,3,FALSE),0)),"-") -> - | S67: =VLOOKUP(D67,'Prog Assums'!N$98:R$138,5,FALSE) -> 0 | V67: 0 | AA67: 0 | AS67: 0 | AU67: =VLOOKUP(D67,'Prog Assums'!$N$98:$O$138,2,FALSE) -> - | BE67: =IF(ISERROR(AVERAGEIF('Individual Spaces'!F:F,$N67,'Individual Spaces'!K:K))=TRUE," ",AVERAGEIF('Individual Spaces'!F:F,$N67,'Individual Spaces'!K:K)) ->  | BG67: =COUNTIF('Individual Spaces'!F:F,'Primary SoA'!$N67) -> 0 | BK67: 0 | BM67: 0 | BU67: 0 | CM67: =IF($S67>0,VLOOKUP($D67,'Prog Assums'!$N$5:$AM$225,12, FALSE),"") ->  | CN67: =IF($S67>0,VLOOKUP($D67,'Prog Assums'!$N$5:$AM$225,13, FALSE),"") ->  | CP67: =IF(U67>0,VLOOKUP(D67,'Prog Assums'!$N$7:$T$175,7,FALSE),"") ->  | CQ67: =VLOOKUP(D67,'Prog Assums'!$N$6:$Q$232,3,0) -> 0 | CR67: =VLOOKUP(D67,'Prog Assums'!$N$6:$Q$232,4,0) -> 0 | CS67: 0 | CT67: 0 | CU67: 0 | CV67: 0 | CW67: 0 | CX67: 0 | CY67: 0 | CZ67: 0 | DN67: =VLOOKUP($C67,'Prog Assums'!$U$5:$AI$290,11,FALSE) ->  | DO67: =VLOOKUP($C67,'Prog Assums'!$U$5:$AI$290,12,FALSE) ->  | DP67: =IF(VLOOKUP($C67,'Prog Assums'!$U$5:$AI$290,13,FALSE)="AS SOA",$AI67,VLOOKUP($C67,'Prog Assums'!$U$5:$AI$290,13,FALSE)) ->  | DQ67: =VLOOKUP($C67,'Prog Assums'!$U$5:$AI$290,14,FALSE) ->  | DR67: =VLOOKUP($C67,'Prog Assums'!$U$5:$AI$290,15,FALSE) ->  | DS67: 0 | DU67: 0 | DV67: 0 | DY67: 0 | EA67: 0 | EB67: 0 | EE67: 0 | EG67: 0 | EH67: 0 | EK67: 0 | EM67: =COUNTIFS($EY$2:$YI$2,'Prog Assums'!$B$125,$EY67:$YI67,">0") -> 0 | EN67: =SUMIF($EY$2:$YI$2,'Prog Assums'!$B$125,$EY67:$YI67) -> 0 | ER67: 0 | ET67: =COUNTIFS($EY$2:$YI$2,'Prog Assums'!$B$126,$EY67:$YI67,">0") -> 0 | EU67: =SUMIF($EY$2:$YI$2,'Prog Assums'!$B$126,$EY67:$YI67) -> 0
D68: TOTAL AREA | L68: BB103 range | M68: BB103 range | N68: BB103 range | O68: =ROUND(30+(K$10*0.2),0) -> 119 | P68: to | Q68: =ROUND(50+(K$10*0.3),0) -> 184 | V68: =SUM(V53:V67) -> 137 | Y68: =SUM(Y53:Y67) -> 0 | AA68: =SUM(AA53:AA67) -> 0 | AC68: =IF(V68<O68,"ERROR: total area for category is too low",IF(V68>Q68,"WARNING: total area for category is high","OK: area within BB103 range")) -> OK: area within BB103 range | AI68: =SUM(AS53:AS67) -> 137 | AK68: =SUM(AT53:AT67) -> 0 | AS68: =SUM(AS53:AS67) -> 137 | AT68: =SUM(AT53:AT67) -> 0 | BH68: =SUM(BH53:BH67) -> 0 | BJ68: =BH68-$Y68-$V68 -> -137 | BO68: =SUM(BO53:BO67) -> 0 | BQ68: =SUM(BQ53:BQ67) -> 0 | BS68: =SUM(BS53:BS67) -> 0 | BU68: =SUM(BU53:BU67) -> 11 | BW68: =SUM(BW53:BW67) -> 0 | BY68: =SUM(BY53:BY67) -> 0 | CA68: =SUM(CA53:CA67) -> 0 | CC68: =SUM(CC53:CC67) -> 0 | CE68: =SUM(CE53:CE67) -> 0 | CG68: =SUM(CG53:CG67) -> 0 | CI68: =SUM(CI53:CI67) -> 0 | CK68: =SUM(CK53:CK67) -> 0 | CM68: =IF($S68>0,VLOOKUP($D68,'Prog Assums'!$N$5:$AM$225,12, FALSE),"") ->  | CN68: =IF($S68>0,VLOOKUP($D68,'Prog Assums'!$N$5:$AM$225,13, FALSE),"") ->  | DV68: =SUM(DV53:DV67) -> -137 | EB68: =SUM(EB53:EB67) -> 0 | EH68: =SUM(EH53:EH67) -> 0 | EN68: =SUM(EN53:EN67) -> 0 | EU68: =SUM(EU53:EU67) -> 0
CM69: =IF($S69>0,VLOOKUP($D69,'Prog Assums'!$N$5:$AM$225,12, FALSE),"") ->  | CN69: =IF($S69>0,VLOOKUP($D69,'Prog Assums'!$N$5:$AM$225,13, FALSE),"") -> 
D70: Storage: teaching storage | AC70: furniture store options | AG70: store used as servery zone | CM70: =IF($S70>0,VLOOKUP($D70,'Prog Assums'!$N$5:$AM$225,12, FALSE),"") ->  | CN70: =IF($S70>0,VLOOKUP($D70,'Prog Assums'!$N$5:$AM$225,13, FALSE),"") -> 
A71: =IF($D71="-","",VLOOKUP($D71,'Prog Assums'!$N$5:$X$225,10, FALSE)) -> STT09 | C71: =IF($D71="-","",VLOOKUP($D71,'Prog Assums'!$N$5:$X$225,8, FALSE)) -> STT09 | D71: Classroom stores, bay (off nursery) | M71: =IF(D71="","",_xlfn.XLOOKUP(D71,'Prog Assums'!$N$7:$N$229,'Prog Assums'!$AQ$7:$AQ$229,"")) -> Classroom store, bay (off nursery) | N71: =CONCATENATE(M71,S71) -> Classroom store, bay (off nursery)4 | O71: =IF(VLOOKUP(D71,'Prog Assums'!N$5:V$231,9,FALSE)>0,"retained","") ->  | S71: =AI71 -> 4 | U71: =ROUNDUP(K8/26,0)+IF(K12>0,ROUNDUP(K12/16,0),0) -> 1 | V71: =(S71*U71)-Y71 -> 4 | Y71: =IF(K12>0,S71*ROUND(K12/16,0),0) -> 0 | AA71: =IF(O71="retained",V71+Y71,IF(O71="refurb'ed",V71+Y71,0)) -> 0 | AI71: =IF((K8+K12)>13,4,2) -> 4 | AK71: =ROUNDUP(K8/26,0)+IF(K12>0,ROUND(K12/16,0),0) -> 1 | AS71: =MAXA(0,(AI71*AK71)-AT71) -> 4 | AT71: =IF(K12>0,AI71*ROUNDUP(K12/16,0),0) -> 0 | BE71: =IF(ISERROR(AVERAGEIF('Individual Spaces'!F:F,$N71,'Individual Spaces'!K:K))=TRUE," ",AVERAGEIF('Individual Spaces'!F:F,$N71,'Individual Spaces'!K:K)) ->  | BG71: =COUNTIF('Individual Spaces'!F:F,'Primary SoA'!$N71) -> 1 | BH71: =IF(ISERROR((BE71*BG71)=TRUE),"",BE71*BG71) ->  | BJ71: =IF(ISERROR(BH71-$Y71-$V71=TRUE),"",BH71-$Y71-$V71) ->  | BK71: =BG71-$U71 -> 0 | BM71: 1 | BO71: =U71 -> 1 | CM71: =IF($S71>0,VLOOKUP($D71,'Prog Assums'!$N$5:$AM$225,12, FALSE),"") -> 4m2 | CN71: =IF($S71>0,VLOOKUP($D71,'Prog Assums'!$N$5:$AM$225,13, FALSE),"") -> 0 | CP71: =IF(U71>0,VLOOKUP(D71,'Prog Assums'!$N$7:$T$175,7,FALSE),"") -> E | CQ71: =VLOOKUP(D71,'Prog Assums'!$N$6:$Q$232,3,0) -> 2 | CR71: =VLOOKUP(D71,'Prog Assums'!$N$6:$Q$232,4,0) -> 4 | CS71: =IF(CP71="E",0,IF(U71=0,0,MAXA(1,ROUNDUP((S71/CQ71)-CR71,0)))) -> 0 | CT71: =IF(CS71>14,IF(CS71<31,CS71,ROUNDDOWN(CS71/30,0)*30),0) -> 0 | CU71: =IF(S71>0,(V71/S71)*CT71,0) -> 0 | CV71: =IF(CS71>0,(V71/S71)*CS71,0)-CU71 -> 0 | CW71: =IF(CP71="E",0,IF(AK71=0,0,MAXA(1,ROUNDUP((AI71/CQ71)-CR71,0)))) -> 0 | CX71: =IF(CW71>14,IF(CW71<31,CW71,ROUNDDOWN(CW71/30,0)*30),0) -> 0 | CY71: =IF(AK71>0,(AS71/AI71)*CX71,0) -> 0 | CZ71: =IF(CW71>0,(AS71/AI71)*CW71,0)-CY71 -> 0 | DA71: - | DN71: =VLOOKUP($C71,'Prog Assums'!$U$5:$AI$290,11,FALSE) -> 1.5 | DO71: =VLOOKUP($C71,'Prog Assums'!$U$5:$AI$290,12,FALSE) -> - | DP71: =IF(VLOOKUP($C71,'Prog Assums'!$U$5:$AI$290,13,FALSE)="AS SOA",$AI71,VLOOKUP($C71,'Prog Assums'!$U$5:$AI$290,13,FALSE)) -> 3 | DQ71: =VLOOKUP($C71,'Prog Assums'!$U$5:$AI$290,14,FALSE) -> - | DR71: =VLOOKUP($C71,'Prog Assums'!$U$5:$AI$290,15,FALSE) -> 25 | DS71: =IF(ISERROR((SUM($EB71,$EH71,$EN71,$EU71)/SUM($EA71,$EG71,$EM71,$ET71)-$S71))=TRUE,0,IF($U71=0,0,(SUM($EB71,$EH71,$EN71,$EU71)/SUM($EA71,$EG71,$EM71,$ET71)-$S71))) -> 0 | DU71: =SUM($EA71,$EG71,$EM71,$ET71)-$U71 -> -1 | DV71: =SUM($EU71,$EN71,$EH71,$EB71)-$V71-$Y71 -> -4 | DY71: 0 | EA71: 0 | EB71: =EA71*DY71 -> 0 | EE71: 0 | EG71: 0 | EH71: =EG71*EE71 -> 0 | EK71: =IF(EN71>0,SUM(EN71/EM71),0) -> 0 | EM71: =COUNTIFS($EY$2:$YI$2,'Prog Assums'!$B$125,$EY71:$YI71,">0") -> 0 | EN71: =SUMIF($EY$2:$YI$2,'Prog Assums'!$B$125,$EY71:$YI71) -> 0 | ER71: =IF(EU71>0,SUM(EU71/ET71),0) -> 0 | ET71: =COUNTIFS($EY$2:$YI$2,'Prog Assums'!$B$126,$EY71:$YI71,">0") -> 0 | EU71: =SUMIF($EY$2:$YI$2,'Prog Assums'!$B$126,$EY71:$YI71) -> 0
A72: =IF($D72="-","",VLOOKUP($D72,'Prog Assums'!$N$5:$X$225,10, FALSE)) -> STT00 | C72: =IF($D72="-","",VLOOKUP($D72,'Prog Assums'!$N$5:$X$225,8, FALSE)) -> STT02 | D72: Classroom stores, room (off reception) | M72: =IF(D72="","",_xlfn.XLOOKUP(D72,'Prog Assums'!$N$7:$N$229,'Prog Assums'!$AQ$7:$AQ$229,"")) -> Classroom store, room (off reception) | N72: =CONCATENATE(M72,S72) -> Classroom store, room (off reception)3 | O72: =IF(VLOOKUP(D72,'Prog Assums'!N$5:V$231,9,FALSE)>0,"retained","") ->  | S72: =AI72 -> 3 | U72: =U22 -> 2 | V72: =(S72*U72)-Y72 -> 6 | AA72: 0 | AI72: =IF((AP$4/10)<1.6,2,3) -> 3 | AK72: =Q4 -> 2 | AS72: =MAXA(0,(AI72*AK72)-AT72) -> 6 | BE72: =IF(ISERROR(AVERAGEIF('Individual Spaces'!F:F,$N72,'Individual Spaces'!K:K))=TRUE," ",AVERAGEIF('Individual Spaces'!F:F,$N72,'Individual Spaces'!K:K)) ->  | BG72: =COUNTIF('Individual Spaces'!F:F,'Primary SoA'!$N72) -> 2 | BK72: =BG72-$U72 -> 0 | BM72: 2 | BO72: =U72 -> 2 | CM72: =IF($S72>0,VLOOKUP($D72,'Prog Assums'!$N$5:$AM$225,12, FALSE),"") -> 3m2 | CN72: =IF($S72>0,VLOOKUP($D72,'Prog Assums'!$N$5:$AM$225,13, FALSE),"") -> 0 | CP72: =IF(U72>0,VLOOKUP(D72,'Prog Assums'!$N$7:$T$175,7,FALSE),"") -> 0 | CQ72: =VLOOKUP(D72,'Prog Assums'!$N$6:$Q$232,3,0) -> 2 | CR72: =VLOOKUP(D72,'Prog Assums'!$N$6:$Q$232,4,0) -> 4 | CS72: 1 | CT72: 0 | CU72: 0 | CV72: 2 | CW72: 1 | CX72: 0 | CY72: 0 | CZ72: 2 | DA72: - | DN72: =VLOOKUP($C72,'Prog Assums'!$U$5:$AI$290,11,FALSE) -> 1.5 | DO72: =VLOOKUP($C72,'Prog Assums'!$U$5:$AI$290,12,FALSE) -> - | DP72: =IF(VLOOKUP($C72,'Prog Assums'!$U$5:$AI$290,13,FALSE)="AS SOA",$AI72,VLOOKUP($C72,'Prog Assums'!$U$5:$AI$290,13,FALSE)) -> 3 | DQ72: =VLOOKUP($C72,'Prog Assums'!$U$5:$AI$290,14,FALSE) -> - | DR72: =VLOOKUP($C72,'Prog Assums'!$U$5:$AI$290,15,FALSE) -> 25 | DS72: =IF(ISERROR((SUM($EB72,$EH72,$EN72,$EU72)/SUM($EA72,$EG72,$EM72,$ET72)-$S72))=TRUE,0,IF($U72=0,0,(SUM($EB72,$EH72,$EN72,$EU72)/SUM($EA72,$EG72,$EM72,$ET72)-$S72))) -> 0 | DU72: =SUM($EA72,$EG72,$EM72,$ET72)-$U72 -> -2 | DV72: =SUM($EU72,$EN72,$EH72,$EB72)-$V72-$Y72 -> -6 | DY72: 0 | EA72: 0 | EB72: =EA72*DY72 -> 0 | EE72: 0 | EG72: 0 | EH72: =EG72*EE72 -> 0 | EK72: =IF(EN72>0,SUM(EN72/EM72),0) -> 0 | EM72: =COUNTIFS($EY$2:$YI$2,'Prog Assums'!$B$125,$EY72:$YI72,">0") -> 0 | EN72: =SUMIF($EY$2:$YI$2,'Prog Assums'!$B$125,$EY72:$YI72) -> 0 | ER72: =IF(EU72>0,SUM(EU72/ET72),0) -> 0 | ET72: =COUNTIFS($EY$2:$YI$2,'Prog Assums'!$B$126,$EY72:$YI72,">0") -> 0 | EU72: =SUMIF($EY$2:$YI$2,'Prog Assums'!$B$126,$EY72:$YI72) -> 0
A73: =IF($D73="-","",VLOOKUP($D73,'Prog Assums'!$N$5:$X$225,10, FALSE)) -> STT00 | C73: =IF($D73="-","",VLOOKUP($D73,'Prog Assums'!$N$5:$X$225,8, FALSE)) -> STT03 | D73: Classroom stores, room (off infants and juniors) | M73: =IF(D73="","",_xlfn.XLOOKUP(D73,'Prog Assums'!$N$7:$N$229,'Prog Assums'!$AQ$7:$AQ$229,"")) -> Classroom store, room (off infants and juniors) | N73: =CONCATENATE(M73,S73) -> Classroom store, room (off infants and juniors)1.5 | O73: =IF(VLOOKUP(D73,'Prog Assums'!N$5:V$231,9,FALSE)>0,"retained","") ->  | S73: =AI73 -> 1.5 | U73: =U23+U25 -> 12 | V73: =(S73*U73)-Y73 -> 18 | AA73: 0 | AI73: =IF(AQ5/20<1.5,1,1.5) -> 1.5 | AK73: =Q5+Q6 -> 12 | AS73: =MAXA(0,(AI73*AK73)-AT73) -> 18 | BE73: =IF(ISERROR(AVERAGEIF('Individual Spaces'!F:F,$N73,'Individual Spaces'!K:K))=TRUE," ",AVERAGEIF('Individual Spaces'!F:F,$N73,'Individual Spaces'!K:K)) ->  | BG73: =COUNTIF('Individual Spaces'!F:F,'Primary SoA'!$N73) -> 12 | BK73: =BG73-$U73 -> 0 | BM73: 12 | BQ73: =U23 -> 4 | BS73: =U25 -> 8 | CM73: =IF($S73>0,VLOOKUP($D73,'Prog Assums'!$N$5:$AM$225,12, FALSE),"") -> 3m2 | CN73: =IF($S73>0,VLOOKUP($D73,'Prog Assums'!$N$5:$AM$225,13, FALSE),"") -> 0 | CP73: =IF(U73>0,VLOOKUP(D73,'Prog Assums'!$N$7:$T$175,7,FALSE),"") -> 0 | CQ73: =VLOOKUP(D73,'Prog Assums'!$N$6:$Q$232,3,0) -> 2 | CR73: =VLOOKUP(D73,'Prog Assums'!$N$6:$Q$232,4,0) -> 4 | CS73: 1 | CT73: 0 | CU73: 0 | CV73: 12 | CW73: 1 | CX73: 0 | CY73: 0 | CZ73: 12 | DA73: - | DN73: =VLOOKUP($C73,'Prog Assums'!$U$5:$AI$290,11,FALSE) -> 1.5 | DO73: =VLOOKUP($C73,'Prog Assums'!$U$5:$AI$290,12,FALSE) -> - | DP73: =IF(VLOOKUP($C73,'Prog Assums'!$U$5:$AI$290,13,FALSE)="AS SOA",$AI73,VLOOKUP($C73,'Prog Assums'!$U$5:$AI$290,13,FALSE)) -> 3 | DQ73: =VLOOKUP($C73,'Prog Assums'!$U$5:$AI$290,14,FALSE) -> - | DR73: =VLOOKUP($C73,'Prog Assums'!$U$5:$AI$290,15,FALSE) -> 25 | DS73: =IF(ISERROR((SUM($EB73,$EH73,$EN73,$EU73)/SUM($EA73,$EG73,$EM73,$ET73)-$S73))=TRUE,0,IF($U73=0,0,(SUM($EB73,$EH73,$EN73,$EU73)/SUM($EA73,$EG73,$EM73,$ET73)-$S73))) -> 0 | DU73: =SUM($EA73,$EG73,$EM73,$ET73)-$U73 -> -12 | DV73: =SUM($EU73,$EN73,$EH73,$EB73)-$V73-$Y73 -> -18 | DY73: 0 | EA73: 0 | EB73: =EA73*DY73 -> 0 | EE73: 0 | EG73: 0 | EH73: =EG73*EE73 -> 0 | EK73: =IF(EN73>0,SUM(EN73/EM73),0) -> 0 | EM73: =COUNTIFS($EY$2:$YI$2,'Prog Assums'!$B$125,$EY73:$YI73,">0") -> 0 | EN73: =SUMIF($EY$2:$YI$2,'Prog Assums'!$B$125,$EY73:$YI73) -> 0 | ER73: =IF(EU73>0,SUM(EU73/ET73),0) -> 0 | ET73: =COUNTIFS($EY$2:$YI$2,'Prog Assums'!$B$126,$EY73:$YI73,">0") -> 0 | EU73: =SUMIF($EY$2:$YI$2,'Prog Assums'!$B$126,$EY73:$YI73) -> 0
A74: =IF($D74="-","",VLOOKUP($D74,'Prog Assums'!$N$5:$X$225,10, FALSE)) -> STT10 | C74: =IF($D74="-","",VLOOKUP($D74,'Prog Assums'!$N$5:$X$225,8, FALSE)) -> STT15 | D74: Teaching resources stores (specialist) | M74: =IF(D74="","",_xlfn.XLOOKUP(D74,'Prog Assums'!$N$7:$N$229,'Prog Assums'!$AQ$7:$AQ$229,"")) -> Teaching resources store (specialist) | N74: =CONCATENATE(M74,S74) -> Teaching resources store (specialist)5 | O74: =IF(VLOOKUP(D74,'Prog Assums'!N$5:V$231,9,FALSE)>0,"retained","") ->  | S74: =VLOOKUP(D74,'Prog Assums'!N$5:R$207,5,FALSE) -> 5 | U74: =IF(D29="food bay/ practical resources",0,U29)+U30+IF(K14>0,2,0) -> 1 | V74: =(S74*U74)-Y74 -> 5 | Y74: =IF(K$14>0,S74*2,0) -> 0 | AA74: 0 | AI74: 5 | AK74: =IF(D29="food bay/ practical resources",0,AK29)+AK30+IF(K14>0,2,0) -> 1 | AS74: =MAXA(0,(AI74*AK74)-AT74) -> 5 | AT74: =IF(K$14>0,AI74*2,0) -> 0 | BE74: =IF(ISERROR(AVERAGEIF('Individual Spaces'!F:F,$N74,'Individual Spaces'!K:K))=TRUE," ",AVERAGEIF('Individual Spaces'!F:F,$N74,'Individual Spaces'!K:K)) ->  | BG74: =COUNTIF('Individual Spaces'!F:F,'Primary SoA'!$N74) -> 1 | BK74: =BG74-$U74 -> 0 | BM74: 1 | BS74: =U74-BW74 -> 1 | BW74: =IF(K$14>0,2,0) -> 0 | CM74: =IF($S74>0,VLOOKUP($D74,'Prog Assums'!$N$5:$AM$225,12, FALSE),"") -> 5m2 | CN74: =IF($S74>0,VLOOKUP($D74,'Prog Assums'!$N$5:$AM$225,13, FALSE),"") -> 0 | CP74: =IF(U74>0,VLOOKUP(D74,'Prog Assums'!$N$7:$T$175,7,FALSE),"") -> 0 | CQ74: =VLOOKUP(D74,'Prog Assums'!$N$6:$Q$232,3,0) -> 2 | CR74: =VLOOKUP(D74,'Prog Assums'!$N$6:$Q$232,4,0) -> 4 | CS74: 1 | CT74: 0 | CU74: 0 | CV74: 1 | CW74: 1 | CX74: 0 | CY74: 0 | CZ74: 1 | DN74: =VLOOKUP($C74,'Prog Assums'!$U$5:$AI$290,11,FALSE) -> 2 | DO74: =VLOOKUP($C74,'Prog Assums'!$U$5:$AI$290,12,FALSE) -> - | DP74: =IF(VLOOKUP($C74,'Prog Assums'!$U$5:$AI$290,13,FALSE)="AS SOA",$AI74,VLOOKUP($C74,'Prog Assums'!$U$5:$AI$290,13,FALSE)) -> 5 | DQ74: =VLOOKUP($C74,'Prog Assums'!$U$5:$AI$290,14,FALSE) -> - | DR74: =VLOOKUP($C74,'Prog Assums'!$U$5:$AI$290,15,FALSE) -> 25 | DS74: =IF(ISERROR((SUM($EB74,$EH74,$EN74,$EU74)/SUM($EA74,$EG74,$EM74,$ET74)-$S74))=TRUE,0,IF($U74=0,0,(SUM($EB74,$EH74,$EN74,$EU74)/SUM($EA74,$EG74,$EM74,$ET74)-$S74))) -> 0 | DU74: =SUM($EA74,$EG74,$EM74,$ET74)-$U74 -> -1 | DV74: =SUM($EU74,$EN74,$EH74,$EB74)-$V74-$Y74 -> -5 | DY74: 0 | EA74: 0 | EB74: =EA74*DY74 -> 0 | EE74: 0 | EG74: 0 | EH74: =EG74*EE74 -> 0 | EK74: =IF(EN74>0,SUM(EN74/EM74),0) -> 0 | EM74: =COUNTIFS($EY$2:$YI$2,'Prog Assums'!$B$125,$EY74:$YI74,">0") -> 0 | EN74: =SUMIF($EY$2:$YI$2,'Prog Assums'!$B$125,$EY74:$YI74) -> 0 | ER74: =IF(EU74>0,SUM(EU74/ET74),0) -> 0 | ET74: =COUNTIFS($EY$2:$YI$2,'Prog Assums'!$B$126,$EY74:$YI74,">0") -> 0 | EU74: =SUMIF($EY$2:$YI$2,'Prog Assums'!$B$126,$EY74:$YI74) -> 0
BH75: 0 | CM75: =IF($S75>0,VLOOKUP($D75,'Prog Assums'!$N$5:$AM$225,12, FALSE),"") ->  | CN75: =IF($S75>0,VLOOKUP($D75,'Prog Assums'!$N$5:$AM$225,13, FALSE),"") ->  | CP75: =IF(U75>0,VLOOKUP(D75,'Prog Assums'!$N$7:$T$175,7,FALSE),"") -> 
A76: =IF($D76="-","",VLOOKUP($D76,'Prog Assums'!$N$5:$X$225,10, FALSE)) -> STH00 | C76: =IF($D76="-","",VLOOKUP($D76,'Prog Assums'!$N$5:$X$225,8, FALSE)) -> STH04 | D76: Sports equipment stores, internal (off hall) | M76: =IF(D76="","",_xlfn.XLOOKUP(D76,'Prog Assums'!$N$7:$N$229,'Prog Assums'!$AQ$7:$AQ$229,"")) -> Sports equipment store, internal (off hall) | N76: =CONCATENATE(M76,S76) -> Sports equipment store, internal (off hall)18 | O76: =IF(VLOOKUP(D76,'Prog Assums'!N$5:V$231,9,FALSE)>0,"retained","") ->  | S76: =AI76 -> 18 | U76: =U35 -> 1 | V76: =(S76*U76)-Y76 -> 18 | AA76: 0 | AC76: =ROUNDDOWN(S35*0.1,0) -> 15 | AD76: m2 total recom'd | AI76: =IF(Q10>350,IF(AN10="hall",18,IF(AN10="both",18,15)),15) -> 18 | AK76: 1 | AS76: =MAXA(0,(AI76*AK76)-AT76) -> 18 | BE76: =IF(ISERROR(AVERAGEIF('Individual Spaces'!F:F,$N76,'Individual Spaces'!K:K))=TRUE," ",AVERAGEIF('Individual Spaces'!F:F,$N76,'Individual Spaces'!K:K)) ->  | BG76: =COUNTIF('Individual Spaces'!F:F,'Primary SoA'!$N76) -> 1 | BK76: =BG76-$U76 -> 0 | BM76: 1 | BU76: =U76 -> 1 | CM76: =IF($S76>0,VLOOKUP($D76,'Prog Assums'!$N$5:$AM$225,12, FALSE),"") -> 10% of hall area | CN76: =IF($S76>0,VLOOKUP($D76,'Prog Assums'!$N$5:$AM$225,13, FALSE),"") -> 0 | CP76: =IF(U76>0,VLOOKUP(D76,'Prog Assums'!$N$7:$T$175,7,FALSE),"") -> 0 | CQ76: =VLOOKUP(D76,'Prog Assums'!$N$6:$Q$232,3,0) -> 2 | CR76: =VLOOKUP(D76,'Prog Assums'!$N$6:$Q$232,4,0) -> 4 | CS76: =IF(CP76="E",0,IF(U76=0,0,MAXA(1,ROUNDUP((S76/CQ76)-CR76,0)))) -> 5 | CT76: =IF(CS76>14,IF(CS76<31,CS76,ROUNDDOWN(CS76/30,0)*30),0) -> 0 | CU76: =IF(S76>0,(V76/S76)*CT76,0) -> 0 | CV76: =IF(CS76>0,(V76/S76)*CS76,0)-CU76 -> 5 | CW76: =IF(CP76="E",0,IF(AK76=0,0,MAXA(1,ROUNDUP((AI76/CQ76)-CR76,0)))) -> 5 | CX76: 0 | CY76: 0 | CZ76: 5 | DA76: - | DN76: =VLOOKUP($C76,'Prog Assums'!$U$5:$AI$290,11,FALSE) -> 12 | DO76: =VLOOKUP($C76,'Prog Assums'!$U$5:$AI$290,12,FALSE) -> - | DP76: =IF(VLOOKUP($C76,'Prog Assums'!$U$5:$AI$290,13,FALSE)="AS SOA",$AI76,VLOOKUP($C76,'Prog Assums'!$U$5:$AI$290,13,FALSE)) -> 18 | DQ76: =VLOOKUP($C76,'Prog Assums'!$U$5:$AI$290,14,FALSE) -> - | DR76: =VLOOKUP($C76,'Prog Assums'!$U$5:$AI$290,15,FALSE) -> 50 | DS76: =IF(ISERROR((SUM($EB76,$EH76,$EN76,$EU76)/SUM($EA76,$EG76,$EM76,$ET76)-$S76))=TRUE,0,IF($U76=0,0,(SUM($EB76,$EH76,$EN76,$EU76)/SUM($EA76,$EG76,$EM76,$ET76)-$S76))) -> 0 | DU76: =SUM($EA76,$EG76,$EM76,$ET76)-$U76 -> -1 | DV76: =SUM($EU76,$EN76,$EH76,$EB76)-$V76-$Y76 -> -18 | DY76: 0 | EA76: 0 | EB76: =EA76*DY76 -> 0 | EE76: 0 | EG76: 0 | EH76: =EG76*EE76 -> 0 | EK76: =IF(EN76>0,SUM(EN76/EM76),0) -> 0 | EM76: =COUNTIFS($EY$2:$YI$2,'Prog Assums'!$B$125,$EY76:$YI76,">0") -> 0 | EN76: =SUMIF($EY$2:$YI$2,'Prog Assums'!$B$125,$EY76:$YI76) -> 0 | ER76: =IF(EU76>0,SUM(EU76/ET76),0) -> 0 | ET76: =COUNTIFS($EY$2:$YI$2,'Prog Assums'!$B$126,$EY76:$YI76,">0") -> 0 | EU76: =SUMIF($EY$2:$YI$2,'Prog Assums'!$B$126,$EY76:$YI76) -> 0
A77: =IF($D77="-","",VLOOKUP($D77,'Prog Assums'!$N$5:$X$225,10, FALSE)) -> STH00 | C77: =IF($D77="-","",VLOOKUP($D77,'Prog Assums'!$N$5:$X$225,8, FALSE)) -> STH03 | D77: =IF(D37="Activity studios (small hall)","Sports equipment stores, internal (activity studio)","-") -> Sports equipment stores, internal (activity studio) | M77: =IF(D77="","",_xlfn.XLOOKUP(D77,'Prog Assums'!$N$7:$N$229,'Prog Assums'!$AQ$7:$AQ$229,"")) -> Sports equipment store, internal (activity studio) | N77: =CONCATENATE(M77,S77) -> Sports equipment store, internal (activity studio)0 | O77: =IF(VLOOKUP(D77,'Prog Assums'!N$5:V$231,9,FALSE)>0,"retained","") ->  | S77: =IF(D37="Activity studios (small hall)",AI77,VLOOKUP(D74,'Prog Assums'!N$5:R$207,5,FALSE)) -> 0 | V77: =(S77*U77)-Y77 -> 0 | AA77: 0 | AC77: =ROUNDUP(S36*0.1,0) -> 6 | AD77: m2 total recom'd | AI77: =IF(D37="small hall",ROUNDDOWN(AI37*0.1,0),0) -> 0 | AS77: =MAXA(0,(AI77*AK77)-AT77) -> 0 | BE77: =IF(ISERROR(AVERAGEIF('Individual Spaces'!F:F,$N77,'Individual Spaces'!K:K))=TRUE," ",AVERAGEIF('Individual Spaces'!F:F,$N77,'Individual Spaces'!K:K)) ->  | BG77: =COUNTIF('Individual Spaces'!F:F,'Primary SoA'!$N77) -> 0 | BK77: =BG77-$U77 -> 0 | BM77: 0 | BU77: =U77 -> 0 | CM77: =IF($S77>0,VLOOKUP($D77,'Prog Assums'!$N$5:$AM$225,12, FALSE),"") ->  | CN77: =IF($S77>0,VLOOKUP($D77,'Prog Assums'!$N$5:$AM$225,13, FALSE),"") ->  | CP77: =IF(U77>0,VLOOKUP(D77,'Prog Assums'!$N$7:$T$175,7,FALSE),"") ->  | CQ77: =VLOOKUP(D77,'Prog Assums'!$N$6:$Q$232,3,0) -> 2 | CR77: =VLOOKUP(D77,'Prog Assums'!$N$6:$Q$232,4,0) -> 4 | CS77: 0 | CT77: 0 | CU77: 0 | CV77: 0 | CW77: 0 | CX77: 0 | CY77: 0 | CZ77: 0 | DA77: - | DN77: =VLOOKUP($C77,'Prog Assums'!$U$5:$AI$290,11,FALSE) -> 12 | DO77: =VLOOKUP($C77,'Prog Assums'!$U$5:$AI$290,12,FALSE) -> - | DP77: =IF(VLOOKUP($C77,'Prog Assums'!$U$5:$AI$290,13,FALSE)="AS SOA",$AI77,VLOOKUP($C77,'Prog Assums'!$U$5:$AI$290,13,FALSE)) -> 12 | DQ77: =VLOOKUP($C77,'Prog Assums'!$U$5:$AI$290,14,FALSE) -> - | DR77: =VLOOKUP($C77,'Prog Assums'!$U$5:$AI$290,15,FALSE) -> 50 | DS77: =IF(ISERROR((SUM($EB77,$EH77,$EN77,$EU77)/SUM($EA77,$EG77,$EM77,$ET77)-$S77))=TRUE,0,IF($U77=0,0,(SUM($EB77,$EH77,$EN77,$EU77)/SUM($EA77,$EG77,$EM77,$ET77)-$S77))) -> 0 | DU77: =SUM($EA77,$EG77,$EM77,$ET77)-$U77 -> 0 | DV77: =SUM($EU77,$EN77,$EH77,$EB77)-$V77-$Y77 -> 0 | DY77: 0 | EA77: 0 | EB77: =EA77*DY77 -> 0 | EE77: 0 | EG77: 0 | EH77: =EG77*EE77 -> 0 | EK77: =IF(EN77>0,SUM(EN77/EM77),0) -> 0 | EM77: =COUNTIFS($EY$2:$YI$2,'Prog Assums'!$B$125,$EY77:$YI77,">0") -> 0 | EN77: =SUMIF($EY$2:$YI$2,'Prog Assums'!$B$125,$EY77:$YI77) -> 0 | ER77: =IF(EU77>0,SUM(EU77/ET77),0) -> 0 | ET77: =COUNTIFS($EY$2:$YI$2,'Prog Assums'!$B$126,$EY77:$YI77,">0") -> 0 | EU77: =SUMIF($EY$2:$YI$2,'Prog Assums'!$B$126,$EY77:$YI77) -> 0
A78: =IF($D78="-","",VLOOKUP($D78,'Prog Assums'!$N$5:$X$225,10, FALSE)) -> STH05 | C78: =IF($D78="-","",VLOOKUP($D78,'Prog Assums'!$N$5:$X$225,8, FALSE)) -> STH05 | D78: Sports equipment stores, external | M78: =IF(D78="","",_xlfn.XLOOKUP(D78,'Prog Assums'!$N$7:$N$229,'Prog Assums'!$AQ$7:$AQ$229,"")) -> Sports equipment store, external | N78: =CONCATENATE(M78,S78) -> Sports equipment store, external4 | O78: =IF(VLOOKUP(D78,'Prog Assums'!N$5:V$231,9,FALSE)>0,"retained","") ->  | S78: =AI78 -> 4 | U78: =AK78 -> 1 | V78: =(S78*U78)-Y78 -> 4 | AA78: 0 | AI78: 4 | AK78: 1 | AS78: =MAXA(0,(AI78*AK78)-AT78) -> 4 | BE78: =IF(ISERROR(AVERAGEIF('Individual Spaces'!F:F,$N78,'Individual Spaces'!K:K))=TRUE," ",AVERAGEIF('Individual Spaces'!F:F,$N78,'Individual Spaces'!K:K)) ->  | BG78: =COUNTIF('Individual Spaces'!F:F,'Primary SoA'!$N78) -> 1 | BK78: =BG78-$U78 -> 0 | BM78: 1 | BY78: =U78 -> 1 | CM78: =IF($S78>0,VLOOKUP($D78,'Prog Assums'!$N$5:$AM$225,12, FALSE),"") -> 8m2 | CN78: =IF($S78>0,VLOOKUP($D78,'Prog Assums'!$N$5:$AM$225,13, FALSE),"") -> 0 | CP78: =IF(U78>0,VLOOKUP(D78,'Prog Assums'!$N$7:$T$175,7,FALSE),"") -> 0 | CQ78: =VLOOKUP(D78,'Prog Assums'!$N$6:$Q$232,3,0) -> 2 | CR78: =VLOOKUP(D78,'Prog Assums'!$N$6:$Q$232,4,0) -> 4 | CS78: 1 | CT78: 0 | CU78: 0 | CV78: 1 | CW78: 1 | CX78: 0 | CY78: 0 | CZ78: 1 | DA78: - | DN78: =VLOOKUP($C78,'Prog Assums'!$U$5:$AI$290,11,FALSE) -> 2 | DO78: =VLOOKUP($C78,'Prog Assums'!$U$5:$AI$290,12,FALSE) -> - | DP78: =IF(VLOOKUP($C78,'Prog Assums'!$U$5:$AI$290,13,FALSE)="AS SOA",$AI78,VLOOKUP($C78,'Prog Assums'!$U$5:$AI$290,13,FALSE)) -> 8 | DQ78: =VLOOKUP($C78,'Prog Assums'!$U$5:$AI$290,14,FALSE) -> - | DR78: =VLOOKUP($C78,'Prog Assums'!$U$5:$AI$290,15,FALSE) -> 25 | DS78: =IF(ISERROR((SUM($EB78,$EH78,$EN78,$EU78)/SUM($EA78,$EG78,$EM78,$ET78)-$S78))=TRUE,0,IF($U78=0,0,(SUM($EB78,$EH78,$EN78,$EU78)/SUM($EA78,$EG78,$EM78,$ET78)-$S78))) -> 0 | DU78: =SUM($EA78,$EG78,$EM78,$ET78)-$U78 -> -1 | DV78: =SUM($EU78,$EN78,$EH78,$EB78)-$V78-$Y78 -> -4 | DY78: 0 | EA78: 0 | EB78: =EA78*DY78 -> 0 | EE78: 0 | EG78: 0 | EH78: =EG78*EE78 -> 0 | EK78: =IF(EN78>0,SUM(EN78/EM78),0) -> 0 | EM78: =COUNTIFS($EY$2:$YI$2,'Prog Assums'!$B$125,$EY78:$YI78,">0") -> 0 | EN78: =SUMIF($EY$2:$YI$2,'Prog Assums'!$B$125,$EY78:$YI78) -> 0 | ER78: =IF(EU78>0,SUM(EU78/ET78),0) -> 0 | ET78: =COUNTIFS($EY$2:$YI$2,'Prog Assums'!$B$126,$EY78:$YI78,">0") -> 0 | EU78: =SUMIF($EY$2:$YI$2,'Prog Assums'!$B$126,$EY78:$YI78) -> 0
D79: Non-teaching storage | BH79: 0 | CM79: =IF($S79>0,VLOOKUP($D79,'Prog Assums'!$N$5:$AM$225,12, FALSE),"") ->  | CN79: =IF($S79>0,VLOOKUP($D79,'Prog Assums'!$N$5:$AM$225,13, FALSE),"") -> 
A80: =IF($D80="-","",VLOOKUP($D80,'Prog Assums'!$N$5:$X$225,10, FALSE)) -> STH15 | C80: =IF($D80="-","",VLOOKUP($D80,'Prog Assums'!$N$5:$X$225,8, FALSE)) -> STH15 | D80: =VLOOKUP(AG70,'Prog Assums'!B57:C60,2,FALSE) -> Dining furniture stores, and servery | M80: =IF(D80="","",_xlfn.XLOOKUP(D80,'Prog Assums'!$N$7:$N$229,'Prog Assums'!$AQ$7:$AQ$229,"")) -> Dining furniture store, and servery | N80: =CONCATENATE(M80,S80) -> Dining furniture store, and servery14 | O80: =IF(VLOOKUP(D80,'Prog Assums'!N$5:V$231,9,FALSE)>0,"retained","") ->  | S80: =AI80 -> 14 | U80: =AK80 -> 1 | V80: =(S80*U80)-Y80 -> 14 | AA80: 0 | AC80: =IF(AN10="dining",2+ROUNDUP(Q10*0.01,0),ROUND(1+(Q10*0.03),0)) -> 14 | AD80: m2 needed to store all chairs & tables | AI80: =AC80 -> 14 | AK80: 1 | AS80: =MAXA(0,(AI80*AK80)-AT80) -> 14 | BE80: =IF(ISERROR(AVERAGEIF('Individual Spaces'!F:F,$N80,'Individual Spaces'!K:K))=TRUE," ",AVERAGEIF('Individual Spaces'!F:F,$N80,'Individual Spaces'!K:K)) ->  | BG80: =COUNTIF('Individual Spaces'!F:F,'Primary SoA'!$N80) -> 1 | BK80: =BG80-$U80 -> 0 | BM80: 1 | BU80: =U80 -> 1 | CM80: =IF($S80>0,VLOOKUP($D80,'Prog Assums'!$N$5:$AM$225,12, FALSE),"") -> 0 | CN80: =IF($S80>0,VLOOKUP($D80,'Prog Assums'!$N$5:$AM$225,13, FALSE),"") -> 0 | CP80: =IF(U80>0,VLOOKUP(D80,'Prog Assums'!$N$7:$T$175,7,FALSE),"") -> 0 | CQ80: =VLOOKUP(D80,'Prog Assums'!$N$6:$Q$232,3,0) -> 2 | CR80: =VLOOKUP(D80,'Prog Assums'!$N$6:$Q$232,4,0) -> 4 | CS80: =IF(CP80="E",0,IF(U80=0,0,MAXA(1,ROUNDUP((S80/CQ80)-CR80,0)))) -> 3 | CT80: =IF(CS80>14,IF(CS80<31,CS80,ROUNDDOWN(CS80/30,0)*30),0) -> 0 | CU80: =IF(S80>0,(V80/S80)*CT80,0) -> 0 | CV80: =IF(CS80>0,(V80/S80)*CS80,0)-CU80 -> 3 | CW80: =IF(CP80="E",0,IF(AK80=0,0,MAXA(1,ROUNDUP((AI80/CQ80)-CR80,0)))) -> 3 | CX80: =IF(CW80>14,IF(CW80<31,CW80,ROUNDDOWN(CW80/30,0)*30),0) -> 0 | CY80: =IF(AK80>0,(AS80/AI80)*CX80,0) -> 0 | CZ80: =IF(CW80>0,(AS80/AI80)*CW80,0)-CY80 -> 3 | DA80: - | DN80: =VLOOKUP($C80,'Prog Assums'!$U$5:$AI$290,11,FALSE) -> 6 | DO80: =VLOOKUP($C80,'Prog Assums'!$U$5:$AI$290,12,FALSE) -> - | DP80: =IF(VLOOKUP($C80,'Prog Assums'!$U$5:$AI$290,13,FALSE)="AS SOA",$AI80,VLOOKUP($C80,'Prog Assums'!$U$5:$AI$290,13,FALSE)) -> 20 | DQ80: =VLOOKUP($C80,'Prog Assums'!$U$5:$AI$290,14,FALSE) -> - | DR80: =VLOOKUP($C80,'Prog Assums'!$U$5:$AI$290,15,FALSE) -> 50 | DS80: =IF(ISERROR((SUM($EB80,$EH80,$EN80,$EU80)/SUM($EA80,$EG80,$EM80,$ET80)-$S80))=TRUE,0,IF($U80=0,0,(SUM($EB80,$EH80,$EN80,$EU80)/SUM($EA80,$EG80,$EM80,$ET80)-$S80))) -> 0 | DU80: =SUM($EA80,$EG80,$EM80,$ET80)-$U80 -> -1 | DV80: =SUM($EU80,$EN80,$EH80,$EB80)-$V80-$Y80 -> -14 | DY80: 0 | EB80: =EA80*DY80 -> 0 | EE80: 0 | EG80: 0 | EH80: =EG80*EE80 -> 0 | EK80: =IF(EN80>0,SUM(EN80/EM80),0) -> 0 | EM80: =COUNTIFS($EY$2:$YI$2,'Prog Assums'!$B$125,$EY80:$YI80,">0") -> 0 | EN80: =SUMIF($EY$2:$YI$2,'Prog Assums'!$B$125,$EY80:$YI80) -> 0 | ER80: =IF(EU80>0,SUM(EU80/ET80),0) -> 0 | ET80: =COUNTIFS($EY$2:$YI$2,'Prog Assums'!$B$126,$EY80:$YI80,">0") -> 0 | EU80: =SUMIF($EY$2:$YI$2,'Prog Assums'!$B$126,$EY80:$YI80) -> 0
A81: =IF($D81="-","",VLOOKUP($D81,'Prog Assums'!$N$5:$X$225,10, FALSE)) -> STN50 | C81: =IF($D81="-","",VLOOKUP($D81,'Prog Assums'!$N$5:$X$225,8, FALSE)) -> STN50 | D81: Secure storerooms | M81: =IF(D81="","",_xlfn.XLOOKUP(D81,'Prog Assums'!$N$7:$N$229,'Prog Assums'!$AQ$7:$AQ$229,"")) -> Secure storeroom | N81: Secure storeroom8 | O81: =IF(VLOOKUP(D81,'Prog Assums'!N$5:V$231,9,FALSE)>0,"retained","") ->  | S81: =VLOOKUP(D81,'Prog Assums'!N$5:R$207,5,FALSE) -> 8 | V81: 0 | AA81: 0 | AI81: 8 | AS81: 0 | BE81: =IF(ISERROR(AVERAGEIF('Individual Spaces'!F:F,$N81,'Individual Spaces'!K:K))=TRUE," ",AVERAGEIF('Individual Spaces'!F:F,$N81,'Individual Spaces'!K:K)) ->  | BG81: =COUNTIF('Individual Spaces'!F:F,'Primary SoA'!$N81) -> 0 | BK81: 0 | BM81: 0 | BW81: =U81 -> 0 | CM81: =IF($S81>0,VLOOKUP($D81,'Prog Assums'!$N$5:$AM$225,12, FALSE),"") -> 8m2 | CN81: =IF($S81>0,VLOOKUP($D81,'Prog Assums'!$N$5:$AM$225,13, FALSE),"") -> 0 | CP81: =IF(U81>0,VLOOKUP(D81,'Prog Assums'!$N$7:$T$175,7,FALSE),"") ->  | CQ81: =VLOOKUP(D81,'Prog Assums'!$N$6:$Q$232,3,0) -> 2 | CR81: =VLOOKUP(D81,'Prog Assums'!$N$6:$Q$232,4,0) -> 4 | CS81: 0 | CT81: 0 | CU81: 0 | CV81: 0 | CW81: 0 | CX81: 0 | CY81: 0 | CZ81: 0 | DA81: - | DN81: =VLOOKUP($C81,'Prog Assums'!$U$5:$AI$290,11,FALSE) -> 1.5 | DO81: =VLOOKUP($C81,'Prog Assums'!$U$5:$AI$290,12,FALSE) -> - | DP81: =IF(VLOOKUP($C81,'Prog Assums'!$U$5:$AI$290,13,FALSE)="AS SOA",$AI81,VLOOKUP($C81,'Prog Assums'!$U$5:$AI$290,13,FALSE)) -> 8 | DQ81: =VLOOKUP($C81,'Prog Assums'!$U$5:$AI$290,14,FALSE) -> - | DR81: =VLOOKUP($C81,'Prog Assums'!$U$5:$AI$290,15,FALSE) -> 25 | DS81: 0 | DU81: 0 | DV81: 0 | DY81: 0 | EA81: 0 | EB81: 0 | EE81: 0 | EG81: 0 | EH81: 0 | EK81: 0 | EM81: =COUNTIFS($EY$2:$YI$2,'Prog Assums'!$B$125,$EY81:$YI81,">0") -> 0 | EN81: =SUMIF($EY$2:$YI$2,'Prog Assums'!$B$125,$EY81:$YI81) -> 0 | ER81: 0 | ET81: =COUNTIFS($EY$2:$YI$2,'Prog Assums'!$B$126,$EY81:$YI81,">0") -> 0 | EU81: =SUMIF($EY$2:$YI$2,'Prog Assums'!$B$126,$EY81:$YI81) -> 0
A82: =IF($D82="-","",VLOOKUP($D82,'Prog Assums'!$N$5:$X$225,10, FALSE)) -> CIR06 | C82: =IF($D82="-","",VLOOKUP($D82,'Prog Assums'!$N$5:$X$225,8, FALSE)) -> CIR06 | D82: Equipment stores, appliance bay | M82: =IF(D82="","",_xlfn.XLOOKUP(D82,'Prog Assums'!$N$7:$N$229,'Prog Assums'!$AQ$7:$AQ$229,"")) -> Equipment store, appliance bay | N82: Equipment store, appliance bay1.5 | O82: =IF(VLOOKUP(D82,'Prog Assums'!N$5:V$231,9,FALSE)>0,"retained","") ->  | S82: =VLOOKUP(D82,'Prog Assums'!N$5:R$207,5,FALSE) -> 1.5 | U82: =AK82 -> 2 | V82: 3 | Y82: =IF(K$14>0,S82,0) -> 0 | AA82: 0 | AC82: =IF(D82="wheelchair/ appliance bay(s)","open bay off circulation","wheelchair/ appliance bay(s) recommended") -> wheelchair/ appliance bay(s) recommended | AI82: 1.5 | AK82: =ROUND(Q10/300,0)+IF(K14>0,2,1) -> 2 | AS82: 3 | AT82: =IF(K$14>0,S82,0) -> 0 | BE82: =IF(ISERROR(AVERAGEIF('Individual Spaces'!F:F,$N82,'Individual Spaces'!K:K))=TRUE," ",AVERAGEIF('Individual Spaces'!F:F,$N82,'Individual Spaces'!K:K)) ->  | BG82: =COUNTIF('Individual Spaces'!F:F,'Primary SoA'!$N82) -> 2 | BK82: 0 | BM82: 2 | BW82: =IF(K$14>0,1,0) -> 0 | BY82: =U82-BW82 -> 2 | CM82: =IF($S82>0,VLOOKUP($D82,'Prog Assums'!$N$5:$AM$225,12, FALSE),"") -> 1.5m2 | CN82: =IF($S82>0,VLOOKUP($D82,'Prog Assums'!$N$5:$AM$225,13, FALSE),"") -> 0 | CP82: =IF(U82>0,VLOOKUP(D82,'Prog Assums'!$N$7:$T$175,7,FALSE),"") -> 0 | CQ82: =VLOOKUP(D82,'Prog Assums'!$N$6:$Q$232,3,0) -> 2 | CR82: =VLOOKUP(D82,'Prog Assums'!$N$6:$Q$232,4,0) -> 4 | CS82: 1 | CT82: 0 | CU82: 0 | CV82: 2 | CW82: 1 | CX82: 0 | CY82: 0 | CZ82: 2 | DN82: =VLOOKUP($C82,'Prog Assums'!$U$5:$AI$290,11,FALSE) -> 1.5 | DO82: =VLOOKUP($C82,'Prog Assums'!$U$5:$AI$290,12,FALSE) -> - | DP82: =IF(VLOOKUP($C82,'Prog Assums'!$U$5:$AI$290,13,FALSE)="AS SOA",$AI82,VLOOKUP($C82,'Prog Assums'!$U$5:$AI$290,13,FALSE)) -> 1.5 | DQ82: =VLOOKUP($C82,'Prog Assums'!$U$5:$AI$290,14,FALSE) -> - | DR82: =VLOOKUP($C82,'Prog Assums'!$U$5:$AI$290,15,FALSE) -> 6 | DS82: 0 | DU82: -2 | DV82: -3 | DY82: 0 | EA82: 0 | EB82: 0 | EE82: 0 | EG82: 0 | EH82: 0 | EK82: 0 | EM82: =COUNTIFS($EY$2:$YI$2,'Prog Assums'!$B$125,$EY82:$YI82,">0") -> 0 | EN82: =SUMIF($EY$2:$YI$2,'Prog Assums'!$B$125,$EY82:$YI82) -> 0 | ER82: 0 | ET82: =COUNTIFS($EY$2:$YI$2,'Prog Assums'!$B$126,$EY82:$YI82,">0") -> 0 | EU82: =SUMIF($EY$2:$YI$2,'Prog Assums'!$B$126,$EY82:$YI82) -> 0
A83: =IF($D83="-","",VLOOKUP($D83,'Prog Assums'!$N$5:$X$225,10, FALSE)) -> STN00 | C83: =IF($D83="-","",VLOOKUP($D83,'Prog Assums'!$N$5:$X$225,8, FALSE)) -> STN01 | D83: Coats and bags stores (coat hooks) | M83: =IF(D83="","",_xlfn.XLOOKUP(D83,'Prog Assums'!$N$7:$N$229,'Prog Assums'!$AQ$7:$AQ$229,"")) -> Coats and bags store (coat hooks) | N83: Coats and bags store (coat hooks)3 | O83: =IF(VLOOKUP(D83,'Prog Assums'!N$5:V$231,9,FALSE)>0,"retained","") ->  | S83: =AI83 -> 3 | U83: =ROUNDUP(IF(K14>0,1,0)+U23+U25,0) -> 12 | V83: 36 | Y83: =IF(U20>0,U20*S83,0)+IF(K$14>0,S83,0) -> 0 | AA83: 0 | AC83: =IF(V83<(0.05*K10),"must have space for pupils' coats","OK") -> OK | AI83: 3 | AK83: =ROUNDUP(IF(K14>0,1,0)+AK23+AK25,0) -> 12 | AS83: 36 | AT83: =IF(U20>0,U20*S83,0)+IF(K$14>0,S83,0) -> 0 | BE83: =IF(ISERROR(AVERAGEIF('Individual Spaces'!F:F,$N83,'Individual Spaces'!K:K))=TRUE," ",AVERAGEIF('Individual Spaces'!F:F,$N83,'Individual Spaces'!K:K)) ->  | BG83: =COUNTIF('Individual Spaces'!F:F,'Primary SoA'!$N83) -> 12 | BK83: 0 | BM83: 12 | BQ83: =U23 -> 4 | BS83: =U25 -> 8 | BW83: =IF(K$14>0,1,0) -> 0 | BY83: =U83-SUM(BO83:BW83) -> 0 | CM83: =IF($S83>0,VLOOKUP($D83,'Prog Assums'!$N$5:$AM$225,12, FALSE),"") -> [15m2] | CN83: =IF($S83>0,VLOOKUP($D83,'Prog Assums'!$N$5:$AM$225,13, FALSE),"") -> 0 | CP83: =IF(U83>0,VLOOKUP(D83,'Prog Assums'!$N$7:$T$175,7,FALSE),"") -> 0 | CQ83: =VLOOKUP(D83,'Prog Assums'!$N$6:$Q$232,3,0) -> 2 | CR83: =VLOOKUP(D83,'Prog Assums'!$N$6:$Q$232,4,0) -> 4 | CS83: 1 | CT83: 0 | CU83: 0 | CV83: 12 | CW83: 1 | CX83: 0 | CY83: 0 | CZ83: 12 | DA83: - | DN83: =VLOOKUP($C83,'Prog Assums'!$U$5:$AI$290,11,FALSE) -> 1.5 | DO83: =VLOOKUP($C83,'Prog Assums'!$U$5:$AI$290,12,FALSE) -> - | DP83: =IF(VLOOKUP($C83,'Prog Assums'!$U$5:$AI$290,13,FALSE)="AS SOA",$AI83,VLOOKUP($C83,'Prog Assums'!$U$5:$AI$290,13,FALSE)) -> 3 | DQ83: =VLOOKUP($C83,'Prog Assums'!$U$5:$AI$290,14,FALSE) -> - | DR83: =VLOOKUP($C83,'Prog Assums'!$U$5:$AI$290,15,FALSE) -> 25 | DS83: 0 | DU83: -12 | DV83: -36 | DY83: 0 | EA83: 0 | EB83: 0 | EE83: 0 | EG83: 0 | EH83: 0 | EK83: 0 | EM83: =COUNTIFS($EY$2:$YI$2,'Prog Assums'!$B$125,$EY83:$YI83,">0") -> 0 | EN83: =SUMIF($EY$2:$YI$2,'Prog Assums'!$B$125,$EY83:$YI83) -> 0 | ER83: 0 | ET83: =COUNTIFS($EY$2:$YI$2,'Prog Assums'!$B$126,$EY83:$YI83,">0") -> 0 | EU83: =SUMIF($EY$2:$YI$2,'Prog Assums'!$B$126,$EY83:$YI83) -> 0
A84: =IF($D84="-","",VLOOKUP($D84,'Prog Assums'!$N$5:$X$225,10, FALSE)) -> STN11 | C84: =IF($D84="-","",VLOOKUP($D84,'Prog Assums'!$N$5:$X$225,8, FALSE)) -> STN11 | D84: Cloakrooms, early years (50% circ) | M84: =IF(D84="","",_xlfn.XLOOKUP(D84,'Prog Assums'!$N$7:$N$229,'Prog Assums'!$AQ$7:$AQ$229,"")) -> Cloakroom, early years (50% circ) | N84: Cloakroom, early years (50% circ)12 | O84: =IF(VLOOKUP(D84,'Prog Assums'!N$5:V$231,9,FALSE)>0,"retained","") ->  | S84: =AI84+AJ84 -> 12 | U84: =AK84 -> 1 | V84: =MAXA(0,(S84*U84)-Y84-(U84*AC84)) -> 6 | W84: =S84*U84*0.5 -> 6 | Y84: =IF(U20>0,S84/2,0) -> 0 | AA84: =IF(O84="retained",V84+Y84,IF(O84="refurb'ed",V84+Y84,0)) -> 0 | AC84: =AI84 -> 6 | AD84: m2 non-net circulation incl in each | AI84: =IF((K4+K8+K12)>32,6,3) -> 6 | AJ84: =AI84 -> 6 | AK84: =IF((K4+K8+K12)>65,ROUND((K8+K12)/60,0)+ROUNDUP(AK22/2,0),ROUNDUP((K8+K4+K12)/100,0)) -> 1 | AS84: =MAXA(0,(AI84*AK84)-AT84) -> 6 | BE84: =IF(ISERROR(AVERAGEIF('Individual Spaces'!F:F,$N84,'Individual Spaces'!K:K))=TRUE," ",AVERAGEIF('Individual Spaces'!F:F,$N84,'Individual Spaces'!K:K)) ->  | BG84: =COUNTIF('Individual Spaces'!F:F,'Primary SoA'!$N84) -> 1 | BH84: =IF(ISERROR((BE84*BG84)=TRUE),"",BE84*BG84) ->  | BJ84: =IF(ISERROR(BH84-$Y84-$V84=TRUE),"",BH84-$Y84-$V84) ->  | BK84: =BG84-$U84 -> 0 | BM84: 1 | BO84: =U84 -> 1 | CP84: =IF(U84>0,VLOOKUP(D84,'Prog Assums'!$N$7:$T$175,7,FALSE),"") -> 0 | CQ84: =VLOOKUP(D84,'Prog Assums'!$N$6:$Q$232,3,0) -> 2 | CR84: =VLOOKUP(D84,'Prog Assums'!$N$6:$Q$232,4,0) -> 4 | CS84: 2 | CT84: 0 | CU84: 0 | CV84: 1 | CW84: 1 | CX84: 0 | CY84: 0 | CZ84: 1 | DN84: =VLOOKUP($C84,'Prog Assums'!$U$5:$AI$290,11,FALSE) -> 4 | DO84: =VLOOKUP($C84,'Prog Assums'!$U$5:$AI$290,12,FALSE) -> - | DP84: =IF(VLOOKUP($C84,'Prog Assums'!$U$5:$AI$290,13,FALSE)="AS SOA",$AI84,VLOOKUP($C84,'Prog Assums'!$U$5:$AI$290,13,FALSE)) -> 10 | DQ84: =VLOOKUP($C84,'Prog Assums'!$U$5:$AI$290,14,FALSE) -> - | DR84: =VLOOKUP($C84,'Prog Assums'!$U$5:$AI$290,15,FALSE) -> 25 | DS84: 0 | DU84: -1 | DV84: -6 | DY84: 0 | EA84: 0 | EB84: =EA84*DY84 -> 0 | EE84: 0 | EG84: 0 | EH84: =EG84*EE84 -> 0 | EK84: =IF(EN84>0,SUM(EN84/EM84),0) -> 0 | EM84: =COUNTIFS($EY$2:$YI$2,'Prog Assums'!$B$125,$EY84:$YI84,">0") -> 0 | EN84: =SUMIF($EY$2:$YI$2,'Prog Assums'!$B$125,$EY84:$YI84) -> 0 | ER84: =IF(EU84>0,SUM(EU84/ET84),0) -> 0 | ET84: =COUNTIFS($EY$2:$YI$2,'Prog Assums'!$B$126,$EY84:$YI84,">0") -> 0 | EU84: =SUMIF($EY$2:$YI$2,'Prog Assums'!$B$126,$EY84:$YI84) -> 0
A85: =IF($D85="-","",VLOOKUP($D85,'Prog Assums'!$N$5:$X$225,10, FALSE)) -> STN31 | C85: =IF($D85="-","",VLOOKUP($D85,'Prog Assums'!$N$5:$X$225,8, FALSE)) -> STN31 | D85: Cleaners' stores | M85: =IF(D85="","",_xlfn.XLOOKUP(D85,'Prog Assums'!$N$7:$N$229,'Prog Assums'!$AQ$7:$AQ$229,"")) -> Cleaners' store | N85: Cleaners' store1.5 | O85: =IF(VLOOKUP(D85,'Prog Assums'!N$5:V$231,9,FALSE)>0,"retained","") ->  | S85: 1.5 | U85: =AK85 -> 3 | V85: 4.5 | AA85: 0 | AI85: 1.5 | AK85: =1+ROUND(K10/250,0) -> 3 | AS85: 4.5 | BE85: =IF(ISERROR(AVERAGEIF('Individual Spaces'!F:F,$N85,'Individual Spaces'!K:K))=TRUE," ",AVERAGEIF('Individual Spaces'!F:F,$N85,'Individual Spaces'!K:K)) ->  | BG85: =COUNTIF('Individual Spaces'!F:F,'Primary SoA'!$N85) -> 3 | BK85: 0 | BM85: 3 | BY85: =U85 -> 3 | CM85: =IF($S85>0,VLOOKUP($D85,'Prog Assums'!$N$5:$AM$225,12, FALSE),"") -> 1.5m2 | CN85: =IF($S85>0,VLOOKUP($D85,'Prog Assums'!$N$5:$AM$225,13, FALSE),"") -> 0 | CP85: =IF(U85>0,VLOOKUP(D85,'Prog Assums'!$N$7:$T$175,7,FALSE),"") -> 0 | CQ85: =VLOOKUP(D85,'Prog Assums'!$N$6:$Q$232,3,0) -> 2 | CR85: =VLOOKUP(D85,'Prog Assums'!$N$6:$Q$232,4,0) -> 4 | CS85: 1 | CT85: 0 | CU85: 0 | CV85: 3 | CW85: 1 | CX85: 0 | CY85: 0 | CZ85: 3 | DA85: - | DN85: =VLOOKUP($C85,'Prog Assums'!$U$5:$AI$290,11,FALSE) -> 1.5 | DO85: =VLOOKUP($C85,'Prog Assums'!$U$5:$AI$290,12,FALSE) -> - | DP85: =IF(VLOOKUP($C85,'Prog Assums'!$U$5:$AI$290,13,FALSE)="AS SOA",$AI85,VLOOKUP($C85,'Prog Assums'!$U$5:$AI$290,13,FALSE)) -> 1.5 | DQ85: =VLOOKUP($C85,'Prog Assums'!$U$5:$AI$290,14,FALSE) -> - | DR85: =VLOOKUP($C85,'Prog Assums'!$U$5:$AI$290,15,FALSE) -> 12 | DS85: 0 | DU85: -3 | DV85: -4.5 | DY85: 0 | EA85: 0 | EB85: 0 | EE85: 0 | EG85: 0 | EH85: 0 | EK85: 0 | EM85: =COUNTIFS($EY$2:$YI$2,'Prog Assums'!$B$125,$EY85:$YI85,">0") -> 0 | EN85: =SUMIF($EY$2:$YI$2,'Prog Assums'!$B$125,$EY85:$YI85) -> 0 | ER85: 0 | ET85: =COUNTIFS($EY$2:$YI$2,'Prog Assums'!$B$126,$EY85:$YI85,">0") -> 0 | EU85: =SUMIF($EY$2:$YI$2,'Prog Assums'!$B$126,$EY85:$YI85) -> 0
A86: =IF($D86="-","",VLOOKUP($D86,'Prog Assums'!$N$5:$X$225,10, FALSE)) -> STN32 | C86: =IF($D86="-","",VLOOKUP($D86,'Prog Assums'!$N$5:$X$225,8, FALSE)) -> STN32 | D86: Equipment stores, maintenance | M86: =IF(D86="","",_xlfn.XLOOKUP(D86,'Prog Assums'!$N$7:$N$229,'Prog Assums'!$AQ$7:$AQ$229,"")) -> Equipment store, maintenance | N86: Equipment store, maintenance6 | O86: =IF(VLOOKUP(D86,'Prog Assums'!N$5:V$231,9,FALSE)>0,"retained","") ->  | S86: =AI86 -> 6 | U86: =AK86 -> 2 | V86: 12 | AA86: 0 | AI86: 6 | AK86: =IF(Q10>105,2,1) -> 2 | AS86: 12 | BE86: =IF(ISERROR(AVERAGEIF('Individual Spaces'!F:F,$N86,'Individual Spaces'!K:K))=TRUE," ",AVERAGEIF('Individual Spaces'!F:F,$N86,'Individual Spaces'!K:K)) ->  | BG86: =COUNTIF('Individual Spaces'!F:F,'Primary SoA'!$N86) -> 2 | BK86: 0 | BM86: 2 | BY86: =U86 -> 2 | CM86: =IF($S86>0,VLOOKUP($D86,'Prog Assums'!$N$5:$AM$225,12, FALSE),"") -> 8m2 | CN86: =IF($S86>0,VLOOKUP($D86,'Prog Assums'!$N$5:$AM$225,13, FALSE),"") -> 0 | CP86: =IF(U86>0,VLOOKUP(D86,'Prog Assums'!$N$7:$T$175,7,FALSE),"") -> 0 | CQ86: =VLOOKUP(D86,'Prog Assums'!$N$6:$Q$232,3,0) -> 2 | CR86: =VLOOKUP(D86,'Prog Assums'!$N$6:$Q$232,4,0) -> 4 | CS86: 1 | CT86: 0 | CU86: 0 | CV86: 2 | CW86: 1 | CX86: 0 | CY86: 0 | CZ86: 2 | DA86: - | DN86: =VLOOKUP($C86,'Prog Assums'!$U$5:$AI$290,11,FALSE) -> 4 | DO86: =VLOOKUP($C86,'Prog Assums'!$U$5:$AI$290,12,FALSE) -> - | DP86: =IF(VLOOKUP($C86,'Prog Assums'!$U$5:$AI$290,13,FALSE)="AS SOA",$AI86,VLOOKUP($C86,'Prog Assums'!$U$5:$AI$290,13,FALSE)) -> 8 | DQ86: =VLOOKUP($C86,'Prog Assums'!$U$5:$AI$290,14,FALSE) -> - | DR86: =VLOOKUP($C86,'Prog Assums'!$U$5:$AI$290,15,FALSE) -> 25 | DS86: 0 | DU86: -2 | DV86: -12 | DY86: 0 | EA86: 0 | EB86: 0 | EE86: 0 | EG86: 0 | EH86: 0 | EK86: 0 | EM86: =COUNTIFS($EY$2:$YI$2,'Prog Assums'!$B$125,$EY86:$YI86,">0") -> 0 | EN86: =SUMIF($EY$2:$YI$2,'Prog Assums'!$B$125,$EY86:$YI86) -> 0 | ER86: 0 | ET86: =COUNTIFS($EY$2:$YI$2,'Prog Assums'!$B$126,$EY86:$YI86,">0") -> 0 | EU86: =SUMIF($EY$2:$YI$2,'Prog Assums'!$B$126,$EY86:$YI86) -> 0
D87: TOTAL AREA | L87: BB103 range | O87: =ROUND(20+(K$10*0.15),0) -> 87 | P87: to | Q87: =ROUND(40+(K$10*0.25),0) -> 152 | V87: =SUM(V71:V86) -> 130.5 | Y87: =SUM(Y71:Y86) -> 0 | AA87: =SUM(AA71:AA86) -> 0 | AC87: =IF(V87<O87,"ERROR: total area for category is too low",IF(V87>Q87,"WARNING: total area for category is high","OK: area within BB103 range")) -> OK: area within BB103 range | AI87: =SUM(AS71:AS86) -> 130.5 | AK87: =SUM(Y71:Y86) -> 0 | AS87: =SUM(AS71:AS86) -> 130.5 | AT87: =SUM(AT71:AT86) -> 0 | BH87: =SUM(BH71:BH86) -> 0 | BJ87: =BH87-$Y87-$V87 -> -130.5 | BO87: =SUM(BO71:BO86) -> 4 | BQ87: =SUM(BQ71:BQ86) -> 8 | BS87: =SUM(BS71:BS86) -> 17 | BU87: =SUM(BU71:BU86) -> 2 | BW87: =SUM(BW71:BW86) -> 0 | BY87: =SUM(BY71:BY86) -> 8 | CA87: =SUM(CA71:CA86) -> 0 | CC87: =SUM(CC71:CC86) -> 0 | CE87: =SUM(CE71:CE86) -> 0 | CG87: =SUM(CG71:CG86) -> 0 | CI87: =SUM(CI71:CI86) -> 0 | CK87: =SUM(CK71:CK86) -> 0 | DV87: =SUM(DV71:DV86) -> -130.5 | EB87: =SUM(EB71:EB86) -> 0 | EH87: =SUM(EH71:EH86) -> 0 | EN87: =SUM(EN71:EN86) -> 0 | EU87: =SUM(EU71:EU86) -> 0
D88: Float | O88: 0 | P88: to | Q88: =ROUND(80+(K$10*0.15),0) -> 147 | V88: =AF88 -> 0.5 | Y88: =MAXA(S89-(Y32+Y39+Y51+Y68+Y87),0) -> 0 | AD88: =IF(AF88>0,"NOTE: float available","no float available") -> NOTE: float available | AE88: =IF(AF88>0,"NOTE: float available","no float available") -> NOTE: float available | AF88: =MAXA(O90-(V32+V39+V51+V68+V87),0) -> 0.5 | AG88: =IF(Y88>0,IF(AF88>0,"plus supp float","but supp float"),"") ->  | AI88: =MAXA(O89-(AI32+AI39+AI51+AI68+AI87),0) -> 0.5 | AK88: =MAXA(S89-(AK32+AK39+AK51+AK68+AK87),0) -> 0 | AS88: =AI88 -> 0.5 | AT88: =AK88 -> 0
D89: Total Net Area | L89: BB103 range | O89: =ROUND(240+(K10*2.9),0) -> 1533 | P89: to | Q89: =ROUND(275+(K10*3.1),0) -> 1658 | S89: =IF($K$14>0,VLOOKUP($D$14,'Prog Assums'!$B$83:$K$95,4,FALSE),0)+($K$14*VLOOKUP($D$14,'Prog Assums'!$B$83:$K$95,5,FALSE))+ROUNDUP($K$12*3.3,0)+ROUNDUP($O$12*4.7,0) -> 0 | U89: =IF($K$14>0,VLOOKUP($D$14,'Prog Assums'!$B$83:$K$95,8,FALSE),0)+($K$14*VLOOKUP($D$14,'Prog Assums'!$B$83:$K$95,9,FALSE))+ROUNDUP($K$12*4,0)+ROUNDUP($O$12*5.7,0) -> 0 | V89: =V32+V39+V51+V68+V87+V88 -> 1533 | W89: =SUM(W20:W88) -> 11 | Y89: =Y32+Y39+Y51+Y68+Y87+Y88 -> 0 | AA89: =AA32+AA39+AA51+AA68+AA87 -> 0 | AC89: =IF((V89+Y89)>(O89+S89),IF((V89+Y89)>(Q89+U89),V89+Y89-Q89-U89,V89+Y89-O89-S89),"OK") -> OK | AD89: =IF((V89+Y89)>(O89+S89),IF((V89+Y89)>(Q89+U89),"m2 OVER MAXIMUM NET AREA","m2 over minimum net area"),"") ->  | AI89: =AI32+AI39+AI51+AI68++AI87+AI88 -> 1533 | AK89: =AK32+AK39+AK51+AK68+AK87+AK88 -> 0 | AS89: =AS32+AS39+AS51+AS68+AS87+AS88 -> 1533 | AT89: =AT32+AT39+AT51+AT68+AT87+AT88 -> 0 | BE89: =AY13*10.5 -> 0 | BH89: =BH32+BH39+BH51+BH68+BH87 -> 0 | BJ89: =BH89-$Y89-$V89 -> -1533 | BO89: =BO32+BO39+BO51+BO68+BO87 -> 8 | BQ89: =BQ32+BQ39+BQ51+BQ68+BQ87 -> 12 | BS89: =BS32+BS39+BS51+BS68+BS87 -> 26 | BU89: =BU32+BU39+BU51+BU68+BU87 -> 15 | BW89: =BW32+BW39+BW51+BW68+BW87 -> 0 | BY89: =BY32+BY39+BY51+BY68+BY87 -> 14 | CA89: =CA32+CA39+CA51+CA68+CA87 -> 0 | CC89: =CC32+CC39+CC51+CC68+CC87 -> 0 | CE89: =CE32+CE39+CE51+CE68+CE87 -> 0 | CG89: =CG32+CG39+CG51+CG68+CG87 -> 0 | CI89: =CI32+CI39+CI51+CI68+CI87 -> 0 | CK89: =CK32+CK39+CK51+CK68+CK87 -> 0 | DS89: Total Net Area | DV89: =SUM(DV87,DV68,DV51,DV39,DV32) -> -1532.5 | EB89: =SUM(EB87,EB68,EB51,EB39,EB32) -> 0 | EH89: =SUM(EH87,EH68,EH51,EH39,EH32) -> 0 | EN89: =SUM(EN87,EN68,EN51,EN39,EN32) -> 0 | EU89: =SUM(EU87,EU68,EU51,EU39,EU32) -> 0
D90: Recommended Net Area | O90: =ROUND(240+(K10*2.9),0) -> 1533 | AC90: =IF((V89+Y89)>O90,IF((V89+Y89)>Q89,(V89+Y89)-Q89,(V89+Y89)-O90),"OK") -> OK | AD90: =IF((V89+Y89)>O90,"m2 over recommended net area",IF((V89+Y89)<O90,"m2 under recommended net area","")) -> 
D91: Non-net Area | AB91: (pupil toilets: | AC91: =ROUNDUP(Q10/20,0)+ROUNDUP((K8+K12+K14)/10,0) -> 24 | AD91: recom'd | AF91: =(Q96*U96)+(Q97*U97)+(Q98*U98)+(Q100*U100) -> 16 | AG91: provided)
A92: =IF($D92="-","",VLOOKUP($D92,'Prog Assums'!$N$5:$X$225,10, FALSE)) -> KIT00 | C92: =IF($D92="-","",VLOOKUP($D92,'Prog Assums'!$N$5:$X$225,8, FALSE)) -> KIT02 | D92: Food prep areas, kitchen (prep/ servery suite) | M92: =IF(D92="","",_xlfn.XLOOKUP(D92,'Prog Assums'!$N$7:$N$229,'Prog Assums'!$AQ$7:$AQ$229,"")) -> Food prep area, kitchen (prep/ servery suite) | N92: =CONCATENATE(M92,S92) -> Food prep area, kitchen (prep/ servery suite)57 | O92: =IF(VLOOKUP(D92,'Prog Assums'!N$5:V$231,9,FALSE)>0,"retained","") ->  | S92: =AI92 -> 57 | U92: 1 | W92: =(S92*U92)-Y92 -> 57 | Y92: =IF($K$12+$K$14>0,ROUND((K12+K14)*0.075,0),0) -> 0 | AA92: =IF(O92="retained",V92+Y92,IF(O92="refurb'ed",V92+Y92,0)) -> 0 | AC92: =ROUND(25+(Q10*0.07),0) -> 54 | AD92: m2 min recom'd for full service | AI92: =ROUNDDOWN(26+(Q10*0.075),0) -> 57 | AK92: 1 | AS92: =MAXA(0,(AI92*AK92)-AT92) -> 57 | BE92: =IF(ISERROR(AVERAGEIF('Individual Spaces'!F:F,$N92,'Individual Spaces'!K:K))=TRUE," ",AVERAGEIF('Individual Spaces'!F:F,$N92,'Individual Spaces'!K:K)) ->  | BG92: =COUNTIF('Individual Spaces'!F:F,'Primary SoA'!$N92) -> 1 | BH92: =IF(ISERROR((BE92*BG92)=TRUE),"",BE92*BG92) ->  | BJ92: =IF(ISERROR(BH92-$Y92-$V92=TRUE),"",BH92-$Y92-$V92) ->  | BK92: =BG92-$U92 -> 0 | BM92: =SUM(BO92:CK92) -> 1 | BU92: 1 | CM92: =IF($S92>0,VLOOKUP($D92,'Prog Assums'!$N$5:$AM$225,12, FALSE),"") -> 0 | CN92: =IF($S92>0,VLOOKUP($D92,'Prog Assums'!$N$5:$AM$225,13, FALSE),"") -> 0 | DA92: - | DN92: =VLOOKUP($C92,'Prog Assums'!$U$5:$AI$290,11,FALSE) -> 32 | DO92: =VLOOKUP($C92,'Prog Assums'!$U$5:$AI$290,12,FALSE) -> - | DP92: =IF(VLOOKUP($C92,'Prog Assums'!$U$5:$AI$290,13,FALSE)="AS SOA",$AI92,VLOOKUP($C92,'Prog Assums'!$U$5:$AI$290,13,FALSE)) -> 57 | DQ92: =VLOOKUP($C92,'Prog Assums'!$U$5:$AI$290,14,FALSE) -> - | DR92: =VLOOKUP($C92,'Prog Assums'!$U$5:$AI$290,15,FALSE) -> 250 | DS92: =IF(ISERROR((SUM($EB92,$EH92,$EN92,$EU92)/SUM($EA92,$EG92,$EM92,$ET92)-$S92))=TRUE,0,IF($U92=0,0,(SUM($EB92,$EH92,$EN92,$EU92)/SUM($EA92,$EG92,$EM92,$ET92)-$S92))) -> 0 | DU92: =SUM($EA92,$EG92,$EM92,$ET92)-$U92 -> -1 | DV92: =SUM($EU92,$EN92,$EH92,$EB92)-$W92-$Y92 -> -57 | DY92: 0 | EA92: 0 | EB92: =EA92*DY92 -> 0 | EE92: 0 | EG92: 0 | EH92: =EG92*EE92 -> 0 | EK92: =IF(EN92>0,SUM(EN92/EM92),0) -> 0 | EM92: =COUNTIFS($EY$2:$YI$2,'Prog Assums'!$B$125,$EY92:$YI92,">0") -> 0 | EN92: =SUMIF($EY$2:$YI$2,'Prog Assums'!$B$125,$EY92:$YI92) -> 0 | ER92: =IF(EU92>0,SUM(EU92/ET92),0) -> 0 | ET92: =COUNTIFS($EY$2:$YI$2,'Prog Assums'!$B$126,$EY92:$YI92,">0") -> 0 | EU92: =SUMIF($EY$2:$YI$2,'Prog Assums'!$B$126,$EY92:$YI92) -> 0
A93: =IF($D93="-","",VLOOKUP($D93,'Prog Assums'!$N$5:$X$225,10, FALSE)) -> KIT20 | C93: =IF($D93="-","",VLOOKUP($D93,'Prog Assums'!$N$5:$X$225,8, FALSE)) -> KIT21 | D93: Food stores, kitchen (dry) | M93: =IF(D93="","",_xlfn.XLOOKUP(D93,'Prog Assums'!$N$7:$N$229,'Prog Assums'!$AQ$7:$AQ$229,"")) -> Food store, kitchen (dry) | N93: =CONCATENATE(M93,S93) -> Food store, kitchen (dry)3 | O93: =IF(VLOOKUP(D93,'Prog Assums'!N$5:V$231,9,FALSE)>0,"retained","") ->  | S93: =AI93 -> 3 | U93: 1 | W93: =(S93*U93)-Y93 -> 3 | AA93: 0 | AI93: =MROUND(1.5+(Q$10*0.003),0.5) -> 3 | AK93: 1 | AS93: =MAXA(0,(AI93*AK93)-AT93) -> 3 | BE93: =IF(ISERROR(AVERAGEIF('Individual Spaces'!F:F,$N93,'Individual Spaces'!K:K))=TRUE," ",AVERAGEIF('Individual Spaces'!F:F,$N93,'Individual Spaces'!K:K)) ->  | BG93: =COUNTIF('Individual Spaces'!F:F,'Primary SoA'!$N93) -> 1 | BH93: =IF(ISERROR((BE93*BG93)=TRUE),"",BE93*BG93) ->  | BJ93: =IF(ISERROR(BH93-$Y93-$V93=TRUE),"",BH93-$Y93-$V93) ->  | BK93: =BG93-$U93 -> 0 | BM93: 1 | BU93: 1 | DN93: =VLOOKUP($C93,'Prog Assums'!$U$5:$AI$290,11,FALSE) -> 1.5 | DO93: =VLOOKUP($C93,'Prog Assums'!$U$5:$AI$290,12,FALSE) -> - | DP93: =IF(VLOOKUP($C93,'Prog Assums'!$U$5:$AI$290,13,FALSE)="AS SOA",$AI93,VLOOKUP($C93,'Prog Assums'!$U$5:$AI$290,13,FALSE)) -> 5 | DQ93: =VLOOKUP($C93,'Prog Assums'!$U$5:$AI$290,14,FALSE) -> - | DR93: =VLOOKUP($C93,'Prog Assums'!$U$5:$AI$290,15,FALSE) -> 25 | DS93: =IF(ISERROR((SUM($EB93,$EH93,$EN93,$EU93)/SUM($EA93,$EG93,$EM93,$ET93)-$S93))=TRUE,0,IF($U93=0,0,(SUM($EB93,$EH93,$EN93,$EU93)/SUM($EA93,$EG93,$EM93,$ET93)-$S93))) -> 0 | DU93: =SUM($EA93,$EG93,$EM93,$ET93)-$U93 -> -1 | DV93: =SUM($EU93,$EN93,$EH93,$EB93)-$W93-$Y93 -> -3 | DY93: 0 | EA93: 0 | EB93: =EA93*DY93 -> 0 | EE93: 0 | EG93: 0 | EH93: =EG93*EE93 -> 0 | EK93: =IF(EN93>0,SUM(EN93/EM93),0) -> 0 | EM93: =COUNTIFS($EY$2:$YI$2,'Prog Assums'!$B$125,$EY93:$YI93,">0") -> 0 | EN93: =SUMIF($EY$2:$YI$2,'Prog Assums'!$B$125,$EY93:$YI93) -> 0 | ER93: =IF(EU93>0,SUM(EU93/ET93),0) -> 0 | ET93: =COUNTIFS($EY$2:$YI$2,'Prog Assums'!$B$126,$EY93:$YI93,">0") -> 0 | EU93: =SUMIF($EY$2:$YI$2,'Prog Assums'!$B$126,$EY93:$YI93) -> 0
A94: =IF($D94="-","",VLOOKUP($D94,'Prog Assums'!$N$5:$X$225,10, FALSE)) -> KIT40 | C94: =IF($D94="-","",VLOOKUP($D94,'Prog Assums'!$N$5:$X$225,8, FALSE)) -> KIT40 | D94: Toilets, kitchen (with changing area) | M94: =IF(D94="","",_xlfn.XLOOKUP(D94,'Prog Assums'!$N$7:$N$229,'Prog Assums'!$AQ$7:$AQ$229,"")) -> Toilets, kitchen (with changing area) | N94: =CONCATENATE(M94,S94) -> Toilets, kitchen (with changing area)3.5 | O94: =IF(VLOOKUP(D94,'Prog Assums'!N$5:V$231,9,FALSE)>0,"retained","") ->  | Q94: =ROUNDDOWN(S94/1.5,0) -> 2 | S94: =AI94 -> 3.5 | U94: 1 | W94: =(S94*U94)-Y94 -> 3.5 | AA94: 0 | AC94: =MROUND(30+(Q10*0.08),0.5) -> 63.5 | AD94: m2 min recom'd for whole kitchen | AI94: =MROUND(2.5+(Q$10*0.002),0.5) -> 3.5 | AK94: 1 | AS94: 3.5 | BE94: =IF(ISERROR(AVERAGEIF('Individual Spaces'!F:F,$N94,'Individual Spaces'!K:K))=TRUE," ",AVERAGEIF('Individual Spaces'!F:F,$N94,'Individual Spaces'!K:K)) ->  | BG94: =COUNTIF('Individual Spaces'!F:F,'Primary SoA'!$N94) -> 1 | BH94: =IF(ISERROR((BE94*BG94)=TRUE),"",BE94*BG94) ->  | BJ94: =IF(ISERROR(BH94-$Y94-$V94=TRUE),"",BH94-$Y94-$V94) ->  | BK94: =BG94-$U94 -> 0 | BM94: 1 | BU94: 1 | DN94: =VLOOKUP($C94,'Prog Assums'!$U$5:$AI$290,11,FALSE) -> 1.5 | DO94: =VLOOKUP($C94,'Prog Assums'!$U$5:$AI$290,12,FALSE) -> - | DP94: =IF(VLOOKUP($C94,'Prog Assums'!$U$5:$AI$290,13,FALSE)="AS SOA",$AI94,VLOOKUP($C94,'Prog Assums'!$U$5:$AI$290,13,FALSE)) -> 3 | DQ94: =VLOOKUP($C94,'Prog Assums'!$U$5:$AI$290,14,FALSE) -> - | DR94: =VLOOKUP($C94,'Prog Assums'!$U$5:$AI$290,15,FALSE) -> 12 | DS94: =IF(ISERROR((SUM($EB94,$EH94,$EN94,$EU94)/SUM($EA94,$EG94,$EM94,$ET94)-$S94))=TRUE,0,IF($U94=0,0,(SUM($EB94,$EH94,$EN94,$EU94)/SUM($EA94,$EG94,$EM94,$ET94)-$S94))) -> 0 | DU94: =SUM($EA94,$EG94,$EM94,$ET94)-$U94 -> -1 | DV94: -3.5 | DY94: 0 | EA94: 0 | EB94: =EA94*DY94 -> 0 | EE94: 0 | EG94: 0 | EH94: =EG94*EE94 -> 0 | EK94: =IF(EN94>0,SUM(EN94/EM94),0) -> 0 | EM94: =COUNTIFS($EY$2:$YI$2,'Prog Assums'!$B$125,$EY94:$YI94,">0") -> 0 | EN94: =SUMIF($EY$2:$YI$2,'Prog Assums'!$B$125,$EY94:$YI94) -> 0 | ER94: =IF(EU94>0,SUM(EU94/ET94),0) -> 0 | ET94: =COUNTIFS($EY$2:$YI$2,'Prog Assums'!$B$126,$EY94:$YI94,">0") -> 0 | EU94: =SUMIF($EY$2:$YI$2,'Prog Assums'!$B$126,$EY94:$YI94) -> 0
BH95: 0 | CM95: =IF($S95>0,VLOOKUP($D95,'Prog Assums'!$N$5:$AM$225,12, FALSE),"") ->  | CN95: =IF($S95>0,VLOOKUP($D95,'Prog Assums'!$N$5:$AM$225,13, FALSE),"") ->  | DA95: -
A96: =IF($D96="-","",VLOOKUP($D96,'Prog Assums'!$N$5:$X$225,10, FALSE)) -> TOC30 | C96: =IF($D96="-","",VLOOKUP($D96,'Prog Assums'!$N$5:$X$225,8, FALSE)) -> TOC31 | D96: Supervisable toilets (early years) | M96: =IF(D96="","",_xlfn.XLOOKUP(D96,'Prog Assums'!$N$7:$N$229,'Prog Assums'!$AQ$7:$AQ$229,"")) -> Supervisable toilets (early years) | N96: =CONCATENATE(M96,S99) -> Supervisable toilets (early years)0 | O96: =IF(VLOOKUP(D96,'Prog Assums'!N$5:V$231,9,FALSE)>0,"retained","") ->  | Q96: =ROUNDDOWN(S99/3,0) -> 0 | S96: =AI96 -> 3 | U96: =AC96 -> 9 | W96: =(S96*U96)-Y96 -> 27 | Y96: =ROUNDUP(K12/10,0)*S99 -> 0 | AA96: 0 | AC96: =ROUNDUP((K4+K8+K12)/10,0) -> 9 | AD96: if 1 per | AF96: =IF((K4+K8+K12)>0,(K4+K8+K12)/AC96,0) -> 9.555555556 | AG96: early years places | AI96: 3 | AK96: =ROUNDUP((K4+K12+K8)/10,0) -> 9 | AS96: 27 | BE96: =IF(ISERROR(AVERAGEIF('Individual Spaces'!F:F,$N96,'Individual Spaces'!K:K))=TRUE," ",AVERAGEIF('Individual Spaces'!F:F,$N96,'Individual Spaces'!K:K)) ->  | BG96: =COUNTIF('Individual Spaces'!F:F,'Primary SoA'!$N96) -> 9 | BK96: =BG96-$U96 -> 0 | BM96: 9 | BO96: =U96 -> 9 | CM96: =IF($S99>0,VLOOKUP($D96,'Prog Assums'!$N$5:$AM$225,12, FALSE),"") ->  | CN96: =IF($S99>0,VLOOKUP($D96,'Prog Assums'!$N$5:$AM$225,13, FALSE),"") ->  | DN96: =VLOOKUP($C96,'Prog Assums'!$U$5:$AI$290,11,FALSE) -> 2 | DO96: =VLOOKUP($C96,'Prog Assums'!$U$5:$AI$290,12,FALSE) -> - | DP96: =IF(VLOOKUP($C96,'Prog Assums'!$U$5:$AI$290,13,FALSE)="AS SOA",$AI96,VLOOKUP($C96,'Prog Assums'!$U$5:$AI$290,13,FALSE)) -> 4 | DQ96: =VLOOKUP($C96,'Prog Assums'!$U$5:$AI$290,14,FALSE) -> - | DR96: =VLOOKUP($C96,'Prog Assums'!$U$5:$AI$290,15,FALSE) -> 6 | DS96: =IF(ISERROR((SUM($EB96,$EH96,$EN96,$EU96)/SUM($EA96,$EG96,$EM96,$ET96)-$S99))=TRUE,0,IF($U96=0,0,(SUM($EB96,$EH96,$EN96,$EU96)/SUM($EA96,$EG96,$EM96,$ET96)-$S99))) -> 0 | DU96: =SUM($EA96,$EG96,$EM96,$ET96)-$U96 -> -9 | DV96: -27 | DY96: 0 | EA96: 0 | EB96: =EA96*DY96 -> 0 | EE96: 0 | EG96: 0 | EH96: =EG96*EE96 -> 0 | EK96: =IF(EN96>0,SUM(EN96/EM96),0) -> 0 | EM96: =COUNTIFS($EY$2:$YI$2,'Prog Assums'!$B$125,$EY96:$YI96,">0") -> 0 | EN96: =SUMIF($EY$2:$YI$2,'Prog Assums'!$B$125,$EY96:$YI96) -> 0 | ER96: =IF(EU96>0,SUM(EU96/ET96),0) -> 0 | ET96: =COUNTIFS($EY$2:$YI$2,'Prog Assums'!$B$126,$EY96:$YI96,">0") -> 0 | EU96: =SUMIF($EY$2:$YI$2,'Prog Assums'!$B$126,$EY96:$YI96) -> 0
A97: =IF($D97="-","",VLOOKUP($D97,'Prog Assums'!$N$5:$X$225,10, FALSE)) ->  | C97: =IF($D97="-","",VLOOKUP($D97,'Prog Assums'!$N$5:$X$225,8, FALSE)) ->  | D97: =IF(K14>0,"Supervisable toilets (SEN)","-") -> - | M97: =IF(D97="","",_xlfn.XLOOKUP(D97,'Prog Assums'!$N$7:$N$229,'Prog Assums'!$AQ$7:$AQ$229,"")) -> - | N97: =CONCATENATE(M97,S97) -> -3 | O97: =IF(VLOOKUP(D97,'Prog Assums'!N$5:V$231,9,FALSE)>0,"retained","") ->  | Q97: =ROUNDDOWN(S97/3,0) -> 1 | S97: =AI97 -> 3 | U97: =AK97 -> 0 | W97: 0 | Y97: =S97*ROUNDUP(K14/10,0) -> 0 | AA97: 0 | AC97: =IF(K14>0,ROUNDUP(K14/10,0),0) -> 0 | AD97: =IF(K14>0,"if 1 per","") ->  | AF97: =IF(K14>0,K14/AC97,0) -> 0 | AG97: =IF(K14>0,"SEN places","") ->  | AI97: 3 | AK97: =IF(K14>0,ROUNDUP(K14/10,0),0) -> 0 | AS97: 0 | AT97: =IF(K$12>0,AI97*ROUNDUP(K12/10,0),0)+AI97*ROUNDUP(K14/10,0) -> 0 | BE97: =IF(ISERROR(AVERAGEIF('Individual Spaces'!F:F,$N97,'Individual Spaces'!K:K))=TRUE," ",AVERAGEIF('Individual Spaces'!F:F,$N97,'Individual Spaces'!K:K)) ->  | BG97: =COUNTIF('Individual Spaces'!F:F,'Primary SoA'!$N97) -> 0 | BK97: 0 | BM97: 0 | BW97: =U97 -> 0 | CM97: =IF($S97>0,VLOOKUP($D97,'Prog Assums'!$N$5:$AM$225,12, FALSE),"") -> 0 | CN97: =IF($S97>0,VLOOKUP($D97,'Prog Assums'!$N$5:$AM$225,13, FALSE),"") -> 0 | DN97: =VLOOKUP($C97,'Prog Assums'!$U$5:$AI$290,11,FALSE) ->  | DO97: =VLOOKUP($C97,'Prog Assums'!$U$5:$AI$290,12,FALSE) ->  | DP97: =IF(VLOOKUP($C97,'Prog Assums'!$U$5:$AI$290,13,FALSE)="AS SOA",$AI97,VLOOKUP($C97,'Prog Assums'!$U$5:$AI$290,13,FALSE)) ->  | DQ97: =VLOOKUP($C97,'Prog Assums'!$U$5:$AI$290,14,FALSE) ->  | DR97: =VLOOKUP($C97,'Prog Assums'!$U$5:$AI$290,15,FALSE) ->  | DS97: =IF(ISERROR((SUM($EB97,$EH97,$EN97,$EU97)/SUM($EA97,$EG97,$EM97,$ET97)-$S97))=TRUE,0,IF($U97=0,0,(SUM($EB97,$EH97,$EN97,$EU97)/SUM($EA97,$EG97,$EM97,$ET97)-$S97))) -> 0 | DU97: 0 | DV97: 0 | DY97: 0 | EA97: 0 | EB97: 0 | EE97: 0 | EG97: 0 | EH97: 0 | EK97: 0 | EM97: =COUNTIFS($EY$2:$YI$2,'Prog Assums'!$B$125,$EY97:$YI97,">0") -> 0 | EN97: =SUMIF($EY$2:$YI$2,'Prog Assums'!$B$125,$EY97:$YI97) -> 0 | ER97: 0 | ET97: =COUNTIFS($EY$2:$YI$2,'Prog Assums'!$B$126,$EY97:$YI97,">0") -> 0 | EU97: =SUMIF($EY$2:$YI$2,'Prog Assums'!$B$126,$EY97:$YI97) -> 0
A98: =IF($D98="-","",VLOOKUP($D98,'Prog Assums'!$N$5:$X$225,10, FALSE)) -> TOC10 | C98: =IF($D98="-","",VLOOKUP($D98,'Prog Assums'!$N$5:$X$225,8, FALSE)) -> TOC14 | D98: Toilets, suite (pupils, other) | M98: =IF(D98="","",_xlfn.XLOOKUP(D98,'Prog Assums'!$N$7:$N$229,'Prog Assums'!$AQ$7:$AQ$229,"")) -> Toilets, suite (pupils, other) | N98: Toilets, suite (pupils, other)15 | O98: =IF(VLOOKUP(D98,'Prog Assums'!N$5:V$231,9,FALSE)>0,"retained","") ->  | Q98: =ROUNDDOWN(S98/3,0) -> 5 | S98: =3*ROUNDUP((AC98-U100)/AK98,0) -> 15 | U98: =AK98 -> 3 | W98: 45 | AA98: 0 | AC98: =ROUNDUP(Q10/20,0)-ROUNDDOWN(K4/10,0) -> 15 | AD98: if 1 per 20 KS1 & 2 places | AI98: =3*ROUNDUP((AC98-AK100)/AK98,0) -> 15 | AK98: =IF(Q10>105,3,2) -> 3 | AS98: 45 | BE98: =IF(ISERROR(AVERAGEIF('Individual Spaces'!F:F,$N98,'Individual Spaces'!K:K))=TRUE," ",AVERAGEIF('Individual Spaces'!F:F,$N98,'Individual Spaces'!K:K)) ->  | BG98: =COUNTIF('Individual Spaces'!F:F,'Primary SoA'!$N98) -> 3 | BK98: 0 | BM98: 3 | BQ98: =ROUND(U98*0.333,0) -> 1 | BS98: =ROUND(U98*0.666,0) -> 2 | CM98: =IF($S98>0,VLOOKUP($D98,'Prog Assums'!$N$5:$AM$225,12, FALSE),"") -> 0 | CN98: =IF($S98>0,VLOOKUP($D98,'Prog Assums'!$N$5:$AM$225,13, FALSE),"") -> 0 | DN98: =VLOOKUP($C98,'Prog Assums'!$U$5:$AI$290,11,FALSE) -> 5 | DO98: =VLOOKUP($C98,'Prog Assums'!$U$5:$AI$290,12,FALSE) -> - | DP98: =IF(VLOOKUP($C98,'Prog Assums'!$U$5:$AI$290,13,FALSE)="AS SOA",$AI98,VLOOKUP($C98,'Prog Assums'!$U$5:$AI$290,13,FALSE)) -> 12 | DQ98: =VLOOKUP($C98,'Prog Assums'!$U$5:$AI$290,14,FALSE) -> - | DR98: =VLOOKUP($C98,'Prog Assums'!$U$5:$AI$290,15,FALSE) -> 150 | DS98: 0 | DU98: -3 | DV98: -45 | DY98: 0 | EA98: 0 | EB98: 0 | EE98: 0 | EG98: 0 | EH98: 0 | EK98: 0 | EM98: =COUNTIFS($EY$2:$YI$2,'Prog Assums'!$B$125,$EY98:$YI98,">0") -> 0 | EN98: =SUMIF($EY$2:$YI$2,'Prog Assums'!$B$125,$EY98:$YI98) -> 0 | ER98: 0 | ET98: =COUNTIFS($EY$2:$YI$2,'Prog Assums'!$B$126,$EY98:$YI98,">0") -> 0 | EU98: =SUMIF($EY$2:$YI$2,'Prog Assums'!$B$126,$EY98:$YI98) -> 0
A99: =IF($D99="-","",VLOOKUP($D99,'Prog Assums'!$N$5:$X$225,10, FALSE)) ->  | C99: =IF($D99="-","",VLOOKUP($D99,'Prog Assums'!$N$5:$X$225,8, FALSE)) ->  | D99: - | O99: =IF(VLOOKUP(D99,'Prog Assums'!N$5:V$231,9,FALSE)>0,"retained","") ->  | S99: =VLOOKUP(D99,'Prog Assums'!N$5:R$207,5,FALSE) -> 0 | W99: 0 | AA99: 0 | AS99: 0 | DN99: =VLOOKUP($C99,'Prog Assums'!$U$5:$AI$290,11,FALSE) ->  | DO99: =VLOOKUP($C99,'Prog Assums'!$U$5:$AI$290,12,FALSE) ->  | DP99: =IF(VLOOKUP($C99,'Prog Assums'!$U$5:$AI$290,13,FALSE)="AS SOA",$AI99,VLOOKUP($C99,'Prog Assums'!$U$5:$AI$290,13,FALSE)) ->  | DQ99: =VLOOKUP($C99,'Prog Assums'!$U$5:$AI$290,14,FALSE) ->  | DR99: =VLOOKUP($C99,'Prog Assums'!$U$5:$AI$290,15,FALSE) ->  | EK99: 0 | EM99: =COUNTIFS($EY$2:$YI$2,'Prog Assums'!$B$125,$EY99:$YI99,">0") -> 0 | EN99: =SUMIF($EY$2:$YI$2,'Prog Assums'!$B$125,$EY99:$YI99) -> 0 | ER99: 0 | ET99: =COUNTIFS($EY$2:$YI$2,'Prog Assums'!$B$126,$EY99:$YI99,">0") -> 0 | EU99: =SUMIF($EY$2:$YI$2,'Prog Assums'!$B$126,$EY99:$YI99) -> 0
A100: =IF($D100="-","",VLOOKUP($D100,'Prog Assums'!$N$5:$X$225,10, FALSE)) -> TOC04 | C100: =IF($D100="-","",VLOOKUP($D100,'Prog Assums'!$N$5:$X$225,8, FALSE)) -> TOC06 | D100: =IF(K8>0,"Hygiene rooms, small (2 doors)","Hygiene rooms (small 1 door)") -> Hygiene rooms, small (2 doors) | M100: =IF(D100="","",_xlfn.XLOOKUP(D100,'Prog Assums'!$N$7:$N$229,'Prog Assums'!$AQ$7:$AQ$229,"")) -> Hygiene room, small 2 doors | N100: Hygiene room, small 2 doors9 | O100: =IF(VLOOKUP(D100,'Prog Assums'!N$5:V$231,9,FALSE)>0,"retained","") ->  | Q100: 1 | S100: =VLOOKUP(D100,'Prog Assums'!N$5:R$207,5,FALSE) -> 9 | U100: =AK100 -> 1 | W100: 9 | AA100: 0 | AC100: =VLOOKUP(D100,'Prog Assums'!N189:R191,5,FALSE) -> 9 | AD100: m2 minimum if ceiling mounted hoist | AI100: =IF(K8>0,9,8) -> 9 | AK100: 1 | AQ100: 7 | AR100: 20 | AS100: 9 | AT100: =IF(D14="SRP for PD",AI100,0) -> 0 | BE100: =IF(ISERROR(AVERAGEIF('Individual Spaces'!F:F,$N100,'Individual Spaces'!K:K))=TRUE," ",AVERAGEIF('Individual Spaces'!F:F,$N100,'Individual Spaces'!K:K)) ->  | BG100: =COUNTIF('Individual Spaces'!F:F,'Primary SoA'!$N100) -> 1 | BK100: 0 | BM100: 1 | BO100: =U100 -> 1 | CM100: =IF($S100>0,VLOOKUP($D100,'Prog Assums'!$N$5:$AM$225,12, FALSE),"") -> 0 | CN100: =IF($S100>0,VLOOKUP($D100,'Prog Assums'!$N$5:$AM$225,13, FALSE),"") -> 0 | DN100: =VLOOKUP($C100,'Prog Assums'!$U$5:$AI$290,11,FALSE) -> 7 | DO100: =VLOOKUP($C100,'Prog Assums'!$U$5:$AI$290,12,FALSE) -> - | DP100: =IF(VLOOKUP($C100,'Prog Assums'!$U$5:$AI$290,13,FALSE)="AS SOA",$AI100,VLOOKUP($C100,'Prog Assums'!$U$5:$AI$290,13,FALSE)) -> 9 | DQ100: =VLOOKUP($C100,'Prog Assums'!$U$5:$AI$290,14,FALSE) -> - | DR100: =VLOOKUP($C100,'Prog Assums'!$U$5:$AI$290,15,FALSE) -> 25 | DS100: 0 | DU100: -1 | DV100: -9 | DY100: 0 | EA100: 0 | EB100: 0 | EE100: 0 | EG100: 0 | EH100: 0 | EK100: 0 | EM100: =COUNTIFS($EY$2:$YI$2,'Prog Assums'!$B$125,$EY100:$YI100,">0") -> 0 | EN100: =SUMIF($EY$2:$YI$2,'Prog Assums'!$B$125,$EY100:$YI100) -> 0 | ER100: 0 | ET100: =COUNTIFS($EY$2:$YI$2,'Prog Assums'!$B$126,$EY100:$YI100,">0") -> 0 | EU100: =SUMIF($EY$2:$YI$2,'Prog Assums'!$B$126,$EY100:$YI100) -> 0
A101: =IF($D101="-","",VLOOKUP($D101,'Prog Assums'!$N$5:$X$225,10, FALSE)) ->  | C101: =IF($D101="-","",VLOOKUP($D101,'Prog Assums'!$N$5:$X$225,8, FALSE)) ->  | D101: =IF(AK101>0,"Hygiene rooms","-") -> - | M101: =IF(D101="","",_xlfn.XLOOKUP(D101,'Prog Assums'!$N$7:$N$229,'Prog Assums'!$AQ$7:$AQ$229,"")) -> - | N101: =CONCATENATE(M101,S101) -> -0 | O101: =IF(VLOOKUP(D101,'Prog Assums'!N$5:V$231,9,FALSE)>0,"retained","") ->  | Q101: 1 | S101: =VLOOKUP(D101,'Prog Assums'!N$5:R$207,5,FALSE) -> 0 | U101: =AK101 -> 0 | W101: =(S101*U101)-Y101 -> 0 | Y101: =IF(D14="integrated SRP for PD",S101,IF(D14="designated unit for PD",S101,0)) -> 0 | AA101: =IF(O101="retained",V101+Y101,IF(O101="refurb'ed",V101+Y101,0)) -> 0 | AC101: =IF(S101>0,VLOOKUP(D101,'Prog Assums'!N190:R192,5,FALSE),"") ->  | AD101: =IF(S101>0,"m2 minimum if ceiling mounted hoist","") ->  | AI101: 12 | AK101: =IF(D14="integrated SRP for PD",1,IF(D14="designated unit for PD",1,0)) -> 0 | AQ101: 7 | AR101: 20 | AS101: =MAXA(0,(AI101*AK101)-AT101) -> 0 | AT101: =IF(D15="SRP for PD",AI101,0) -> 0 | BE101: =IF(ISERROR(AVERAGEIF('Individual Spaces'!F:F,$N101,'Individual Spaces'!K:K))=TRUE," ",AVERAGEIF('Individual Spaces'!F:F,$N101,'Individual Spaces'!K:K)) ->  | BG101: =COUNTIF('Individual Spaces'!F:F,'Primary SoA'!$N101) -> 0 | BH101: =IF(ISERROR((BE101*BG101)=TRUE),"",BE101*BG101) ->  | BJ101: =IF(ISERROR(BH101-$Y101-$V101=TRUE),"",BH101-$Y101-$V101) ->  | BK101: =BG101-$U101 -> 0 | BM101: 0 | BO101: =U101 -> 0 | CM101: =IF($S101>0,VLOOKUP($D101,'Prog Assums'!$N$5:$AM$225,12, FALSE),"") ->  | CN101: =IF($S101>0,VLOOKUP($D101,'Prog Assums'!$N$5:$AM$225,13, FALSE),"") ->  | DN101: =VLOOKUP($C101,'Prog Assums'!$U$5:$AI$290,11,FALSE) ->  | DO101: =VLOOKUP($C101,'Prog Assums'!$U$5:$AI$290,12,FALSE) ->  | DP101: =IF(VLOOKUP($C101,'Prog Assums'!$U$5:$AI$290,13,FALSE)="AS SOA",$AI101,VLOOKUP($C101,'Prog Assums'!$U$5:$AI$290,13,FALSE)) ->  | DQ101: =VLOOKUP($C101,'Prog Assums'!$U$5:$AI$290,14,FALSE) ->  | DR101: =VLOOKUP($C101,'Prog Assums'!$U$5:$AI$290,15,FALSE) ->  | DS101: 0 | DU101: 0 | DV101: 0 | DY101: 0 | EA101: 0 | EB101: =EA101*DY101 -> 0 | EE101: 0 | EG101: 0 | EH101: =EG101*EE101 -> 0 | EK101: =IF(EN101>0,SUM(EN101/EM101),0) -> 0 | EM101: =COUNTIFS($EY$2:$YI$2,'Prog Assums'!$B$125,$EY101:$YI101,">0") -> 0 | EN101: =SUMIF($EY$2:$YI$2,'Prog Assums'!$B$125,$EY101:$YI101) -> 0 | ER101: =IF(EU101>0,SUM(EU101/ET101),0) -> 0 | ET101: =COUNTIFS($EY$2:$YI$2,'Prog Assums'!$B$126,$EY101:$YI101,">0") -> 0 | EU101: =SUMIF($EY$2:$YI$2,'Prog Assums'!$B$126,$EY101:$YI101) -> 0
A102: =IF($D102="-","",VLOOKUP($D102,'Prog Assums'!$N$5:$X$225,10, FALSE)) -> TOC10 | C102: =IF($D102="-","",VLOOKUP($D102,'Prog Assums'!$N$5:$X$225,8, FALSE)) -> TOC12 | D102: Toilets, suite (staff) | M102: =IF(D102="","",_xlfn.XLOOKUP(D102,'Prog Assums'!$N$7:$N$229,'Prog Assums'!$AQ$7:$AQ$229,"")) -> Toilets, suite (staff) | N102: Toilets, suite (staff)6 | O102: =IF(VLOOKUP(D102,'Prog Assums'!N$5:V$231,9,FALSE)>0,"retained","") ->  | Q102: =ROUNDDOWN(S102/2.5,0) -> 2 | S102: 6 | U102: 1 | W102: 6 | AA102: 0 | AC102: =IF(D102="staff toilet suite(s)","including lobby with coat hooks","") ->  | AI102: 6 | AK102: 1 | AS102: 6 | BE102: =IF(ISERROR(AVERAGEIF('Individual Spaces'!F:F,$N102,'Individual Spaces'!K:K))=TRUE," ",AVERAGEIF('Individual Spaces'!F:F,$N102,'Individual Spaces'!K:K)) ->  | BG102: =COUNTIF('Individual Spaces'!F:F,'Primary SoA'!$N102) -> 1 | BK102: 0 | BM102: 1 | BY102: 1 | DN102: =VLOOKUP($C102,'Prog Assums'!$U$5:$AI$290,11,FALSE) -> 5 | DO102: =VLOOKUP($C102,'Prog Assums'!$U$5:$AI$290,12,FALSE) -> - | DP102: =IF(VLOOKUP($C102,'Prog Assums'!$U$5:$AI$290,13,FALSE)="AS SOA",$AI102,VLOOKUP($C102,'Prog Assums'!$U$5:$AI$290,13,FALSE)) -> 12 | DQ102: =VLOOKUP($C102,'Prog Assums'!$U$5:$AI$290,14,FALSE) -> - | DR102: =VLOOKUP($C102,'Prog Assums'!$U$5:$AI$290,15,FALSE) -> 150 | DS102: 0 | DU102: -1 | DV102: -6 | DY102: 0 | EA102: 0 | EB102: 0 | EE102: 0 | EG102: 0 | EH102: 0 | EK102: 0 | EM102: =COUNTIFS($EY$2:$YI$2,'Prog Assums'!$B$125,$EY102:$YI102,">0") -> 0 | EN102: =SUMIF($EY$2:$YI$2,'Prog Assums'!$B$125,$EY102:$YI102) -> 0 | ER102: 0 | ET102: =COUNTIFS($EY$2:$YI$2,'Prog Assums'!$B$126,$EY102:$YI102,">0") -> 0 | EU102: =SUMIF($EY$2:$YI$2,'Prog Assums'!$B$126,$EY102:$YI102) -> 0
A103: =IF($D103="-","",VLOOKUP($D103,'Prog Assums'!$N$5:$X$225,10, FALSE)) -> TOC21 | C103: =IF($D103="-","",VLOOKUP($D103,'Prog Assums'!$N$5:$X$225,8, FALSE)) -> TOC21 | D103: Accessible (and staff) toilets | M103: =IF(D103="","",_xlfn.XLOOKUP(D103,'Prog Assums'!$N$7:$N$229,'Prog Assums'!$AQ$7:$AQ$229,"")) -> Accessible (and staff) toilet | N103: =CONCATENATE(M103,S103) -> Accessible (and staff) toilet3.8 | O103: =IF(VLOOKUP(D103,'Prog Assums'!N$5:V$231,9,FALSE)>0,"retained","") ->  | Q103: =ROUNDDOWN(S103/3.25,0) -> 1 | S103: =AI103 -> 3.8 | U103: =AK103 -> 2 | W103: =(S103*U103)-Y103 -> 7.6 | Y103: =IF(K$14>0,S103,0) -> 0 | AA103: 0 | AC103: also for visitors and staff | AI103: 3.8 | AK103: =MINA(AO5,ROUNDUP(K10/225,0)+IF(K14>0,1,0)) -> 2 | AQ103: 3.75 | AR103: 6 | AS103: 7.6 | AT103: =IF(K$14>0,AI103,0) -> 0 | BE103: =IF(ISERROR(AVERAGEIF('Individual Spaces'!F:F,$N103,'Individual Spaces'!K:K))=TRUE," ",AVERAGEIF('Individual Spaces'!F:F,$N103,'Individual Spaces'!K:K)) ->  | BG103: =COUNTIF('Individual Spaces'!F:F,'Primary SoA'!$N103) -> 2 | BK103: 0 | BM103: 2 | BW103: =IF(K$14>0,1,0) -> 0 | BY103: =U103-BW103 -> 2 | CM103: =IF($S103>0,VLOOKUP($D103,'Prog Assums'!$N$5:$AM$225,12, FALSE),"") -> 0 | CN103: =IF($S103>0,VLOOKUP($D103,'Prog Assums'!$N$5:$AM$225,13, FALSE),"") -> 0 | DN103: =VLOOKUP($C103,'Prog Assums'!$U$5:$AI$290,11,FALSE) -> 3 | DO103: =VLOOKUP($C103,'Prog Assums'!$U$5:$AI$290,12,FALSE) -> - | DP103: =IF(VLOOKUP($C103,'Prog Assums'!$U$5:$AI$290,13,FALSE)="AS SOA",$AI103,VLOOKUP($C103,'Prog Assums'!$U$5:$AI$290,13,FALSE)) -> 3.75 | DQ103: =VLOOKUP($C103,'Prog Assums'!$U$5:$AI$290,14,FALSE) -> - | DR103: =VLOOKUP($C103,'Prog Assums'!$U$5:$AI$290,15,FALSE) -> 12 | DS103: =IF(ISERROR((SUM($EB103,$EH103,$EN103,$EU103)/SUM($EA103,$EG103,$EM103,$ET103)-$S103))=TRUE,0,IF($U103=0,0,(SUM($EB103,$EH103,$EN103,$EU103)/SUM($EA103,$EG103,$EM103,$ET103)-$S103))) -> 0 | DU103: -2 | DV103: -7.6 | DY103: 0 | EA103: 0 | EB103: 0 | EE103: 0 | EG103: 0 | EH103: 0 | EK103: 0 | EM103: =COUNTIFS($EY$2:$YI$2,'Prog Assums'!$B$125,$EY103:$YI103,">0") -> 0 | EN103: =SUMIF($EY$2:$YI$2,'Prog Assums'!$B$125,$EY103:$YI103) -> 0 | ER103: 0 | ET103: =COUNTIFS($EY$2:$YI$2,'Prog Assums'!$B$126,$EY103:$YI103,">0") -> 0 | EU103: =SUMIF($EY$2:$YI$2,'Prog Assums'!$B$126,$EY103:$YI103) -> 0
Q104: =ROUNDDOWN(S104/3.25,0) -> 0
D105: Plant | Q105: indicative % of net area: for new: | S105: =AK105 -> 0.03196347032 | T105: incl ICT hubs and risers | AC105: =IF(SUM(Y108:Y116)>0,SUM(Y108:Y116)/Y$89,0) -> 0 | AD105: =IF(AC105>0,"for supp","") ->  | AF105: =IF(SUM(AA108:AA116)>0,SUM(AA108:AA116)/AA$89,0) -> 0 | AG105: =IF(AA105>0,"for existing","") ->  | AK105: =SUM(AS108:AS116)/AI89 -> 0.03196347032 | AQ105: =0.017+(10/V89) -> 0.02352315721 | AR105: 0.035 | BE105: =IF(BH105>0,BH105/BH$89,"") ->  | DS105: =IF(ISERROR((SUM($EB105,$EH105,$EN105,$EU105)/SUM($EA105,$EG105,$EM105,$ET105)-$S105))=TRUE,0,IF($U105=0,0,(SUM($EB105,$EH105,$EN105,$EU105)/SUM($EA105,$EG105,$EM105,$ET105)-$S105))) -> 0 | DU105: =SUM($EA105,$EG105,$EM105,$ET105)-$U105 -> 0 | DV105: 0 | DY105: 0 | EA105: 0 | EB105: =EA105*DY105 -> 0 | EE105: 0 | EG105: 0 | EH105: =EG105*EE105 -> 0 | EK105: =IF(EN105>0,SUM(EN105/EM105),0) -> 0 | EM105: =COUNTIFS($EY$2:$YI$2,'Prog Assums'!$B$125,$EY105:$YI105,">0") -> 0 | EN105: =SUMIF($EY$2:$YI$2,'Prog Assums'!$B$125,$EY105:$YI105) -> 0 | ER105: =IF(EU105>0,SUM(EU105/ET105),0) -> 0 | ET105: =COUNTIFS($EY$2:$YI$2,'Prog Assums'!$B$126,$EY105:$YI105,">0") -> 0 | EU105: =SUMIF($EY$2:$YI$2,'Prog Assums'!$B$126,$EY105:$YI105) -> 0
A106: =IF($D106="-","",VLOOKUP($D106,'Prog Assums'!$N$5:$X$225,10, FALSE)) -> PLA10 | C106: =IF($D106="-","",VLOOKUP($D106,'Prog Assums'!$N$5:$X$225,8, FALSE)) -> PLA12 | D106: =VLOOKUP(ROUNDUP(K10/300,0),'Prog Assums'!M202:N206,2,FALSE) -> Server rooms (2-cabinet) | M106: =IF(D106="","",_xlfn.XLOOKUP(D106,'Prog Assums'!$N$7:$N$229,'Prog Assums'!$AQ$7:$AQ$229,"")) -> Server room (2-cabinet) | N106: =CONCATENATE(M106,S106) -> Server room (2-cabinet)10.2 | O106: =IF(VLOOKUP(D106,'Prog Assums'!N$5:V$231,9,FALSE)>0,"retained","") ->  | S106: =AI106 -> 10.2 | U106: =AK106 -> 1 | W106: =MAXA((S106*U106)-Y106,0) -> 10.2 | AA106: =IF(O106="retained",V106+Y106,IF(O106="refurb'ed",V106+Y106,0)) -> 0 | AI106: =VLOOKUP(D106,'Prog Assums'!N201:R208,5,FALSE) -> 10.2 | AK106: 1 | AQ106: 4 | AS106: =MAXA(0,(AI106*AK106)-AT106) -> 10.2 | BE106: =IF(ISERROR(AVERAGEIF('Individual Spaces'!F:F,$N106,'Individual Spaces'!K:K))=TRUE," ",AVERAGEIF('Individual Spaces'!F:F,$N106,'Individual Spaces'!K:K)) ->  | BG106: =COUNTIF('Individual Spaces'!F:F,'Primary SoA'!$N106) -> 1 | BH106: =IF(ISERROR((BE106*BG106)=TRUE),"",BE106*BG106) ->  | BJ106: =IF(ISERROR(BH106-$Y106-$W106=TRUE),"",BH106-$Y106-$W106) ->  | BK106: =BG106-$U106 -> 0 | BM106: 1 | BY106: =U106 -> 1 | CM106: =IF($S106>0,VLOOKUP($D106,'Prog Assums'!$N$5:$AM$225,12, FALSE),"") -> 0 | CN106: =IF($S106>0,VLOOKUP($D106,'Prog Assums'!$N$5:$AM$225,13, FALSE),"") -> 0 | DN106: =VLOOKUP($C106,'Prog Assums'!$U$5:$AI$290,11,FALSE) -> 7 | DO106: =VLOOKUP($C106,'Prog Assums'!$U$5:$AI$290,12,FALSE) -> - | DP106: =IF(VLOOKUP($C106,'Prog Assums'!$U$5:$AI$290,13,FALSE)="AS SOA",$AI106,VLOOKUP($C106,'Prog Assums'!$U$5:$AI$290,13,FALSE)) -> 10.2 | DQ106: =VLOOKUP($C106,'Prog Assums'!$U$5:$AI$290,14,FALSE) -> - | DR106: =VLOOKUP($C106,'Prog Assums'!$U$5:$AI$290,15,FALSE) -> 50 | DS106: =IF(ISERROR((SUM($EB106,$EH106,$EN106,$EU106)/SUM($EA106,$EG106,$EM106,$ET106)-$S106))=TRUE,0,IF($U106=0,0,(SUM($EB106,$EH106,$EN106,$EU106)/SUM($EA106,$EG106,$EM106,$ET106)-$S106))) -> 0 | DU106: =SUM($EA106,$EG106,$EM106,$ET106)-$U106 -> -1 | DV106: =SUM($EU106,$EN106,$EH106,$EB106)-$W106-$Y106 -> -10.2 | DY106: 0 | EA106: 0 | EB106: =EA106*DY106 -> 0 | EE106: 0 | EG106: 0 | EH106: =EG106*EE106 -> 0 | EK106: =IF(EN106>0,SUM(EN106/EM106),0) -> 0 | EM106: =COUNTIFS($EY$2:$YI$2,'Prog Assums'!$B$125,$EY106:$YI106,">0") -> 0 | EN106: =SUMIF($EY$2:$YI$2,'Prog Assums'!$B$125,$EY106:$YI106) -> 0 | ER106: =IF(EU106>0,SUM(EU106/ET106),0) -> 0 | ET106: =COUNTIFS($EY$2:$YI$2,'Prog Assums'!$B$126,$EY106:$YI106,">0") -> 0 | EU106: =SUMIF($EY$2:$YI$2,'Prog Assums'!$B$126,$EY106:$YI106) -> 0
A107: =IF($D107="-","",VLOOKUP($D107,'Prog Assums'!$N$5:$X$225,10, FALSE)) ->  | C107: =IF($D107="-","",VLOOKUP($D107,'Prog Assums'!$N$5:$X$225,8, FALSE)) ->  | D107: - | M107: =IF(D107="","",_xlfn.XLOOKUP(D107,'Prog Assums'!$N$7:$N$229,'Prog Assums'!$AQ$7:$AQ$229,"")) -> - | N107: =CONCATENATE(M107,S107) -> -0 | O107: =IF(VLOOKUP(D107,'Prog Assums'!N$5:V$231,9,FALSE)>0,"retained","") ->  | S107: =AI107 -> 0 | W107: =MAXA((S107*U107)-Y107,0) -> 0 | AA107: =IF(O107="retained",V107+Y107,IF(O107="refurb'ed",V107+Y107,0)) -> 0 | AS107: =MAXA(0,(AI107*AK107)-AT107) -> 0 | BE107: =IF(ISERROR(AVERAGEIF('Individual Spaces'!F:F,$N107,'Individual Spaces'!K:K))=TRUE," ",AVERAGEIF('Individual Spaces'!F:F,$N107,'Individual Spaces'!K:K)) ->  | BG107: =COUNTIF('Individual Spaces'!F:F,'Primary SoA'!$N107) -> 0 | BH107: =IF(ISERROR((BE107*BG107)=TRUE),"",BE107*BG107) ->  | BJ107: =IF(ISERROR(BH107-$Y107-$W107=TRUE),"",BH107-$Y107-$W107) ->  | BK107: =BG107-$U107 -> 0 | BM107: 0 | BY107: =U107 -> 0 | DN107: =VLOOKUP($C107,'Prog Assums'!$U$5:$AI$290,11,FALSE) ->  | DO107: =VLOOKUP($C107,'Prog Assums'!$U$5:$AI$290,12,FALSE) ->  | DP107: =IF(VLOOKUP($C107,'Prog Assums'!$U$5:$AI$290,13,FALSE)="AS SOA",$AI107,VLOOKUP($C107,'Prog Assums'!$U$5:$AI$290,13,FALSE)) ->  | DQ107: =VLOOKUP($C107,'Prog Assums'!$U$5:$AI$290,14,FALSE) ->  | DR107: =VLOOKUP($C107,'Prog Assums'!$U$5:$AI$290,15,FALSE) ->  | DS107: =IF(ISERROR((SUM($EB107,$EH107,$EN107,$EU107)/SUM($EA107,$EG107,$EM107,$ET107)-$S107))=TRUE,0,IF($U107=0,0,(SUM($EB107,$EH107,$EN107,$EU107)/SUM($EA107,$EG107,$EM107,$ET107)-$S107))) -> 0 | DU107: =SUM($EA107,$EG107,$EM107,$ET107)-$U107 -> 0 | DV107: =SUM($EU107,$EN107,$EH107,$EB107)-$W107-$Y107 -> 0 | DY107: 0 | EA107: 0 | EB107: =EA107*DY107 -> 0 | EE107: 0 | EG107: 0 | EH107: =EG107*EE107 -> 0 | EK107: =IF(EN107>0,SUM(EN107/EM107),0) -> 0 | EM107: =COUNTIFS($EY$2:$YI$2,'Prog Assums'!$B$125,$EY107:$YI107,">0") -> 0 | EN107: =SUMIF($EY$2:$YI$2,'Prog Assums'!$B$125,$EY107:$YI107) -> 0 | ER107: =IF(EU107>0,SUM(EU107/ET107),0) -> 0 | ET107: =COUNTIFS($EY$2:$YI$2,'Prog Assums'!$B$126,$EY107:$YI107,">0") -> 0 | EU107: =SUMIF($EY$2:$YI$2,'Prog Assums'!$B$126,$EY107:$YI107) -> 0
A108: =IF($D108="-","",VLOOKUP($D108,'Prog Assums'!$N$5:$X$225,10, FALSE)) -> PLA20 | C108: =IF($D108="-","",VLOOKUP($D108,'Prog Assums'!$N$5:$X$225,8, FALSE)) -> PLA21 | D108: Plant rooms (heat source) | M108: =IF(D108="","",_xlfn.XLOOKUP(D108,'Prog Assums'!$N$7:$N$229,'Prog Assums'!$AQ$7:$AQ$229,"")) -> Plant room (heat source) | N108: =CONCATENATE(M108,S108) -> Plant room (heat source)18 | O108: =IF(VLOOKUP(D108,'Prog Assums'!N$5:V$231,9,FALSE)>0,"retained","") ->  | S108: =AC108 -> 18 | U108: 1 | W108: =MAXA((S108*U108)-Y108,0) -> 18 | Y108: =ROUND(Y$89*0.004,0) -> 0 | AA108: =IF(O108="retained",V108+Y108,IF(O108="refurb'ed",V108+Y108,0)) -> 0 | AC108: =ROUND(12+((V$89+Y$89)*0.004),0) -> 18 | AD108: m2 minimum recom'd in new build | AI108: =AC108 -> 18 | AK108: =1 -> 1 | AS108: 18 | AT108: =ROUND((AT$89*0.01),0) -> 0 | BE108: =IF(ISERROR(AVERAGEIF('Individual Spaces'!F:F,$N108,'Individual Spaces'!K:K))=TRUE," ",AVERAGEIF('Individual Spaces'!F:F,$N108,'Individual Spaces'!K:K)) ->  | BG108: =COUNTIF('Individual Spaces'!F:F,'Primary SoA'!$N108) -> 1 | BH108: =IF(ISERROR((BE108*BG108)=TRUE),"",BE108*BG108) ->  | BJ108: =IF(ISERROR(BH108-$Y108-$W108=TRUE),"",BH108-$Y108-$W108) ->  | BK108: =BG108-$U108 -> 0 | BM108: 1 | BY108: =U108 -> 1 | DN108: =VLOOKUP($C108,'Prog Assums'!$U$5:$AI$290,11,FALSE) -> 1 | DO108: =VLOOKUP($C108,'Prog Assums'!$U$5:$AI$290,12,FALSE) -> - | DP108: =IF(VLOOKUP($C108,'Prog Assums'!$U$5:$AI$290,13,FALSE)="AS SOA",$AI108,VLOOKUP($C108,'Prog Assums'!$U$5:$AI$290,13,FALSE)) -> 50 | DQ108: =VLOOKUP($C108,'Prog Assums'!$U$5:$AI$290,14,FALSE) -> - | DR108: =VLOOKUP($C108,'Prog Assums'!$U$5:$AI$290,15,FALSE) -> 150 | DS108: 0 | DU108: -1 | DV108: -18 | DY108: 0 | EA108: 0 | EB108: 0 | EE108: 0 | EG108: 0 | EH108: 0 | EK108: 0 | EM108: =COUNTIFS($EY$2:$YI$2,'Prog Assums'!$B$125,$EY108:$YI108,">0") -> 0 | EN108: =SUMIF($EY$2:$YI$2,'Prog Assums'!$B$125,$EY108:$YI108) -> 0 | ER108: 0 | ET108: =COUNTIFS($EY$2:$YI$2,'Prog Assums'!$B$126,$EY108:$YI108,">0") -> 0 | EU108: =SUMIF($EY$2:$YI$2,'Prog Assums'!$B$126,$EY108:$YI108) -> 0
A109: =IF($D109="-","",VLOOKUP($D109,'Prog Assums'!$N$5:$X$225,10, FALSE)) -> PLA20 | C109: =IF($D109="-","",VLOOKUP($D109,'Prog Assums'!$N$5:$X$225,8, FALSE)) -> PLA23 | D109: Plant rooms (cold water tanks) | M109: =IF(D109="","",_xlfn.XLOOKUP(D109,'Prog Assums'!$N$7:$N$229,'Prog Assums'!$AQ$7:$AQ$229,"")) -> Plant room (cold water tanks) | N109: Plant room (cold water tanks)13 | O109: =IF(VLOOKUP(D109,'Prog Assums'!N$5:V$231,9,FALSE)>0,"retained","") ->  | S109: =AC109 -> 13 | U109: 1 | W109: 13 | Y109: =ROUND(Y$89*0.004,0) -> 0 | AA109: 0 | AC109: =ROUND(7+((V$89+Y$89)*0.004),0) -> 13 | AD109: m2 minimum recom'd in new build | AI109: =AC109 -> 13 | AK109: 1 | AS109: 13 | BE109: =IF(ISERROR(AVERAGEIF('Individual Spaces'!F:F,$N109,'Individual Spaces'!K:K))=TRUE," ",AVERAGEIF('Individual Spaces'!F:F,$N109,'Individual Spaces'!K:K)) ->  | BG109: =COUNTIF('Individual Spaces'!F:F,'Primary SoA'!$N109) -> 1 | BK109: 0 | BM109: 1 | BY109: 1 | DN109: =VLOOKUP($C109,'Prog Assums'!$U$5:$AI$290,11,FALSE) -> 1 | DO109: =VLOOKUP($C109,'Prog Assums'!$U$5:$AI$290,12,FALSE) -> - | DP109: =IF(VLOOKUP($C109,'Prog Assums'!$U$5:$AI$290,13,FALSE)="AS SOA",$AI109,VLOOKUP($C109,'Prog Assums'!$U$5:$AI$290,13,FALSE)) -> 50 | DQ109: =VLOOKUP($C109,'Prog Assums'!$U$5:$AI$290,14,FALSE) -> - | DR109: =VLOOKUP($C109,'Prog Assums'!$U$5:$AI$290,15,FALSE) -> 150 | DS109: 0 | DU109: -1 | DV109: -13 | DY109: 0 | EA109: 0 | EB109: 0 | EE109: 0 | EG109: 0 | EH109: 0 | EK109: 0 | EM109: =COUNTIFS($EY$2:$YI$2,'Prog Assums'!$B$125,$EY109:$YI109,">0") -> 0 | EN109: =SUMIF($EY$2:$YI$2,'Prog Assums'!$B$125,$EY109:$YI109) -> 0 | ER109: 0 | ET109: =COUNTIFS($EY$2:$YI$2,'Prog Assums'!$B$126,$EY109:$YI109,">0") -> 0 | EU109: =SUMIF($EY$2:$YI$2,'Prog Assums'!$B$126,$EY109:$YI109) -> 0
A110: =IF($D110="-","",VLOOKUP($D110,'Prog Assums'!$N$5:$X$225,10, FALSE)) -> PLA20 | C110: =IF($D110="-","",VLOOKUP($D110,'Prog Assums'!$N$5:$X$225,8, FALSE)) -> PLA25 | D110: Plant rooms (electrical intake) | M110: =IF(D110="","",_xlfn.XLOOKUP(D110,'Prog Assums'!$N$7:$N$229,'Prog Assums'!$AQ$7:$AQ$229,"")) -> Plant room (electrical intake) | N110: Plant room (electrical intake)13 | O110: =IF(VLOOKUP(D110,'Prog Assums'!N$5:V$231,9,FALSE)>0,"retained","") ->  | S110: 13 | U110: 1 | W110: 13 | Y110: 0 | AA110: 0 | AC110: =ROUND(7+((V$89+Y$89)*0.004),0) -> 13 | AD110: m2 minimum recom'd in new build | AI110: 13 | AK110: 1 | AS110: =MAXA(0,(AI110*AK110)-AT110) -> 13 | BE110: =IF(ISERROR(AVERAGEIF('Individual Spaces'!F:F,$N110,'Individual Spaces'!K:K))=TRUE," ",AVERAGEIF('Individual Spaces'!F:F,$N110,'Individual Spaces'!K:K)) ->  | BG110: =COUNTIF('Individual Spaces'!F:F,'Primary SoA'!$N110) -> 1 | BK110: 0 | BM110: 1 | BY110: =U110 -> 1 | DN110: =VLOOKUP($C110,'Prog Assums'!$U$5:$AI$290,11,FALSE) -> 1 | DO110: =VLOOKUP($C110,'Prog Assums'!$U$5:$AI$290,12,FALSE) -> - | DP110: =IF(VLOOKUP($C110,'Prog Assums'!$U$5:$AI$290,13,FALSE)="AS SOA",$AI110,VLOOKUP($C110,'Prog Assums'!$U$5:$AI$290,13,FALSE)) -> 50 | DQ110: =VLOOKUP($C110,'Prog Assums'!$U$5:$AI$290,14,FALSE) -> - | DR110: =VLOOKUP($C110,'Prog Assums'!$U$5:$AI$290,15,FALSE) -> 150 | DS110: 0 | DU110: -1 | DV110: -13 | DY110: 0 | EA110: 0 | EB110: =EA110*DY110 -> 0 | EE110: 0 | EG110: 0 | EH110: =EG110*EE110 -> 0 | EK110: =IF(EN110>0,SUM(EN110/EM110),0) -> 0 | EM110: =COUNTIFS($EY$2:$YI$2,'Prog Assums'!$B$125,$EY110:$YI110,">0") -> 0 | EN110: =SUMIF($EY$2:$YI$2,'Prog Assums'!$B$125,$EY110:$YI110) -> 0 | ER110: =IF(EU110>0,SUM(EU110/ET110),0) -> 0 | ET110: =COUNTIFS($EY$2:$YI$2,'Prog Assums'!$B$126,$EY110:$YI110,">0") -> 0 | EU110: =SUMIF($EY$2:$YI$2,'Prog Assums'!$B$126,$EY110:$YI110) -> 0
A111: =IF($D111="-","",VLOOKUP($D111,'Prog Assums'!$N$5:$X$225,10, FALSE)) -> PLA40 | C111: =IF($D111="-","",VLOOKUP($D111,'Prog Assums'!$N$5:$X$225,8, FALSE)) -> PLA43 | D111: Services shafts (enclosed electrical) | M111: =IF(D111="","",_xlfn.XLOOKUP(D111,'Prog Assums'!$N$7:$N$229,'Prog Assums'!$AQ$7:$AQ$229,"")) -> Services shaft (enclosed electrical) | N111: Services shaft (enclosed electrical)1 | O111: =IF(VLOOKUP(D111,'Prog Assums'!N$5:V$231,9,FALSE)>0,"retained","") ->  | S111: 1 | U111: =AK111 -> 5 | W111: 5 | AA111: 0 | AC111: incl electrical risers and distribution boards | AI111: 1 | AK111: =IF(K10<150,1,ROUND(2+(AI89*0.001*AO5),0)) -> 5 | AQ111: 4 | AS111: =MAXA(0,(AI111*AK111)-AT111) -> 5 | BE111: =IF(ISERROR(AVERAGEIF('Individual Spaces'!F:F,$N111,'Individual Spaces'!K:K))=TRUE," ",AVERAGEIF('Individual Spaces'!F:F,$N111,'Individual Spaces'!K:K)) ->  | BG111: =COUNTIF('Individual Spaces'!F:F,'Primary SoA'!$N111) -> 5 | BJ111: =IF(ISERROR(BH111-$Y111-$W111=TRUE),"",BH111-$Y111-$W111) ->  | BK111: =BG111-$U111 -> 0 | BM111: 5 | BY111: =U111 -> 5 | CM111: =IF($S111>0,VLOOKUP($D111,'Prog Assums'!$N$5:$AM$225,12, FALSE),"") -> 0 | CN111: =IF($S111>0,VLOOKUP($D111,'Prog Assums'!$N$5:$AM$225,13, FALSE),"") -> 0 | DN111: =VLOOKUP($C111,'Prog Assums'!$U$5:$AI$290,11,FALSE) -> 1 | DO111: =VLOOKUP($C111,'Prog Assums'!$U$5:$AI$290,12,FALSE) -> - | DP111: =IF(VLOOKUP($C111,'Prog Assums'!$U$5:$AI$290,13,FALSE)="AS SOA",$AI111,VLOOKUP($C111,'Prog Assums'!$U$5:$AI$290,13,FALSE)) -> 2 | DQ111: =VLOOKUP($C111,'Prog Assums'!$U$5:$AI$290,14,FALSE) -> - | DR111: =VLOOKUP($C111,'Prog Assums'!$U$5:$AI$290,15,FALSE) -> 10 | DS111: =IF(ISERROR((SUM($EB111,$EH111,$EN111,$EU111)/SUM($EA111,$EG111,$EM111,$ET111)-$S111))=TRUE,0,IF($U111=0,0,(SUM($EB111,$EH111,$EN111,$EU111)/SUM($EA111,$EG111,$EM111,$ET111)-$S111))) -> 0 | DU111: =SUM($EA111,$EG111,$EM111,$ET111)-$U111 -> -5 | DV111: =SUM($EU111,$EN111,$EH111,$EB111)-$W111-$Y111 -> -5 | DY111: 0 | EA111: 0 | EB111: =EA111*DY111 -> 0 | EE111: 0 | EG111: 0 | EH111: =EG111*EE111 -> 0 | EK111: =IF(EN111>0,SUM(EN111/EM111),0) -> 0 | EM111: =COUNTIFS($EY$2:$YI$2,'Prog Assums'!$B$125,$EY111:$YI111,">0") -> 0 | EN111: =SUMIF($EY$2:$YI$2,'Prog Assums'!$B$125,$EY111:$YI111) -> 0 | ER111: =IF(EU111>0,SUM(EU111/ET111),0) -> 0 | ET111: =COUNTIFS($EY$2:$YI$2,'Prog Assums'!$B$126,$EY111:$YI111,">0") -> 0 | EU111: =SUMIF($EY$2:$YI$2,'Prog Assums'!$B$126,$EY111:$YI111) -> 0
A112: =IF($D112="-","",VLOOKUP($D112,'Prog Assums'!$N$5:$X$225,10, FALSE)) -> PLA40 | C112: =IF($D112="-","",VLOOKUP($D112,'Prog Assums'!$N$5:$X$225,8, FALSE)) -> PLA41 | D112: Services shafts (enclosed ventilation) | M112: =IF(D112="","",_xlfn.XLOOKUP(D112,'Prog Assums'!$N$7:$N$229,'Prog Assums'!$AQ$7:$AQ$229,"")) -> Services shaft (enclosed ventilation) | N112: Services shaft (enclosed ventilation) | O112: =IF(VLOOKUP(D112,'Prog Assums'!N$5:V$231,9,FALSE)>0,"retained","") ->  | Q112: =IF(D112="-","-",VLOOKUP(D112,'Prog Assums'!$N$209:$O$224,2,FALSE)) -> CTS | U112: 0 | W112: =MAXA((S112*U112)-Y112,0) -> 0 | AA112: 0 | AC112: =IF(Q112="CTS","Contractor to specify for approval","") -> Contractor to specify for approval | AQ112: 4 | AS112: =MAXA(0,(AI112*AK112)-AT112) -> 0 | BE112: =IF(ISERROR(AVERAGEIF('Individual Spaces'!F:F,$N112,'Individual Spaces'!K:K))=TRUE," ",AVERAGEIF('Individual Spaces'!F:F,$N112,'Individual Spaces'!K:K)) ->  | BG112: =COUNTIF('Individual Spaces'!F:F,'Primary SoA'!$N112) -> 0 | BJ112: =IF(ISERROR(BH112-$Y112-$W112=TRUE),"",BH112-$Y112-$W112) ->  | BK112: =BG112-$U112 -> 0 | BM112: 0 | BY112: =U112 -> 0 | CM112: =IF($S112>0,VLOOKUP($D112,'Prog Assums'!$N$5:$AM$225,12, FALSE),"") ->  | CN112: =IF($S112>0,VLOOKUP($D112,'Prog Assums'!$N$5:$AM$225,13, FALSE),"") ->  | DN112: =VLOOKUP($C112,'Prog Assums'!$U$5:$AI$290,11,FALSE) -> 1 | DO112: =VLOOKUP($C112,'Prog Assums'!$U$5:$AI$290,12,FALSE) -> - | DP112: =IF(VLOOKUP($C112,'Prog Assums'!$U$5:$AI$290,13,FALSE)="AS SOA",$AI112,VLOOKUP($C112,'Prog Assums'!$U$5:$AI$290,13,FALSE)) -> 2 | DQ112: =VLOOKUP($C112,'Prog Assums'!$U$5:$AI$290,14,FALSE) -> - | DR112: =VLOOKUP($C112,'Prog Assums'!$U$5:$AI$290,15,FALSE) -> 10 | DS112: =IF(ISERROR((SUM($EB112,$EH112,$EN112,$EU112)/SUM($EA112,$EG112,$EM112,$ET112)-$S112))=TRUE,0,IF($U112=0,0,(SUM($EB112,$EH112,$EN112,$EU112)/SUM($EA112,$EG112,$EM112,$ET112)-$S112))) -> 0 | DU112: =SUM($EA112,$EG112,$EM112,$ET112)-$U112 -> 0 | DV112: =SUM($EU112,$EN112,$EH112,$EB112)-$W112-$Y112 -> 0 | DY112: 0 | EA112: 0 | EB112: =EA112*DY112 -> 0 | EE112: 0 | EG112: 0 | EH112: =EG112*EE112 -> 0 | EK112: =IF(EN112>0,SUM(EN112/EM112),0) -> 0 | EM112: =COUNTIFS($EY$2:$YI$2,'Prog Assums'!$B$125,$EY112:$YI112,">0") -> 0 | EN112: =SUMIF($EY$2:$YI$2,'Prog Assums'!$B$125,$EY112:$YI112) -> 0 | ER112: =IF(EU112>0,SUM(EU112/ET112),0) -> 0 | ET112: =COUNTIFS($EY$2:$YI$2,'Prog Assums'!$B$126,$EY112:$YI112,">0") -> 0 | EU112: =SUMIF($EY$2:$YI$2,'Prog Assums'!$B$126,$EY112:$YI112) -> 0
A113: =IF($D113="-","",VLOOKUP($D113,'Prog Assums'!$N$5:$X$225,10, FALSE)) -> PLA40 | C113: =IF($D113="-","",VLOOKUP($D113,'Prog Assums'!$N$5:$X$225,8, FALSE)) -> PLA44 | D113: Services shafts (enclosed other) | M113: =IF(D113="","",_xlfn.XLOOKUP(D113,'Prog Assums'!$N$7:$N$229,'Prog Assums'!$AQ$7:$AQ$229,"")) -> Services shaft (enclosed other) | N113: Services shaft (enclosed other) | O113: =IF(VLOOKUP(D113,'Prog Assums'!N$5:V$231,9,FALSE)>0,"retained","") ->  | Q113: =IF(D113="-","-",VLOOKUP(D113,'Prog Assums'!$N$209:$O$224,2,FALSE)) -> CTS | U113: 0 | W113: =MAXA((S113*U113)-Y113,0) -> 0 | AA113: 0 | AC113: =IF(Q113="CTS","Contractor to specify for approval","") -> Contractor to specify for approval | AQ113: 4 | AS113: =MAXA(0,(AI113*AK113)-AT113) -> 0 | BE113: =IF(ISERROR(AVERAGEIF('Individual Spaces'!F:F,$N113,'Individual Spaces'!K:K))=TRUE," ",AVERAGEIF('Individual Spaces'!F:F,$N113,'Individual Spaces'!K:K)) ->  | BG113: =COUNTIF('Individual Spaces'!F:F,'Primary SoA'!$N113) -> 0 | BJ113: =IF(ISERROR(BH113-$Y113-$W113=TRUE),"",BH113-$Y113-$W113) ->  | BK113: =BG113-$U113 -> 0 | BM113: 0 | BY113: =U113 -> 0 | CM113: =IF($S113>0,VLOOKUP($D113,'Prog Assums'!$N$5:$AM$225,12, FALSE),"") ->  | CN113: =IF($S113>0,VLOOKUP($D113,'Prog Assums'!$N$5:$AM$225,13, FALSE),"") ->  | DN113: =VLOOKUP($C113,'Prog Assums'!$U$5:$AI$290,11,FALSE) -> 1 | DO113: =VLOOKUP($C113,'Prog Assums'!$U$5:$AI$290,12,FALSE) -> - | DP113: =IF(VLOOKUP($C113,'Prog Assums'!$U$5:$AI$290,13,FALSE)="AS SOA",$AI113,VLOOKUP($C113,'Prog Assums'!$U$5:$AI$290,13,FALSE)) -> 2 | DQ113: =VLOOKUP($C113,'Prog Assums'!$U$5:$AI$290,14,FALSE) -> - | DR113: =VLOOKUP($C113,'Prog Assums'!$U$5:$AI$290,15,FALSE) -> 10 | DS113: =IF(ISERROR((SUM($EB113,$EH113,$EN113,$EU113)/SUM($EA113,$EG113,$EM113,$ET113)-$S113))=TRUE,0,IF($U113=0,0,(SUM($EB113,$EH113,$EN113,$EU113)/SUM($EA113,$EG113,$EM113,$ET113)-$S113))) -> 0 | DU113: =SUM($EA113,$EG113,$EM113,$ET113)-$U113 -> 0 | DV113: =SUM($EU113,$EN113,$EH113,$EB113)-$W113-$Y113 -> 0 | DY113: 0 | EA113: 0 | EB113: =EA113*DY113 -> 0 | EE113: 0 | EG113: 0 | EH113: =EG113*EE113 -> 0 | EK113: =IF(EN113>0,SUM(EN113/EM113),0) -> 0 | EM113: =COUNTIFS($EY$2:$YI$2,'Prog Assums'!$B$125,$EY113:$YI113,">0") -> 0 | EN113: =SUMIF($EY$2:$YI$2,'Prog Assums'!$B$125,$EY113:$YI113) -> 0 | ER113: =IF(EU113>0,SUM(EU113/ET113),0) -> 0 | ET113: =COUNTIFS($EY$2:$YI$2,'Prog Assums'!$B$126,$EY113:$YI113,">0") -> 0 | EU113: =SUMIF($EY$2:$YI$2,'Prog Assums'!$B$126,$EY113:$YI113) -> 0
A114: =IF($D114="-","",VLOOKUP($D114,'Prog Assums'!$N$5:$X$225,10, FALSE)) ->  | C114: =IF($D114="-","",VLOOKUP($D114,'Prog Assums'!$N$5:$X$225,8, FALSE)) ->  | D114: - | M114: =IF(D114="","",_xlfn.XLOOKUP(D114,'Prog Assums'!$N$7:$N$229,'Prog Assums'!$AQ$7:$AQ$229,"")) -> - | N114: =CONCATENATE(M114,S114) -> - | O114: =IF(VLOOKUP(D114,'Prog Assums'!N$5:V$231,9,FALSE)>0,"retained","") ->  | Q114: =IF(D114="-","-",VLOOKUP(D114,'Prog Assums'!$N$209:$O$224,2,FALSE)) -> - | W114: 0 | AA114: 0 | AS114: 0 | BE114: =IF(ISERROR(AVERAGEIF('Individual Spaces'!F:F,$N114,'Individual Spaces'!K:K))=TRUE," ",AVERAGEIF('Individual Spaces'!F:F,$N114,'Individual Spaces'!K:K)) ->  | BG114: =COUNTIF('Individual Spaces'!F:F,'Primary SoA'!$N114) -> 0 | BJ114: =IF(ISERROR(BH114-$Y114-$W114=TRUE),"",BH114-$Y114-$W114) ->  | BK114: =BG114-$U114 -> 0 | BM114: 0 | BY114: 0 | DN114: =VLOOKUP($C114,'Prog Assums'!$U$5:$AI$290,11,FALSE) ->  | DO114: =VLOOKUP($C114,'Prog Assums'!$U$5:$AI$290,12,FALSE) ->  | DP114: =IF(VLOOKUP($C114,'Prog Assums'!$U$5:$AI$290,13,FALSE)="AS SOA",$AI114,VLOOKUP($C114,'Prog Assums'!$U$5:$AI$290,13,FALSE)) ->  | DQ114: =VLOOKUP($C114,'Prog Assums'!$U$5:$AI$290,14,FALSE) ->  | DR114: =VLOOKUP($C114,'Prog Assums'!$U$5:$AI$290,15,FALSE) ->  | DS114: 0 | DU114: 0 | DV114: 0 | DY114: 0 | EA114: 0 | EB114: 0 | EE114: 0 | EG114: 0 | EH114: 0 | EK114: 0 | EM114: =COUNTIFS($EY$2:$YI$2,'Prog Assums'!$B$125,$EY114:$YI114,">0") -> 0 | EN114: =SUMIF($EY$2:$YI$2,'Prog Assums'!$B$125,$EY114:$YI114) -> 0 | ER114: 0 | ET114: =COUNTIFS($EY$2:$YI$2,'Prog Assums'!$B$126,$EY114:$YI114,">0") -> 0 | EU114: =SUMIF($EY$2:$YI$2,'Prog Assums'!$B$126,$EY114:$YI114) -> 0
A115: =IF($D115="-","",VLOOKUP($D115,'Prog Assums'!$N$5:$X$225,10, FALSE)) -> PLA20 | C115: =IF($D115="-","",VLOOKUP($D115,'Prog Assums'!$N$5:$X$225,8, FALSE)) -> PLA08 | D115: Stairways, plant (to roof) | M115: =IF(D115="","",_xlfn.XLOOKUP(D115,'Prog Assums'!$N$7:$N$229,'Prog Assums'!$AQ$7:$AQ$229,"")) -> Stairway, plant (to roof) | N115: Stairway, plant (to roof) | O115: =IF(VLOOKUP(D115,'Prog Assums'!N$5:V$231,9,FALSE)>0,"retained","") ->  | Q115: =IF(D115="-","-",VLOOKUP(D115,'Prog Assums'!$N$209:$O$224,2,FALSE)) -> CTS | W115: 0 | AA115: 0 | AC115: Contractor to specify for approval | AS115: 0 | BE115: =IF(ISERROR(AVERAGEIF('Individual Spaces'!F:F,$N115,'Individual Spaces'!K:K))=TRUE," ",AVERAGEIF('Individual Spaces'!F:F,$N115,'Individual Spaces'!K:K)) ->  | BG115: =COUNTIF('Individual Spaces'!F:F,'Primary SoA'!$N115) -> 0 | BK115: 0 | BM115: 0 | BY115: 0 | DN115: =VLOOKUP($C115,'Prog Assums'!$U$5:$AI$290,11,FALSE) -> 1 | DO115: =VLOOKUP($C115,'Prog Assums'!$U$5:$AI$290,12,FALSE) -> - | DP115: =IF(VLOOKUP($C115,'Prog Assums'!$U$5:$AI$290,13,FALSE)="AS SOA",$AI115,VLOOKUP($C115,'Prog Assums'!$U$5:$AI$290,13,FALSE)) -> 5 | DQ115: =VLOOKUP($C115,'Prog Assums'!$U$5:$AI$290,14,FALSE) -> - | DR115: =VLOOKUP($C115,'Prog Assums'!$U$5:$AI$290,15,FALSE) -> 20 | DS115: 0 | DU115: 0 | DV115: 0 | DY115: 0 | EA115: 0 | EB115: 0 | EE115: 0 | EG115: 0 | EH115: 0 | EK115: 0 | EM115: =COUNTIFS($EY$2:$YI$2,'Prog Assums'!$B$125,$EY115:$YI115,">0") -> 0 | EN115: =SUMIF($EY$2:$YI$2,'Prog Assums'!$B$125,$EY115:$YI115) -> 0 | ER115: 0 | ET115: =COUNTIFS($EY$2:$YI$2,'Prog Assums'!$B$126,$EY115:$YI115,">0") -> 0 | EU115: =SUMIF($EY$2:$YI$2,'Prog Assums'!$B$126,$EY115:$YI115) -> 0
A116: =IF($D116="-","",VLOOKUP($D116,'Prog Assums'!$N$5:$X$225,10, FALSE)) ->  | C116: =IF($D116="-","",VLOOKUP($D116,'Prog Assums'!$N$5:$X$225,8, FALSE)) ->  | D116: - | M116: =IF(D116="","",_xlfn.XLOOKUP(D116,'Prog Assums'!$N$7:$N$229,'Prog Assums'!$AQ$7:$AQ$229,"")) -> - | N116: =CONCATENATE(M116,S116) -> - | O116: =IF(VLOOKUP(D116,'Prog Assums'!N$5:V$231,9,FALSE)>0,"retained","") ->  | Q116: =IF(D116="-","-",VLOOKUP(D116,'Prog Assums'!$N$209:$O$224,2,FALSE)) -> - | W116: =MAXA((S116*U116)-Y116,0) -> 0 | AA116: =IF(O116="retained",V116+Y116,IF(O116="refurb'ed",V116+Y116,0)) -> 0 | AS116: 0 | BE116: =IF(ISERROR(AVERAGEIF('Individual Spaces'!F:F,$N116,'Individual Spaces'!K:K))=TRUE," ",AVERAGEIF('Individual Spaces'!F:F,$N116,'Individual Spaces'!K:K)) ->  | BG116: =COUNTIF('Individual Spaces'!F:F,'Primary SoA'!$N116) -> 0 | BK116: 0 | BM116: 0 | BY116: =U116 -> 0 | DN116: =VLOOKUP($C116,'Prog Assums'!$U$5:$AI$290,11,FALSE) ->  | DO116: =VLOOKUP($C116,'Prog Assums'!$U$5:$AI$290,12,FALSE) ->  | DP116: =IF(VLOOKUP($C116,'Prog Assums'!$U$5:$AI$290,13,FALSE)="AS SOA",$AI116,VLOOKUP($C116,'Prog Assums'!$U$5:$AI$290,13,FALSE)) ->  | DQ116: =VLOOKUP($C116,'Prog Assums'!$U$5:$AI$290,14,FALSE) ->  | DR116: =VLOOKUP($C116,'Prog Assums'!$U$5:$AI$290,15,FALSE) ->  | DS116: =IF(ISERROR((SUM($EB116,$EH116,$EN116,$EU116)/SUM($EA116,$EG116,$EM116,$ET116)-$S116))=TRUE,0,IF($U116=0,0,(SUM($EB116,$EH116,$EN116,$EU116)/SUM($EA116,$EG116,$EM116,$ET116)-$S116))) -> 0 | DU116: =SUM($EA116,$EG116,$EM116,$ET116)-$U116 -> 0 | DV116: =SUM($EU116,$EN116,$EH116,$EB116)-$W116-$Y116 -> 0 | DY116: 0 | EA116: 0 | EB116: =EA116*DY116 -> 0 | EE116: 0 | EG116: 0 | EH116: =EG116*EE116 -> 0 | EK116: =IF(EN116>0,SUM(EN116/EM116),0) -> 0 | EM116: =COUNTIFS($EY$2:$YI$2,'Prog Assums'!$B$125,$EY116:$YI116,">0") -> 0 | EN116: =SUMIF($EY$2:$YI$2,'Prog Assums'!$B$125,$EY116:$YI116) -> 0 | ER116: =IF(EU116>0,SUM(EU116/ET116),0) -> 0 | ET116: =COUNTIFS($EY$2:$YI$2,'Prog Assums'!$B$126,$EY116:$YI116,">0") -> 0 | EU116: =SUMIF($EY$2:$YI$2,'Prog Assums'!$B$126,$EY116:$YI116) -> 0
Q117: =ROUNDDOWN(S117/3.25,0) -> 0
D118: Circulation | Q118: indicative % of net area: for new: | S118: =SUM(W118:Y123)/(V89+Y89) -> 0.2346379648 | T118: incl circ noted above | W118: =W89 -> 11 | AC118: =IF(SUM(Y119:Y123)>0,SUM(Y119:Y123)/Y$89,0) -> 0 | AD118: =IF(AC118>0,"for supp","") ->  | AF118: =IF(SUM(AA119:AA123)>0,SUM(AA119:AA123)/AA$89,0) -> 0 | AG118: =IF(AF118>0,"for existing","") ->  | AI118: =AS62+AS84 -> 11 | AK118: =SUM(AS118:AS123)/AI89 -> 0.2346379648 | AP118: 0.225 | AQ118: =IF(Q10<211,20%,22.5%) -> 0.225 | AR118: =AQ118+0.05 -> 0.275 | AS118: =AI118 -> 11 | AU118: =ROUND(IF((O130)-SUM(AS89:AS116)-AS125>(AS89*AC119),O130-SUM(AS89:AS116)-AS125,AS89*AC119),1) -> 359.7 | BE118: =IF(BH118>0,BH118/BH$89,"") ->  | DN118: =VLOOKUP($C118,'Prog Assums'!$U$5:$AI$290,11,FALSE) ->  | DO118: =VLOOKUP($C118,'Prog Assums'!$U$5:$AI$290,12,FALSE) ->  | DP118: =IF(VLOOKUP($C118,'Prog Assums'!$U$5:$AI$290,13,FALSE)="AS SOA",$AI118,VLOOKUP($C118,'Prog Assums'!$U$5:$AI$290,13,FALSE)) ->  | DQ118: =VLOOKUP($C118,'Prog Assums'!$U$5:$AI$290,14,FALSE) ->  | DR118: =VLOOKUP($C118,'Prog Assums'!$U$5:$AI$290,15,FALSE) ->  | DS118: =IF(ISERROR((SUM($EB118,$EH118,$EN118,$EU118)/SUM($EA118,$EG118,$EM118,$ET118)-$S118))=TRUE,0,IF($U118=0,0,(SUM($EB118,$EH118,$EN118,$EU118)/SUM($EA118,$EG118,$EM118,$ET118)-$S118))) -> 0 | DU118: =SUM($EA118,$EG118,$EM118,$ET118)-$U118 -> 0 | DV118: -11 | DY118: 0 | EA118: 0 | EB118: =EA118*DY118 -> 0 | EE118: 0 | EG118: 0 | EH118: =EG118*EE118 -> 0 | EK118: =IF(EN118>0,SUM(EN118/EM118),0) -> 0 | EM118: =COUNTIFS($EY$2:$YI$2,'Prog Assums'!$B$125,$EY118:$YI118,">0") -> 0 | EN118: =SUMIF($EY$2:$YI$2,'Prog Assums'!$B$125,$EY118:$YI118) -> 0 | ER118: =IF(EU118>0,SUM(EU118/ET118),0) -> 0 | ET118: =COUNTIFS($EY$2:$YI$2,'Prog Assums'!$B$126,$EY118:$YI118,">0") -> 0 | EU118: =SUMIF($EY$2:$YI$2,'Prog Assums'!$B$126,$EY118:$YI118) -> 0
A119: =IF($D119="-","",VLOOKUP($D119,'Prog Assums'!$N$5:$X$235,10, FALSE)) -> CIR12 | C119: =IF($D119="-","",VLOOKUP($D119,'Prog Assums'!$N$5:$X$235,8, FALSE)) -> CIR12 | D119: Stairways (area per floor) | M119: =IF(D119="","",_xlfn.XLOOKUP(D119,'Prog Assums'!$N$7:$N$229,'Prog Assums'!$AQ$7:$AQ$229,"")) -> Stairway | N119: Stairway27 | O119: =IF(VLOOKUP(D119,'Prog Assums'!N$5:V$231,9,FALSE)>0,"retained","") ->  | S119: =AI119 -> 27 | U119: =AK119 -> 4 | W119: =MAXA((S119*U119)-Y119,0) -> 108 | AA119: 0 | AC119: =IF(AO5=1,20%,17.5%+(2.5%*AO5)) -> 0.225 | AD119: =VLOOKUP(AG6,'Prog Assums'!B19:D24,3,FALSE) -> of net min circulation for 2 storeys | AI119: =IF(AO$5=1,0,27) -> 27 | AK119: =IF(AO5=1,0,(AO5*(1+ROUND(K10/450,0)))) -> 4 | AS119: =MAXA(0,(AI119*AK119)-Y119) -> 108 | BE119: =IF(ISERROR(AVERAGEIF('Individual Spaces'!F:F,$N119,'Individual Spaces'!K:K))=TRUE," ",AVERAGEIF('Individual Spaces'!F:F,$N119,'Individual Spaces'!K:K)) ->  | BG119: =COUNTIF('Individual Spaces'!F:F,'Primary SoA'!$N119) -> 4 | BH119: =IF(ISERROR((BE119*BG119)=TRUE),"",BE119*BG119) ->  | BJ119: =IF(ISERROR(BH119-$Y119-$W119=TRUE),"",BH119-$Y119-$W119) ->  | BK119: =BG119-$U119 -> 0 | BM119: 4 | BY119: =U119 -> 4 | DN119: =VLOOKUP($C119,'Prog Assums'!$U$5:$AI$290,11,FALSE) -> 5 | DO119: =VLOOKUP($C119,'Prog Assums'!$U$5:$AI$290,12,FALSE) -> - | DP119: =IF(VLOOKUP($C119,'Prog Assums'!$U$5:$AI$290,13,FALSE)="AS SOA",$AI119,VLOOKUP($C119,'Prog Assums'!$U$5:$AI$290,13,FALSE)) -> 25 | DQ119: =VLOOKUP($C119,'Prog Assums'!$U$5:$AI$290,14,FALSE) -> - | DR119: =VLOOKUP($C119,'Prog Assums'!$U$5:$AI$290,15,FALSE) -> 50 | DS119: =IF(ISERROR((SUM($EB119,$EH119,$EN119,$EU119)/SUM($EA119,$EG119,$EM119,$ET119)-$S119))=TRUE,0,IF($U119=0,0,(SUM($EB119,$EH119,$EN119,$EU119)/SUM($EA119,$EG119,$EM119,$ET119)-$S119))) -> 0 | DU119: =SUM($EA119,$EG119,$EM119,$ET119)-$U119 -> -4 | DV119: -108 | DY119: 0 | EA119: 0 | EB119: =EA119*DY119 -> 0 | EE119: 0 | EG119: 0 | EH119: =EG119*EE119 -> 0 | EK119: =IF(EN119>0,SUM(EN119/EM119),0) -> 0 | EM119: =COUNTIFS($EY$2:$YI$2,'Prog Assums'!$B$125,$EY119:$YI119,">0") -> 0 | EN119: =SUMIF($EY$2:$YI$2,'Prog Assums'!$B$125,$EY119:$YI119) -> 0 | ER119: =IF(EU119>0,SUM(EU119/ET119),0) -> 0 | ET119: =COUNTIFS($EY$2:$YI$2,'Prog Assums'!$B$126,$EY119:$YI119,">0") -> 0 | EU119: =SUMIF($EY$2:$YI$2,'Prog Assums'!$B$126,$EY119:$YI119) -> 0
A120: =IF($D120="-","",VLOOKUP($D120,'Prog Assums'!$N$5:$X$235,10, FALSE)) -> CIR13 | C120: =IF($D120="-","",VLOOKUP($D120,'Prog Assums'!$N$5:$X$235,8, FALSE)) -> CIR13 | D120: Lifts (area per floor, incl space to wait) | M120: =IF(D120="","",_xlfn.XLOOKUP(D120,'Prog Assums'!$N$7:$N$229,'Prog Assums'!$AQ$7:$AQ$229,"")) -> Lift | N120: Lift6 | O120: =IF(VLOOKUP(D120,'Prog Assums'!N$5:V$231,9,FALSE)>0,"retained","") ->  | S120: 6 | U120: =AK120 -> 2 | W120: =MAXA((S120*U120)-Y120,0) -> 12 | AA120: 0 | AC120: =MAXA(AC119,(O130-O90)-SUM(W92:W116)-W125)/V89 -> 0.2346379648 | AD120: of new build net area recommended | AI120: 6 | AK120: =IF(AO5=1,0,AO5) -> 2 | AS120: =MAXA(0,(AI120*AK120)-Y120) -> 12 | BE120: =IF(ISERROR(AVERAGEIF('Individual Spaces'!F:F,$N120,'Individual Spaces'!K:K))=TRUE," ",AVERAGEIF('Individual Spaces'!F:F,$N120,'Individual Spaces'!K:K)) ->  | BG120: =COUNTIF('Individual Spaces'!F:F,'Primary SoA'!$N120) -> 2 | BK120: 0 | BM120: 2 | BY120: 2 | DN120: =VLOOKUP($C120,'Prog Assums'!$U$5:$AI$290,11,FALSE) -> 2 | DO120: =VLOOKUP($C120,'Prog Assums'!$U$5:$AI$290,12,FALSE) -> - | DP120: =IF(VLOOKUP($C120,'Prog Assums'!$U$5:$AI$290,13,FALSE)="AS SOA",$AI120,VLOOKUP($C120,'Prog Assums'!$U$5:$AI$290,13,FALSE)) -> 4 | DQ120: =VLOOKUP($C120,'Prog Assums'!$U$5:$AI$290,14,FALSE) -> - | DR120: =VLOOKUP($C120,'Prog Assums'!$U$5:$AI$290,15,FALSE) -> 10 | DS120: 0 | DU120: -2 | DV120: -12 | DY120: 0 | EA120: 0 | EB120: 0 | EE120: 0 | EG120: 0 | EH120: 0 | EK120: 0 | EM120: =COUNTIFS($EY$2:$YI$2,'Prog Assums'!$B$125,$EY120:$YI120,">0") -> 0 | EN120: =SUMIF($EY$2:$YI$2,'Prog Assums'!$B$125,$EY120:$YI120) -> 0 | ER120: 0 | ET120: =COUNTIFS($EY$2:$YI$2,'Prog Assums'!$B$126,$EY120:$YI120,">0") -> 0 | EU120: =SUMIF($EY$2:$YI$2,'Prog Assums'!$B$126,$EY120:$YI120) -> 0
A121: =IF($D121="-","",VLOOKUP($D121,'Prog Assums'!$N$5:$X$235,10, FALSE)) -> CIR03 | C121: =IF($D121="-","",VLOOKUP($D121,'Prog Assums'!$N$5:$X$235,8, FALSE)) -> CIR03 | D121: Lobbies | M121: =IF(D121="","",_xlfn.XLOOKUP(D121,'Prog Assums'!$N$7:$N$229,'Prog Assums'!$AQ$7:$AQ$229,"")) -> Lobby | N121: Lobby6 | O121: =IF(VLOOKUP(D121,'Prog Assums'!N$5:V$231,9,FALSE)>0,"retained","") ->  | S121: 6 | U121: =AK121 -> 1 | W121: =MAXA((S121*U121)-Y121,0) -> 6 | AA121: 0 | AI121: 6 | AK121: =IF(AO5=1,2,1) -> 1 | AS121: =MAXA(0,(AI121*AK121)-Y121) -> 6 | BE121: =IF(ISERROR(AVERAGEIF('Individual Spaces'!F:F,$N121,'Individual Spaces'!K:K))=TRUE," ",AVERAGEIF('Individual Spaces'!F:F,$N121,'Individual Spaces'!K:K)) ->  | BG121: =COUNTIF('Individual Spaces'!F:F,'Primary SoA'!$N121) -> 1 | BK121: 0 | BM121: 1 | BY121: 1 | DN121: =VLOOKUP($C121,'Prog Assums'!$U$5:$AI$290,11,FALSE) -> 3 | DO121: =VLOOKUP($C121,'Prog Assums'!$U$5:$AI$290,12,FALSE) -> - | DP121: =IF(VLOOKUP($C121,'Prog Assums'!$U$5:$AI$290,13,FALSE)="AS SOA",$AI121,VLOOKUP($C121,'Prog Assums'!$U$5:$AI$290,13,FALSE)) -> 6 | DQ121: =VLOOKUP($C121,'Prog Assums'!$U$5:$AI$290,14,FALSE) -> - | DR121: =VLOOKUP($C121,'Prog Assums'!$U$5:$AI$290,15,FALSE) -> 25 | DS121: 0 | DU121: -1 | DV121: -6 | DY121: 0 | EA121: 0 | EB121: 0 | EE121: 0 | EG121: 0 | EH121: 0 | EK121: 0 | EM121: =COUNTIFS($EY$2:$YI$2,'Prog Assums'!$B$125,$EY121:$YI121,">0") -> 0 | EN121: =SUMIF($EY$2:$YI$2,'Prog Assums'!$B$125,$EY121:$YI121) -> 0 | ER121: 0 | ET121: =COUNTIFS($EY$2:$YI$2,'Prog Assums'!$B$126,$EY121:$YI121,">0") -> 0 | EU121: =SUMIF($EY$2:$YI$2,'Prog Assums'!$B$126,$EY121:$YI121) -> 0
A122: =IF($D122="-","",VLOOKUP($D122,'Prog Assums'!$N$5:$X$235,10, FALSE)) ->  | C122: =IF($D122="-","",VLOOKUP($D122,'Prog Assums'!$N$5:$X$235,8, FALSE)) ->  | D122: - | M122: =IF(D122="","",_xlfn.XLOOKUP(D122,'Prog Assums'!$N$7:$N$229,'Prog Assums'!$AQ$7:$AQ$229,"")) -> - | N122: - | O122: =IF(VLOOKUP(D122,'Prog Assums'!N$5:V$231,9,FALSE)>0,"retained","") ->  | W122: =MAXA((S122*U122)-Y122,0) -> 0 | AA122: 0 | BE122: =IF(ISERROR(AVERAGEIF('Individual Spaces'!F:F,$N122,'Individual Spaces'!K:K))=TRUE," ",AVERAGEIF('Individual Spaces'!F:F,$N122,'Individual Spaces'!K:K)) ->  | BG122: =COUNTIF('Individual Spaces'!F:F,'Primary SoA'!$N122) -> 0 | BK122: 0 | BM122: 0 | BY122: 0 | DN122: =VLOOKUP($C122,'Prog Assums'!$U$5:$AI$290,11,FALSE) ->  | DO122: =VLOOKUP($C122,'Prog Assums'!$U$5:$AI$290,12,FALSE) ->  | DP122: =IF(VLOOKUP($C122,'Prog Assums'!$U$5:$AI$290,13,FALSE)="AS SOA",$AI122,VLOOKUP($C122,'Prog Assums'!$U$5:$AI$290,13,FALSE)) ->  | DQ122: =VLOOKUP($C122,'Prog Assums'!$U$5:$AI$290,14,FALSE) ->  | DR122: =VLOOKUP($C122,'Prog Assums'!$U$5:$AI$290,15,FALSE) ->  | DS122: 0 | DU122: 0 | DV122: 0 | DY122: 0 | EA122: 0 | EB122: 0 | EE122: 0 | EG122: 0 | EH122: 0 | EK122: 0 | EM122: =COUNTIFS($EY$2:$YI$2,'Prog Assums'!$B$125,$EY122:$YI122,">0") -> 0 | EN122: =SUMIF($EY$2:$YI$2,'Prog Assums'!$B$125,$EY122:$YI122) -> 0 | ER122: 0 | ET122: =COUNTIFS($EY$2:$YI$2,'Prog Assums'!$B$126,$EY122:$YI122,">0") -> 0 | EU122: =SUMIF($EY$2:$YI$2,'Prog Assums'!$B$126,$EY122:$YI122) -> 0
A123: =IF($D123="-","",VLOOKUP($D123,'Prog Assums'!$N$5:$X$235,10, FALSE)) -> CIR00 | C123: =IF($D123="-","",VLOOKUP($D123,'Prog Assums'!$N$5:$X$235,8, FALSE)) -> CIR00 | D123: Circulation spaces (horizontal) | K123: remaining | M123: =D123 -> Circulation spaces (horizontal) | N123: Circulation spaces (horizontal)222.7 | S123: =MAXA(ROUND(V$89*AC120,1)-SUM(W118:W122)+Y123,ROUND(V89*0.14,1)) -> 222.7 | W123: =MAXA(S123-Y123,0) -> 222.7 | Y123: =ROUNDDOWN(MAXA(Y$89*0.2,S129-SUM(Y89:Y116)-Y125),0) -> 0 | AA123: 0 | AC123: 14% of net min rec'd for horizontal circulation | AI123: =AS123 -> 222.7 | AQ123: 0.135 | AS123: =ROUND(MAXA(V89*AQ123,AU118-SUM(AS118:AS122)),1) -> 222.7 | AT123: =ROUNDDOWN(MAXA(AT$89*S118,S129-SUM(AT89:AT116)-AT125),0) -> 0 | BE123: =IF(ISERROR(AVERAGEIF('Individual Spaces'!F:F,$N123,'Individual Spaces'!K:K))=TRUE," ",AVERAGEIF('Individual Spaces'!F:F,$N123,'Individual Spaces'!K:K)) ->  | BG123: =COUNTIF('Individual Spaces'!F:F,'Primary SoA'!$N123) -> 0 | BK123: 0 | DN123: =VLOOKUP($C123,'Prog Assums'!$U$5:$AI$290,11,FALSE) -> 1 | DO123: =VLOOKUP($C123,'Prog Assums'!$U$5:$AI$290,12,FALSE) -> - | DP123: =IF(VLOOKUP($C123,'Prog Assums'!$U$5:$AI$290,13,FALSE)="AS SOA",$AI123,VLOOKUP($C123,'Prog Assums'!$U$5:$AI$290,13,FALSE)) -> 50 | DQ123: =VLOOKUP($C123,'Prog Assums'!$U$5:$AI$290,14,FALSE) -> - | DR123: =VLOOKUP($C123,'Prog Assums'!$U$5:$AI$290,15,FALSE) -> 500 | DS123: 0 | DU123: 0 | DV123: -222.7 | DY123: 0 | EA123: 0 | EB123: 0 | EE123: 0 | EG123: 0 | EH123: 0 | EK123: 0 | EM123: =COUNTIFS($EY$2:$YI$2,'Prog Assums'!$B$125,$EY123:$YI123,">0") -> 0 | EN123: =SUMIF($EY$2:$YI$2,'Prog Assums'!$B$125,$EY123:$YI123) -> 0 | ER123: 0 | ET123: =COUNTIFS($EY$2:$YI$2,'Prog Assums'!$B$126,$EY123:$YI123,">0") -> 0 | EU123: =SUMIF($EY$2:$YI$2,'Prog Assums'!$B$126,$EY123:$YI123) -> 0
M124: =D124 -> 0 | N124: 0 | Q124: =ROUNDDOWN(S124/3.25,0) -> 0
D125: Partitions | M125: =D125 -> Partitions | N125: Partitions0.0450097847358121 | Q125: indicative % of net area | S125: =AK125 -> 0.04500978474 | T125: for new build | W125: =ROUND((V$89-AA$89)*S125,0)+AA125 -> 69 | Y125: =ROUND(Y$89*S125,0) -> 0 | AC125: =IF(Y125>0,Y125/Y$89,0) -> 0 | AD125: =IF(Y125>0,"for supp","") ->  | AF125: =IF(AA125>0,AA125/AA$89,0) -> 0 | AG125: =IF(AA125>0,"for existing","") ->  | AI125: =ROUND(AI$89*AP125,0) -> 69 | AK125: =AI125/AI89 -> 0.04500978474 | AP125: 0.045 | AQ125: 0.045 | AR125: 0.06 | AS125: =AI125 -> 69 | AT125: =ROUND((AT$89*AK125),0) -> 0 | BE125: =IF(BH125>0,BH125/BH$89,"") ->  | BJ125: =BH125-$Y125-$W125 -> -69 | DS125: 0 | DU125: 0 | DV125: -69 | DY125: =$S125 -> 0.04500978474 | EB125: =ROUNDUP(EB$89*DY125,1) -> 0 | EE125: =$S125 -> 0.04500978474 | EH125: =ROUNDUP(EH$89*EE125,1) -> 0 | EK125: =$S125 -> 0.04500978474 | EN125: =ROUNDUP(EN$89*EK125,1) -> 0 | ER125: =$S125 -> 0.04500978474 | EU125: =ROUNDUP(EU$89*ER125,1) -> 0
Q126: =ROUNDDOWN(S126/3.25,0) -> 0
D127: TOTAL AREA | L127: BB103 range | O127: =V89*0.415 -> 636.195 | P127: to | Q127: =V89*0.45 -> 689.85 | W127: =SUM(W92:W125) -> 646 | Y127: =SUM(Y92:Y125) -> 0 | AA127: =SUM(AA92:AA125) -> 0 | AC127: =IF(W127<(O127-1),"ERROR: total area for category is too low",IF(W127>(Q127+1),"WARNING: total area for category is high","OK: area within BB103 range")) -> OK: area within BB103 range | AI127: =SUM(AS92:AS125) -> 646 | AK127: =SUM(AT92:AT125) -> 0 | AS127: =SUM(AS92:AS125) -> 646 | AT127: =SUM(AT92:AT125) -> 0 | BH127: =SUM(BH92:BH125) -> 0 | BJ127: =BH127-$Y127-$V127 -> 0 | BO127: =SUM(BO92:BO97) -> 9 | BQ127: =SUM(BQ92:BQ97) -> 0 | BS127: =SUM(BS92:BS97) -> 0 | BU127: =SUM(BU92:BU97) -> 3 | BW127: =SUM(BW92:BW97) -> 0 | BY127: =SUM(BY92:BY97) -> 0 | DV127: =SUM(DV92:DV125) -> -646 | EB127: =SUM(EB92:EB125) -> 0 | EH127: =SUM(EH92:EH125) -> 0 | EN127: =SUM(EN92:EN125) -> 0 | EU127: =SUM(EU92:EU125) -> 0
C129: Total Gross Area | L129: BB103 range | O129: =ROUND(350+(K10*4.1),0) -> 2179 | P129: to | Q129: =ROUND(400+(K10*4.5),0) -> 2407 | S129: =IF($K$14>0,VLOOKUP($D$14,'Prog Assums'!$B$83:$K$95,6,FALSE),0)+($K$14*VLOOKUP($D$14,'Prog Assums'!$B$83:$K$95,7,FALSE))+ROUNDUP($K$12*4.7,0)+ROUNDUP($O$12*6.7,0) -> 0 | U129: =IF($K$14>0,75,0)+($K$14*VLOOKUP($D$14,'Prog Assums'!$B$83:$K$95,10,FALSE))+ROUNDUP($K$12*5.8,0)+ROUNDUP($O$12*8.3,0) -> 0 | V129: =V89+W127 -> 2179 | Y129: =Y89+Y127 -> 0 | AA129: - | AC129: =IF((V129+Y129)>(O129+S129)*1.001,IF((V129+Y129)>(Q129+U129)*1.001,V129+Y129-Q129-U129,V129+Y129-O129-S129),"OK") -> OK | AD129: =IF((V129+Y129)>(O129+S129)*1.001,IF((V129+Y129)>(Q129+U129)*1.001,"m2 OVER MAXIMUM GROSS AREA","m2 over minimum gross area"),"") ->  | AI129: =AI89+AI127 -> 2179 | AK129: =AK89+AK127 -> 0 | AS129: =O129/V89 -> 1.421395956 | BE129: =AY13*15 -> 0 | BH129: =BH89+BH127 -> 0 | BJ129: =BH129-$Y129-$V129 -> -2179 | DU129: Total : | DV129: =SUM(DV127,DV89) -> -2178.5 | EA129: Total : | EB129: =SUM(EB127,EB89) -> 0 | EG129: Total : | EH129: =SUM(EH127,EH89) -> 0 | EM129: Total : | EN129: =SUM(EN127,EN89) -> 0 | ET129: Total : | EU129: =SUM(EU127,EU89) -> 0
C130: Recommended Gross Area | O130: =ROUND(350+(K10*4.1),0) -> 2179 | AC130: =IF(V129>O130*1.001,IF(V129>Q129*1.001,V129-Q129,V129-O130),"OK") -> OK | AD130: =IF((V129+Y129)>O130*1.001,"m2 over recommended gross area",IF((V129+Y129)<O130*0.999,"m2 under recommended gross area","")) -> 
